Workbook

Sheet PI vs gap
A1: Measurement | B1: Hall
A2: Type | B2: Gap dependence
A4: Project | B4: ='10 mm'!B5 -> 504314
A5: PS serial no | B5: ='10 mm'!B7 -> 2410093
A7: Measurement date | B7: =LEFT('10 mm'!B4,10) -> 05-09-2024
A11: Nominal gap [mm] | B11: Encoder [counts] | C11: Encoder [mm] | D11: PI [T^2mm^3] | E11: PI spec [T^2mm^3] | F11: Encoder value at 10 mm gap:
A12: ='10 mm'!$B$53 -> 10 | B12: ='10 mm'!$B$55 -> 19.9702 | C12: =-1*($F$12-B12)+10 -> 9.9976 | D12: ='10 mm'!$K$3 -> 10457.33992 | F12: 19.9726
A13: ='15 mm'!$B$53 -> 15 | B13: ='15 mm'!$B$55 -> 24.9721 | C13: =-1*($F$12-B13)+10 -> 14.9995 | D13: ='15 mm'!$K$3 -> 7129.26261
A14: ='20 mm'!$B$53 -> 20 | B14: ='20 mm'!$B$55 -> 29.9712 | C14: 19.9986 | D14: ='20 mm'!$K$3 -> 4925.500616
A15: ='30 mm'!$B$53 -> 30 | B15: ='30 mm'!$B$55 -> 39.9777 | C15: 30.0051 | D15: ='30 mm'!$K$3 -> 2419.324018
A16: ='100 mm'!$B$53 -> 100 | B16: ='100 mm'!$B$55 -> 109.9779 | C16: 100.0053 | D16: ='100 mm'!$K$3 -> 37.57406203
A47: Measuring series at larger gaps:
A48: Reference magnet
A49: Tref | B49: 21.38 | C49: degC
A50: Hall ref field | B50: 0.505 | C50: T
A51: NMR ref field | B51: 0.50627 | C51: T
A53: Offset from Faro

Sheet 10 mm
A1: =IF('DF raw data'!A1="","",'DF raw data'!A1) -> Number of header lines | B1: =IF('DF raw data'!B1="","",'DF raw data'!B1) -> 54 | C1: =IF('DF raw data'!C1="","",'DF raw data'!C1) ->  | D1: =IF('DF raw data'!D1="","",'DF raw data'!D1) ->  | F1: T_coeff | G1: -0.001 | H1: /degC | J1: IBy total | K1: =J1267*1000 -> 10.51772705 | L1: muTm | M1: =L1267*1000 -> -6.3255838 | R1: DF ref | S1: 1
A2: =IF('DF raw data'!A2="","",'DF raw data'!A2) -> Measured by | B2: =IF('DF raw data'!B2="","",'DF raw data'!B2) -> Danfysik | C2: =IF('DF raw data'!C2="","",'DF raw data'!C2) ->  | D2: =IF('DF raw data'!D2="","",'DF raw data'!D2) ->  | F2: Tcorr | G2: 20 | H2: degC | J2: JBy total | K2: =K1267 -> -12.0829429 | L2: muTm^2 | M2: =M1267 -> -2.113577017
A3: =IF('DF raw data'!A3="","",'DF raw data'!A3) -> Operator | B3: =IF('DF raw data'!B3="","",'DF raw data'!B3) -> PMHA | C3: =IF('DF raw data'!C3="","",'DF raw data'!C3) ->  | D3: =IF('DF raw data'!D3="","",'DF raw data'!D3) ->  | F3: Step | G3: =A68-A67 -> 0.5 | H3: mm | J3: PI total | K3: =N1267 -> 10457.33992 | L3: T^2mm^3
A4: =IF('DF raw data'!A4="","",'DF raw data'!A4) -> Data-time | B4: =IF('DF raw data'!B4="","",'DF raw data'!B4) -> 05-09-2024, 14:51:52 | C4: =IF('DF raw data'!C4="","",'DF raw data'!C4) ->  | D4: =IF('DF raw data'!D4="","",'DF raw data'!D4) -> 
A5: =IF('DF raw data'!A5="","",'DF raw data'!A5) -> Project | B5: =IF('DF raw data'!B5="","",'DF raw data'!B5) -> 504314 | C5: =IF('DF raw data'!C5="","",'DF raw data'!C5) ->  | D5: Bamb avr | F5: =(AVERAGE(B67:B107) + AVERAGE(B1227:B1267))/2 -> -2.063089941e-05 | G5: =(AVERAGE(C67:C107) + AVERAGE(C1227:C1267))/2 -> 3.344916704e-05 | H5: =(AVERAGE(D67:D107) + AVERAGE(D1227:D1267))/2 -> -3.148415854e-05
A6: =IF('DF raw data'!A6="","",'DF raw data'!A6) -> Magnet type | B6: =IF('DF raw data'!B6="","",'DF raw data'!B6) -> Dipole | C6: =IF('DF raw data'!C6="","",'DF raw data'!C6) -> 
A7: =IF('DF raw data'!A7="","",'DF raw data'!A7) -> Magnet nr. | B7: =IF('DF raw data'!B7="","",'DF raw data'!B7) -> 2410093 | C7: =IF('DF raw data'!C7="","",'DF raw data'!C7) -> 
A8: =IF('DF raw data'!A8="","",'DF raw data'!A8) -> Meas. number | B8: =IF('DF raw data'!B8="","",'DF raw data'!B8) -> 373 | C8: =IF('DF raw data'!C8="","",'DF raw data'!C8) -> 
A9: =IF('DF raw data'!A9="","",'DF raw data'!A9) -> Add. info | B9: =IF('DF raw data'!B9="","",'DF raw data'!B9) -> Y-alignment scan 3) | C9: =IF('DF raw data'!C9="","",'DF raw data'!C9) ->  | D9: =IF('DF raw data'!D9="","",'DF raw data'!D9) -> 
A10: =IF('DF raw data'!A10="","",'DF raw data'!A10) -> Device | B10: =IF('DF raw data'!B10="","",'DF raw data'!B10) -> (HAL) HALL-PROBE | C10: =IF('DF raw data'!C10="","",'DF raw data'!C10) ->  | D10: =IF('DF raw data'!D10="","",'DF raw data'!D10) -> 
A11: =IF('DF raw data'!A11="","",'DF raw data'!A11) -> Goal | B11: =IF('DF raw data'!B11="","",'DF raw data'!B11) -> (AXI) AXis Integral (Line, EFB) | C11: =IF('DF raw data'!C11="","",'DF raw data'!C11) ->  | D11: =IF('DF raw data'!D11="","",'DF raw data'!D11) -> 
A12: =IF('DF raw data'!A12="","",'DF raw data'!A12) -> Power supply mode | B12: =IF('DF raw data'!B12="","",'DF raw data'!B12) -> (PM) Permanent Magnet (no MPS in use) | C12: =IF('DF raw data'!C12="","",'DF raw data'!C12) ->  | D12: =IF('DF raw data'!D12="","",'DF raw data'!D12) -> 
A13: =IF('DF raw data'!A13="","",'DF raw data'!A13) -> Data format | B13: =IF('DF raw data'!B13="","",'DF raw data'!B13) -> Raw data text file | C13: =IF('DF raw data'!C13="","",'DF raw data'!C13) ->  | D13: =IF('DF raw data'!D13="","",'DF raw data'!D13) -> 
A14: =IF('DF raw data'!A14="","",'DF raw data'!A14) -> Direction of the pos. x-axis | B14: =IF('DF raw data'!B14="","",'DF raw data'!B14) -> See test program | C14: =IF('DF raw data'!C14="","",'DF raw data'!C14) ->  | D14: =IF('DF raw data'!D14="","",'DF raw data'!D14) -> 
A15: =IF('DF raw data'!A15="","",'DF raw data'!A15) -> Direction of the pos. y-axis | B15: =IF('DF raw data'!B15="","",'DF raw data'!B15) -> Vertical up | C15: =IF('DF raw data'!C15="","",'DF raw data'!C15) ->  | D15: =IF('DF raw data'!D15="","",'DF raw data'!D15) -> 
A16: =IF('DF raw data'!A16="","",'DF raw data'!A16) -> Direction of the pos. z-axis | B16: =IF('DF raw data'!B16="","",'DF raw data'!B16) -> See test program | C16: =IF('DF raw data'!C16="","",'DF raw data'!C16) ->  | D16: =IF('DF raw data'!D16="","",'DF raw data'!D16) -> 
A17: =IF('DF raw data'!A17="","",'DF raw data'!A17) -> Mapper type | B17: =IF('DF raw data'!B17="","",'DF raw data'!B17) -> Precision Hall Mapper | C17: =IF('DF raw data'!C17="","",'DF raw data'!C17) ->  | D17: =IF('DF raw data'!D17="","",'DF raw data'!D17) -> 
A18: =IF('DF raw data'!A18="","",'DF raw data'!A18) -> Mapper Danfysik Reg. Number | B18: =IF('DF raw data'!B18="","",'DF raw data'!B18) -> 2033-D (mapper 1) | C18: =IF('DF raw data'!C18="","",'DF raw data'!C18) ->  | D18: =IF('DF raw data'!D18="","",'DF raw data'!D18) -> 
A19: =IF('DF raw data'!A19="","",'DF raw data'!A19) -> Measurement consept | B19: =IF('DF raw data'!B19="","",'DF raw data'!B19) -> Square line grid | C19: =IF('DF raw data'!C19="","",'DF raw data'!C19) ->  | D19: =IF('DF raw data'!D19="","",'DF raw data'!D19) -> 
A20: =IF('DF raw data'!A20="","",'DF raw data'!A20) -> Mode | B20: =IF('DF raw data'!B20="","",'DF raw data'!B20) -> On-the-fly measurement | C20: =IF('DF raw data'!C20="","",'DF raw data'!C20) ->  | D20: =IF('DF raw data'!D20="","",'DF raw data'!D20) -> 
A21: =IF('DF raw data'!A21="","",'DF raw data'!A21) ->  | B21: =IF('DF raw data'!B21="","",'DF raw data'!B21) ->  | C21: =IF('DF raw data'!C21="","",'DF raw data'!C21) ->  | D21: =IF('DF raw data'!D21="","",'DF raw data'!D21) -> 
A22: =IF('DF raw data'!A22="","",'DF raw data'!A22) -> Probe Name | B22: =IF('DF raw data'!B22="","",'DF raw data'!B22) -> ID12_By | C22: =IF('DF raw data'!C22="","",'DF raw data'!C22) ->  | D22: =IF('DF raw data'!D22="","",'DF raw data'!D22) -> 
A23: =IF('DF raw data'!A23="","",'DF raw data'!A23) -> Probe Type | B23: =IF('DF raw data'!B23="","",'DF raw data'!B23) -> DF_ID_3D_Bxyz | C23: =IF('DF raw data'!C23="","",'DF raw data'!C23) ->  | D23: =IF('DF raw data'!D23="","",'DF raw data'!D23) -> 
A24: =IF('DF raw data'!A24="","",'DF raw data'!A24) -> Probe Danfysik Reg. Number | B24: =IF('DF raw data'!B24="","",'DF raw data'!B24) -> 2277 | C24: =IF('DF raw data'!C24="","",'DF raw data'!C24) ->  | D24: =IF('DF raw data'!D24="","",'DF raw data'!D24) -> 
A25: =IF('DF raw data'!A25="","",'DF raw data'!A25) -> Probe Axis | B25: =IF('DF raw data'!B25="","",'DF raw data'!B25) -> By | C25: =IF('DF raw data'!C25="","",'DF raw data'!C25) ->  | D25: =IF('DF raw data'!D25="","",'DF raw data'!D25) -> 
A26: =IF('DF raw data'!A26="","",'DF raw data'!A26) -> Probe Current Supply | B26: =IF('DF raw data'!B26="","",'DF raw data'!B26) -> 1825-D | C26: =IF('DF raw data'!C26="","",'DF raw data'!C26) ->  | D26: =IF('DF raw data'!D26="","",'DF raw data'!D26) -> 
A27: =IF('DF raw data'!A27="","",'DF raw data'!A27) -> Probe Gain Correction | B27: =IF('DF raw data'!B27="","",'DF raw data'!B27) -> 0.99618 | C27: =IF('DF raw data'!C27="","",'DF raw data'!C27) ->  | D27: =IF('DF raw data'!D27="","",'DF raw data'!D27) -> 
A28: =IF('DF raw data'!A28="","",'DF raw data'!A28) -> Probe Offset Correction | B28: =IF('DF raw data'!B28="","",'DF raw data'!B28) -> 0.0027415 | C28: =IF('DF raw data'!C28="","",'DF raw data'!C28) ->  | D28: =IF('DF raw data'!D28="","",'DF raw data'!D28) -> 
A29: =IF('DF raw data'!A29="","",'DF raw data'!A29) -> DVM Number | B29: =IF('DF raw data'!B29="","",'DF raw data'!B29) -> 2 | C29: =IF('DF raw data'!C29="","",'DF raw data'!C29) ->  | D29: =IF('DF raw data'!D29="","",'DF raw data'!D29) -> 
A30: =IF('DF raw data'!A30="","",'DF raw data'!A30) -> DVM Type | B30: =IF('DF raw data'!B30="","",'DF raw data'!B30) -> K2701 | C30: =IF('DF raw data'!C30="","",'DF raw data'!C30) ->  | D30: =IF('DF raw data'!D30="","",'DF raw data'!D30) -> 
A31: =IF('DF raw data'!A31="","",'DF raw data'!A31) -> DVM Danfysik Reg. Number | B31: =IF('DF raw data'!B31="","",'DF raw data'!B31) -> 1743-D | C31: =IF('DF raw data'!C31="","",'DF raw data'!C31) ->  | D31: =IF('DF raw data'!D31="","",'DF raw data'!D31) -> 
A32: =IF('DF raw data'!A32="","",'DF raw data'!A32) -> Probe Name | B32: =IF('DF raw data'!B32="","",'DF raw data'!B32) -> ID12_Bx | C32: =IF('DF raw data'!C32="","",'DF raw data'!C32) ->  | D32: =IF('DF raw data'!D32="","",'DF raw data'!D32) -> 
A33: =IF('DF raw data'!A33="","",'DF raw data'!A33) -> Probe Type | B33: =IF('DF raw data'!B33="","",'DF raw data'!B33) -> DF_ID_3D_Bxyz | C33: =IF('DF raw data'!C33="","",'DF raw data'!C33) ->  | D33: =IF('DF raw data'!D33="","",'DF raw data'!D33) -> 
A34: =IF('DF raw data'!A34="","",'DF raw data'!A34) -> Probe Danfysik Reg. Number | B34: =IF('DF raw data'!B34="","",'DF raw data'!B34) -> 2277 | C34: =IF('DF raw data'!C34="","",'DF raw data'!C34) ->  | D34: =IF('DF raw data'!D34="","",'DF raw data'!D34) -> 
A35: =IF('DF raw data'!A35="","",'DF raw data'!A35) -> Probe Axis | B35: =IF('DF raw data'!B35="","",'DF raw data'!B35) -> Bx | C35: =IF('DF raw data'!C35="","",'DF raw data'!C35) ->  | D35: =IF('DF raw data'!D35="","",'DF raw data'!D35) -> 
A36: =IF('DF raw data'!A36="","",'DF raw data'!A36) -> Probe Current Supply | B36: =IF('DF raw data'!B36="","",'DF raw data'!B36) -> 1825-D | C36: =IF('DF raw data'!C36="","",'DF raw data'!C36) ->  | D36: =IF('DF raw data'!D36="","",'DF raw data'!D36) -> 
A37: =IF('DF raw data'!A37="","",'DF raw data'!A37) -> Probe Gain Correction | B37: =IF('DF raw data'!B37="","",'DF raw data'!B37) -> 1 | C37: =IF('DF raw data'!C37="","",'DF raw data'!C37) ->  | D37: =IF('DF raw data'!D37="","",'DF raw data'!D37) -> 
A38: =IF('DF raw data'!A38="","",'DF raw data'!A38) -> Probe Offset Correction | B38: =IF('DF raw data'!B38="","",'DF raw data'!B38) -> -0.17583 | C38: =IF('DF raw data'!C38="","",'DF raw data'!C38) ->  | D38: =IF('DF raw data'!D38="","",'DF raw data'!D38) -> 
A39: =IF('DF raw data'!A39="","",'DF raw data'!A39) -> DVM Number | B39: =IF('DF raw data'!B39="","",'DF raw data'!B39) -> 3 | C39: =IF('DF raw data'!C39="","",'DF raw data'!C39) ->  | D39: =IF('DF raw data'!D39="","",'DF raw data'!D39) -> 
A40: =IF('DF raw data'!A40="","",'DF raw data'!A40) -> DVM Type | B40: =IF('DF raw data'!B40="","",'DF raw data'!B40) -> K2701 | C40: =IF('DF raw data'!C40="","",'DF raw data'!C40) ->  | D40: =IF('DF raw data'!D40="","",'DF raw data'!D40) -> 
A41: =IF('DF raw data'!A41="","",'DF raw data'!A41) -> DVM Danfysik Reg. Number | B41: =IF('DF raw data'!B41="","",'DF raw data'!B41) -> 1744-D | C41: =IF('DF raw data'!C41="","",'DF raw data'!C41) ->  | D41: =IF('DF raw data'!D41="","",'DF raw data'!D41) -> 
A42: =IF('DF raw data'!A42="","",'DF raw data'!A42) -> Probe Name | B42: =IF('DF raw data'!B42="","",'DF raw data'!B42) -> ID12_Bz | C42: =IF('DF raw data'!C42="","",'DF raw data'!C42) ->  | D42: =IF('DF raw data'!D42="","",'DF raw data'!D42) -> 
A43: =IF('DF raw data'!A43="","",'DF raw data'!A43) -> Probe Type | B43: =IF('DF raw data'!B43="","",'DF raw data'!B43) -> DF_ID_3D_Bxyz | C43: =IF('DF raw data'!C43="","",'DF raw data'!C43) ->  | D43: =IF('DF raw data'!D43="","",'DF raw data'!D43) -> 
A44: =IF('DF raw data'!A44="","",'DF raw data'!A44) -> Probe Danfysik Reg. Number | B44: =IF('DF raw data'!B44="","",'DF raw data'!B44) -> 2277 | C44: =IF('DF raw data'!C44="","",'DF raw data'!C44) ->  | D44: =IF('DF raw data'!D44="","",'DF raw data'!D44) -> 
A45: =IF('DF raw data'!A45="","",'DF raw data'!A45) -> Probe Axis | B45: =IF('DF raw data'!B45="","",'DF raw data'!B45) -> Bz | C45: =IF('DF raw data'!C45="","",'DF raw data'!C45) ->  | D45: =IF('DF raw data'!D45="","",'DF raw data'!D45) -> 
A46: =IF('DF raw data'!A46="","",'DF raw data'!A46) -> Probe Current Supply | B46: =IF('DF raw data'!B46="","",'DF raw data'!B46) -> 1825-D | C46: =IF('DF raw data'!C46="","",'DF raw data'!C46) ->  | D46: =IF('DF raw data'!D46="","",'DF raw data'!D46) -> 
A47: =IF('DF raw data'!A47="","",'DF raw data'!A47) -> Probe Gain Correction | B47: =IF('DF raw data'!B47="","",'DF raw data'!B47) -> 1 | C47: =IF('DF raw data'!C47="","",'DF raw data'!C47) ->  | D47: =IF('DF raw data'!D47="","",'DF raw data'!D47) -> 
A48: =IF('DF raw data'!A48="","",'DF raw data'!A48) -> Probe Offset Correction | B48: =IF('DF raw data'!B48="","",'DF raw data'!B48) -> 0.0073366 | C48: =IF('DF raw data'!C48="","",'DF raw data'!C48) ->  | D48: =IF('DF raw data'!D48="","",'DF raw data'!D48) -> 
A49: =IF('DF raw data'!A49="","",'DF raw data'!A49) -> DVM Number | B49: =IF('DF raw data'!B49="","",'DF raw data'!B49) -> 8 | C49: =IF('DF raw data'!C49="","",'DF raw data'!C49) ->  | D49: =IF('DF raw data'!D49="","",'DF raw data'!D49) -> 
A50: =IF('DF raw data'!A50="","",'DF raw data'!A50) -> DVM Type | B50: =IF('DF raw data'!B50="","",'DF raw data'!B50) -> K2700 | C50: =IF('DF raw data'!C50="","",'DF raw data'!C50) ->  | D50: =IF('DF raw data'!D50="","",'DF raw data'!D50) -> 
A51: =IF('DF raw data'!A51="","",'DF raw data'!A51) -> DVM Danfysik Reg. Number | B51: =IF('DF raw data'!B51="","",'DF raw data'!B51) -> 1756-D | C51: =IF('DF raw data'!C51="","",'DF raw data'!C51) ->  | D51: =IF('DF raw data'!D51="","",'DF raw data'!D51) -> 
A52: =IF('DF raw data'!A52="","",'DF raw data'!A52) -> NTC voltage | B52: =IF('DF raw data'!B52="","",'DF raw data'!B52) -> 0.38599 | C52: =IF('DF raw data'!C52="","",'DF raw data'!C52) ->  | D52: =IF('DF raw data'!D52="","",'DF raw data'!D52) -> 
A53: =IF('DF raw data'!A53="","",'DF raw data'!A53) -> PS-Gap: | B53: =IF('DF raw data'!B53="","",'DF raw data'!B53) -> 10 | C53: =IF('DF raw data'!C53="","",'DF raw data'!C53) ->  | D53: =IF('DF raw data'!D53="","",'DF raw data'!D53) -> 
A54: =IF('DF raw data'!A54="","",'DF raw data'!A54) -> PS-Temperature: | B54: =IF('DF raw data'!B54="","",'DF raw data'!B54) -> 26.5 | C54: =IF('DF raw data'!C54="","",'DF raw data'!C54) ->  | D54: =IF('DF raw data'!D54="","",'DF raw data'!D54) -> 
A55: =IF('DF raw data'!A55="","",'DF raw data'!A55) -> PS-Encoder: | B55: =IF('DF raw data'!B55="","",'DF raw data'!B55) -> 19.9702 | C55: =IF('DF raw data'!C55="","",'DF raw data'!C55) ->  | D55: =IF('DF raw data'!D55="","",'DF raw data'!D55) -> 
A56: =IF('DF raw data'!A56="","",'DF raw data'!A56) ->  | B56: =IF('DF raw data'!B56="","",'DF raw data'!B56) -> 
A57: =IF('DF raw data'!A57="","",'DF raw data'!A57) -> Monitor-Index | B57: =IF('DF raw data'!B57="","",'DF raw data'!B57) -> [1,1,4]
A58: =IF('DF raw data'!A58="","",'DF raw data'!A58) ->  | B58: =IF('DF raw data'!B58="","",'DF raw data'!B58) -> 
A59: =IF('DF raw data'!A59="","",'DF raw data'!A59) -> Time [s] | B59: =IF('DF raw data'!B59="","",'DF raw data'!B59) -> Y [mm]
A60: =IF('DF raw data'!A60="","",'DF raw data'!A60) ->  | B60: =IF('DF raw data'!B60="","",'DF raw data'!B60) -> 
A61: =IF('DF raw data'!A61="","",'DF raw data'!A61) -> 208.9 | B61: =IF('DF raw data'!B61="","",'DF raw data'!B61) -> 31.76
A62: =IF('DF raw data'!A62="","",'DF raw data'!A62) ->  | B62: =IF('DF raw data'!B62="","",'DF raw data'!B62) -> 
A63: =IF('DF raw data'!A63="","",'DF raw data'!A63) -> Measurement-Index | B63: =IF('DF raw data'!B63="","",'DF raw data'!B63) -> [1,1,1201,2]
A64: =IF('DF raw data'!A64="","",'DF raw data'!A64) ->  | B64: =IF('DF raw data'!B64="","",'DF raw data'!B64) -> 
A65: =IF('DF raw data'!A65="","",'DF raw data'!A65) -> Z [mm] | B65: =IF('DF raw data'!B65="","",'DF raw data'!B65) -> By [T] | C65: =IF('DF raw data'!C65="","",'DF raw data'!C65) -> Bx [T] | D65: =IF('DF raw data'!D65="","",'DF raw data'!D65) -> Bz [T] | F65: By_corr | G65: Bx_corr | H65: Bz_corr | J65: Iy | K65: Jy | L65: Ix | M65: Jx | N65: PI
A66: =IF('DF raw data'!A66="","",'DF raw data'!A66) -> [1, 0, 0, 0] | B66: =IF('DF raw data'!B66="","",'DF raw data'!B66) ->  | C66: =IF('DF raw data'!C66="","",'DF raw data'!C66) ->  | D66: =IF('DF raw data'!D66="","",'DF raw data'!D66) -> 
A67: =IF('DF raw data'!A67="","",'DF raw data'!A67) -> -300 | B67: =IF('DF raw data'!B67="","",'DF raw data'!B67) -> -7.4975e-06 | C67: =IF('DF raw data'!C67="","",'DF raw data'!C67) -> 5.02197e-05 | D67: =IF('DF raw data'!D67="","",'DF raw data'!D67) -> -3.52111e-05 | F67: =(1-$G$1*($B$54-$G$2))*(B67-F$5) -> 1.321876651e-05 | G67: =(1-$G$1*($B$54-$G$2))*(C67-G$5) -> 1.687954142e-05 | H67: =(1-$G$1*($B$54-$G$2))*(D67-H$5) -> -3.751166583e-06 | J67: =F67*$G$3+J66 -> 6.609383255e-06 | K67: =J67*$G$3+K66 -> 3.304691628e-06 | L67: =G67*$G$3+L66 -> 8.43977071e-06 | M67: =L67*$G$3+M66 -> 4.219885355e-06 | N67: =(J67^2+L67^2)*$G$3+N66 -> 5.745683833e-11
A68: =IF('DF raw data'!A68="","",'DF raw data'!A68) -> -299.5 | B68: =IF('DF raw data'!B68="","",'DF raw data'!B68) -> -1.68613e-05 | C68: =IF('DF raw data'!C68="","",'DF raw data'!C68) -> 4.58986e-05 | D68: =IF('DF raw data'!D68="","",'DF raw data'!D68) -> -3.45735e-05 | F68: 3.794101811e-06 | G68: 1.253035427e-05 | H68: -3.109422183e-06 | J68: =F68*$G$3+J67 -> 8.506434161e-06 | K68: =J68*$G$3+K67 -> 7.557908708e-06 | L68: =G68*$G$3+L67 -> 1.470494785e-05 | M68: =L68*$G$3+M67 -> 1.157235928e-05 | N68: =(J68^2+L68^2)*$G$3+N67 -> 2.01754295e-10
A69: =IF('DF raw data'!A69="","",'DF raw data'!A69) -> -299 | B69: =IF('DF raw data'!B69="","",'DF raw data'!B69) -> -1.54508e-05 | C69: =IF('DF raw data'!C69="","",'DF raw data'!C69) -> 5.21721e-05 | D69: =IF('DF raw data'!D69="","",'DF raw data'!D69) -> -3.34591e-05 | F69: 5.213770061e-06 | G69: 1.884463202e-05 | H69: -1.987778583e-06 | J69: 1.111331919e-05 | K69: 1.31145683e-05 | L69: 2.412726386e-05 | M69: 2.363599121e-05 | N69: 5.545696573e-10
A70: =IF('DF raw data'!A70="","",'DF raw data'!A70) -> -298.5 | B70: =IF('DF raw data'!B70="","",'DF raw data'!B70) -> -1.23092e-05 | C70: =IF('DF raw data'!C70="","",'DF raw data'!C70) -> 5.4214e-05 | D70: =IF('DF raw data'!D70="","",'DF raw data'!D70) -> -3.2885e-05 | F70: 8.375790461e-06 | G70: 2.089980437e-05 | H70: -1.409946933e-06 | J70: 1.530121442e-05 | K70: 2.076517551e-05 | L70: 3.457716604e-05 | M70: 4.092457423e-05 | N70: 1.269423444e-09
A71: =IF('DF raw data'!A71="","",'DF raw data'!A71) -> -298 | B71: =IF('DF raw data'!B71="","",'DF raw data'!B71) -> -9.48661e-06 | C71: =IF('DF raw data'!C71="","",'DF raw data'!C71) -> 5.2026e-05 | D71: =IF('DF raw data'!D71="","",'DF raw data'!D71) -> -3.30261e-05 | F71: 1.12167273e-05 | G71: 1.869758237e-05 | H71: -1.551964083e-06 | J71: 2.090957807e-05 | K71: 3.121996455e-05 | L71: 4.392595723e-05 | M71: 6.288755284e-05 | N71: 2.452773531e-09
A72: =IF('DF raw data'!A72="","",'DF raw data'!A72) -> -297.5 | B72: =IF('DF raw data'!B72="","",'DF raw data'!B72) -> -8.13975e-06 | C72: =IF('DF raw data'!C72="","",'DF raw data'!C72) -> 5.56339e-05 | D72: =IF('DF raw data'!D72="","",'DF raw data'!D72) -> -3.35394e-05 | F72: 1.257234189e-05 | G72: 2.232893372e-05 | H72: -2.068600533e-06 | J72: 2.719574901e-05 | K72: 4.481783906e-05 | L72: 5.509042409e-05 | M72: 9.043276488e-05 | N72: 4.340055326e-09
A73: =IF('DF raw data'!A73="","",'DF raw data'!A73) -> -297 | B73: =IF('DF raw data'!B73="","",'DF raw data'!B73) -> -9.35766e-06 | C73: =IF('DF raw data'!C73="","",'DF raw data'!C73) -> 5.84285e-05 | D73: =IF('DF raw data'!D73="","",'DF raw data'!D73) -> -3.40782e-05 | F73: 1.134651547e-05 | G73: 2.514169862e-05 | H73: -2.610902733e-06 | J73: 3.286900675e-05 | K73: 6.125234243e-05 | L73: 6.76612734e-05 | M73: 0.0001242634016 | N73: 7.169265087e-09
A74: =IF('DF raw data'!A74="","",'DF raw data'!A74) -> -296.5 | B74: =IF('DF raw data'!B74="","",'DF raw data'!B74) -> -1.23724e-05 | C74: =IF('DF raw data'!C74="","",'DF raw data'!C74) -> 6.10893e-05 | D74: =IF('DF raw data'!D74="","",'DF raw data'!D74) -> -3.43256e-05 | F74: 8.312179661e-06 | G74: 2.781979382e-05 | H74: -2.859910833e-06 | J74: 3.702509658e-05 | K74: 7.976489072e-05 | L74: 8.157117031e-05 | M74: 0.0001650489867 | N74: 1.118162189e-08
A75: =IF('DF raw data'!A75="","",'DF raw data'!A75) -> -296 | B75: =IF('DF raw data'!B75="","",'DF raw data'!B75) -> -1.67331e-05 | C75: =IF('DF raw data'!C75="","",'DF raw data'!C75) -> 6.22495e-05 | D75: =IF('DF raw data'!D75="","",'DF raw data'!D75) -> -3.41249e-05 | F75: 3.923135111e-06 | G75: 2.898753512e-05 | H75: -2.657906283e-06 | J75: 3.898666413e-05 | K75: 9.925822279e-05 | L75: 9.606493787e-05 | M75: 0.0002130814557 | N75: 1.655583802e-08
A76: =IF('DF raw data'!A76="","",'DF raw data'!A76) -> -295.5 | B76: =IF('DF raw data'!B76="","",'DF raw data'!B76) -> -1.69905e-05 | C76: =IF('DF raw data'!C76="","",'DF raw data'!C76) -> 7.68713e-05 | D76: =IF('DF raw data'!D76="","",'DF raw data'!D76) -> -3.37047e-05 | F76: 3.664062011e-06 | G76: 4.370437682e-05 | H76: -2.234974983e-06 | J76: 4.081869514e-05 | K76: 0.0001196675704 | L76: 0.0001179171263 | M76: 0.0002720400188 | N76: 2.434114529e-08
A77: =IF('DF raw data'!A77="","",'DF raw data'!A77) -> -295 | B77: =IF('DF raw data'!B77="","",'DF raw data'!B77) -> -1.75675e-05 | C77: =IF('DF raw data'!C77="","",'DF raw data'!C77) -> 7.31052e-05 | D77: =IF('DF raw data'!D77="","",'DF raw data'!D77) -> -3.33861e-05 | F77: 3.083311511e-06 | G77: 3.991379717e-05 | H77: -1.914304083e-06 | J77: 4.236035089e-05 | K77: 0.0001408477458 | L77: 0.0001378740249 | M77: 0.0003409770312 | N77: 3.474296832e-08
A78: =IF('DF raw data'!A78="","",'DF raw data'!A78) -> -294.5 | B78: =IF('DF raw data'!B78="","",'DF raw data'!B78) -> -1.39763e-05 | C78: =IF('DF raw data'!C78="","",'DF raw data'!C78) -> 6.284e-05 | D78: =IF('DF raw data'!D78="","",'DF raw data'!D78) -> -3.32708e-05 | F78: 6.697854311e-06 | G78: 2.958187337e-05 | H78: -1.798254633e-06 | J78: 4.570927805e-05 | K78: 0.0001637023848 | L78: 0.0001526649615 | M78: 0.000417309512 | N78: 4.744093261e-08
A79: =IF('DF raw data'!A79="","",'DF raw data'!A79) -> -294 | B79: =IF('DF raw data'!B79="","",'DF raw data'!B79) -> -1.88501e-05 | C79: =IF('DF raw data'!C79="","",'DF raw data'!C79) -> 5.51721e-05 | D79: =IF('DF raw data'!D79="","",'DF raw data'!D79) -> -3.34085e-05 | F79: 1.792374611e-06 | G79: 2.186413202e-05 | H79: -1.936849683e-06 | J79: 4.660546536e-05 | K79: 0.0001870051175 | L79: 0.0001635970276 | M79: 0.0004991080258 | N79: 6.190896103e-08
A80: =IF('DF raw data'!A80="","",'DF raw data'!A80) -> -293.5 | B80: =IF('DF raw data'!B80="","",'DF raw data'!B80) -> -7.56248e-06 | C80: =IF('DF raw data'!C80="","",'DF raw data'!C80) -> 5.56915e-05 | D80: =IF('DF raw data'!D80="","",'DF raw data'!D80) -> -3.37864e-05 | F80: 1.315336414e-05 | G80: 2.238690812e-05 | H80: -2.317206033e-06 | J80: 5.318214743e-05 | K80: 0.0002135961912 | L80: 0.0001747904816 | M80: 0.0005865032666 | N80: 7.859898766e-08
A81: =IF('DF raw data'!A81="","",'DF raw data'!A81) -> -293 | B81: =IF('DF raw data'!B81="","",'DF raw data'!B81) -> -2.40448e-05 | C81: =IF('DF raw data'!C81="","",'DF raw data'!C81) -> 6.23965e-05 | D81: =IF('DF raw data'!D81="","",'DF raw data'!D81) -> -3.37182e-05 | F81: -3.436090939e-06 | G81: 2.913549062e-05 | H81: -2.248562733e-06 | J81: 5.146410196e-05 | K81: 0.0002393282422 | L81: 0.0001893582269 | M81: 0.0006811823801 | N81: 9.785153361e-08
A82: =IF('DF raw data'!A82="","",'DF raw data'!A82) -> -292.5 | B82: =IF('DF raw data'!B82="","",'DF raw data'!B82) -> -1.43611e-05 | C82: =IF('DF raw data'!C82="","",'DF raw data'!C82) -> 7.23546e-05 | D82: =IF('DF raw data'!D82="","",'DF raw data'!D82) -> -3.35555e-05 | F82: 6.310553111e-06 | G82: 3.915831827e-05 | H82: -2.084805183e-06 | J82: 5.461937851e-05 | K82: 0.0002666379315 | L82: 0.0002089373861 | M82: 0.0007856510731 | N82: 1.211705875e-07
A83: =IF('DF raw data'!A83="","",'DF raw data'!A83) -> -292 | B83: =IF('DF raw data'!B83="","",'DF raw data'!B83) -> -1.53223e-05 | C83: =IF('DF raw data'!C83="","",'DF raw data'!C83) -> 6.62439e-05 | D83: =IF('DF raw data'!D83="","",'DF raw data'!D83) -> -3.38596e-05 | F83: 5.343105311e-06 | G83: 3.300789872e-05 | H83: -2.390881833e-06 | J83: 5.729093117e-05 | K83: 0.000295283397 | L83: 0.0002254413354 | M83: 0.0008983717408 | N83: 1.482236108e-07
A84: =IF('DF raw data'!A84="","",'DF raw data'!A84) -> -291.5 | B84: =IF('DF raw data'!B84="","",'DF raw data'!B84) -> -1.76908e-05 | C84: =IF('DF raw data'!C84="","",'DF raw data'!C84) -> 5.66967e-05 | D84: =IF('DF raw data'!D84="","",'DF raw data'!D84) -> -4.2384e-05 | F84: 2.959210061e-06 | G84: 2.339864192e-05 | H84: -1.097069043e-05 | J84: 5.87705362e-05 | K84: 0.0003246686651 | L84: 0.0002371406564 | M84: 0.001016942069 | N84: 1.780684442e-07
A85: =IF('DF raw data'!A85="","",'DF raw data'!A85) -> -291 | B85: =IF('DF raw data'!B85="","",'DF raw data'!B85) -> -2.63544e-05 | C85: =IF('DF raw data'!C85="","",'DF raw data'!C85) -> 6.14854e-05 | D85: =IF('DF raw data'!D85="","",'DF raw data'!D85) -> -3.2223e-05 | F85: -5.760703339e-06 | G85: 2.821846847e-05 | H85: -7.436439329e-07 | J85: 5.589018453e-05 | K85: 0.0003526137574 | L85: 0.0002512498906 | M85: 0.001142567014 | N85: 2.111935543e-07
A86: =IF('DF raw data'!A86="","",'DF raw data'!A86) -> -290.5 | B86: =IF('DF raw data'!B86="","",'DF raw data'!B86) -> -1.66119e-05 | C86: =IF('DF raw data'!C86="","",'DF raw data'!C86) -> 7.07377e-05 | D86: =IF('DF raw data'!D86="","",'DF raw data'!D86) -> -2.46133e-05 | F86: 4.045122911e-06 | G86: 3.753090842e-05 | H86: 6.915519117e-06 | J86: 5.791274598e-05 | K86: 0.0003815701304 | L86: 0.0002700153448 | M86: 0.001277574687 | N86: 2.493246406e-07
A87: =IF('DF raw data'!A87="","",'DF raw data'!A87) -> -290 | B87: =IF('DF raw data'!B87="","",'DF raw data'!B87) -> -5.68191e-07 | C87: =IF('DF raw data'!C87="","",'DF raw data'!C87) -> 7.24659e-05 | D87: =IF('DF raw data'!D87="","",'DF raw data'!D87) -> -3.85312e-05 | F87: 2.019311602e-05 | G87: 3.927034172e-05 | H87: -7.092847233e-06 | J87: 6.800930399e-05 | K87: 0.0004155747824 | L87: 0.0002896505157 | M87: 0.001422399945 | N87: 2.935859839e-07
A88: =IF('DF raw data'!A88="","",'DF raw data'!A88) -> -289.5 | B88: =IF('DF raw data'!B88="","",'DF raw data'!B88) -> -7.561e-06 | C88: =IF('DF raw data'!C88="","",'DF raw data'!C88) -> 5.76463e-05 | D88: =IF('DF raw data'!D88="","",'DF raw data'!D88) -> -3.61657e-05 | F88: 1.315485376e-05 | G88: 2.435441432e-05 | H88: -4.711971483e-06 | J88: 7.458673087e-05 | K88: 0.0004528681478 | L88: 0.0003018277228 | M88: 0.001573313806 | N88: 3.419175613e-07
A89: =IF('DF raw data'!A89="","",'DF raw data'!A89) -> -289 | B89: =IF('DF raw data'!B89="","",'DF raw data'!B89) -> -2.34005e-05 | C89: =IF('DF raw data'!C89="","",'DF raw data'!C89) -> 5.98059e-05 | D89: =IF('DF raw data'!D89="","",'DF raw data'!D89) -> -3.80791e-05 | F89: -2.787602989e-06 | G89: 2.652805172e-05 | H89: -6.637808583e-06 | J89: 7.319292938e-05 | K89: 0.0004894646125 | L89: 0.0003150917487 | M89: 0.00173085968 | N89: 3.942375688e-07
A90: =IF('DF raw data'!A90="","",'DF raw data'!A90) -> -288.5 | B90: =IF('DF raw data'!B90="","",'DF raw data'!B90) -> -8.46029e-06 | C90: =IF('DF raw data'!C90="","",'DF raw data'!C90) -> 7.30323e-05 | D90: =IF('DF raw data'!D90="","",'DF raw data'!D90) -> -3.40515e-05 | F90: 1.224971838e-05 | G90: 3.984042332e-05 | H90: -2.584029183e-06 | J90: 7.931778857e-05 | K90: 0.0005291235068 | L90: 0.0003350119604 | M90: 0.001898365661 | N90: 4.534997314e-07
A91: =IF('DF raw data'!A91="","",'DF raw data'!A91) -> -288 | B91: =IF('DF raw data'!B91="","",'DF raw data'!B91) -> -1.96801e-05 | C91: =IF('DF raw data'!C91="","",'DF raw data'!C91) -> 7.25245e-05 | D91: =IF('DF raw data'!D91="","",'DF raw data'!D91) -> -3.86524e-05 | F91: 9.569796108e-07 | G91: 3.932932262e-05 | H91: -7.214835033e-06 | J91: 7.979627837e-05 | K91: 0.000569021646 | L91: 0.0003546766217 | M91: 0.002075703971 | N91: 5.195812074e-07
A92: =IF('DF raw data'!A92="","",'DF raw data'!A92) -> -287.5 | B92: =IF('DF raw data'!B92="","",'DF raw data'!B92) -> -1.67983e-05 | C92: =IF('DF raw data'!C92="","",'DF raw data'!C92) -> 6.70201e-05 | D92: =IF('DF raw data'!D92="","",'DF raw data'!D92) -> -3.40047e-05 | F92: 3.857511311e-06 | G92: 3.378914402e-05 | H92: -2.536924983e-06 | J92: 8.172503403e-05 | K92: 0.000609884163 | L92: 0.0003715711937 | M92: 0.002261489568 | N92: 5.91953274e-07
A93: =IF('DF raw data'!A93="","",'DF raw data'!A93) -> -287 | B93: =IF('DF raw data'!B93="","",'DF raw data'!B93) -> -1.50031e-05 | C93: =IF('DF raw data'!C93="","",'DF raw data'!C93) -> 5.85881e-05 | D93: =IF('DF raw data'!D93="","",'DF raw data'!D93) -> -3.12577e-05 | F93: 5.664380111e-06 | G93: 2.530233602e-05 | H93: 2.279305171e-07 | J93: 8.455722408e-05 | K93: 0.000652162775 | L93: 0.0003842223617 | M93: 0.002453600749 | N93: 6.693416477e-07
A94: =IF('DF raw data'!A94="","",'DF raw data'!A94) -> -286.5 | B94: =IF('DF raw data'!B94="","",'DF raw data'!B94) -> -1.30837e-05 | C94: =IF('DF raw data'!C94="","",'DF raw data'!C94) -> 5.25894e-05 | D94: =IF('DF raw data'!D94="","",'DF raw data'!D94) -> -2.54347e-05 | F94: 7.596256211e-06 | G94: 1.926464447e-05 | H94: 6.088780017e-06 | J94: 8.835535219e-05 | K94: 0.0006963404511 | L94: 0.0003938546839 | M94: 0.002650528091 | N94: 7.508057378e-07
A95: =IF('DF raw data'!A95="","",'DF raw data'!A95) -> -286 | B95: =IF('DF raw data'!B95="","",'DF raw data'!B95) -> -1.50683e-05 | C95: =IF('DF raw data'!C95="","",'DF raw data'!C95) -> 6.01438e-05 | D95: =IF('DF raw data'!D95="","",'DF raw data'!D95) -> -2.99461e-05 | F95: 5.598756311e-06 | G95: 2.686814807e-05 | H95: 1.548055917e-06 | J95: 9.115473034e-05 | K95: 0.0007419178163 | L95: 0.000407288758 | M95: 0.00285417247 | N95: 8.379023964e-07
A96: =IF('DF raw data'!A96="","",'DF raw data'!A96) -> -285.5 | B96: =IF('DF raw data'!B96="","",'DF raw data'!B96) -> -1.17308e-05 | C96: =IF('DF raw data'!C96="","",'DF raw data'!C96) -> 6.32976e-05 | D96: =IF('DF raw data'!D96="","",'DF raw data'!D96) -> -3.45807e-05 | F96: 8.957950061e-06 | G96: 3.004244777e-05 | H96: -3.116668983e-06 | J96: 9.563370537e-05 | K96: 0.000789734669 | L96: 0.0004223099819 | M96: 0.003065327461 | N96: 9.316481596e-07
A97: =IF('DF raw data'!A97="","",'DF raw data'!A97) -> -285 | B97: =IF('DF raw data'!B97="","",'DF raw data'!B97) -> -1.67347e-05 | C97: =IF('DF raw data'!C97="","",'DF raw data'!C97) -> 5.72851e-05 | D97: =IF('DF raw data'!D97="","",'DF raw data'!D97) -> -3.14564e-05 | F97: 3.921524711e-06 | G97: 2.399086652e-05 | H97: 2.793896707e-08 | J97: 9.759446773e-05 | K97: 0.0008385319029 | L97: 0.0004343054151 | M97: 0.003282480168 | N97: 1.030721096e-06
A98: =IF('DF raw data'!A98="","",'DF raw data'!A98) -> -284.5 | B98: =IF('DF raw data'!B98="","",'DF raw data'!B98) -> -5.70022e-06 | C98: =IF('DF raw data'!C98="","",'DF raw data'!C98) -> 6.3004e-05 | D98: =IF('DF raw data'!D98="","",'DF raw data'!D98) -> -3.72521e-05 | F98: 1.502772883e-05 | G98: 2.974693937e-05 | H98: -5.805433083e-06 | J98: 0.0001051083321 | K98: 0.0008910860689 | L98: 0.0004491788848 | M98: 0.003507069611 | N98: 1.137125813e-06
A99: =IF('DF raw data'!A99="","",'DF raw data'!A99) -> -284 | B99: =IF('DF raw data'!B99="","",'DF raw data'!B99) -> -1.64233e-05 | C99: =IF('DF raw data'!C99="","",'DF raw data'!C99) -> 6.52047e-05 | D99: =IF('DF raw data'!D99="","",'DF raw data'!D99) -> -1.73511e-05 | F99: 4.234948811e-06 | G99: 3.196194392e-05 | H99: 1.422492342e-05 | J99: 0.0001072258066 | K99: 0.0009446989722 | L99: 0.0004651598568 | M99: 0.003739649539 | N99: 1.251061345e-06
A100: =IF('DF raw data'!A100="","",'DF raw data'!A100) -> -283.5 | B100: =IF('DF raw data'!B100="","",'DF raw data'!B100) -> -1.05892e-05 | C100: =IF('DF raw data'!C100="","",'DF raw data'!C100) -> 6.33264e-05 | D100: =IF('DF raw data'!D100="","",'DF raw data'!D100) -> -1.47525e-05 | F100: 1.010697046e-05 | G100: 3.007143497e-05 | H100: 1.684041432e-05 | J100: 0.0001122792918 | K100: 0.001000838618 | L100: 0.0004801955742 | M100: 0.003979747326 | N100: 1.37265856e-06
A101: =IF('DF raw data'!A101="","",'DF raw data'!A101) -> -283 | B101: =IF('DF raw data'!B101="","",'DF raw data'!B101) -> -1.39876e-05 | C101: =IF('DF raw data'!C101="","",'DF raw data'!C101) -> 7.35625e-05 | D101: =IF('DF raw data'!D101="","",'DF raw data'!D101) -> -1.49712e-05 | F101: 6.686480861e-06 | G101: 4.037406962e-05 | H101: 1.662029277e-05 | J101: 0.0001156225322 | K101: 0.001058649884 | L101: 0.0005003826091 | M101: 0.004229938631 | N101: 1.504534223e-06
A102: =IF('DF raw data'!A102="","",'DF raw data'!A102) -> -282.5 | B102: =IF('DF raw data'!B102="","",'DF raw data'!B102) -> -4.94387e-06 | C102: =IF('DF raw data'!C102="","",'DF raw data'!C102) -> 8.39824e-05 | D102: =IF('DF raw data'!D102="","",'DF raw data'!D102) -> -1.67881e-05 | F102: 1.578899511e-05 | G102: 5.086169897e-05 | H102: 1.479158292e-05 | J102: 0.0001235170298 | K102: 0.001120408399 | L102: 0.0005258134585 | M102: 0.00449284536 | N102: 1.650402348e-06
A103: =IF('DF raw data'!A103="","",'DF raw data'!A103) -> -282 | B103: =IF('DF raw data'!B103="","",'DF raw data'!B103) -> -1.58444e-05 | C103: =IF('DF raw data'!C103="","",'DF raw data'!C103) -> 7.74614e-05 | D103: =IF('DF raw data'!D103="","",'DF raw data'!D103) -> -1.96878e-05 | F103: 4.817611661e-06 | G103: 4.429831247e-05 | H103: 1.187303487e-05 | J103: 0.0001259258356 | K103: 0.001183371317 | L103: 0.0005479626148 | M103: 0.004766826668 | N103: 1.808462519e-06
A104: =IF('DF raw data'!A104="","",'DF raw data'!A104) -> -281.5 | B104: =IF('DF raw data'!B104="","",'DF raw data'!B104) -> -8.9747e-06 | C104: =IF('DF raw data'!C104="","",'DF raw data'!C104) -> 7.56941e-05 | D104: =IF('DF raw data'!D104="","",'DF raw data'!D104) -> -3.20994e-05 | F104: 1.173196471e-05 | G104: 4.251952502e-05 | H104: -6.192405329e-07 | J104: 0.000131791818 | K104: 0.001249267226 | L104: 0.0005692223773 | M104: 0.005051437856 | N104: 1.979154118e-06
A105: =IF('DF raw data'!A105="","",'DF raw data'!A105) -> -281 | B105: =IF('DF raw data'!B105="","",'DF raw data'!B105) -> -1.59639e-05 | C105: =IF('DF raw data'!C105="","",'DF raw data'!C105) -> 6.9699e-05 | D105: =IF('DF raw data'!D105="","",'DF raw data'!D105) -> -3.32425e-05 | F105: 4.697334911e-06 | G105: 3.648545687e-05 | H105: -1.769770683e-06 | J105: 0.0001341404854 | K105: 0.001316337469 | L105: 0.0005874651057 | M105: 0.005345170409 | N105: 2.160708578e-06
A106: =IF('DF raw data'!A106="","",'DF raw data'!A106) -> -280.5 | B106: =IF('DF raw data'!B106="","",'DF raw data'!B106) -> -1.09571e-05 | C106: =IF('DF raw data'!C106="","",'DF raw data'!C106) -> 7.0391e-05 | D106: =IF('DF raw data'!D106="","",'DF raw data'!D106) -> -4.08902e-05 | F106: 9.736679111e-06 | G106: 3.718195487e-05 | H106: -9.467180733e-06 | J106: 0.000139008825 | K106: 0.001385841881 | L106: 0.0006060560832 | M106: 0.005648198451 | N106: 2.354022293e-06
A107: =IF('DF raw data'!A107="","",'DF raw data'!A107) -> -280 | B107: =IF('DF raw data'!B107="","",'DF raw data'!B107) -> 1.35919e-07 | C107: =IF('DF raw data'!C107="","",'DF raw data'!C107) -> 6.97218e-05 | D107: =IF('DF raw data'!D107="","",'DF raw data'!D107) -> -3.66591e-05 | F107: 2.090180273e-05 | G107: 3.650840507e-05 | H107: -5.208578583e-06 | J107: 0.0001494597263 | K107: 0.001460571744 | L107: 0.0006243102857 | M107: 0.005960353594 | N107: 2.560073064e-06
A108: =IF('DF raw data'!A108="","",'DF raw data'!A108) -> -279.5 | B108: =IF('DF raw data'!B108="","",'DF raw data'!B108) -> -2.42897e-06 | C108: =IF('DF raw data'!C108="","",'DF raw data'!C108) -> 7.01165e-05 | D108: =IF('DF raw data'!D108="","",'DF raw data'!D108) -> -3.75555e-05 | F108: 1.832024196e-05 | G108: 3.690567062e-05 | H108: -6.110805183e-06 | J108: 0.0001586198473 | K108: 0.001539881668 | L108: 0.000642763121 | M108: 0.006281735154 | N108: 2.779225407e-06
A109: =IF('DF raw data'!A109="","",'DF raw data'!A109) -> -279 | B109: =IF('DF raw data'!B109="","",'DF raw data'!B109) -> -1.00638e-05 | C109: =IF('DF raw data'!C109="","",'DF raw data'!C109) -> 6.25989e-05 | D109: =IF('DF raw data'!D109="","",'DF raw data'!D109) -> -3.25942e-05 | F109: 1.063578556e-05 | G109: 2.933920622e-05 | H109: -1.117256733e-06 | J109: 0.0001639377401 | K109: 0.001621850538 | L109: 0.0006574327241 | M109: 0.006610451516 | N109: 3.008772092e-06
A110: =IF('DF raw data'!A110="","",'DF raw data'!A110) -> -278.5 | B110: =IF('DF raw data'!B110="","",'DF raw data'!B110) -> -1.8344e-05 | C110: =IF('DF raw data'!C110="","",'DF raw data'!C110) -> 6.50459e-05 | D110: =IF('DF raw data'!D110="","",'DF raw data'!D110) -> -2.45684e-05 | F110: 2.301764261e-06 | G110: 3.180211172e-05 | H110: 6.960710967e-06 | J110: 0.0001650886222 | K110: 0.001704394849 | L110: 0.00067333378 | M110: 0.006947118406 | N110: 3.249088408e-06
A111: =IF('DF raw data'!A111="","",'DF raw data'!A111) -> -278 | B111: =IF('DF raw data'!B111="","",'DF raw data'!B111) -> -1.64787e-05 | C111: =IF('DF raw data'!C111="","",'DF raw data'!C111) -> 6.87918e-05 | D111: =IF('DF raw data'!D111="","",'DF raw data'!D111) -> -3.03378e-05 | F111: 4.179188711e-06 | G111: 3.557236007e-05 | H111: 1.153809867e-06 | J111: 0.0001671782166 | K111: 0.001787983957 | L111: 0.00069111996 | M111: 0.007292678386 | N111: 3.501886086e-06
A112: =IF('DF raw data'!A112="","",'DF raw data'!A112) -> -277.5 | B112: =IF('DF raw data'!B112="","",'DF raw data'!B112) -> -1.39733e-05 | C112: =IF('DF raw data'!C112="","",'DF raw data'!C112) -> 7.04223e-05 | D112: =IF('DF raw data'!D112="","",'DF raw data'!D112) -> -3.85642e-05 | F112: 6.700873811e-06 | G112: 3.721345832e-05 | H112: -7.126061733e-06 | J112: 0.0001705286535 | K112: 0.001873248284 | L112: 0.0007097266892 | M112: 0.007647541731 | N112: 3.768282083e-06
A113: =IF('DF raw data'!A113="","",'DF raw data'!A113) -> -277 | B113: =IF('DF raw data'!B113="","",'DF raw data'!B113) -> -1.07045e-05 | C113: =IF('DF raw data'!C113="","",'DF raw data'!C113) -> 6.9218e-05 | D113: =IF('DF raw data'!D113="","",'DF raw data'!D113) -> -3.35357e-05 | F113: 9.990921011e-06 | G113: 3.600133037e-05 | H113: -2.064876483e-06 | J113: 0.000175524114 | K113: 0.001961010341 | L113: 0.0007277273544 | M113: 0.008011405408 | N113: 4.048479992e-06
A114: =IF('DF raw data'!A114="","",'DF raw data'!A114) -> -276.5 | B114: =IF('DF raw data'!B114="","",'DF raw data'!B114) -> -5.12286e-06 | C114: =IF('DF raw data'!C114="","",'DF raw data'!C114) -> 7.52019e-05 | D114: =IF('DF raw data'!D114="","",'DF raw data'!D114) -> -3.74135e-05 | F114: 1.560884167e-05 | G114: 4.202412572e-05 | H114: -5.967882183e-06 | J114: 0.0001833285348 | K114: 0.002052674608 | L114: 0.0007487394172 | M114: 0.008385775116 | N114: 4.345590025e-06
A115: =IF('DF raw data'!A115="","",'DF raw data'!A115) -> -276 | B115: =IF('DF raw data'!B115="","",'DF raw data'!B115) -> -1.14072e-05 | C115: =IF('DF raw data'!C115="","",'DF raw data'!C115) -> 6.97604e-05 | D115: =IF('DF raw data'!D115="","",'DF raw data'!D115) -> -3.78244e-05 | F115: 9.283653461e-06 | G115: 3.654725597e-05 | H115: -6.381453033e-06 | J115: 0.0001879703615 | K115: 0.002146659789 | L115: 0.0007670130452 | M115: 0.008769281639 | N115: 4.657410959e-06
A116: =IF('DF raw data'!A116="","",'DF raw data'!A116) -> -275.5 | B116: =IF('DF raw data'!B116="","",'DF raw data'!B116) -> -2.02563e-05 | C116: =IF('DF raw data'!C116="","",'DF raw data'!C116) -> 6.39053e-05 | D116: =IF('DF raw data'!D116="","",'DF raw data'!D116) -> -4.29923e-05 | F116: 3.770343108e-07 | G116: 3.065409782e-05 | H116: -1.158294438e-05 | J116: 0.0001881588787 | K116: 0.002240739229 | L116: 0.0007823400941 | M116: 0.009160451686 | N116: 4.981140852e-06
A117: =IF('DF raw data'!A117="","",'DF raw data'!A117) -> -275 | B117: =IF('DF raw data'!B117="","",'DF raw data'!B117) -> -1.10881e-05 | C117: =IF('DF raw data'!C117="","",'DF raw data'!C117) -> 6.12965e-05 | D117: =IF('DF raw data'!D117="","",'DF raw data'!D117) -> -3.53456e-05 | F117: 9.604827611e-06 | G117: 2.802834062e-05 | H117: -3.886540833e-06 | J117: 0.0001929612925 | K117: 0.002337219875 | L117: 0.0007963542644 | M117: 0.009558628818 | N117: 5.31684794e-06
A118: =IF('DF raw data'!A118="","",'DF raw data'!A118) -> -274.5 | B118: =IF('DF raw data'!B118="","",'DF raw data'!B118) -> -3.20074e-06 | C118: =IF('DF raw data'!C118="","",'DF raw data'!C118) -> 6.35224e-05 | D118: =IF('DF raw data'!D118="","",'DF raw data'!D118) -> -3.43348e-05 | F118: 1.754345545e-05 | G118: 3.026870897e-05 | H118: -2.869170633e-06 | J118: 0.0002017330202 | K118: 0.002438086385 | L118: 0.0008114886189 | M118: 0.009964373128 | N118: 5.666452935e-06
A119: =IF('DF raw data'!A119="","",'DF raw data'!A119) -> -274 | B119: =IF('DF raw data'!B119="","",'DF raw data'!B119) -> -1.16122e-05 | C119: =IF('DF raw data'!C119="","",'DF raw data'!C119) -> 5.92848e-05 | D119: =IF('DF raw data'!D119="","",'DF raw data'!D119) -> -1.82907e-05 | F119: 9.077320961e-06 | G119: 2.600356457e-05 | H119: 1.327921602e-05 | J119: 0.0002062716807 | K119: 0.002541222225 | L119: 0.0008244904012 | M119: 0.01037661833 | N119: 6.027619149e-06
A120: =IF('DF raw data'!A120="","",'DF raw data'!A120) -> -273.5 | B120: =IF('DF raw data'!B120="","",'DF raw data'!B120) -> -1.59649e-05 | C120: =IF('DF raw data'!C120="","",'DF raw data'!C120) -> 6.45397e-05 | D120: =IF('DF raw data'!D120="","",'DF raw data'!D120) -> -3.38239e-05 | F120: 4.696328411e-06 | G120: 3.129262142e-05 | H120: -2.354949783e-06 | J120: 0.0002086198449 | K120: 0.002645532148 | L120: 0.0008401367119 | M120: 0.01079668668 | N120: 6.402295116e-06
A121: =IF('DF raw data'!A121="","",'DF raw data'!A121) -> -273 | B121: =IF('DF raw data'!B121="","",'DF raw data'!B121) -> -2.75115e-05 | C121: =IF('DF raw data'!C121="","",'DF raw data'!C121) -> 5.98696e-05 | D121: =IF('DF raw data'!D121="","",'DF raw data'!D121) -> -2.72687e-05 | F121: -6.925324489e-06 | G121: 2.659216577e-05 | H121: 4.242859017e-06 | J121: 0.0002051571827 | K121: 0.002748110739 | L121: 0.0008534327948 | M121: 0.01122340308 | N121: 6.787513618e-06
A122: =IF('DF raw data'!A122="","",'DF raw data'!A122) -> -272.5 | B122: =IF('DF raw data'!B122="","",'DF raw data'!B122) -> -1.14799e-05 | C122: =IF('DF raw data'!C122="","",'DF raw data'!C122) -> 5.45678e-05 | D122: =IF('DF raw data'!D122="","",'DF raw data'!D122) -> -2.61481e-05 | F122: 9.210480911e-06 | G122: 2.125590407e-05 | H122: 5.370742917e-06 | J122: 0.0002097624231 | K122: 0.002852991951 | L122: 0.0008640607468 | M122: 0.01165543346 | N122: 7.182814242e-06
A123: =IF('DF raw data'!A123="","",'DF raw data'!A123) -> -272 | B123: =IF('DF raw data'!B123="","",'DF raw data'!B123) -> -7.30138e-06 | C123: =IF('DF raw data'!C123="","",'DF raw data'!C123) -> 5.69539e-05 | D123: =IF('DF raw data'!D123="","",'DF raw data'!D123) -> -3.96638e-05 | F123: 1.341616129e-05 | G123: 2.365751372e-05 | H123: -8.232809133e-06 | J123: 0.0002164705038 | K123: 0.002961227203 | L123: 0.0008758895037 | M123: 0.01209337821 | N123: 7.589835193e-06
A124: =IF('DF raw data'!A124="","",'DF raw data'!A124) -> -271.5 | B124: =IF('DF raw data'!B124="","",'DF raw data'!B124) -> -1.69925e-05 | C124: =IF('DF raw data'!C124="","",'DF raw data'!C124) -> 6.0978e-05 | D124: =IF('DF raw data'!D124="","",'DF raw data'!D124) -> -3.15594e-05 | F124: 3.662049011e-06 | G124: 2.770777037e-05 | H124: -7.573053293e-08 | J124: 0.0002183015283 | K124: 0.003070377967 | L124: 0.0008897433889 | M124: 0.0125382499 | N124: 8.009484621e-06
A125: =IF('DF raw data'!A125="","",'DF raw data'!A125) -> -271 | B125: =IF('DF raw data'!B125="","",'DF raw data'!B125) -> -1.48719e-05 | C125: =IF('DF raw data'!C125="","",'DF raw data'!C125) -> 6.45672e-05 | D125: =IF('DF raw data'!D125="","",'DF raw data'!D125) -> -3.53748e-05 | F125: 5.796432911e-06 | G125: 3.132030017e-05 | H125: -3.915930633e-06 | J125: 0.0002211997447 | K125: 0.003180977839 | L125: 0.0009054035389 | M125: 0.01299095167 | N125: 8.443827069e-06
A126: =IF('DF raw data'!A126="","",'DF raw data'!A126) -> -270.5 | B126: =IF('DF raw data'!B126="","",'DF raw data'!B126) -> -3.89766e-06 | C126: =IF('DF raw data'!C126="","",'DF raw data'!C126) -> 6.21872e-05 | D126: =IF('DF raw data'!D126="","",'DF raw data'!D126) -> -4.77963e-05 | F126: 1.684200547e-05 | G126: 2.892483017e-05 | H126: -1.641817038e-05 | J126: 0.0002296207475 | K126: 0.003295788213 | L126: 0.000919865954 | M126: 0.01345088465 | N126: 8.893266599e-06
A127: =IF('DF raw data'!A127="","",'DF raw data'!A127) -> -270 | B127: =IF('DF raw data'!B127="","",'DF raw data'!B127) -> -1.23677e-05 | C127: =IF('DF raw data'!C127="","",'DF raw data'!C127) -> 5.96112e-05 | D127: =IF('DF raw data'!D127="","",'DF raw data'!D127) -> -4.04277e-05 | F127: 8.316910211e-06 | G127: 2.633208617e-05 | H127: -9.001674483e-06 | J127: 0.0002337792026 | K127: 0.003412677814 | L127: 0.0009330319971 | M127: 0.01391740065 | N127: 9.355867311e-06
A128: =IF('DF raw data'!A128="","",'DF raw data'!A128) -> -269.5 | B128: =IF('DF raw data'!B128="","",'DF raw data'!B128) -> -1.41676e-05 | C128: =IF('DF raw data'!C128="","",'DF raw data'!C128) -> 6.79971e-05 | D128: =IF('DF raw data'!D128="","",'DF raw data'!D128) -> -3.60053e-05 | F128: 6.505310861e-06 | G128: 3.477249452e-05 | H128: -4.550528883e-06 | J128: =F128*$G$3+J127 -> 0.000237031858 | K128: =J128*$G$3+K127 -> 0.003531193743 | L128: =G128*$G$3+L127 -> 0.0009504182444 | M128: =L128*$G$3+M127 -> 0.01439260977 | N128: =(J128^2+L128^2)*$G$3+N127 -> 9.835606781e-06
A129: =IF('DF raw data'!A129="","",'DF raw data'!A129) -> -269 | B129: =IF('DF raw data'!B129="","",'DF raw data'!B129) -> -2.4945e-05 | C129: =IF('DF raw data'!C129="","",'DF raw data'!C129) -> 7.3064e-05 | D129: =IF('DF raw data'!D129="","",'DF raw data'!D129) -> -2.91815e-05 | F129: -4.342142239e-06 | G129: 3.987232937e-05 | H129: 2.317625817e-06 | J129: 0.0002348607869 | K129: 0.003648624137 | L129: 0.0009703544091 | M129: 0.01487778697 | N129: 1.033398042e-05
A130: =IF('DF raw data'!A130="","",'DF raw data'!A130) -> -268.5 | B130: =IF('DF raw data'!B130="","",'DF raw data'!B130) -> -1.674e-05 | C130: =IF('DF raw data'!C130="","",'DF raw data'!C130) -> 7.57656e-05 | D130: =IF('DF raw data'!D130="","",'DF raw data'!D130) -> -2.54072e-05 | F130: 3.916190261e-06 | G130: 4.259148977e-05 | H130: 6.116458767e-06 | J130: 0.000236818882 | K130: 0.003767033578 | L130: 0.0009916501539 | M130: 0.01537361205 | N130: 1.085370702e-05
A131: =IF('DF raw data'!A131="","",'DF raw data'!A131) -> -268 | B131: =IF('DF raw data'!B131="","",'DF raw data'!B131) -> -9.87492e-06 | C131: =IF('DF raw data'!C131="","",'DF raw data'!C131) -> 7.61441e-05 | D131: =IF('DF raw data'!D131="","",'DF raw data'!D131) -> -2.72709e-05 | F131: =(1-$G$1*($B$54-$G$2))*(B131-F$5) -> 1.082589328e-05 | G131: =(1-$G$1*($B$54-$G$2))*(C131-G$5) -> 4.297245002e-05 | H131: =(1-$G$1*($B$54-$G$2))*(D131-H$5) -> 4.240644717e-06 | J131: 0.0002422318287 | K131: 0.003888149492 | L131: 0.001013136379 | M131: 0.01588018024 | N131: 1.139626781e-05
A132: =IF('DF raw data'!A132="","",'DF raw data'!A132) -> -267.5 | B132: =IF('DF raw data'!B132="","",'DF raw data'!B132) -> -1.45514e-05 | C132: =IF('DF raw data'!C132="","",'DF raw data'!C132) -> 7.23204e-05 | D132: =IF('DF raw data'!D132="","",'DF raw data'!D132) -> -3.75809e-05 | F132: 6.119016161e-06 | G132: 3.912389597e-05 | H132: -6.136370283e-06 | J132: 0.0002452913367 | K132: 0.00401079516 | L132: 0.001032698327 | M132: 0.0163965294 | N132: 1.195958465e-05
A133: =IF('DF raw data'!A133="","",'DF raw data'!A133) -> -267 | B133: =IF('DF raw data'!B133="","",'DF raw data'!B133) -> -2.09607e-05 | C133: =IF('DF raw data'!C133="","",'DF raw data'!C133) -> 7.0747e-05 | D133: =IF('DF raw data'!D133="","",'DF raw data'!D133) -> -4.16221e-05 | F133: -3.319442892e-07 | G133: 3.754026887e-05 | H133: -1.020383808e-05 | J133: 0.0002451253646 | K133: 0.004133357843 | L133: 0.001051468461 | M133: 0.01692226363 | N133: 1.254242083e-05
A134: =IF('DF raw data'!A134="","",'DF raw data'!A134) -> -266.5 | B134: =IF('DF raw data'!B134="","",'DF raw data'!B134) -> -1.42928e-05 | C134: =IF('DF raw data'!C134="","",'DF raw data'!C134) -> 8.07041e-05 | D134: =IF('DF raw data'!D134="","",'DF raw data'!D134) -> -4.09076e-05 | F134: 6.379297061e-06 | G134: 4.756209002e-05 | H134: -9.484693833e-06 | J134: 0.0002483150131 | K134: 0.004257515349 | L134: 0.001075249506 | M134: 0.01745988839 | N134: 1.315133176e-05
A135: =IF('DF raw data'!A135="","",'DF raw data'!A135) -> -266 | B135: =IF('DF raw data'!B135="","",'DF raw data'!B135) -> -2.02568e-05 | C135: =IF('DF raw data'!C135="","",'DF raw data'!C135) -> 7.98684e-05 | D135: =IF('DF raw data'!D135="","",'DF raw data'!D135) -> -3.89544e-05 | F135: 3.765310608e-07 | G135: 4.672095797e-05 | H135: -7.518798033e-06 | J135: 0.0002485032787 | K135: 0.004381766988 | L135: 0.001098609985 | M135: 0.01800919338 | N135: 1.378568065e-05
A136: =IF('DF raw data'!A136="","",'DF raw data'!A136) -> -265.5 | B136: =IF('DF raw data'!B136="","",'DF raw data'!B136) -> -8.07351e-06 | C136: =IF('DF raw data'!C136="","",'DF raw data'!C136) -> 7.74751e-05 | D136: =IF('DF raw data'!D136="","",'DF raw data'!D136) -> -3.74476e-05 | F136: 1.263901245e-05 | G136: 4.431210152e-05 | H136: -6.002203833e-06 | J136: 0.0002548227849 | K136: 0.004509178381 | L136: 0.001120766036 | M136: 0.0185695764 | N136: 1.444620623e-05
A137: =IF('DF raw data'!A137="","",'DF raw data'!A137) -> -265 | B137: =IF('DF raw data'!B137="","",'DF raw data'!B137) -> -8.52044e-06 | C137: =IF('DF raw data'!C137="","",'DF raw data'!C137) -> 7.34641e-05 | D137: =IF('DF raw data'!D137="","",'DF raw data'!D137) -> -3.89134e-05 | F137: 1.21891774e-05 | G137: 4.027503002e-05 | H137: -7.477531533e-06 | J137: 0.0002609173736 | K137: 0.004639637068 | L137: 0.001140903551 | M137: 0.01914002817 | N137: 1.513107562e-05
A138: =IF('DF raw data'!A138="","",'DF raw data'!A138) -> -264.5 | B138: =IF('DF raw data'!B138="","",'DF raw data'!B138) -> -8.72375e-06 | C138: =IF('DF raw data'!C138="","",'DF raw data'!C138) -> 7.12066e-05 | D138: =IF('DF raw data'!D138="","",'DF raw data'!D138) -> -2.37911e-05 | F138: 1.198454589e-05 | G138: 3.800285627e-05 | H138: 7.743063417e-06 | J138: 0.0002669096465 | K138: 0.004773091891 | L138: 0.001159904979 | M138: 0.01971998066 | N138: 1.583938578e-05
A139: =IF('DF raw data'!A139="","",'DF raw data'!A139) -> -264 | B139: =IF('DF raw data'!B139="","",'DF raw data'!B139) -> -2.7443e-05 | C139: =IF('DF raw data'!C139="","",'DF raw data'!C139) -> 6.75245e-05 | D139: =IF('DF raw data'!D139="","",'DF raw data'!D139) -> -3.39897e-05 | F139: -6.856379239e-06 | G139: 3.429682262e-05 | H139: -2.521827483e-06 | J139: 0.0002634814569 | K139: 0.004904832619 | L139: 0.001177053391 | M139: 0.02030850736 | N139: 1.656682436e-05
A140: =IF('DF raw data'!A140="","",'DF raw data'!A140) -> -263.5 | B140: =IF('DF raw data'!B140="","",'DF raw data'!B140) -> -1.23714e-05 | C140: =IF('DF raw data'!C140="","",'DF raw data'!C140) -> 6.89593e-05 | D140: =IF('DF raw data'!D140="","",'DF raw data'!D140) -> -3.6596e-05 | F140: 8.313186161e-06 | G140: 3.574094882e-05 | H140: -5.145068433e-06 | J140: 0.00026763805 | K140: 0.005038651644 | L140: 0.001194923865 | M140: 0.02090596929 | N140: 1.731656095e-05
A141: =IF('DF raw data'!A141="","",'DF raw data'!A141) -> -263 | B141: =IF('DF raw data'!B141="","",'DF raw data'!B141) -> -1.21183e-05 | C141: =IF('DF raw data'!C141="","",'DF raw data'!C141) -> 6.9708e-05 | D141: =IF('DF raw data'!D141="","",'DF raw data'!D141) -> -2.9431e-05 | F141: 8.567931311e-06 | G141: 3.649451537e-05 | H141: 2.066504067e-06 | J141: 0.0002719220156 | K141: 0.005174612652 | L141: 0.001213171123 | M141: 0.02151255485 | N141: 1.808942382e-05
A142: =IF('DF raw data'!A142="","",'DF raw data'!A142) -> -262.5 | B142: =IF('DF raw data'!B142="","",'DF raw data'!B142) -> -1.57053e-05 | C142: =IF('DF raw data'!C142="","",'DF raw data'!C142) -> 7.01462e-05 | D142: =IF('DF raw data'!D142="","",'DF raw data'!D142) -> -3.85193e-05 | F142: 4.957615811e-06 | G142: 3.693556367e-05 | H142: -7.080869883e-06 | J142: 0.0002744008235 | K142: 0.005311813064 | L142: 0.001231638905 | M142: 0.0221283743 | N142: 1.888553893e-05
A143: =IF('DF raw data'!A143="","",'DF raw data'!A143) -> -262 | B143: =IF('DF raw data'!B143="","",'DF raw data'!B143) -> -8.66e-06 | C143: =IF('DF raw data'!C143="","",'DF raw data'!C143) -> 6.28162e-05 | D143: =IF('DF raw data'!D143="","",'DF raw data'!D143) -> -2.15966e-05 | F143: 1.204871026e-05 | G143: 2.955791867e-05 | H143: 9.951827667e-06 | J143: 0.0002804251787 | K143: 0.005452025653 | L143: 0.001246417864 | M143: 0.02275158324 | N143: 1.970163681e-05
A144: =IF('DF raw data'!A144="","",'DF raw data'!A144) -> -261.5 | B144: =IF('DF raw data'!B144="","",'DF raw data'!B144) -> -9.29189e-06 | C144: =IF('DF raw data'!C144="","",'DF raw data'!C144) -> 6.7932e-05 | D144: =IF('DF raw data'!D144="","",'DF raw data'!D144) -> -3.75132e-05 | F144: 1.141271298e-05 | G144: 3.470697137e-05 | H144: -6.068230233e-06 | J144: 0.0002861315352 | K144: 0.005595091421 | L144: 0.00126377135 | M144: 0.02338346891 | N144: 2.054113145e-05
A145: =IF('DF raw data'!A145="","",'DF raw data'!A145) -> -261 | B145: =IF('DF raw data'!B145="","",'DF raw data'!B145) -> -2.87197e-05 | C145: =IF('DF raw data'!C145="","",'DF raw data'!C145) -> 7.13613e-05 | D145: =IF('DF raw data'!D145="","",'DF raw data'!D145) -> -4.34341e-05 | F145: -8.141377789e-06 | G145: 3.815856182e-05 | H145: -1.202761608e-05 | J145: 0.0002820608463 | K145: 0.005736121844 | L145: 0.00128285063 | M145: 0.02402489423 | N145: 2.140376348e-05
A146: =IF('DF raw data'!A146="","",'DF raw data'!A146) -> -260.5 | B146: =IF('DF raw data'!B146="","",'DF raw data'!B146) -> -1.53789e-05 | C146: =IF('DF raw data'!C146="","",'DF raw data'!C146) -> 7.48434e-05 | D146: =IF('DF raw data'!D146="","",'DF raw data'!D146) -> -4.70679e-05 | F146: 5.286137411e-06 | G146: 4.166329547e-05 | H146: -1.568503578e-05 | J146: 0.000284703915 | K146: 0.005878473801 | L146: 0.001303682278 | M146: 0.02467673537 | N146: 2.229408538e-05
A147: =IF('DF raw data'!A147="","",'DF raw data'!A147) -> -260 | B147: =IF('DF raw data'!B147="","",'DF raw data'!B147) -> -1.78189e-05 | C147: =IF('DF raw data'!C147="","",'DF raw data'!C147) -> 7.15702e-05 | D147: =IF('DF raw data'!D147="","",'DF raw data'!D147) -> -4.06958e-05 | F147: 2.830277411e-06 | G147: 3.836881967e-05 | H147: -9.271517133e-06 | J147: 0.0002861190537 | K147: 0.006021533328 | L147: 0.001322866688 | M147: 0.02533816871 | N147: 2.321000558e-05
A148: =IF('DF raw data'!A148="","",'DF raw data'!A148) -> -259.5 | B148: =IF('DF raw data'!B148="","",'DF raw data'!B148) -> -1.90366e-05 | C148: =IF('DF raw data'!C148="","",'DF raw data'!C148) -> 6.23134e-05 | D148: =IF('DF raw data'!D148="","",'DF raw data'!D148) -> -4.43639e-05 | F148: 1.604662361e-06 | G148: 2.905185047e-05 | H148: -1.296345978e-05 | J148: 0.0002869213849 | K148: 0.006164994021 | L148: 0.001337392613 | M148: 0.02600686502 | N148: 2.414547702e-05
A149: =IF('DF raw data'!A149="","",'DF raw data'!A149) -> -259 | B149: =IF('DF raw data'!B149="","",'DF raw data'!B149) -> -2.08332e-05 | C149: =IF('DF raw data'!C149="","",'DF raw data'!C149) -> 5.70407e-05 | D149: =IF('DF raw data'!D149="","",'DF raw data'!D149) -> -4.06854e-05 | F149: -2.036155392e-07 | G149: 2.374487792e-05 | H149: -9.261049533e-06 | J149: 0.0002868195771 | K149: 0.006308403809 | L149: 0.001349265052 | M149: 0.02668149754 | N149: 2.509686784e-05
A150: =IF('DF raw data'!A150="","",'DF raw data'!A150) -> -258.5 | B150: =IF('DF raw data'!B150="","",'DF raw data'!B150) -> -1.07581e-05 | C150: =IF('DF raw data'!C150="","",'DF raw data'!C150) -> 6.06017e-05 | D150: =IF('DF raw data'!D150="","",'DF raw data'!D150) -> -5.1465e-05 | F150: 9.936972611e-06 | G150: 2.732902442e-05 | H150: -2.011071693e-05 | J150: 0.0002917880634 | K150: 0.006454297841 | L150: 0.001362929564 | M150: 0.02736296232 | N150: 2.606822648e-05
A151: =IF('DF raw data'!A151="","",'DF raw data'!A151) -> -258 | B151: =IF('DF raw data'!B151="","",'DF raw data'!B151) -> -2.26963e-05 | C151: =IF('DF raw data'!C151="","",'DF raw data'!C151) -> 6.42474e-05 | D151: =IF('DF raw data'!D151="","",'DF raw data'!D151) -> -3.54759e-05 | F151: -2.078825689e-06 | G151: 3.099842147e-05 | H151: -4.017687783e-06 | J151: 0.0002907486506 | K151: 0.006599672166 | L151: 0.001378428775 | M151: 0.02805217671 | N151: 2.706052681e-05
A152: =IF('DF raw data'!A152="","",'DF raw data'!A152) -> -257.5 | B152: =IF('DF raw data'!B152="","",'DF raw data'!B152) -> -1.30144e-05 | C152: =IF('DF raw data'!C152="","",'DF raw data'!C152) -> 6.73658e-05 | D152: =IF('DF raw data'!D152="","",'DF raw data'!D152) -> -3.39433e-05 | F152: 7.666006661e-06 | G152: 3.413709107e-05 | H152: -2.475125883e-06 | J152: 0.0002945816539 | K152: 0.006746962993 | L152: 0.001395497321 | M152: 0.02874992537 | N152: 2.807762237e-05
A153: =IF('DF raw data'!A153="","",'DF raw data'!A153) -> -257 | B153: =IF('DF raw data'!B153="","",'DF raw data'!B153) -> -2.13502e-05 | C153: =IF('DF raw data'!C153="","",'DF raw data'!C153) -> 6.78614e-05 | D153: =IF('DF raw data'!D153="","",'DF raw data'!D153) -> -3.47854e-05 | F153: -7.239760392e-07 | G153: 3.463591247e-05 | H153: -3.322699533e-06 | J153: 0.0002942196659 | K153: 0.006894072826 | L153: 0.001412815277 | M153: 0.02945633301 | N153: 2.911892848e-05
A154: =IF('DF raw data'!A154="","",'DF raw data'!A154) -> -256.5 | B154: =IF('DF raw data'!B154="","",'DF raw data'!B154) -> -2.04529e-05 | C154: =IF('DF raw data'!C154="","",'DF raw data'!C154) -> 6.28028e-05 | D154: =IF('DF raw data'!D154="","",'DF raw data'!D154) -> -3.65554e-05 | F154: 1.791564108e-07 | G154: 2.954443157e-05 | H154: -5.104204533e-06 | J154: 0.0002943092441 | K154: 0.007041227448 | L154: 0.001427587493 | M154: 0.03017012676 | N154: 3.018124047e-05
A155: =IF('DF raw data'!A155="","",'DF raw data'!A155) -> -256 | B155: =IF('DF raw data'!B155="","",'DF raw data'!B155) -> -1.53878e-05 | C155: =IF('DF raw data'!C155="","",'DF raw data'!C155) -> 6.41622e-05 | D155: =IF('DF raw data'!D155="","",'DF raw data'!D155) -> -3.11587e-05 | F155: 5.277179561e-06 | G155: 3.091266767e-05 | H155: 3.275740171e-07 | J155: 0.0002969478338 | K155: 0.007189701365 | L155: 0.001443043827 | M155: 0.03089164867 | N155: 3.126651722e-05
A156: =IF('DF raw data'!A156="","",'DF raw data'!A156) -> -255.5 | B156: =IF('DF raw data'!B156="","",'DF raw data'!B156) -> -9.15655e-06 | C156: =IF('DF raw data'!C156="","",'DF raw data'!C156) -> 7.41523e-05 | D156: =IF('DF raw data'!D156="","",'DF raw data'!D156) -> -4.83512e-05 | F156: 1.154893269e-05 | G156: 4.096770332e-05 | H156: -1.697667723e-05 | J156: 0.0003027223002 | K156: 0.007341062515 | L156: 0.001463527678 | M156: 0.03162341251 | N156: 3.238329425e-05
A157: =IF('DF raw data'!A157="","",'DF raw data'!A157) -> -255 | B157: =IF('DF raw data'!B157="","",'DF raw data'!B157) -> -9.60864e-06 | C157: =IF('DF raw data'!C157="","",'DF raw data'!C157) -> 6.95003e-05 | D157: =IF('DF raw data'!D157="","",'DF raw data'!D157) -> -4.24619e-05 | F157: 1.10939041e-05 | G157: 3.628546532e-05 | H157: -1.104909678e-05 | J157: 0.0003082692522 | K157: 0.007495197141 | L157: 0.001481670411 | M157: 0.03236424771 | N157: 3.352848282e-05
A158: =IF('DF raw data'!A158="","",'DF raw data'!A158) -> -254.5 | B158: =IF('DF raw data'!B158="","",'DF raw data'!B158) -> -2.16676e-05 | C158: =IF('DF raw data'!C158="","",'DF raw data'!C158) -> 6.47346e-05 | D158: =IF('DF raw data'!D158="","",'DF raw data'!D158) -> -4.24777e-05 | F158: -1.043439139e-06 | G158: 3.148878827e-05 | H158: -1.106499948e-05 | J158: 0.0003077475327 | K158: 0.007649070908 | L158: 0.001497414805 | M158: 0.03311295512 | N158: 3.469696264e-05
A159: =IF('DF raw data'!A159="","",'DF raw data'!A159) -> -254 | B159: =IF('DF raw data'!B159="","",'DF raw data'!B159) -> -1.91042e-05 | C159: =IF('DF raw data'!C159="","",'DF raw data'!C159) -> 6.81706e-05 | D159: =IF('DF raw data'!D159="","",'DF raw data'!D159) -> -3.67036e-05 | F159: 1.536622961e-06 | G159: 3.494712227e-05 | H159: -5.253367833e-06 | J159: 0.0003085158442 | K159: 0.00780332883 | L159: 0.001514888366 | M159: 0.0338703993 | N159: 3.589199704e-05
A160: =IF('DF raw data'!A160="","",'DF raw data'!A160) -> -253.5 | B160: =IF('DF raw data'!B160="","",'DF raw data'!B160) -> -2.52001e-05 | C160: =IF('DF raw data'!C160="","",'DF raw data'!C160) -> 7.04444e-05 | D160: =IF('DF raw data'!D160="","",'DF raw data'!D160) -> -3.49661e-05 | F160: -4.598900389e-06 | G160: 3.723570197e-05 | H160: -3.504574083e-06 | J160: 0.000306216394 | K160: 0.007956437027 | L160: 0.001533506217 | M160: 0.03463715241 | N160: 3.711470194e-05
A161: =IF('DF raw data'!A161="","",'DF raw data'!A161) -> -253 | B161: =IF('DF raw data'!B161="","",'DF raw data'!B161) -> -1.12797e-05 | C161: =IF('DF raw data'!C161="","",'DF raw data'!C161) -> 6.80066e-05 | D161: =IF('DF raw data'!D161="","",'DF raw data'!D161) -> -3.69783e-05 | F161: 9.411982211e-06 | G161: 3.478205627e-05 | H161: -5.529853383e-06 | J161: 0.0003109223851 | K161: 0.008111898219 | L161: 0.001550897245 | M161: 0.03541260103 | N161: 3.836567943e-05
A162: =IF('DF raw data'!A162="","",'DF raw data'!A162) -> -252.5 | B162: =IF('DF raw data'!B162="","",'DF raw data'!B162) -> -1.52513e-05 | C162: =IF('DF raw data'!C162="","",'DF raw data'!C162) -> 7.07689e-05 | D162: =IF('DF raw data'!D162="","",'DF raw data'!D162) -> -4.58812e-05 | F162: 5.414566811e-06 | G162: 3.756231122e-05 | H162: -1.449062223e-05 | J162: 0.0003136296685 | K162: 0.008268713053 | L162: 0.001569678401 | M162: 0.03619744023 | N162: 3.964680636e-05
A163: =IF('DF raw data'!A163="","",'DF raw data'!A163) -> -252 | B163: =IF('DF raw data'!B163="","",'DF raw data'!B163) -> -2.01957e-05 | C163: =IF('DF raw data'!C163="","",'DF raw data'!C163) -> 7.47042e-05 | D163: =IF('DF raw data'!D163="","",'DF raw data'!D163) -> -3.4683e-05 | F163: 4.380282108e-07 | G163: 4.152319067e-05 | H163: -3.219633933e-06 | J163: 0.0003138486826 | K163: 0.008425637395 | L163: 0.001590439996 | M163: 0.03699266023 | N163: 4.096080655e-05
A164: =IF('DF raw data'!A164="","",'DF raw data'!A164) -> -251.5 | B164: =IF('DF raw data'!B164="","",'DF raw data'!B164) -> -1.48093e-05 | C164: =IF('DF raw data'!C164="","",'DF raw data'!C164) -> 6.82724e-05 | D164: =IF('DF raw data'!D164="","",'DF raw data'!D164) -> -3.52937e-05 | F164: 5.859439811e-06 | G164: 3.504958397e-05 | H164: -3.834303483e-06 | J164: 0.0003167784025 | K164: 0.008584026596 | L164: 0.001607964788 | M164: 0.03779664262 | N164: 4.23037562e-05
A165: =IF('DF raw data'!A165="","",'DF raw data'!A165) -> -251 | B165: =IF('DF raw data'!B165="","",'DF raw data'!B165) -> -1.10946e-05 | C165: =IF('DF raw data'!C165="","",'DF raw data'!C165) -> 7.39025e-05 | D165: =IF('DF raw data'!D165="","",'DF raw data'!D165) -> -2.56792e-05 | F165: 9.598285361e-06 | G165: 4.071627962e-05 | H165: 5.842690767e-06 | J165: 0.0003215775452 | K165: 0.008744815369 | L165: 0.001628322928 | M165: 0.03861080409 | N165: 4.368118004e-05
A166: =IF('DF raw data'!A166="","",'DF raw data'!A166) -> -250.5 | B166: =IF('DF raw data'!B166="","",'DF raw data'!B166) -> -1.18569e-05 | C166: =IF('DF raw data'!C166="","",'DF raw data'!C166) -> 7.73873e-05 | D166: =IF('DF raw data'!D166="","",'DF raw data'!D166) -> -3.83684e-05 | F166: 8.831030411e-06 | G166: 4.422373082e-05 | H166: -6.928989033e-06 | J166: 0.0003259930604 | K166: 0.008907811899 | L166: 0.001650434793 | M166: 0.03943602148 | N166: 4.509628328e-05
A167: =IF('DF raw data'!A167="","",'DF raw data'!A167) -> -250 | B167: =IF('DF raw data'!B167="","",'DF raw data'!B167) -> -1.75717e-05 | C167: =IF('DF raw data'!C167="","",'DF raw data'!C167) -> 8.21772e-05 | D167: =IF('DF raw data'!D167="","",'DF raw data'!D167) -> -2.67268e-05 | F167: 3.079084211e-06 | G167: 4.904476517e-05 | H167: 4.788281367e-06 | J167: 0.0003275326025 | K167: 0.0090715782 | L167: 0.001674957176 | M167: 0.04027350007 | N167: 4.655266286e-05
A168: =IF('DF raw data'!A168="","",'DF raw data'!A168) -> -249.5 | B168: =IF('DF raw data'!B168="","",'DF raw data'!B168) -> -1.28111e-05 | C168: =IF('DF raw data'!C168="","",'DF raw data'!C168) -> 7.58469e-05 | D168: =IF('DF raw data'!D168="","",'DF raw data'!D168) -> -5.02495e-05 | F168: 7.870628111e-06 | G168: 4.267331822e-05 | H168: -1.888731618e-05 | J168: 0.0003314679165 | K168: 0.009237312158 | L168: 0.001696293835 | M168: 0.04112164699 | N168: 4.804630473e-05
A169: =IF('DF raw data'!A169="","",'DF raw data'!A169) -> -249 | B169: =IF('DF raw data'!B169="","",'DF raw data'!B169) -> -1.89119e-05 | C169: =IF('DF raw data'!C169="","",'DF raw data'!C169) -> 6.78037e-05 | D169: =IF('DF raw data'!D169="","",'DF raw data'!D169) -> -3.68326e-05 | F169: 1.730172911e-06 | G169: 3.457783742e-05 | H169: -5.383206333e-06 | J169: 0.000332333003 | K169: 0.00940347866 | L169: 0.001713582754 | M169: 0.04197843837 | N169: 4.956971027e-05
A170: =IF('DF raw data'!A170="","",'DF raw data'!A170) -> -248.5 | B170: =IF('DF raw data'!B170="","",'DF raw data'!B170) -> -2.01991e-05 | C170: =IF('DF raw data'!C170="","",'DF raw data'!C170) -> 6.82479e-05 | D170: =IF('DF raw data'!D170="","",'DF raw data'!D170) -> -3.15489e-05 | F170: 4.346061108e-07 | G170: 3.502492472e-05 | H170: -6.516228293e-08 | J170: 0.000332550306 | K170: 0.009569753813 | L170: 0.001731095216 | M170: 0.04284398598 | N170: 5.112335045e-05
A171: =IF('DF raw data'!A171="","",'DF raw data'!A171) -> -248 | B171: =IF('DF raw data'!B171="","",'DF raw data'!B171) -> -2.36651e-05 | C171: =IF('DF raw data'!C171="","",'DF raw data'!C171) -> 6.47768e-05 | D171: =IF('DF raw data'!D171="","",'DF raw data'!D171) -> -2.58854e-05 | F171: -3.053922889e-06 | G171: 3.153126257e-05 | H171: 5.635150467e-06 | J171: 0.0003310233446 | K171: 0.009735265485 | L171: 0.001746860847 | M171: 0.0437174164 | N171: 5.270390009e-05
A172: =IF('DF raw data'!A172="","",'DF raw data'!A172) -> -247.5 | B172: =IF('DF raw data'!B172="","",'DF raw data'!B172) -> -6.1525e-06 | C172: =IF('DF raw data'!C172="","",'DF raw data'!C172) -> 6.82716e-05 | D172: =IF('DF raw data'!D172="","",'DF raw data'!D172) -> -3.1931e-05 | F172: 1.457250901e-05 | G172: 3.504877877e-05 | H172: -4.497459329e-07 | J172: 0.0003383095991 | K172: 0.009904420285 | L172: 0.001764385237 | M172: 0.04459960902 | N172: 5.431765441e-05
A173: =IF('DF raw data'!A173="","",'DF raw data'!A173) -> -247 | B173: =IF('DF raw data'!B173="","",'DF raw data'!B173) -> -2.53905e-05 | C173: =IF('DF raw data'!C173="","",'DF raw data'!C173) -> 5.84557e-05 | D173: =IF('DF raw data'!D173="","",'DF raw data'!D173) -> -3.567e-05 | F173: -4.790537989e-06 | G173: 2.516907542e-05 | H173: -4.213049433e-06 | J173: 0.0003359143301 | K173: 0.01007237745 | L173: 0.001776969775 | M173: 0.0454880939 | N173: 5.595288442e-05
A174: =IF('DF raw data'!A174="","",'DF raw data'!A174) -> -246.5 | B174: =IF('DF raw data'!B174="","",'DF raw data'!B174) -> -1.96866e-05 | C174: =IF('DF raw data'!C174="","",'DF raw data'!C174) -> 6.35696e-05 | D174: =IF('DF raw data'!D174="","",'DF raw data'!D174) -> -3.02717e-05 | F174: 9.504373608e-07 | G174: 3.031621577e-05 | H174: 1.220339517e-06 | J174: 0.0003363895488 | K174: 0.01024057222 | L174: 0.001792127882 | M174: 0.04638415785 | N174: 5.761532456e-05
A175: =IF('DF raw data'!A175="","",'DF raw data'!A175) -> -246 | B175: =IF('DF raw data'!B175="","",'DF raw data'!B175) -> -1.70461e-05 | C175: =IF('DF raw data'!C175="","",'DF raw data'!C175) -> 5.55349e-05 | D175: =IF('DF raw data'!D175="","",'DF raw data'!D175) -> -4.63133e-05 | F175: 3.608100611e-06 | G175: 2.222929022e-05 | H175: -1.492553088e-05 | J175: 0.0003381935991 | K175: 0.01040966902 | L175: 0.001803242528 | M175: 0.04728577911 | N175: 5.929835382e-05
A176: =IF('DF raw data'!A176="","",'DF raw data'!A176) -> -245.5 | B176: =IF('DF raw data'!B176="","",'DF raw data'!B176) -> -3.08996e-05 | C176: =IF('DF raw data'!C176="","",'DF raw data'!C176) -> 4.90986e-05 | D176: =IF('DF raw data'!D176="","",'DF raw data'!D176) -> -4.76492e-05 | F176: -1.033544714e-05 | G176: 1.575115427e-05 | H176: -1.627011423e-05 | J176: 0.0003330258755 | K176: 0.01057618196 | L176: 0.001811118105 | M176: 0.04819133816 | N176: 6.099388133e-05
A177: =IF('DF raw data'!A177="","",'DF raw data'!A177) -> -245 | B177: =IF('DF raw data'!B177="","",'DF raw data'!B177) -> -1.76276e-05 | C177: =IF('DF raw data'!C177="","",'DF raw data'!C177) -> 5.03676e-05 | D177: =IF('DF raw data'!D177="","",'DF raw data'!D177) -> -3.95744e-05 | F177: 3.022820861e-06 | G177: 1.702840277e-05 | H177: -8.142828033e-06 | J177: 0.0003345372859 | K177: 0.0107434506 | L177: 0.001819632306 | M177: 0.04910115432 | N177: 6.27053698e-05
A178: =IF('DF raw data'!A178="","",'DF raw data'!A178) -> -244.5 | B178: =IF('DF raw data'!B178="","",'DF raw data'!B178) -> -2.00649e-05 | C178: =IF('DF raw data'!C178="","",'DF raw data'!C178) -> 6.15158e-05 | D178: =IF('DF raw data'!D178="","",'DF raw data'!D178) -> -4.03983e-05 | F178: 5.696784108e-07 | G178: 2.824906607e-05 | H178: -8.972083383e-06 | J178: 0.0003348221252 | K178: 0.01091086167 | L178: 0.001833756839 | M178: 0.05001803273 | N178: 6.44427548e-05
A179: =IF('DF raw data'!A179="","",'DF raw data'!A179) -> -244 | B179: =IF('DF raw data'!B179="","",'DF raw data'!B179) -> -1.45544e-05 | C179: =IF('DF raw data'!C179="","",'DF raw data'!C179) -> 5.96152e-05 | D179: =IF('DF raw data'!D179="","",'DF raw data'!D179) -> -3.15882e-05 | F179: 6.115996661e-06 | G179: 2.633611217e-05 | H179: -1.047177329e-07 | J179: 0.0003378801235 | K179: 0.01107980173 | L179: 0.001846924895 | M179: 0.05094149518 | N179: 6.620540207e-05
A180: =IF('DF raw data'!A180="","",'DF raw data'!A180) -> -243.5 | B180: =IF('DF raw data'!B180="","",'DF raw data'!B180) -> -2.74429e-05 | C180: =IF('DF raw data'!C180="","",'DF raw data'!C180) -> 6.14211e-05 | D180: =IF('DF raw data'!D180="","",'DF raw data'!D180) -> -3.72664e-05 | F180: -6.856278589e-06 | G180: 2.815375052e-05 | H180: -5.819826033e-06 | J180: 0.0003344519842 | K180: 0.01124702772 | L180: 0.00186100177 | M180: 0.05187199607 | N180: 6.799299493e-05
A181: =IF('DF raw data'!A181="","",'DF raw data'!A181) -> -243 | B181: =IF('DF raw data'!B181="","",'DF raw data'!B181) -> -1.39136e-05 | C181: =IF('DF raw data'!C181="","",'DF raw data'!C181) -> 5.88233e-05 | D181: =IF('DF raw data'!D181="","",'DF raw data'!D181) -> -3.06946e-05 | F181: 6.760961861e-06 | G181: 2.553906482e-05 | H181: 7.946906671e-07 | J181: 0.0003378324651 | K181: 0.01141594395 | L181: 0.001873771303 | M181: 0.05280888172 | N181: 6.980556976e-05
A182: =IF('DF raw data'!A182="","",'DF raw data'!A182) -> -242.5 | B182: =IF('DF raw data'!B182="","",'DF raw data'!B182) -> -1.56429e-05 | C182: =IF('DF raw data'!C182="","",'DF raw data'!C182) -> 5.6009e-05 | D182: =IF('DF raw data'!D182="","",'DF raw data'!D182) -> -3.49392e-05 | F182: 5.020421411e-06 | G182: 2.270647187e-05 | H182: -3.477499233e-06 | J182: 0.0003403426758 | K182: 0.01158611529 | L182: 0.001885124539 | M182: 0.05375144399 | N182: 7.16403336e-05
A183: =IF('DF raw data'!A183="","",'DF raw data'!A183) -> -242 | B183: =IF('DF raw data'!B183="","",'DF raw data'!B183) -> -2.0068e-05 | C183: =IF('DF raw data'!C183="","",'DF raw data'!C183) -> 6.12551e-05 | D183: =IF('DF raw data'!D183="","",'DF raw data'!D183) -> -3.44878e-05 | F183: 5.665582608e-07 | G183: 2.798667152e-05 | H183: -3.023165133e-06 | J183: 0.000340625955 | K183: 0.01175642827 | L183: 0.001899117875 | M183: 0.05470100293 | N183: 7.350167097e-05
A184: =IF('DF raw data'!A184="","",'DF raw data'!A184) -> -241.5 | B184: =IF('DF raw data'!B184="","",'DF raw data'!B184) -> -1.62188e-05 | C184: =IF('DF raw data'!C184="","",'DF raw data'!C184) -> 6.5489e-05 | D184: =IF('DF raw data'!D184="","",'DF raw data'!D184) -> -3.72161e-05 | F184: 4.440778061e-06 | G184: 3.224809187e-05 | H184: -5.769199083e-06 | J184: 0.000342846344 | K184: 0.01192785144 | L184: 0.00191524192 | M184: 0.05565862389 | N184: 7.539451858e-05
A185: =IF('DF raw data'!A185="","",'DF raw data'!A185) -> -241 | B185: =IF('DF raw data'!B185="","",'DF raw data'!B185) -> -2.66746e-05 | C185: =IF('DF raw data'!C185="","",'DF raw data'!C185) -> 6.829e-05 | D185: =IF('DF raw data'!D185="","",'DF raw data'!D185) -> -3.38196e-05 | F185: -6.082984639e-06 | G185: 3.506729837e-05 | H185: -2.350621833e-06 | J185: 0.0003398048517 | K185: 0.01209775387 | L185: 0.00193277557 | M185: 0.05662501167 | N185: 7.732006295e-05
A186: =IF('DF raw data'!A186="","",'DF raw data'!A186) -> -240.5 | B186: =IF('DF raw data'!B186="","",'DF raw data'!B186) -> -2.66135e-05 | C186: =IF('DF raw data'!C186="","",'DF raw data'!C186) -> 7.78846e-05 | D186: =IF('DF raw data'!D186="","",'DF raw data'!D186) -> -3.04389e-05 | F186: -6.021487489e-06 | G186: 4.472426327e-05 | H186: 1.052052717e-06 | J186: 0.0003367941079 | K186: 0.01226615092 | L186: 0.001955137701 | M186: 0.05760258052 | N186: 7.92880598e-05
A187: =IF('DF raw data'!A187="","",'DF raw data'!A187) -> -240 | B187: =IF('DF raw data'!B187="","",'DF raw data'!B187) -> -1.30183e-05 | C187: =IF('DF raw data'!C187="","",'DF raw data'!C187) -> 7.28191e-05 | D187: =IF('DF raw data'!D187="","",'DF raw data'!D187) -> -2.67125e-05 | F187: 7.662081311e-06 | G187: 3.962583752e-05 | H187: 4.802674317e-06 | J187: 0.0003406251486 | K187: 0.01243646349 | L187: 0.00197495062 | M187: 0.05859005583 | N187: 8.129628752e-05
A188: =IF('DF raw data'!A188="","",'DF raw data'!A188) -> -239.5 | B188: =IF('DF raw data'!B188="","",'DF raw data'!B188) -> -1.25677e-05 | C188: =IF('DF raw data'!C188="","",'DF raw data'!C188) -> 7.41019e-05 | D188: =IF('DF raw data'!D188="","",'DF raw data'!D188) -> -2.9891e-05 | F188: 8.115610211e-06 | G188: 4.091697572e-05 | H188: 1.603514067e-06 | J188: 0.0003446829537 | K188: 0.01260880497 | L188: 0.001995409108 | M188: 0.05958776039 | N188: 8.334651945e-05
A189: =IF('DF raw data'!A189="","",'DF raw data'!A189) -> -239 | B189: =IF('DF raw data'!B189="","",'DF raw data'!B189) -> -2.26992e-05 | C189: =IF('DF raw data'!C189="","",'DF raw data'!C189) -> 7.03631e-05 | D189: =IF('DF raw data'!D189="","",'DF raw data'!D189) -> -3.20665e-05 | F189: -2.081744539e-06 | G189: 3.715387352e-05 | H189: -5.861266829e-07 | J189: 0.0003436420814 | K189: 0.01278062601 | L189: 0.002013986045 | M189: 0.06059475341 | N189: 8.543363428e-05
A190: =IF('DF raw data'!A190="","",'DF raw data'!A190) -> -238.5 | B190: =IF('DF raw data'!B190="","",'DF raw data'!B190) -> -2.2574e-05 | C190: =IF('DF raw data'!C190="","",'DF raw data'!C190) -> 6.75009e-05 | D190: =IF('DF raw data'!D190="","",'DF raw data'!D190) -> -2.86011e-05 | F190: -1.955730739e-06 | G190: 3.427306922e-05 | H190: 2.901798417e-06 | J190: 0.000342664216 | K190: 0.01295195812 | L190: 0.002031122579 | M190: 0.0616103147 | N190: 8.755507313e-05
A191: =IF('DF raw data'!A191="","",'DF raw data'!A191) -> -238 | B191: =IF('DF raw data'!B191="","",'DF raw data'!B191) -> -1.08964e-05 | C191: =IF('DF raw data'!C191="","",'DF raw data'!C191) -> 6.60261e-05 | D191: =IF('DF raw data'!D191="","",'DF raw data'!D191) -> -3.51005e-05 | F191: 9.797773661e-06 | G191: 3.278868302e-05 | H191: -3.639847683e-06 | J191: 0.0003475631029 | K191: 0.01312573967 | L191: 0.002047516921 | M191: 0.06263407316 | N191: 8.971163596e-05
A192: =IF('DF raw data'!A192="","",'DF raw data'!A192) -> -237.5 | B192: =IF('DF raw data'!B192="","",'DF raw data'!B192) -> -1.84029e-05 | C192: =IF('DF raw data'!C192="","",'DF raw data'!C192) -> 6.91926e-05 | D192: =IF('DF raw data'!D192="","",'DF raw data'!D192) -> -3.17148e-05 | F192: 2.242481411e-06 | G192: 3.597576527e-05 | H192: -2.321406329e-07 | J192: =F192*$G$3+J191 -> 0.0003486843436 | K192: =J192*$G$3+K191 -> 0.01330008184 | L192: =G192*$G$3+L191 -> 0.002065504803 | M192: =L192*$G$3+M191 -> 0.06366682556 | N192: =(J192^2+L192^2)*$G$3+N191 -> 9.190558139e-05
A193: =IF('DF raw data'!A193="","",'DF raw data'!A193) -> -237 | B193: =IF('DF raw data'!B193="","",'DF raw data'!B193) -> -2.10209e-05 | C193: =IF('DF raw data'!C193="","",'DF raw data'!C193) -> 6.58306e-05 | D193: =IF('DF raw data'!D193="","",'DF raw data'!D193) -> -4.89028e-05 | F193: -3.925355892e-07 | G193: 3.259191227e-05 | H193: -1.753186263e-05 | J193: 0.0003484880758 | K193: 0.01347432588 | L193: 0.00208180076 | M193: 0.06470772594 | N193: 9.413325056e-05
A194: =IF('DF raw data'!A194="","",'DF raw data'!A194) -> -236.5 | B194: =IF('DF raw data'!B194="","",'DF raw data'!B194) -> -3.02648e-05 | C194: =IF('DF raw data'!C194="","",'DF raw data'!C194) -> 6.93162e-05 | D194: =IF('DF raw data'!D194="","",'DF raw data'!D194) -> -3.73131e-05 | F194: -9.696520939e-06 | G194: 3.610016867e-05 | H194: -5.866829583e-06 | J194: 0.0003436398153 | K194: 0.01364614579 | L194: 0.002099850844 | M194: 0.06575765136 | N194: 9.63969815e-05
A195: =IF('DF raw data'!A195="","",'DF raw data'!A195) -> -236 | B195: =IF('DF raw data'!B195="","",'DF raw data'!B195) -> -1.78248e-05 | C195: =IF('DF raw data'!C195="","",'DF raw data'!C195) -> 6.42049e-05 | D195: =IF('DF raw data'!D195="","",'DF raw data'!D195) -> -3.26872e-05 | F195: =(1-$G$1*($B$54-$G$2))*(B195-F$5) -> 2.824339061e-06 | G195: =(1-$G$1*($B$54-$G$2))*(C195-G$5) -> 3.095564522e-05 | H195: =(1-$G$1*($B$54-$G$2))*(D195-H$5) -> -1.210861233e-06 | J195: 0.0003450519848 | K195: 0.01381867178 | L195: 0.002115328667 | M195: 0.06681531569 | N195: 9.869381962e-05
A196: =IF('DF raw data'!A196="","",'DF raw data'!A196) -> -235.5 | B196: =IF('DF raw data'!B196="","",'DF raw data'!B196) -> -2.17377e-05 | C196: =IF('DF raw data'!C196="","",'DF raw data'!C196) -> 6.87556e-05 | D196: =IF('DF raw data'!D196="","",'DF raw data'!D196) -> -3.25117e-05 | F196: -1.113994789e-06 | G196: 3.553592477e-05 | H196: -1.034220483e-06 | J196: 0.0003444949875 | K196: 0.01399091928 | L196: 0.002133096629 | M196: 0.06788186401 | N196: 0.0001010282086
A197: =IF('DF raw data'!A197="","",'DF raw data'!A197) -> -235 | B197: =IF('DF raw data'!B197="","",'DF raw data'!B197) -> -1.75052e-05 | C197: =IF('DF raw data'!C197="","",'DF raw data'!C197) -> 8.29225e-05 | D197: =IF('DF raw data'!D197="","",'DF raw data'!D197) -> -3.07978e-05 | F197: 3.146016461e-06 | G197: 4.979490962e-05 | H197: 6.908198671e-07 | J197: 0.0003460679957 | K197: 0.01416395327 | L197: 0.002157994084 | M197: 0.06896086105 | N197: 0.0001034165594
A198: =IF('DF raw data'!A198="","",'DF raw data'!A198) -> -234.5 | B198: =IF('DF raw data'!B198="","",'DF raw data'!B198) -> -1.03325e-05 | C198: =IF('DF raw data'!C198="","",'DF raw data'!C198) -> 8.44771e-05 | D198: =IF('DF raw data'!D198="","",'DF raw data'!D198) -> -1.47632e-05 | F198: 1.036533901e-05 | G198: 5.135961452e-05 | H198: 1.682964477e-05 | J198: 0.0003512506652 | K198: 0.01433957861 | L198: 0.002183673891 | M198: 0.070052698 | N198: 0.0001058624637
A199: =IF('DF raw data'!A199="","",'DF raw data'!A199) -> -234 | B199: =IF('DF raw data'!B199="","",'DF raw data'!B199) -> -1.36515e-05 | C199: =IF('DF raw data'!C199="","",'DF raw data'!C199) -> 7.22982e-05 | D199: =IF('DF raw data'!D199="","",'DF raw data'!D199) -> -3.95365e-05 | F199: 7.024765511e-06 | G199: 3.910155167e-05 | H199: -8.104681683e-06 | J199: 0.0003547630479 | K199: 0.01451696013 | L199: 0.002203224667 | M199: 0.07115431033 | N199: 0.0001083524916
A200: =IF('DF raw data'!A200="","",'DF raw data'!A200) -> -233.5 | B200: =IF('DF raw data'!B200="","",'DF raw data'!B200) -> -4.41058e-06 | C200: =IF('DF raw data'!C200="","",'DF raw data'!C200) -> 6.74534e-05 | D200: =IF('DF raw data'!D200="","",'DF raw data'!D200) -> -4.78076e-05 | F200: 1.632575149e-05 | G200: 3.422526047e-05 | H200: -1.642954383e-05 | J200: 0.0003629259237 | K200: 0.01469842309 | L200: 0.002220337297 | M200: 0.07226447898 | N200: 0.0001108832981
... 1079 more rows

Sheet 15 mm
A1: =IF('DF raw data'!E1="","",'DF raw data'!E1) -> Number of header lines | B1: =IF('DF raw data'!F1="","",'DF raw data'!F1) -> 54 | C1: =IF('DF raw data'!C1="","",'DF raw data'!C1) ->  | D1: =IF('DF raw data'!D1="","",'DF raw data'!D1) ->  | F1: T_coeff | G1: -0.001 | H1: /degC | J1: IBy total | K1: =J1267*1000 -> 6.801978555 | L1: muTm | M1: =L1267*1000 -> 1.57938052 | R1: DF ref | S1: 1
A2: =IF('DF raw data'!E2="","",'DF raw data'!E2) -> Measured by | B2: =IF('DF raw data'!F2="","",'DF raw data'!F2) -> Danfysik | C2: =IF('DF raw data'!C2="","",'DF raw data'!C2) ->  | D2: =IF('DF raw data'!D2="","",'DF raw data'!D2) ->  | F2: Tcorr | G2: 20 | H2: degC | J2: JBy total | K2: =K1267 -> -11.62338502 | L2: muTm^2 | M2: =M1267 -> -0.1541162615
A3: =IF('DF raw data'!E3="","",'DF raw data'!E3) -> Operator | B3: =IF('DF raw data'!F3="","",'DF raw data'!F3) -> PMHA | C3: =IF('DF raw data'!C3="","",'DF raw data'!C3) ->  | D3: =IF('DF raw data'!D3="","",'DF raw data'!D3) ->  | F3: Step | G3: =A68-A67 -> 0.5 | H3: mm | J3: PI total | K3: =N1267 -> 7129.26261 | L3: T^2mm^3
A4: =IF('DF raw data'!E4="","",'DF raw data'!E4) -> Data-time | B4: =IF('DF raw data'!F4="","",'DF raw data'!F4) -> 05-09-2024, 15:27:34 | C4: =IF('DF raw data'!C4="","",'DF raw data'!C4) ->  | D4: =IF('DF raw data'!D4="","",'DF raw data'!D4) -> 
A5: =IF('DF raw data'!E5="","",'DF raw data'!E5) -> Project | B5: =IF('DF raw data'!F5="","",'DF raw data'!F5) -> 504314 | C5: =IF('DF raw data'!C5="","",'DF raw data'!C5) ->  | D5: Bamb avr | F5: =(AVERAGE(B67:B107) + AVERAGE(B1227:B1267))/2 -> -2.073052159e-05 | G5: =(AVERAGE(C67:C107) + AVERAGE(C1227:C1267))/2 -> 0.0001061518317 | H5: =(AVERAGE(D67:D107) + AVERAGE(D1227:D1267))/2 -> -2.956027439e-05
A6: =IF('DF raw data'!E6="","",'DF raw data'!E6) -> Magnet type | B6: =IF('DF raw data'!F6="","",'DF raw data'!F6) -> Dipole | C6: =IF('DF raw data'!C6="","",'DF raw data'!C6) -> 
A7: =IF('DF raw data'!E7="","",'DF raw data'!E7) -> Magnet nr. | B7: =IF('DF raw data'!F7="","",'DF raw data'!F7) -> 2410093 | C7: =IF('DF raw data'!C7="","",'DF raw data'!C7) -> 
A8: =IF('DF raw data'!E8="","",'DF raw data'!E8) -> Meas. number | B8: =IF('DF raw data'!F8="","",'DF raw data'!F8) -> 381 | C8: =IF('DF raw data'!C8="","",'DF raw data'!C8) -> 
A9: =IF('DF raw data'!E9="","",'DF raw data'!E9) -> Add. info | B9: =IF('DF raw data'!F9="","",'DF raw data'!F9) ->  | C9: =IF('DF raw data'!C9="","",'DF raw data'!C9) ->  | D9: =IF('DF raw data'!D9="","",'DF raw data'!D9) -> 
A10: =IF('DF raw data'!E10="","",'DF raw data'!E10) -> Device | B10: =IF('DF raw data'!F10="","",'DF raw data'!F10) -> (HAL) HALL-PROBE | C10: =IF('DF raw data'!C10="","",'DF raw data'!C10) ->  | D10: =IF('DF raw data'!D10="","",'DF raw data'!D10) -> 
A11: =IF('DF raw data'!E11="","",'DF raw data'!E11) -> Goal | B11: =IF('DF raw data'!F11="","",'DF raw data'!F11) -> (AXI) AXis Integral (Line, EFB) | C11: =IF('DF raw data'!C11="","",'DF raw data'!C11) ->  | D11: =IF('DF raw data'!D11="","",'DF raw data'!D11) -> 
A12: =IF('DF raw data'!E12="","",'DF raw data'!E12) -> Power supply mode | B12: =IF('DF raw data'!F12="","",'DF raw data'!F12) -> (PM) Permanent Magnet (no MPS in use) | C12: =IF('DF raw data'!C12="","",'DF raw data'!C12) ->  | D12: =IF('DF raw data'!D12="","",'DF raw data'!D12) -> 
A13: =IF('DF raw data'!E13="","",'DF raw data'!E13) -> Data format | B13: =IF('DF raw data'!F13="","",'DF raw data'!F13) -> Raw data text file | C13: =IF('DF raw data'!C13="","",'DF raw data'!C13) ->  | D13: =IF('DF raw data'!D13="","",'DF raw data'!D13) -> 
A14: =IF('DF raw data'!E14="","",'DF raw data'!E14) -> Direction of the pos. x-axis | B14: =IF('DF raw data'!F14="","",'DF raw data'!F14) -> See test program | C14: =IF('DF raw data'!C14="","",'DF raw data'!C14) ->  | D14: =IF('DF raw data'!D14="","",'DF raw data'!D14) -> 
A15: =IF('DF raw data'!E15="","",'DF raw data'!E15) -> Direction of the pos. y-axis | B15: =IF('DF raw data'!F15="","",'DF raw data'!F15) -> Vertical up | C15: =IF('DF raw data'!C15="","",'DF raw data'!C15) ->  | D15: =IF('DF raw data'!D15="","",'DF raw data'!D15) -> 
A16: =IF('DF raw data'!E16="","",'DF raw data'!E16) -> Direction of the pos. z-axis | B16: =IF('DF raw data'!F16="","",'DF raw data'!F16) -> See test program | C16: =IF('DF raw data'!C16="","",'DF raw data'!C16) ->  | D16: =IF('DF raw data'!D16="","",'DF raw data'!D16) -> 
A17: =IF('DF raw data'!E17="","",'DF raw data'!E17) -> Mapper type | B17: =IF('DF raw data'!F17="","",'DF raw data'!F17) -> Precision Hall Mapper | C17: =IF('DF raw data'!C17="","",'DF raw data'!C17) ->  | D17: =IF('DF raw data'!D17="","",'DF raw data'!D17) -> 
A18: =IF('DF raw data'!E18="","",'DF raw data'!E18) -> Mapper Danfysik Reg. Number | B18: =IF('DF raw data'!F18="","",'DF raw data'!F18) -> 2033-D (mapper 1) | C18: =IF('DF raw data'!C18="","",'DF raw data'!C18) ->  | D18: =IF('DF raw data'!D18="","",'DF raw data'!D18) -> 
A19: =IF('DF raw data'!E19="","",'DF raw data'!E19) -> Measurement consept | B19: =IF('DF raw data'!F19="","",'DF raw data'!F19) -> Square line grid | C19: =IF('DF raw data'!C19="","",'DF raw data'!C19) ->  | D19: =IF('DF raw data'!D19="","",'DF raw data'!D19) -> 
A20: =IF('DF raw data'!E20="","",'DF raw data'!E20) -> Mode | B20: =IF('DF raw data'!F20="","",'DF raw data'!F20) -> On-the-fly measurement | C20: =IF('DF raw data'!C20="","",'DF raw data'!C20) ->  | D20: =IF('DF raw data'!D20="","",'DF raw data'!D20) -> 
A21: =IF('DF raw data'!E21="","",'DF raw data'!E21) ->  | B21: =IF('DF raw data'!F21="","",'DF raw data'!F21) ->  | C21: =IF('DF raw data'!C21="","",'DF raw data'!C21) ->  | D21: =IF('DF raw data'!D21="","",'DF raw data'!D21) -> 
A22: =IF('DF raw data'!E22="","",'DF raw data'!E22) -> Probe Name | B22: =IF('DF raw data'!F22="","",'DF raw data'!F22) -> ID12_By | C22: =IF('DF raw data'!C22="","",'DF raw data'!C22) ->  | D22: =IF('DF raw data'!D22="","",'DF raw data'!D22) -> 
A23: =IF('DF raw data'!E23="","",'DF raw data'!E23) -> Probe Type | B23: =IF('DF raw data'!F23="","",'DF raw data'!F23) -> DF_ID_3D_Bxyz | C23: =IF('DF raw data'!C23="","",'DF raw data'!C23) ->  | D23: =IF('DF raw data'!D23="","",'DF raw data'!D23) -> 
A24: =IF('DF raw data'!E24="","",'DF raw data'!E24) -> Probe Danfysik Reg. Number | B24: =IF('DF raw data'!F24="","",'DF raw data'!F24) -> 2277 | C24: =IF('DF raw data'!C24="","",'DF raw data'!C24) ->  | D24: =IF('DF raw data'!D24="","",'DF raw data'!D24) -> 
A25: =IF('DF raw data'!E25="","",'DF raw data'!E25) -> Probe Axis | B25: =IF('DF raw data'!F25="","",'DF raw data'!F25) -> By | C25: =IF('DF raw data'!C25="","",'DF raw data'!C25) ->  | D25: =IF('DF raw data'!D25="","",'DF raw data'!D25) -> 
A26: =IF('DF raw data'!E26="","",'DF raw data'!E26) -> Probe Current Supply | B26: =IF('DF raw data'!F26="","",'DF raw data'!F26) -> 1825-D | C26: =IF('DF raw data'!C26="","",'DF raw data'!C26) ->  | D26: =IF('DF raw data'!D26="","",'DF raw data'!D26) -> 
A27: =IF('DF raw data'!E27="","",'DF raw data'!E27) -> Probe Gain Correction | B27: =IF('DF raw data'!F27="","",'DF raw data'!F27) -> 0.99618 | C27: =IF('DF raw data'!C27="","",'DF raw data'!C27) ->  | D27: =IF('DF raw data'!D27="","",'DF raw data'!D27) -> 
A28: =IF('DF raw data'!E28="","",'DF raw data'!E28) -> Probe Offset Correction | B28: =IF('DF raw data'!F28="","",'DF raw data'!F28) -> 0.0027415 | C28: =IF('DF raw data'!C28="","",'DF raw data'!C28) ->  | D28: =IF('DF raw data'!D28="","",'DF raw data'!D28) -> 
A29: =IF('DF raw data'!E29="","",'DF raw data'!E29) -> DVM Number | B29: =IF('DF raw data'!F29="","",'DF raw data'!F29) -> 2 | C29: =IF('DF raw data'!C29="","",'DF raw data'!C29) ->  | D29: =IF('DF raw data'!D29="","",'DF raw data'!D29) -> 
A30: =IF('DF raw data'!E30="","",'DF raw data'!E30) -> DVM Type | B30: =IF('DF raw data'!F30="","",'DF raw data'!F30) -> K2701 | C30: =IF('DF raw data'!C30="","",'DF raw data'!C30) ->  | D30: =IF('DF raw data'!D30="","",'DF raw data'!D30) -> 
A31: =IF('DF raw data'!E31="","",'DF raw data'!E31) -> DVM Danfysik Reg. Number | B31: =IF('DF raw data'!F31="","",'DF raw data'!F31) -> 1743-D | C31: =IF('DF raw data'!C31="","",'DF raw data'!C31) ->  | D31: =IF('DF raw data'!D31="","",'DF raw data'!D31) -> 
A32: =IF('DF raw data'!E32="","",'DF raw data'!E32) -> Probe Name | B32: =IF('DF raw data'!F32="","",'DF raw data'!F32) -> ID12_Bx | C32: =IF('DF raw data'!C32="","",'DF raw data'!C32) ->  | D32: =IF('DF raw data'!D32="","",'DF raw data'!D32) -> 
A33: =IF('DF raw data'!E33="","",'DF raw data'!E33) -> Probe Type | B33: =IF('DF raw data'!F33="","",'DF raw data'!F33) -> DF_ID_3D_Bxyz | C33: =IF('DF raw data'!C33="","",'DF raw data'!C33) ->  | D33: =IF('DF raw data'!D33="","",'DF raw data'!D33) -> 
A34: =IF('DF raw data'!E34="","",'DF raw data'!E34) -> Probe Danfysik Reg. Number | B34: =IF('DF raw data'!F34="","",'DF raw data'!F34) -> 2277 | C34: =IF('DF raw data'!C34="","",'DF raw data'!C34) ->  | D34: =IF('DF raw data'!D34="","",'DF raw data'!D34) -> 
A35: =IF('DF raw data'!E35="","",'DF raw data'!E35) -> Probe Axis | B35: =IF('DF raw data'!F35="","",'DF raw data'!F35) -> Bx | C35: =IF('DF raw data'!C35="","",'DF raw data'!C35) ->  | D35: =IF('DF raw data'!D35="","",'DF raw data'!D35) -> 
A36: =IF('DF raw data'!E36="","",'DF raw data'!E36) -> Probe Current Supply | B36: =IF('DF raw data'!F36="","",'DF raw data'!F36) -> 1825-D | C36: =IF('DF raw data'!C36="","",'DF raw data'!C36) ->  | D36: =IF('DF raw data'!D36="","",'DF raw data'!D36) -> 
A37: =IF('DF raw data'!E37="","",'DF raw data'!E37) -> Probe Gain Correction | B37: =IF('DF raw data'!F37="","",'DF raw data'!F37) -> 1 | C37: =IF('DF raw data'!C37="","",'DF raw data'!C37) ->  | D37: =IF('DF raw data'!D37="","",'DF raw data'!D37) -> 
A38: =IF('DF raw data'!E38="","",'DF raw data'!E38) -> Probe Offset Correction | B38: =IF('DF raw data'!F38="","",'DF raw data'!F38) -> -0.17583 | C38: =IF('DF raw data'!C38="","",'DF raw data'!C38) ->  | D38: =IF('DF raw data'!D38="","",'DF raw data'!D38) -> 
A39: =IF('DF raw data'!E39="","",'DF raw data'!E39) -> DVM Number | B39: =IF('DF raw data'!F39="","",'DF raw data'!F39) -> 3 | C39: =IF('DF raw data'!C39="","",'DF raw data'!C39) ->  | D39: =IF('DF raw data'!D39="","",'DF raw data'!D39) -> 
A40: =IF('DF raw data'!E40="","",'DF raw data'!E40) -> DVM Type | B40: =IF('DF raw data'!F40="","",'DF raw data'!F40) -> K2701 | C40: =IF('DF raw data'!C40="","",'DF raw data'!C40) ->  | D40: =IF('DF raw data'!D40="","",'DF raw data'!D40) -> 
A41: =IF('DF raw data'!E41="","",'DF raw data'!E41) -> DVM Danfysik Reg. Number | B41: =IF('DF raw data'!F41="","",'DF raw data'!F41) -> 1744-D | C41: =IF('DF raw data'!C41="","",'DF raw data'!C41) ->  | D41: =IF('DF raw data'!D41="","",'DF raw data'!D41) -> 
A42: =IF('DF raw data'!E42="","",'DF raw data'!E42) -> Probe Name | B42: =IF('DF raw data'!F42="","",'DF raw data'!F42) -> ID12_Bz | C42: =IF('DF raw data'!C42="","",'DF raw data'!C42) ->  | D42: =IF('DF raw data'!D42="","",'DF raw data'!D42) -> 
A43: =IF('DF raw data'!E43="","",'DF raw data'!E43) -> Probe Type | B43: =IF('DF raw data'!F43="","",'DF raw data'!F43) -> DF_ID_3D_Bxyz | C43: =IF('DF raw data'!C43="","",'DF raw data'!C43) ->  | D43: =IF('DF raw data'!D43="","",'DF raw data'!D43) -> 
A44: =IF('DF raw data'!E44="","",'DF raw data'!E44) -> Probe Danfysik Reg. Number | B44: =IF('DF raw data'!F44="","",'DF raw data'!F44) -> 2277 | C44: =IF('DF raw data'!C44="","",'DF raw data'!C44) ->  | D44: =IF('DF raw data'!D44="","",'DF raw data'!D44) -> 
A45: =IF('DF raw data'!E45="","",'DF raw data'!E45) -> Probe Axis | B45: =IF('DF raw data'!F45="","",'DF raw data'!F45) -> Bz | C45: =IF('DF raw data'!C45="","",'DF raw data'!C45) ->  | D45: =IF('DF raw data'!D45="","",'DF raw data'!D45) -> 
A46: =IF('DF raw data'!E46="","",'DF raw data'!E46) -> Probe Current Supply | B46: =IF('DF raw data'!F46="","",'DF raw data'!F46) -> 1825-D | C46: =IF('DF raw data'!C46="","",'DF raw data'!C46) ->  | D46: =IF('DF raw data'!D46="","",'DF raw data'!D46) -> 
A47: =IF('DF raw data'!E47="","",'DF raw data'!E47) -> Probe Gain Correction | B47: =IF('DF raw data'!F47="","",'DF raw data'!F47) -> 1 | C47: =IF('DF raw data'!C47="","",'DF raw data'!C47) ->  | D47: =IF('DF raw data'!D47="","",'DF raw data'!D47) -> 
A48: =IF('DF raw data'!E48="","",'DF raw data'!E48) -> Probe Offset Correction | B48: =IF('DF raw data'!F48="","",'DF raw data'!F48) -> 0.0073366 | C48: =IF('DF raw data'!C48="","",'DF raw data'!C48) ->  | D48: =IF('DF raw data'!D48="","",'DF raw data'!D48) -> 
A49: =IF('DF raw data'!E49="","",'DF raw data'!E49) -> DVM Number | B49: =IF('DF raw data'!F49="","",'DF raw data'!F49) -> 8 | C49: =IF('DF raw data'!C49="","",'DF raw data'!C49) ->  | D49: =IF('DF raw data'!D49="","",'DF raw data'!D49) -> 
A50: =IF('DF raw data'!E50="","",'DF raw data'!E50) -> DVM Type | B50: =IF('DF raw data'!F50="","",'DF raw data'!F50) -> K2700 | C50: =IF('DF raw data'!C50="","",'DF raw data'!C50) ->  | D50: =IF('DF raw data'!D50="","",'DF raw data'!D50) -> 
A51: =IF('DF raw data'!E51="","",'DF raw data'!E51) -> DVM Danfysik Reg. Number | B51: =IF('DF raw data'!F51="","",'DF raw data'!F51) -> 1756-D | C51: =IF('DF raw data'!C51="","",'DF raw data'!C51) ->  | D51: =IF('DF raw data'!D51="","",'DF raw data'!D51) -> 
A52: =IF('DF raw data'!E52="","",'DF raw data'!E52) -> NTC voltage | B52: =IF('DF raw data'!F52="","",'DF raw data'!F52) -> 0.38599 | C52: =IF('DF raw data'!C52="","",'DF raw data'!C52) ->  | D52: =IF('DF raw data'!D52="","",'DF raw data'!D52) -> 
A53: =IF('DF raw data'!E53="","",'DF raw data'!E53) -> PS-Gap: | B53: =IF('DF raw data'!F53="","",'DF raw data'!F53) -> 15 | C53: =IF('DF raw data'!C53="","",'DF raw data'!C53) ->  | D53: =IF('DF raw data'!D53="","",'DF raw data'!D53) -> 
A54: =IF('DF raw data'!E54="","",'DF raw data'!E54) -> PS-Temperature: | B54: =IF('DF raw data'!F54="","",'DF raw data'!F54) -> 26.7 | C54: =IF('DF raw data'!C54="","",'DF raw data'!C54) ->  | D54: =IF('DF raw data'!D54="","",'DF raw data'!D54) -> 
A55: =IF('DF raw data'!E55="","",'DF raw data'!E55) -> PS-Encoder: | B55: =IF('DF raw data'!F55="","",'DF raw data'!F55) -> 24.9721 | C55: =IF('DF raw data'!C55="","",'DF raw data'!C55) ->  | D55: =IF('DF raw data'!D55="","",'DF raw data'!D55) -> 
A56: =IF('DF raw data'!E56="","",'DF raw data'!E56) ->  | B56: =IF('DF raw data'!F56="","",'DF raw data'!F56) -> 
A57: =IF('DF raw data'!E57="","",'DF raw data'!E57) -> Monitor-Index | B57: =IF('DF raw data'!F57="","",'DF raw data'!F57) -> [1,1,4]
A58: =IF('DF raw data'!E58="","",'DF raw data'!E58) ->  | B58: =IF('DF raw data'!F58="","",'DF raw data'!F58) -> 
A59: =IF('DF raw data'!E59="","",'DF raw data'!E59) -> Time [s] | B59: =IF('DF raw data'!F59="","",'DF raw data'!F59) -> Y [mm]
A60: =IF('DF raw data'!E60="","",'DF raw data'!E60) ->  | B60: =IF('DF raw data'!F60="","",'DF raw data'!F60) -> 
A61: =IF('DF raw data'!E61="","",'DF raw data'!E61) -> 213.2 | B61: =IF('DF raw data'!F61="","",'DF raw data'!F61) -> 31.76
A62: =IF('DF raw data'!E62="","",'DF raw data'!E62) ->  | B62: =IF('DF raw data'!F62="","",'DF raw data'!F62) -> 
A63: =IF('DF raw data'!E63="","",'DF raw data'!E63) -> Measurement-Index | B63: =IF('DF raw data'!F63="","",'DF raw data'!F63) -> [1,1,1201,2]
A64: =IF('DF raw data'!E64="","",'DF raw data'!E64) ->  | B64: =IF('DF raw data'!F64="","",'DF raw data'!F64) -> 
A65: =IF('DF raw data'!E65="","",'DF raw data'!E65) -> Z [mm] | B65: =IF('DF raw data'!F65="","",'DF raw data'!F65) -> By [T] | C65: =IF('DF raw data'!G65="","",'DF raw data'!G65) -> Bx [T] | D65: =IF('DF raw data'!H65="","",'DF raw data'!H65) -> Bz [T] | F65: By_corr | G65: Bx_corr | H65: Bz_corr | J65: Iy | K65: Jy | L65: Ix | M65: Jx | N65: PI
B66: =IF('DF raw data'!F66="","",'DF raw data'!F66) ->  | C66: =IF('DF raw data'!G66="","",'DF raw data'!G66) ->  | D66: =IF('DF raw data'!H66="","",'DF raw data'!H66) -> 
A67: =IF('DF raw data'!E67="","",'DF raw data'!E67) -> -300 | B67: =IF('DF raw data'!F67="","",'DF raw data'!F67) -> -7.76459e-06 | C67: =IF('DF raw data'!G67="","",'DF raw data'!G67) -> 0.00015157 | D67: =IF('DF raw data'!H67="","",'DF raw data'!H67) -> -3.01945e-05 | F67: =(1-$G$1*($B$54-$G$2))*(B67-F$5) -> 1.305280333e-05 | G67: =(1-$G$1*($B$54-$G$2))*(C67-G$5) -> 4.572247002e-05 | H67: =(1-$G$1*($B$54-$G$2))*(D67-H$5) -> -6.384749213e-07 | J67: =F67*$G$3+J66 -> 6.526401663e-06 | K67: =J67*$G$3+K66 -> 3.263200832e-06 | L67: =G67*$G$3+L66 -> 2.286123501e-05 | M67: =L67*$G$3+M66 -> 1.143061751e-05 | N67: =(J67^2+L67^2)*$G$3+N66 -> 2.826149924e-10
A68: =IF('DF raw data'!E68="","",'DF raw data'!E68) -> -299.5 | B68: =IF('DF raw data'!F68="","",'DF raw data'!F68) -> -1.39847e-05 | C68: =IF('DF raw data'!G68="","",'DF raw data'!G68) -> 0.000150992 | D68: =IF('DF raw data'!H68="","",'DF raw data'!H68) -> -2.98365e-05 | F68: 6.79101859e-06 | G68: 4.514059742e-05 | H68: -2.780763213e-07 | J68: =F68*$G$3+J67 -> 9.921910958e-06 | K68: =J68*$G$3+K67 -> 8.224156311e-06 | L68: =G68*$G$3+L67 -> 4.543153372e-05 | M68: =L68*$G$3+M67 -> 3.414638437e-05 | N68: =(J68^2+L68^2)*$G$3+N67 -> 1.363849279e-09
A69: =IF('DF raw data'!E69="","",'DF raw data'!E69) -> -299 | B69: =IF('DF raw data'!F69="","",'DF raw data'!F69) -> -1.27025e-05 | C69: =IF('DF raw data'!G69="","",'DF raw data'!G69) -> 0.000152214 | D69: =IF('DF raw data'!H69="","",'DF raw data'!H69) -> -2.93599e-05 | F69: 8.08180933e-06 | G69: 4.637078482e-05 | H69: 2.017168987e-07 | J69: 1.396281562e-05 | K69: 1.520556412e-05 | L69: 6.861692613e-05 | M69: 6.845484743e-05 | N69: 3.815470665e-09
A70: =IF('DF raw data'!E70="","",'DF raw data'!E70) -> -298.5 | B70: =IF('DF raw data'!F70="","",'DF raw data'!F70) -> -1.25754e-05 | C70: =IF('DF raw data'!G70="","",'DF raw data'!G70) -> 0.000154824 | D70: =IF('DF raw data'!H70="","",'DF raw data'!H70) -> -2.94732e-05 | F70: 8.2097609e-06 | G70: 4.899827182e-05 | H70: 8.765778866e-08 | J70: 1.806769607e-05 | K70: 2.423941216e-05 | L70: 9.311606204e-05 | M70: 0.0001150128785 | N70: 8.313991991e-09
A71: =IF('DF raw data'!E71="","",'DF raw data'!E71) -> -298 | B71: =IF('DF raw data'!F71="","",'DF raw data'!F71) -> -1.16762e-05 | C71: =IF('DF raw data'!G71="","",'DF raw data'!G71) -> 0.00014574 | D71: =IF('DF raw data'!H71="","",'DF raw data'!H71) -> -2.97747e-05 | F71: 9.11498554e-06 | G71: 3.985340902e-05 | H71: -2.158622613e-07 | J71: 2.262518884e-05 | K71: 3.555200658e-05 | L71: 0.0001130427666 | M71: 0.0001715342617 | N71: 1.495927511e-08
A72: =IF('DF raw data'!E72="","",'DF raw data'!E72) -> -297.5 | B72: =IF('DF raw data'!F72="","",'DF raw data'!F72) -> -2.28367e-05 | C72: =IF('DF raw data'!G72="","",'DF raw data'!G72) -> 0.000149126 | D72: =IF('DF raw data'!H72="","",'DF raw data'!H72) -> -2.93418e-05 | F72: -2.12028981e-06 | G72: 4.326209522e-05 | H72: 2.199381687e-07 | J72: 2.156504394e-05 | K72: 4.633452855e-05 | L72: 0.0001346738142 | M72: 0.0002388711688 | N72: 2.426031878e-08
A73: =IF('DF raw data'!E73="","",'DF raw data'!E73) -> -297 | B73: =IF('DF raw data'!F73="","",'DF raw data'!F73) -> -1.86027e-05 | C73: =IF('DF raw data'!G73="","",'DF raw data'!G73) -> 0.000157498 | D73: =IF('DF raw data'!H73="","",'DF raw data'!H73) -> -2.86808e-05 | F73: 2.14207799e-06 | G73: 5.169018762e-05 | H73: 8.853668687e-07 | J73: 2.263608293e-05 | K73: 5.765257002e-05 | L73: 0.000160518908 | M73: 0.0003191306228 | N73: 3.739967481e-08
A74: =IF('DF raw data'!E74="","",'DF raw data'!E74) -> -296.5 | B74: =IF('DF raw data'!F74="","",'DF raw data'!F74) -> -9.88253e-06 | C74: =IF('DF raw data'!G74="","",'DF raw data'!G74) -> 0.000160321 | D74: =IF('DF raw data'!H74="","",'DF raw data'!H74) -> -2.84615e-05 | F74: 1.092067313e-05 | G74: 5.453210172e-05 | H74: 1.106136179e-06 | J74: 2.80964195e-05 | K74: 7.170077977e-05 | L74: 0.0001877849588 | M74: 0.0004130231022 | N74: 5.542597459e-08
A75: =IF('DF raw data'!E75="","",'DF raw data'!E75) -> -296 | B75: =IF('DF raw data'!F75="","",'DF raw data'!F75) -> -2.00776e-05 | C75: =IF('DF raw data'!G75="","",'DF raw data'!G75) -> 0.000156746 | D75: =IF('DF raw data'!H75="","",'DF raw data'!H75) -> -2.83343e-05 | F75: 6.5729616e-07 | G75: 5.093314922e-05 | H75: 1.234188419e-06 | J75: 2.842506758e-05 | K75: 8.591331356e-05 | L75: 0.0002132515334 | M75: 0.0005196488689 | N75: 7.856807508e-08
A76: =IF('DF raw data'!E76="","",'DF raw data'!E76) -> -295.5 | B76: =IF('DF raw data'!F76="","",'DF raw data'!F76) -> -7.95822e-06 | C76: =IF('DF raw data'!G76="","",'DF raw data'!G76) -> 0.000153689 | D76: =IF('DF raw data'!H76="","",'DF raw data'!H76) -> -2.86683e-05 | F76: 1.285787601e-05 | G76: 4.785566732e-05 | H76: 8.979506187e-07 | J76: 3.485400558e-05 | K76: 0.0001033403163 | L76: 0.0002371793671 | M76: 0.0006382385525 | N76: 1.07302502e-07
A77: =IF('DF raw data'!E77="","",'DF raw data'!E77) -> -295 | B77: =IF('DF raw data'!F77="","",'DF raw data'!F77) -> -3.53225e-06 | C77: =IF('DF raw data'!G77="","",'DF raw data'!G77) -> 0.000155125 | D77: =IF('DF raw data'!H77="","",'DF raw data'!H77) -> -2.9375e-05 | F77: 1.73135e-05 | G77: 4.930128852e-05 | H77: 1.865157287e-07 | J77: 4.351075558e-05 | K77: 0.0001250956941 | L77: 0.0002618300114 | M77: 0.0007691535582 | N77: 1.425265724e-07
A78: =IF('DF raw data'!E78="","",'DF raw data'!E78) -> -294.5 | B78: =IF('DF raw data'!F78="","",'DF raw data'!F78) -> -2.29651e-05 | C78: =IF('DF raw data'!G78="","",'DF raw data'!G78) -> 0.000151686 | D78: =IF('DF raw data'!H78="","",'DF raw data'!H78) -> -2.92563e-05 | F78: -2.24955009e-06 | G78: 4.583924722e-05 | H78: 3.060110187e-07 | J78: 4.238598054e-05 | K78: 0.0001462886844 | L78: 0.000284749635 | M78: 0.0009115283756 | N78: 1.839660354e-07
A79: =IF('DF raw data'!E79="","",'DF raw data'!E79) -> -294 | B79: =IF('DF raw data'!F79="","",'DF raw data'!F79) -> -8.66286e-06 | C79: =IF('DF raw data'!G79="","",'DF raw data'!G79) -> 0.000152628 | D79: =IF('DF raw data'!H79="","",'DF raw data'!H79) -> -2.8784e-05 | F79: 1.214851492e-05 | G79: 4.678755862e-05 | H79: 7.814754287e-07 | J79: 4.8460238e-05 | K79: 0.0001705188034 | L79: 0.0003081434143 | M79: 0.001065600083 | N79: 2.326164146e-07
A80: =IF('DF raw data'!E80="","",'DF raw data'!E80) -> -293.5 | B80: =IF('DF raw data'!F80="","",'DF raw data'!F80) -> -9.04844e-06 | C80: =IF('DF raw data'!G80="","",'DF raw data'!G80) -> 0.00014994 | D80: =IF('DF raw data'!H80="","",'DF raw data'!H80) -> -2.89041e-05 | F80: 1.176035153e-05 | G80: 4.408154902e-05 | H80: 6.605707587e-07 | J80: 5.434041376e-05 | K80: 0.0001976890103 | L80: 0.0003301841888 | M80: 0.001230692177 | N80: 2.886036541e-07
A81: =IF('DF raw data'!E81="","",'DF raw data'!E81) -> -293 | B81: =IF('DF raw data'!F81="","",'DF raw data'!F81) -> -1.28308e-05 | C81: =IF('DF raw data'!G81="","",'DF raw data'!G81) -> 0.000152184 | D81: =IF('DF raw data'!H81="","",'DF raw data'!H81) -> -2.91485e-05 | F81: 7.95264972e-06 | G81: 4.634058382e-05 | H81: 4.145332787e-07 | J81: 5.831673862e-05 | K81: 0.0002268473796 | L81: 0.0003533544807 | M81: 0.001407369418 | N81: 3.527337696e-07
A82: =IF('DF raw data'!E82="","",'DF raw data'!E82) -> -292.5 | B82: =IF('DF raw data'!F82="","",'DF raw data'!F82) -> -1.17418e-05 | C82: =IF('DF raw data'!G82="","",'DF raw data'!G82) -> 0.000159646 | D82: =IF('DF raw data'!H82="","",'DF raw data'!H82) -> -2.91171e-05 | F82: 9.04894602e-06 | G82: 5.385257922e-05 | H82: 4.461436587e-07 | J82: 6.284121163e-05 | K82: 0.0002582679854 | L82: 0.0003802807703 | M82: 0.001597509803 | N82: 4.270150107e-07
A83: =IF('DF raw data'!E83="","",'DF raw data'!E83) -> -292 | B83: =IF('DF raw data'!F83="","",'DF raw data'!F83) -> -1.10352e-05 | C83: =IF('DF raw data'!G83="","",'DF raw data'!G83) -> 0.000150546 | D83: =IF('DF raw data'!H83="","",'DF raw data'!H83) -> -2.93057e-05 | F83: 9.76028024e-06 | G83: 4.469160922e-05 | H83: 2.562800387e-07 | J83: 6.772135175e-05 | K83: 0.0002921286613 | L83: 0.0004026265749 | M83: 0.00179882309 | N83: 5.103621809e-07
A84: =IF('DF raw data'!E84="","",'DF raw data'!E84) -> -291.5 | B84: =IF('DF raw data'!F84="","",'DF raw data'!F84) -> -8.9164e-06 | C84: =IF('DF raw data'!G84="","",'DF raw data'!G84) -> 0.000148565 | D84: =IF('DF raw data'!H84="","",'DF raw data'!H84) -> -3.47641e-05 | F84: 1.18932762e-05 | G84: 4.269733652e-05 | H84: -5.238691241e-06 | J84: 7.366798985e-05 | K84: 0.0003289626562 | L84: 0.0004239752432 | M84: 0.002010810712 | N84: 6.029531706e-07
A85: =IF('DF raw data'!E85="","",'DF raw data'!E85) -> -291 | B85: =IF('DF raw data'!F85="","",'DF raw data'!F85) -> -2.36075e-05 | C85: =IF('DF raw data'!G85="","",'DF raw data'!G85) -> 0.000143382 | D85: =IF('DF raw data'!H85="","",'DF raw data'!H85) -> -2.37439e-05 | F85: -2.89625417e-06 | G85: 3.747961042e-05 | H85: 5.855344099e-06 | J85: 7.221986277e-05 | K85: 0.0003650725876 | L85: 0.0004427150484 | M85: 0.002232168236 | N85: 7.03559332e-07
A86: =IF('DF raw data'!E86="","",'DF raw data'!E86) -> -290.5 | B86: =IF('DF raw data'!F86="","",'DF raw data'!F86) -> -4.04363e-06 | C86: =IF('DF raw data'!G86="","",'DF raw data'!G86) -> 0.000143579 | D86: =IF('DF raw data'!H86="","",'DF raw data'!H86) -> -3.29182e-05 | F86: 1.679869376e-05 | G86: 3.767793032e-05 | H86: -3.380423711e-06 | J86: 8.061920965e-05 | K86: 0.0004053821924 | L86: 0.0004615540136 | M86: 0.002462945243 | N86: 8.133251142e-07
A87: =IF('DF raw data'!E87="","",'DF raw data'!E87) -> -290 | B87: =IF('DF raw data'!F87="","",'DF raw data'!F87) -> -1.80942e-05 | C87: =IF('DF raw data'!G87="","",'DF raw data'!G87) -> 0.000141873 | D87: =IF('DF raw data'!H87="","",'DF raw data'!H87) -> -2.1087e-05 | F87: 2.65398494e-06 | G87: 3.596050012e-05 | H87: 8.530045329e-06 | J87: 8.194620212e-05 | K87: 0.0004463552935 | L87: 0.0004795342636 | M87: 0.002702712375 | N87: 9.316592592e-07
A88: =IF('DF raw data'!E88="","",'DF raw data'!E88) -> -289.5 | B88: =IF('DF raw data'!F88="","",'DF raw data'!F88) -> -1.0457e-05 | C88: =IF('DF raw data'!G88="","",'DF raw data'!G88) -> 0.000146293 | D88: =IF('DF raw data'!H88="","",'DF raw data'!H88) -> -3.25373e-05 | F88: 1.034235418e-05 | G88: 4.041011412e-05 | H88: -2.996971681e-06 | J88: 8.711737921e-05 | K88: 0.0004899139831 | L88: 0.0004997393207 | M88: 0.002952582035 | N88: 1.060323672e-06
A89: =IF('DF raw data'!E89="","",'DF raw data'!E89) -> -289 | B89: =IF('DF raw data'!F89="","",'DF raw data'!F89) -> -1.5973e-05 | C89: =IF('DF raw data'!G89="","",'DF raw data'!G89) -> 0.00014497 | D89: =IF('DF raw data'!H89="","",'DF raw data'!H89) -> -2.91201e-05 | F89: 4.78939698e-06 | G89: 3.907825002e-05 | H89: 4.431235587e-07 | J89: 8.95120777e-05 | K89: 0.0005346700219 | L89: 0.0005192784457 | M89: 0.003212221258 | N89: 1.19915493e-06
A90: =IF('DF raw data'!E90="","",'DF raw data'!E90) -> -288.5 | B90: =IF('DF raw data'!F90="","",'DF raw data'!F90) -> -6.08765e-06 | C90: =IF('DF raw data'!G90="","",'DF raw data'!G90) -> 0.000149619 | D90: =IF('DF raw data'!H90="","",'DF raw data'!H90) -> -4.55601e-05 | F90: 1.474097882e-05 | G90: 4.375839832e-05 | H90: -1.610702444e-05 | J90: 9.688256711e-05 | K90: 0.0005831113055 | L90: 0.0005411576448 | M90: 0.00348280008 | N90: 1.350273845e-06
A91: =IF('DF raw data'!E91="","",'DF raw data'!E91) -> -288 | B91: =IF('DF raw data'!F91="","",'DF raw data'!F91) -> -8.53235e-06 | C91: =IF('DF raw data'!G91="","",'DF raw data'!G91) -> 0.000146189 | D91: =IF('DF raw data'!H91="","",'DF raw data'!H91) -> -3.21926e-05 | F91: 1.227989933e-05 | G91: 4.030541732e-05 | H91: -2.649962191e-06 | J91: 0.0001030225168 | K91: 0.0006346225639 | L91: 0.0005613103535 | M91: 0.003763455257 | N91: 1.513115321e-06
A92: =IF('DF raw data'!E92="","",'DF raw data'!E92) -> -287.5 | B92: =IF('DF raw data'!F92="","",'DF raw data'!F92) -> -1.35957e-05 | C92: =IF('DF raw data'!G92="","",'DF raw data'!G92) -> 0.000144784 | D92: =IF('DF raw data'!H92="","",'DF raw data'!H92) -> -3.85933e-05 | F92: 7.18262489e-06 | G92: 3.889100382e-05 | H92: -9.093546881e-06 | J92: 0.0001066138292 | K92: 0.0006879294785 | L92: 0.0005807558554 | M92: 0.004053833185 | N92: 1.687437257e-06
A93: =IF('DF raw data'!E93="","",'DF raw data'!E93) -> -287 | B93: =IF('DF raw data'!F93="","",'DF raw data'!F93) -> -1.11635e-05 | C93: =IF('DF raw data'!G93="","",'DF raw data'!G93) -> 0.00013421 | D93: =IF('DF raw data'!H93="","",'DF raw data'!H93) -> -2.93022e-05 | F93: 9.63112063e-06 | G93: 2.824615802e-05 | H93: 2.598034887e-07 | J93: 0.0001114293895 | K93: 0.0007436441733 | L93: 0.0005948789344 | M93: 0.004351272652 | N93: 1.870585984e-06
A94: =IF('DF raw data'!E94="","",'DF raw data'!E94) -> -286.5 | B94: =IF('DF raw data'!F94="","",'DF raw data'!F94) -> -2.50465e-06 | C94: =IF('DF raw data'!G94="","",'DF raw data'!G94) -> 0.000138359 | D94: =IF('DF raw data'!H94="","",'DF raw data'!H94) -> -3.22638e-05 | F94: 1.834798492e-05 | G94: 3.242295632e-05 | H94: -2.721639231e-06 | J94: 0.000120603382 | K94: 0.0008039458643 | L94: 0.0006110904126 | M94: 0.004656817858 | N94: 2.064574318e-06
A95: =IF('DF raw data'!E95="","",'DF raw data'!E95) -> -286 | B95: =IF('DF raw data'!F95="","",'DF raw data'!F95) -> -1.10344e-05 | C95: =IF('DF raw data'!G95="","",'DF raw data'!G95) -> 0.00014131 | D95: =IF('DF raw data'!H95="","",'DF raw data'!H95) -> -3.0561e-05 | F95: 9.7610856e-06 | G95: 3.539372802e-05 | H95: -1.007430471e-06 | J95: 0.0001254839248 | K95: 0.0008666878267 | L95: 0.0006287872766 | M95: 0.004971211496 | N95: 2.270134146e-06
A96: =IF('DF raw data'!E96="","",'DF raw data'!E96) -> -285.5 | B96: =IF('DF raw data'!F96="","",'DF raw data'!F96) -> -1.68004e-05 | C96: =IF('DF raw data'!G96="","",'DF raw data'!G96) -> 0.000148395 | D96: =IF('DF raw data'!H96="","",'DF raw data'!H96) -> -4.1379e-05 | F96: 3.9564534e-06 | G96: 4.252619752e-05 | H96: -1.189791107e-05 | J96: 0.0001274621515 | K96: 0.0009304189024 | L96: 0.0006500503754 | M96: 0.005296236684 | N96: 2.489540191e-06
A97: =IF('DF raw data'!E97="","",'DF raw data'!E97) -> -285 | B97: =IF('DF raw data'!F97="","",'DF raw data'!F97) -> -2.14969e-05 | C97: =IF('DF raw data'!G97="","",'DF raw data'!G97) -> 0.000152569 | D97: =IF('DF raw data'!H97="","",'DF raw data'!H97) -> -1.48861e-05 | F97: -7.7151315e-07 | G97: 4.672816332e-05 | H97: 1.477249136e-05 | J97: 0.0001270763949 | K97: 0.0009939570999 | L97: 0.000673414457 | M97: 0.005632943913 | N97: 2.724357912e-06
A98: =IF('DF raw data'!E98="","",'DF raw data'!E98) -> -284.5 | B98: =IF('DF raw data'!F98="","",'DF raw data'!F98) -> -1.23847e-05 | C98: =IF('DF raw data'!G98="","",'DF raw data'!G98) -> 0.000155899 | D98: =IF('DF raw data'!H98="","",'DF raw data'!H98) -> -2.67964e-05 | F98: 8.40173859e-06 | G98: 5.008047432e-05 | H98: 2.782392349e-06 | J98: 0.0001312772642 | K98: 0.001059595732 | L98: 0.0006984546942 | M98: 0.00598217126 | N98: 2.976894252e-06
A99: =IF('DF raw data'!E99="","",'DF raw data'!E99) -> -284 | B99: =IF('DF raw data'!F99="","",'DF raw data'!F99) -> -2.2516e-05 | C99: =IF('DF raw data'!G99="","",'DF raw data'!G99) -> 0.000157227 | D99: =IF('DF raw data'!H99="","",'DF raw data'!H99) -> -2.55567e-05 | F99: -1.79744112e-06 | G99: 5.141737192e-05 | H99: 4.030398339e-06 | J99: 0.0001303785437 | K99: 0.001124785004 | L99: 0.0007241633801 | M99: 0.00634425295 | N99: 3.247599834e-06
A100: =IF('DF raw data'!E100="","",'DF raw data'!E100) -> -283.5 | B100: =IF('DF raw data'!F100="","",'DF raw data'!F100) -> -2.40552e-05 | C100: =IF('DF raw data'!G100="","",'DF raw data'!G100) -> 0.000155552 | D100: =IF('DF raw data'!H100="","",'DF raw data'!H100) -> -2.97373e-05 | F100: -3.34695376e-06 | G100: 4.973114942e-05 | H100: -1.782116813e-07 | J100: 0.0001287050668 | K100: 0.001189137537 | L100: 0.0007490289548 | M100: 0.006718767427 | N100: 3.536404519e-06
A101: =IF('DF raw data'!E101="","",'DF raw data'!E101) -> -283 | B101: =IF('DF raw data'!F101="","",'DF raw data'!F101) -> -2.4754e-05 | C101: =IF('DF raw data'!G101="","",'DF raw data'!G101) -> 0.000144522 | D101: =IF('DF raw data'!H101="","",'DF raw data'!H101) -> -3.55681e-05 | F101: -4.05043572e-06 | G101: 3.862724842e-05 | H101: -6.048078041e-06 | J101: 0.0001266798489 | K101: 0.001252477462 | L101: 0.0007683425791 | M101: 0.007102938717 | N101: 3.839603571e-06
A102: =IF('DF raw data'!E102="","",'DF raw data'!E102) -> -282.5 | B102: =IF('DF raw data'!F102="","",'DF raw data'!F102) -> -1.85942e-05 | C102: =IF('DF raw data'!G102="","",'DF raw data'!G102) -> 0.000150813 | D102: =IF('DF raw data'!H102="","",'DF raw data'!H102) -> -4.46493e-05 | F102: 2.15063494e-06 | G102: 4.496039812e-05 | H102: -1.519012208e-05 | J102: 0.0001277551664 | K102: 0.001316355045 | L102: 0.0007908227781 | M102: 0.007498350106 | N102: 4.160464595e-06
A103: =IF('DF raw data'!E103="","",'DF raw data'!E103) -> -282 | B103: =IF('DF raw data'!F103="","",'DF raw data'!F103) -> -2.00761e-05 | C103: =IF('DF raw data'!G103="","",'DF raw data'!G103) -> 0.000148011 | D103: =IF('DF raw data'!H103="","",'DF raw data'!H103) -> -3.05197e-05 | F103: 6.5880621e-07 | G103: 4.213962472e-05 | H103: -9.658537613e-07 | J103: 0.0001280845695 | K103: 0.00138039733 | L103: 0.0008118925905 | M103: 0.007904296401 | N103: 4.498252213e-06
A104: =IF('DF raw data'!E104="","",'DF raw data'!E104) -> -281.5 | B104: =IF('DF raw data'!F104="","",'DF raw data'!F104) -> -1.60941e-05 | C104: =IF('DF raw data'!G104="","",'DF raw data'!G104) -> 0.000145101 | D104: =IF('DF raw data'!H104="","",'DF raw data'!H104) -> -4.28852e-05 | F104: 4.66748561e-06 | G104: 3.921012772e-05 | H104: -1.341420261e-05 | J104: 0.0001304183123 | K104: 0.001445606486 | L104: 0.0008314976543 | M104: 0.008320045228 | N104: 4.852450855e-06
A105: =IF('DF raw data'!E105="","",'DF raw data'!E105) -> -281 | B105: =IF('DF raw data'!F105="","",'DF raw data'!F105) -> -1.95664e-05 | C105: =IF('DF raw data'!G105="","",'DF raw data'!G105) -> 0.00014468 | D105: =IF('DF raw data'!H105="","",'DF raw data'!H105) -> -2.54089e-05 | F105: 1.1719212e-06 | G105: 3.878630702e-05 | H105: 4.179188599e-06 | J105: 0.0001310042729 | K105: 0.001511108622 | L105: 0.0008508908078 | M105: 0.008745490632 | N105: 5.223039499e-06
A106: =IF('DF raw data'!E106="","",'DF raw data'!E106) -> -280.5 | B106: =IF('DF raw data'!F106="","",'DF raw data'!F106) -> -1.66821e-05 | C106: =IF('DF raw data'!G106="","",'DF raw data'!G106) -> 0.000146603 | D106: =IF('DF raw data'!H106="","",'DF raw data'!H106) -> -2.59352e-05 | F106: 4.07554601e-06 | G106: 4.072219112e-05 | H106: 3.649362389e-06 | J106: 0.0001330420459 | K106: 0.001577629645 | L106: 0.0008712519034 | M106: 0.009181116584 | N106: 5.611429531e-06
A107: =IF('DF raw data'!E107="","",'DF raw data'!E107) -> -280 | B107: =IF('DF raw data'!F107="","",'DF raw data'!F107) -> -1.59772e-05 | C107: =IF('DF raw data'!G107="","",'DF raw data'!G107) -> 0.000157581 | D107: =IF('DF raw data'!H107="","",'DF raw data'!H107) -> -2.29251e-05 | F107: 4.78516884e-06 | G107: 5.177374372e-05 | H107: 6.679630059e-06 | J107: 0.0001354346303 | K107: 0.00164534696 | L107: 0.0008971387753 | M107: 0.009629685971 | N107: 6.023029792e-06
A108: =IF('DF raw data'!E108="","",'DF raw data'!E108) -> -279.5 | B108: =IF('DF raw data'!F108="","",'DF raw data'!F108) -> -1.81593e-05 | C108: =IF('DF raw data'!G108="","",'DF raw data'!G108) -> 0.000158863 | D108: =IF('DF raw data'!H108="","",'DF raw data'!H108) -> -2.27718e-05 | F108: 2.58844877e-06 | G108: 5.306433312e-05 | H108: 6.833957169e-06 | J108: 0.0001367288547 | K108: 0.001713711388 | L108: 0.0009236709418 | M108: 0.01009152144 | N108: 6.458961186e-06
A109: =IF('DF raw data'!E109="","",'DF raw data'!E109) -> -279 | B109: =IF('DF raw data'!F109="","",'DF raw data'!F109) -> -2.36715e-05 | C109: =IF('DF raw data'!G109="","",'DF raw data'!G109) -> 0.000154202 | D109: =IF('DF raw data'!H109="","",'DF raw data'!H109) -> -2.43357e-05 | F109: -2.96068297e-06 | G109: 4.837210442e-05 | H109: 5.259579039e-06 | J109: 0.0001352485132 | K109: 0.001781335644 | L109: 0.000947856994 | M109: 0.01056544994 | N109: 6.917323707e-06
A110: =IF('DF raw data'!E110="","",'DF raw data'!E110) -> -278.5 | B110: =IF('DF raw data'!F110="","",'DF raw data'!F110) -> -2.98306e-05 | C110: =IF('DF raw data'!G110="","",'DF raw data'!G110) -> 0.000147226 | D110: =IF('DF raw data'!H110="","",'DF raw data'!H110) -> -2.37515e-05 | F110: -9.16104894e-06 | G110: 4.134936522e-05 | H110: 5.847693179e-06 | J110: 0.0001306679888 | K110: 0.001846669639 | L110: 0.0009685316766 | M110: 0.01104971578 | N110: 7.394887573e-06
A111: =IF('DF raw data'!E111="","",'DF raw data'!E111) -> -278 | B111: =IF('DF raw data'!F111="","",'DF raw data'!F111) -> -1.03979e-05 | C111: =IF('DF raw data'!G111="","",'DF raw data'!G111) -> 0.000147308 | D111: =IF('DF raw data'!H111="","",'DF raw data'!H111) -> -2.34099e-05 | F111: 1.040185015e-05 | G111: 4.143191462e-05 | H111: 6.191581899e-06 | J111: 0.0001358689138 | K111: 0.001914604096 | L111: 0.000989247634 | M111: 0.01154433959 | N111: 7.893423194e-06
A112: =IF('DF raw data'!E112="","",'DF raw data'!E112) -> -277.5 | B112: =IF('DF raw data'!F112="","",'DF raw data'!F112) -> -1.8923e-05 | C112: =IF('DF raw data'!G112="","",'DF raw data'!G112) -> 0.000139245 | D112: =IF('DF raw data'!H112="","",'DF raw data'!H112) -> -3.1657e-05 | F112: 1.81963198e-06 | G112: 3.331489252e-05 | H112: -2.110773671e-06 | J112: 0.0001367787298 | K112: 0.00198299346 | L112: 0.00100590508 | M112: 0.01204729213 | N112: 8.40869992e-06
A113: =IF('DF raw data'!E113="","",'DF raw data'!E113) -> -277 | B113: =IF('DF raw data'!F113="","",'DF raw data'!F113) -> -1.82156e-05 | C113: =IF('DF raw data'!G113="","",'DF raw data'!G113) -> 0.000137277 | D113: =IF('DF raw data'!H113="","",'DF raw data'!H113) -> -3.25058e-05 | F113: 2.53177156e-06 | G113: 3.133370692e-05 | H113: -2.965260631e-06 | J113: 0.0001380446156 | K113: 0.002052015768 | L113: 0.001021571934 | M113: 0.0125580781 | N113: 8.940032686e-06
A114: =IF('DF raw data'!E114="","",'DF raw data'!E114) -> -276.5 | B114: =IF('DF raw data'!F114="","",'DF raw data'!F114) -> -9.11307e-06 | C114: =IF('DF raw data'!G114="","",'DF raw data'!G114) -> 0.000142214 | D114: =IF('DF raw data'!H114="","",'DF raw data'!H114) -> -2.81842e-05 | F114: 1.169528851e-05 | G114: 3.630378482e-05 | H114: 1.385294089e-06 | J114: 0.0001438922599 | K114: 0.002123961898 | L114: 0.001039723826 | M114: 0.01307794001 | N114: 9.490897994e-06
A115: =IF('DF raw data'!E115="","",'DF raw data'!E115) -> -276 | B115: =IF('DF raw data'!F115="","",'DF raw data'!F115) -> -2.0977e-05 | C115: =IF('DF raw data'!G115="","",'DF raw data'!G115) -> 0.000148298 | D115: =IF('DF raw data'!H115="","",'DF raw data'!H115) -> -2.62189e-05 | F115: -2.4812982e-07 | G115: 4.242854762e-05 | H115: 3.363761599e-06 | J115: 0.0001437681949 | K115: 0.002195845996 | L115: 0.0010609381 | M115: 0.01360840906 | N115: 1.006402747e-05
A116: =IF('DF raw data'!E116="","",'DF raw data'!E116) -> -275.5 | B116: =IF('DF raw data'!F116="","",'DF raw data'!F116) -> -1.51326e-05 | C116: =IF('DF raw data'!G116="","",'DF raw data'!G116) -> 0.000141065 | D116: =IF('DF raw data'!H116="","",'DF raw data'!H116) -> -4.15731e-05 | F116: 5.63542766e-06 | G116: 3.514708652e-05 | H116: -1.209331154e-05 | J116: 0.0001465859088 | K116: 0.00226913895 | L116: 0.001078511643 | M116: 0.01414766489 | N116: 1.065636486e-05
A117: =IF('DF raw data'!E117="","",'DF raw data'!E117) -> -275 | B117: =IF('DF raw data'!F117="","",'DF raw data'!F117) -> -1.04546e-05 | C117: =IF('DF raw data'!G117="","",'DF raw data'!G117) -> 0.000138085 | D117: =IF('DF raw data'!H117="","",'DF raw data'!H117) -> -3.47819e-05 | F117: 1.034477026e-05 | G117: 3.214712052e-05 | H117: -5.256610501e-06 | J117: 0.0001517582939 | K117: 0.002345018097 | L117: 0.001094585203 | M117: 0.01469495749 | N117: 1.126693854e-05
A118: =IF('DF raw data'!E118="","",'DF raw data'!E118) -> -274.5 | B118: =IF('DF raw data'!F118="","",'DF raw data'!F118) -> -9.18145e-06 | C118: =IF('DF raw data'!G118="","",'DF raw data'!G118) -> 0.00014153 | D118: =IF('DF raw data'!H118="","",'DF raw data'!H118) -> -2.13962e-05 | F118: 1.162645036e-05 | G118: 3.561520202e-05 | H118: 8.218773689e-06 | J118: 0.0001575715191 | K118: 0.002423803857 | L118: 0.001112392804 | M118: 0.01525115389 | N118: 1.18980618e-05
A119: =IF('DF raw data'!E119="","",'DF raw data'!E119) -> -274 | B119: =IF('DF raw data'!F119="","",'DF raw data'!F119) -> -1.39236e-05 | C119: =IF('DF raw data'!G119="","",'DF raw data'!G119) -> 0.000139468 | D119: =IF('DF raw data'!H119="","",'DF raw data'!H119) -> -2.56173e-05 | F119: 6.85252796e-06 | G119: 3.353938662e-05 | H119: 3.969392319e-06 | J119: 0.0001609977831 | K119: 0.002504302748 | L119: 0.001129162498 | M119: 0.01581573514 | N119: 1.254852592e-05
A120: =IF('DF raw data'!E120="","",'DF raw data'!E120) -> -273.5 | B120: =IF('DF raw data'!F120="","",'DF raw data'!F120) -> -1.65517e-05 | C120: =IF('DF raw data'!G120="","",'DF raw data'!G120) -> 0.000138031 | D120: =IF('DF raw data'!H120="","",'DF raw data'!H120) -> -2.88326e-05 | F120: 4.20681969e-06 | G120: 3.209275872e-05 | H120: 7.325498087e-07 | J120: 0.0001631011929 | K120: 0.002585853345 | L120: 0.001145208877 | M120: 0.01638833958 | N120: 1.321757861e-05
A121: =IF('DF raw data'!E121="","",'DF raw data'!E121) -> -273 | B121: =IF('DF raw data'!F121="","",'DF raw data'!F121) -> -1.23754e-05 | C121: =IF('DF raw data'!G121="","",'DF raw data'!G121) -> 0.000134519 | D121: =IF('DF raw data'!H121="","",'DF raw data'!H121) -> -3.93236e-05 | F121: 8.4111009e-06 | G121: 2.855722832e-05 | H121: -9.828739891e-06 | J121: 0.0001673067434 | K121: 0.002669506716 | L121: 0.001159487491 | M121: 0.01696808332 | N121: 1.390378e-05
A122: =IF('DF raw data'!E122="","",'DF raw data'!E122) -> -272.5 | B122: =IF('DF raw data'!F122="","",'DF raw data'!F122) -> -1.57113e-05 | C122: =IF('DF raw data'!G122="","",'DF raw data'!G122) -> 0.000136617 | D122: =IF('DF raw data'!H122="","",'DF raw data'!H122) -> -3.94081e-05 | F122: 5.05285037e-06 | G122: 3.066928492e-05 | H122: -9.913806041e-06 | J122: 0.0001698331685 | K122: 0.002754423301 | L122: 0.001174822134 | M122: 0.01755549439 | N122: 1.460830518e-05
A123: =IF('DF raw data'!E123="","",'DF raw data'!E123) -> -272 | B123: =IF('DF raw data'!F123="","",'DF raw data'!F123) -> -1.05813e-05 | C123: =IF('DF raw data'!G123="","",'DF raw data'!G123) -> 0.000135829 | D123: =IF('DF raw data'!H123="","",'DF raw data'!H123) -> -3.71134e-05 | F123: 1.021722137e-05 | G123: 2.987600532e-05 | H123: -7.603731551e-06 | J123: 0.0001749417792 | K123: 0.00284189419 | L123: 0.001189760136 | M123: 0.01815037446 | N123: 1.533137208e-05
A124: =IF('DF raw data'!E124="","",'DF raw data'!E124) -> -271.5 | B124: =IF('DF raw data'!F124="","",'DF raw data'!F124) -> -1.39827e-05 | C124: =IF('DF raw data'!G124="","",'DF raw data'!G124) -> 0.000128232 | D124: =IF('DF raw data'!H124="","",'DF raw data'!H124) -> -3.46711e-05 | F124: 6.79303199e-06 | G124: 2.222810542e-05 | H124: -5.145068141e-06 | J124: 0.0001783382952 | K124: 0.002931063338 | L124: 0.001200874189 | M124: 0.01875081155 | N124: 1.606832376e-05
A125: =IF('DF raw data'!E125="","",'DF raw data'!E125) -> -271 | B125: =IF('DF raw data'!F125="","",'DF raw data'!F125) -> -1.57762e-05 | C125: =IF('DF raw data'!G125="","",'DF raw data'!G125) -> 0.000126715 | D125: =IF('DF raw data'!H125="","",'DF raw data'!H125) -> -3.62092e-05 | F125: 4.98751554e-06 | G125: 2.070094152e-05 | H125: -6.693473411e-06 | J125: 0.000180832053 | K125: 0.003021479364 | L125: 0.00121122466 | M125: 0.01935642388 | N125: 1.681820647e-05
A126: =IF('DF raw data'!E126="","",'DF raw data'!E126) -> -270.5 | B126: =IF('DF raw data'!F126="","",'DF raw data'!F126) -> -7.05491e-06 | C126: =IF('DF raw data'!G126="","",'DF raw data'!G126) -> 0.000130611 | D126: =IF('DF raw data'!H126="","",'DF raw data'!H126) -> -3.70022e-05 | F126: 1.376723818e-05 | G126: 2.462304472e-05 | H126: -7.491786511e-06 | J126: 0.0001877156721 | K126: 0.0031153372 | L126: 0.001223536182 | M126: 0.01996819197 | N126: 1.758434545e-05
A127: =IF('DF raw data'!E127="","",'DF raw data'!E127) -> -270 | B127: =IF('DF raw data'!F127="","",'DF raw data'!F127) -> -1.73873e-05 | C127: =IF('DF raw data'!G127="","",'DF raw data'!G127) -> 0.000145727 | D127: =IF('DF raw data'!H127="","",'DF raw data'!H127) -> -2.41963e-05 | F127: 3.36562117e-06 | G127: 3.984032192e-05 | H127: 5.399913019e-06 | J127: 0.0001893984827 | K127: 0.003210036442 | L127: 0.001243456343 | M127: 0.02058992015 | N127: 1.837537318e-05
A128: =IF('DF raw data'!E128="","",'DF raw data'!E128) -> -269.5 | B128: =IF('DF raw data'!F128="","",'DF raw data'!F128) -> -2.02077e-05 | C128: =IF('DF raw data'!G128="","",'DF raw data'!G128) -> 0.000138694 | D128: =IF('DF raw data'!H128="","",'DF raw data'!H128) -> -2.82067e-05 | F128: 5.2632449e-07 | G128: 3.276020082e-05 | H128: 1.362643339e-06 | J128: 0.0001896616449 | K128: 0.003304867264 | L128: 0.001259836444 | M128: 0.02121983837 | N128: 1.918695288e-05
A129: =IF('DF raw data'!E129="","",'DF raw data'!E129) -> -269 | B129: =IF('DF raw data'!F129="","",'DF raw data'!F129) -> -1.00082e-05 | C129: =IF('DF raw data'!G129="","",'DF raw data'!G129) -> 0.000152322 | D129: =IF('DF raw data'!H129="","",'DF raw data'!H129) -> -3.12279e-05 | F129: 1.079416114e-05 | G129: 4.647950842e-05 | H129: -1.678798701e-06 | J129: 0.0001950587255 | K129: 0.003402396627 | L129: 0.001283076198 | M129: 0.02186137647 | N129: 2.00291191e-05
A130: =IF('DF raw data'!E130="","",'DF raw data'!E130) -> -268.5 | B130: =IF('DF raw data'!F130="","",'DF raw data'!F130) -> -1.03965e-05 | C130: =IF('DF raw data'!G130="","",'DF raw data'!G130) -> 0.000155916 | D130: =IF('DF raw data'!H130="","",'DF raw data'!H130) -> -2.68489e-05 | F130: 1.040325953e-05 | G130: 5.009758822e-05 | H130: 2.729540599e-06 | J130: 0.0002002603553 | K130: 0.003502526804 | L130: 0.001308124992 | M130: 0.02251543896 | N130: 2.09047667e-05
A131: =IF('DF raw data'!E131="","",'DF raw data'!E131) -> -268 | B131: =IF('DF raw data'!F131="","",'DF raw data'!F131) -> -1.31471e-05 | C131: =IF('DF raw data'!G131="","",'DF raw data'!G131) -> 0.000143894 | D131: =IF('DF raw data'!H131="","",'DF raw data'!H131) -> -3.60288e-05 | F131: =(1-$G$1*($B$54-$G$2))*(B131-F$5) -> 7.63423051e-06 | G131: =(1-$G$1*($B$54-$G$2))*(C131-G$5) -> 3.799504082e-05 | H131: =(1-$G$1*($B$54-$G$2))*(D131-H$5) -> -6.511864731e-06 | J131: 0.0002040774705 | K131: 0.00360456554 | L131: 0.001327122512 | M131: 0.02317900022 | N131: 2.180621759e-05
A132: =IF('DF raw data'!E132="","",'DF raw data'!E132) -> -267.5 | B132: =IF('DF raw data'!F132="","",'DF raw data'!F132) -> -1.02007e-05 | C132: =IF('DF raw data'!G132="","",'DF raw data'!G132) -> 0.000135333 | D132: =IF('DF raw data'!H132="","",'DF raw data'!H132) -> -3.19127e-05 | F132: 1.060037139e-05 | G132: 2.937668212e-05 | H132: -2.368186861e-06 | J132: =F132*$G$3+J131 -> 0.0002093776562 | K132: =J132*$G$3+K131 -> 0.003709254368 | L132: =G132*$G$3+L131 -> 0.001341810853 | M132: =L132*$G$3+M131 -> 0.02384990564 | N132: =(J132^2+L132^2)*$G$3+N131 -> 2.272836528e-05
A133: =IF('DF raw data'!E133="","",'DF raw data'!E133) -> -267 | B133: =IF('DF raw data'!F133="","",'DF raw data'!F133) -> -1.1289e-05 | C133: =IF('DF raw data'!G133="","",'DF raw data'!G133) -> 0.000142764 | D133: =IF('DF raw data'!H133="","",'DF raw data'!H133) -> -3.38706e-05 | F133: 9.50477978e-06 | G133: 3.685746982e-05 | H133: -4.339204791e-06 | J133: 0.0002141300461 | K133: 0.003816319391 | L133: 0.001360239588 | M133: 0.02453002544 | N133: 2.367641698e-05
A134: =IF('DF raw data'!E134="","",'DF raw data'!E134) -> -266.5 | B134: =IF('DF raw data'!F134="","",'DF raw data'!F134) -> -8.72827e-06 | C134: =IF('DF raw data'!G134="","",'DF raw data'!G134) -> 0.000152523 | D134: =IF('DF raw data'!H134="","",'DF raw data'!H134) -> -2.77218e-05 | F134: 1.208266667e-05 | G134: 4.668185512e-05 | H134: 1.850792169e-06 | J134: 0.0002201713794 | K134: 0.003926405081 | L134: 0.001383580516 | M134: 0.0252218157 | N134: 2.465780222e-05
A135: =IF('DF raw data'!E135="","",'DF raw data'!E135) -> -266 | B135: =IF('DF raw data'!F135="","",'DF raw data'!F135) -> -1.58371e-05 | C135: =IF('DF raw data'!G135="","",'DF raw data'!G135) -> 0.000144991 | D135: =IF('DF raw data'!H135="","",'DF raw data'!H135) -> -4.16336e-05 | F135: 4.92620751e-06 | G135: 3.909939072e-05 | H135: -1.215421689e-05 | J135: 0.0002226344832 | K135: 0.004037722322 | L135: 0.001403130211 | M135: 0.0259233808 | N135: 2.566697247e-05
A136: =IF('DF raw data'!E136="","",'DF raw data'!E136) -> -265.5 | B136: =IF('DF raw data'!F136="","",'DF raw data'!F136) -> -3.39965e-06 | C136: =IF('DF raw data'!G136="","",'DF raw data'!G136) -> 0.000144695 | D136: =IF('DF raw data'!H136="","",'DF raw data'!H136) -> -3.65031e-05 | F136: 1.744698842e-05 | G136: 3.880140752e-05 | H136: -6.989342541e-06 | J136: 0.0002313579774 | K136: 0.004153401311 | L136: 0.001422530915 | M136: 0.02663464626 | N136: 2.670553283e-05
A137: =IF('DF raw data'!E137="","",'DF raw data'!E137) -> -265 | B137: =IF('DF raw data'!F137="","",'DF raw data'!F137) -> -2.56223e-06 | C137: =IF('DF raw data'!G137="","",'DF raw data'!G137) -> 0.000145845 | D137: =IF('DF raw data'!H137="","",'DF raw data'!H137) -> -4.22389e-05 | F137: 1.829001914e-05 | G137: 3.995911252e-05 | H137: -1.27635724e-05 | J137: 0.000240502987 | K137: 0.004273652804 | L137: 0.001442510471 | M137: 0.0273559015 | N137: 2.777487191e-05
A138: =IF('DF raw data'!E138="","",'DF raw data'!E138) -> -264.5 | B138: =IF('DF raw data'!F138="","",'DF raw data'!F138) -> -8.27596e-06 | C138: =IF('DF raw data'!G138="","",'DF raw data'!G138) -> 0.000148656 | D138: =IF('DF raw data'!H138="","",'DF raw data'!H138) -> -3.31134e-05 | F138: 1.253800715e-05 | G138: 4.278894622e-05 | H138: -3.576931551e-06 | J138: 0.0002467719905 | K138: 0.0043970388 | L138: 0.001463904944 | M138: 0.02808785397 | N138: 2.887682896e-05
A139: =IF('DF raw data'!E139="","",'DF raw data'!E139) -> -264 | B139: =IF('DF raw data'!F139="","",'DF raw data'!F139) -> -1.11554e-05 | C139: =IF('DF raw data'!G139="","",'DF raw data'!G139) -> 0.000141118 | D139: =IF('DF raw data'!H139="","",'DF raw data'!H139) -> -4.22747e-05 | F139: 9.6392749e-06 | G139: 3.520044162e-05 | H139: -1.279961226e-05 | J139: 0.000251591628 | K139: 0.004522834614 | L139: 0.001481505165 | M139: 0.02882860655 | N139: 3.000590691e-05
A140: =IF('DF raw data'!E140="","",'DF raw data'!E140) -> -263.5 | B140: =IF('DF raw data'!F140="","",'DF raw data'!F140) -> -1.78972e-05 | C140: =IF('DF raw data'!G140="","",'DF raw data'!G140) -> 0.000140367 | D140: =IF('DF raw data'!H140="","",'DF raw data'!H140) -> -3.06996e-05 | F140: 2.85230484e-06 | G140: 3.444440992e-05 | H140: -1.146959091e-06 | J140: 0.0002530177804 | K140: 0.004649343504 | L140: 0.00149872737 | M140: 0.02957797024 | N140: 3.116100777e-05
A141: =IF('DF raw data'!E141="","",'DF raw data'!E141) -> -263 | B141: =IF('DF raw data'!F141="","",'DF raw data'!F141) -> -4.80842e-06 | C141: =IF('DF raw data'!G141="","",'DF raw data'!G141) -> 0.000140646 | D141: =IF('DF raw data'!H141="","",'DF raw data'!H141) -> -3.97356e-05 | F141: 1.602877967e-05 | G141: 3.472527922e-05 | H141: -1.024350029e-05 | J141: 0.0002610321702 | K141: 0.004779859589 | L141: 0.00151609001 | M141: 0.03033601524 | N141: 3.234434113e-05
A142: =IF('DF raw data'!E142="","",'DF raw data'!E142) -> -262.5 | B142: =IF('DF raw data'!F142="","",'DF raw data'!F142) -> -6.54768e-06 | C142: =IF('DF raw data'!G142="","",'DF raw data'!G142) -> 0.00014131 | D142: =IF('DF raw data'!H142="","",'DF raw data'!H142) -> -2.79037e-05 | F142: 1.427786662e-05 | G142: 3.539372802e-05 | H142: 1.667673439e-06 | J142: 0.0002681711036 | K142: 0.004913945141 | L142: 0.001533786874 | M142: 0.03110290868 | N142: 3.355655008e-05
A143: =IF('DF raw data'!E143="","",'DF raw data'!E143) -> -262 | B143: =IF('DF raw data'!F143="","",'DF raw data'!F143) -> -1.07806e-05 | C143: =IF('DF raw data'!G143="","",'DF raw data'!G143) -> 0.000147784 | D143: =IF('DF raw data'!H143="","",'DF raw data'!H143) -> -2.69761e-05 | F143: 1.001658606e-05 | G143: 4.191110382e-05 | H143: 2.601488359e-06 | J143: 0.0002731793966 | K143: 0.005050534839 | L143: 0.001554742426 | M143: 0.03188027989 | N143: 3.480247558e-05
A144: =IF('DF raw data'!E144="","",'DF raw data'!E144) -> -261.5 | B144: =IF('DF raw data'!F144="","",'DF raw data'!F144) -> -1.39854e-05 | C144: =IF('DF raw data'!G144="","",'DF raw data'!G144) -> 0.000146749 | D144: =IF('DF raw data'!H144="","",'DF raw data'!H144) -> -3.01961e-05 | F144: 6.7903139e-06 | G144: 4.086916932e-05 | H144: -6.400856413e-07 | J144: 0.0002765745535 | K144: 0.005188822116 | L144: 0.00157517701 | M144: 0.03266786839 | N144: 3.608131363e-05
A145: =IF('DF raw data'!E145="","",'DF raw data'!E145) -> -261 | B145: =IF('DF raw data'!F145="","",'DF raw data'!F145) -> -8.01543e-06 | C145: =IF('DF raw data'!G145="","",'DF raw data'!G145) -> 0.000146448 | D145: =IF('DF raw data'!H145="","",'DF raw data'!H145) -> -3.87361e-05 | F145: 1.28002827e-05 | G145: 4.056615262e-05 | H145: -9.237303641e-06 | J145: 0.0002829746949 | K145: 0.005330309463 | L145: 0.001595460087 | M145: 0.03346559844 | N145: 3.739409741e-05
A146: =IF('DF raw data'!E146="","",'DF raw data'!E146) -> -260.5 | B146: =IF('DF raw data'!F146="","",'DF raw data'!F146) -> -6.61201e-06 | C146: =IF('DF raw data'!G146="","",'DF raw data'!G146) -> 0.000142278 | D146: =IF('DF raw data'!H146="","",'DF raw data'!H146) -> -2.77402e-05 | F146: 1.421310561e-05 | G146: 3.636821362e-05 | H146: 1.832268889e-06 | J146: 0.0002900812477 | K146: 0.005475350087 | L146: 0.001613644193 | M146: 0.03427242053 | N146: 3.873809477e-05
A147: =IF('DF raw data'!E147="","",'DF raw data'!E147) -> -260 | B147: =IF('DF raw data'!F147="","",'DF raw data'!F147) -> -1.96879e-05 | C147: =IF('DF raw data'!G147="","",'DF raw data'!G147) -> 0.000149342 | D147: =IF('DF raw data'!H147="","",'DF raw data'!H147) -> -3.69395e-05 | F147: 1.04960715e-06 | G147: 4.347954242e-05 | H147: -7.428666421e-06 | J147: 0.0002906060513 | K147: 0.005620653113 | L147: 0.001635383965 | M147: 0.03509011252 | N147: 4.011756106e-05
A148: =IF('DF raw data'!E148="","",'DF raw data'!E148) -> -259.5 | B148: =IF('DF raw data'!F148="","",'DF raw data'!F148) -> -1.25047e-05 | C148: =IF('DF raw data'!G148="","",'DF raw data'!G148) -> 0.000149962 | D148: =IF('DF raw data'!H148="","",'DF raw data'!H148) -> -3.87585e-05 | F148: 8.28093459e-06 | G148: 4.410369642e-05 | H148: -9.259853721e-06 | J148: 0.0002947465186 | K148: 0.005768026372 | L148: 0.001657435813 | M148: 0.03591883042 | N148: 4.153454555e-05
A149: =IF('DF raw data'!E149="","",'DF raw data'!E149) -> -259 | B149: =IF('DF raw data'!F149="","",'DF raw data'!F149) -> -1.03302e-05 | C149: =IF('DF raw data'!G149="","",'DF raw data'!G149) -> 0.000148869 | D149: =IF('DF raw data'!H149="","",'DF raw data'!H149) -> -2.91311e-05 | F149: 1.047000374e-05 | G149: 4.300337332e-05 | H149: 4.320498587e-07 | J149: 0.0002999815204 | K149: 0.005918017132 | L149: 0.001678937499 | M149: 0.03675829917 | N149: 4.298895557e-05
A150: =IF('DF raw data'!E150="","",'DF raw data'!E150) -> -258.5 | B150: =IF('DF raw data'!F150="","",'DF raw data'!F150) -> -1.09721e-05 | C150: =IF('DF raw data'!G150="","",'DF raw data'!G150) -> 0.00015203 | D150: =IF('DF raw data'!H150="","",'DF raw data'!H150) -> -2.87811e-05 | F150: 9.82380301e-06 | G150: 4.618555202e-05 | H150: 7.843948587e-07 | J150: 0.0003048934219 | K150: 0.006070463843 | L150: 0.001702030276 | M150: 0.03760931431 | N150: 4.44838891e-05
A151: =IF('DF raw data'!E151="","",'DF raw data'!E151) -> -258 | B151: =IF('DF raw data'!F151="","",'DF raw data'!F151) -> -7.63168e-06 | C151: =IF('DF raw data'!G151="","",'DF raw data'!G151) -> 0.000149199 | D151: =IF('DF raw data'!H151="","",'DF raw data'!H151) -> -3.71804e-05 | F151: 1.318660382e-05 | G151: 4.333558432e-05 | H151: -7.671180451e-06 | J151: 0.0003114867238 | K151: 0.006226207205 | L151: 0.001723698068 | M151: 0.03847116335 | N151: 4.601796861e-05
A152: =IF('DF raw data'!E152="","",'DF raw data'!E152) -> -257.5 | B152: =IF('DF raw data'!F152="","",'DF raw data'!F152) -> -1.04518e-05 | C152: =IF('DF raw data'!G152="","",'DF raw data'!G152) -> 0.000145128 | D152: =IF('DF raw data'!H152="","",'DF raw data'!H152) -> -4.00457e-05 | F152: 1.034758902e-05 | G152: 3.923730862e-05 | H152: -1.055567796e-05 | J152: 0.0003166605184 | K152: 0.006384537464 | L152: 0.001743316722 | M152: 0.03934282171 | N152: 4.758768215e-05
A153: =IF('DF raw data'!E153="","",'DF raw data'!E153) -> -257 | B153: =IF('DF raw data'!F153="","",'DF raw data'!F153) -> -1.9295e-05 | C153: =IF('DF raw data'!G153="","",'DF raw data'!G153) -> 0.000140985 | D153: =IF('DF raw data'!H153="","",'DF raw data'!H153) -> -4.95104e-05 | F153: 1.44513958e-06 | G153: 3.506655052e-05 | H153: -2.008379145e-05 | J153: 0.0003173830881 | K153: 0.006543229008 | L153: 0.001760849997 | M153: 0.0402232467 | N153: 4.918834451e-05
A154: =IF('DF raw data'!E154="","",'DF raw data'!E154) -> -256.5 | B154: =IF('DF raw data'!F154="","",'DF raw data'!F154) -> -3.00122e-05 | C154: =IF('DF raw data'!G154="","",'DF raw data'!G154) -> 0.000142217 | D154: =IF('DF raw data'!H154="","",'DF raw data'!H154) -> -3.93517e-05 | F154: -9.34386566e-06 | G154: 3.630680492e-05 | H154: -9.857028161e-06 | J154: 0.0003127111553 | K154: 0.006699584586 | L154: 0.0017790034 | M154: 0.0411127484 | N154: 5.08196652e-05
A155: =IF('DF raw data'!E155="","",'DF raw data'!E155) -> -256 | B155: =IF('DF raw data'!F155="","",'DF raw data'!F155) -> -1.48173e-05 | C155: =IF('DF raw data'!G155="","",'DF raw data'!G155) -> 0.000139575 | D155: =IF('DF raw data'!H155="","",'DF raw data'!H155) -> -3.22618e-05 | F155: 5.95284017e-06 | G155: 3.364710352e-05 | H155: -2.719625831e-06 | J155: 0.0003156875754 | K155: 0.006857428374 | L155: 0.001795826951 | M155: 0.04201066188 | N155: 5.248199174e-05
A156: =IF('DF raw data'!E156="","",'DF raw data'!E156) -> -255.5 | B156: =IF('DF raw data'!F156="","",'DF raw data'!F156) -> -1.60313e-05 | C156: =IF('DF raw data'!G156="","",'DF raw data'!G156) -> 0.00014061 | D156: =IF('DF raw data'!H156="","",'DF raw data'!H156) -> -3.98414e-05 | F156: 4.73070637e-06 | G156: 3.468903802e-05 | H156: -1.035000915e-05 | J156: 0.0003180529286 | K156: 0.007016454838 | L156: 0.00181317147 | M156: 0.04291724762 | N156: 5.417636596e-05
A157: =IF('DF raw data'!E157="","",'DF raw data'!E157) -> -255 | B157: =IF('DF raw data'!F157="","",'DF raw data'!F157) -> -1.53915e-05 | C157: =IF('DF raw data'!G157="","",'DF raw data'!G157) -> 0.000139113 | D157: =IF('DF raw data'!H157="","",'DF raw data'!H157) -> -3.67018e-05 | F157: 5.37479303e-06 | G157: 3.318200812e-05 | H157: -7.189373831e-06 | J157: 0.0003207403251 | K157: 0.007176825001 | L157: 0.001829762475 | M157: 0.04383212885 | N157: 5.59018185e-05
A158: =IF('DF raw data'!E158="","",'DF raw data'!E158) -> -254.5 | B158: =IF('DF raw data'!F158="","",'DF raw data'!F158) -> -2.84711e-05 | C158: =IF('DF raw data'!G158="","",'DF raw data'!G158) -> 0.000135051 | D158: =IF('DF raw data'!H158="","",'DF raw data'!H158) -> -4.25003e-05 | F158: -7.79244029e-06 | G158: 2.909279272e-05 | H158: -1.302672378e-05 | J158: 0.000316844105 | K158: 0.007335247053 | L158: 0.001844308871 | M158: 0.04475428329 | N158: 5.76527512e-05
A159: =IF('DF raw data'!E159="","",'DF raw data'!E159) -> -254 | B159: =IF('DF raw data'!F159="","",'DF raw data'!F159) -> -2.13594e-05 | C159: =IF('DF raw data'!G159="","",'DF raw data'!G159) -> 0.00013338 | D159: =IF('DF raw data'!H159="","",'DF raw data'!H159) -> -3.04445e-05 | F159: -6.330919e-07 | G159: 2.741059702e-05 | H159: -8.901499213e-07 | J159: 0.000316527559 | K159: 0.007493510833 | L159: 0.001858014169 | M159: 0.04568329037 | N159: 5.942895437e-05
A160: =IF('DF raw data'!E160="","",'DF raw data'!E160) -> -253.5 | B160: =IF('DF raw data'!F160="","",'DF raw data'!F160) -> -8.60204e-06 | C160: =IF('DF raw data'!G160="","",'DF raw data'!G160) -> 0.000137903 | D160: =IF('DF raw data'!H160="","",'DF raw data'!H160) -> -2.4421e-05 | F160: 1.220974241e-05 | G160: 3.196390112e-05 | H160: 5.173707529e-06 | J160: 0.0003226324302 | K160: 0.007654827048 | L160: 0.00187399612 | M160: 0.04662028843 | N160: 6.123693094e-05
A161: =IF('DF raw data'!E161="","",'DF raw data'!E161) -> -253 | B161: =IF('DF raw data'!F161="","",'DF raw data'!F161) -> -5.77428e-06 | C161: =IF('DF raw data'!G161="","",'DF raw data'!G161) -> 0.000141034 | D161: =IF('DF raw data'!H161="","",'DF raw data'!H161) -> -3.34794e-05 | F161: 1.50564484e-05 | G161: 3.511587882e-05 | H161: -3.945383751e-06 | J161: 0.0003301606544 | K161: 0.007819907375 | L161: 0.001891554059 | M161: 0.04756606546 | N161: 6.308042235e-05
A162: =IF('DF raw data'!E162="","",'DF raw data'!E162) -> -252.5 | B162: =IF('DF raw data'!F162="","",'DF raw data'!F162) -> -2.48248e-05 | C162: =IF('DF raw data'!G162="","",'DF raw data'!G162) -> 0.000133509 | D162: =IF('DF raw data'!H162="","",'DF raw data'!H162) -> -2.83586e-05 | F162: -4.12171008e-06 | G162: 2.754046132e-05 | H162: 1.209725609e-06 | J162: 0.0003280997994 | K162: 0.007983957275 | L162: 0.00190532429 | M162: 0.04851872761 | N162: 6.494937741e-05
A163: =IF('DF raw data'!E163="","",'DF raw data'!E163) -> -252 | B163: =IF('DF raw data'!F163="","",'DF raw data'!F163) -> -2.25074e-05 | C163: =IF('DF raw data'!G163="","",'DF raw data'!G163) -> 0.000131598 | D163: =IF('DF raw data'!H163="","",'DF raw data'!H163) -> -4.02358e-05 | F163: -1.7887835e-06 | G163: 2.561665762e-05 | H163: -1.074705163e-05 | J163: 0.0003272054076 | K163: 0.008147559978 | L163: 0.001918132619 | M163: 0.04947779392 | N163: 6.684252547e-05
A164: =IF('DF raw data'!E164="","",'DF raw data'!E164) -> -251.5 | B164: =IF('DF raw data'!F164="","",'DF raw data'!F164) -> -1.73123e-05 | C164: =IF('DF raw data'!G164="","",'DF raw data'!G164) -> 0.000136871 | D164: =IF('DF raw data'!H164="","",'DF raw data'!H164) -> -4.21954e-05 | F164: 3.44112367e-06 | G164: 3.092498672e-05 | H164: -1.271978095e-05 | J164: 0.0003289259695 | K164: 0.008312022963 | L164: 0.001933595112 | M164: 0.05044459147 | N164: 6.876601665e-05
A165: =IF('DF raw data'!E165="","",'DF raw data'!E165) -> -251 | B165: =IF('DF raw data'!F165="","",'DF raw data'!F165) -> -1.35932e-05 | C165: =IF('DF raw data'!G165="","",'DF raw data'!G165) -> 0.000144013 | D165: =IF('DF raw data'!H165="","",'DF raw data'!H165) -> -4.10093e-05 | F165: 7.18514164e-06 | G165: 3.811483812e-05 | H165: -1.152573408e-05 | J165: 0.0003325185403 | K165: 0.008478282233 | L165: 0.001952652531 | M165: 0.05142091774 | N165: 7.072772689e-05
A166: =IF('DF raw data'!E166="","",'DF raw data'!E166) -> -250.5 | B166: =IF('DF raw data'!F166="","",'DF raw data'!F166) -> -1.55794e-05 | C166: =IF('DF raw data'!G166="","",'DF raw data'!G166) -> 0.000148019 | D166: =IF('DF raw data'!H166="","",'DF raw data'!H166) -> -4.46213e-05 | F166: 5.1856341e-06 | G166: 4.214767832e-05 | H166: -1.516193448e-05 | J166: 0.0003351113573 | K166: 0.008645837912 | L166: 0.00197372637 | M166: 0.05240778092 | N166: 7.27316746e-05
A167: =IF('DF raw data'!E167="","",'DF raw data'!E167) -> -250 | B167: =IF('DF raw data'!F167="","",'DF raw data'!F167) -> -2.16163e-05 | C167: =IF('DF raw data'!G167="","",'DF raw data'!G167) -> 0.000157218 | D167: =IF('DF raw data'!H167="","",'DF raw data'!H167) -> -3.01092e-05 | F167: -8.9171313e-07 | G167: 5.140831162e-05 | H167: -5.526034113e-07 | J167: 0.0003346655008 | K167: 0.008813170662 | L167: 0.001999430526 | M167: 0.05340749619 | N167: 7.478653631e-05
A168: =IF('DF raw data'!E168="","",'DF raw data'!E168) -> -249.5 | B168: =IF('DF raw data'!F168="","",'DF raw data'!F168) -> -1.52645e-05 | C168: =IF('DF raw data'!G168="","",'DF raw data'!G168) -> 0.00014878 | D168: =IF('DF raw data'!H168="","",'DF raw data'!H168) -> -3.54579e-05 | F168: 5.50264393e-06 | G168: 4.291377702e-05 | H168: -5.937139701e-06 | J168: 0.0003374168227 | K168: 0.008981879074 | L168: 0.002020887415 | M168: 0.05441793989 | N168: 7.688545434e-05
A169: =IF('DF raw data'!E169="","",'DF raw data'!E169) -> -249 | B169: =IF('DF raw data'!F169="","",'DF raw data'!F169) -> -2.65535e-05 | C169: =IF('DF raw data'!G169="","",'DF raw data'!G169) -> 0.000144853 | D169: =IF('DF raw data'!H169="","",'DF raw data'!H169) -> -3.13065e-05 | F169: -5.86199237e-06 | G169: 3.896046612e-05 | H169: -1.757925321e-06 | J169: 0.0003344858265 | K169: 0.009149121987 | L169: 0.002040367648 | M169: 0.05543812372 | N169: 7.902294479e-05
A170: =IF('DF raw data'!E170="","",'DF raw data'!E170) -> -248.5 | B170: =IF('DF raw data'!F170="","",'DF raw data'!F170) -> -1.68097e-05 | C170: =IF('DF raw data'!G170="","",'DF raw data'!G170) -> 0.000141835 | D170: =IF('DF raw data'!H170="","",'DF raw data'!H170) -> -2.59358e-05 | F170: 3.94709109e-06 | G170: 3.592224552e-05 | H170: 3.648758369e-06 | J170: 0.0003364593721 | K170: 0.009317351673 | L170: 0.002058328771 | M170: 0.0564672881 | N170: 8.119790591e-05
A171: =IF('DF raw data'!E171="","",'DF raw data'!E171) -> -248 | B171: =IF('DF raw data'!F171="","",'DF raw data'!F171) -> -1.9305e-05 | C171: =IF('DF raw data'!G171="","",'DF raw data'!G171) -> 0.000138311 | D171: =IF('DF raw data'!H171="","",'DF raw data'!H171) -> -3.43914e-05 | F171: 1.43507258e-06 | G171: 3.237463472e-05 | H171: -4.863494151e-06 | J171: 0.0003371769084 | K171: 0.009485940127 | L171: 0.002074516088 | M171: 0.05750454615 | N171: 8.340655854e-05
A172: =IF('DF raw data'!E172="","",'DF raw data'!E172) -> -247.5 | B172: =IF('DF raw data'!F172="","",'DF raw data'!F172) -> -5.96097e-06 | C172: =IF('DF raw data'!G172="","",'DF raw data'!G172) -> 0.000135624 | D172: =IF('DF raw data'!H172="","",'DF raw data'!H172) -> -4.2697e-05 | F172: 1.486850758e-05 | G172: 2.966963182e-05 | H172: -1.322474167e-05 | J172: 0.0003446111622 | K172: 0.009658245708 | L172: 0.002089350904 | M172: 0.0585492216 | N172: 8.564863057e-05
A173: =IF('DF raw data'!E173="","",'DF raw data'!E173) -> -247 | B173: =IF('DF raw data'!F173="","",'DF raw data'!F173) -> -2.21264e-05 | C173: =IF('DF raw data'!G173="","",'DF raw data'!G173) -> 0.000132541 | D173: =IF('DF raw data'!H173="","",'DF raw data'!H173) -> -3.47619e-05 | F173: -1.4052308e-06 | G173: 2.656597572e-05 | H173: -5.236476501e-06 | J173: 0.0003439085468 | K173: 0.009830199982 | L173: 0.002102633892 | M173: 0.05960053855 | N173: 8.791830176e-05
A174: =IF('DF raw data'!E174="","",'DF raw data'!E174) -> -246.5 | B174: =IF('DF raw data'!F174="","",'DF raw data'!F174) -> -3.20584e-05 | C174: =IF('DF raw data'!G174="","",'DF raw data'!G174) -> 0.000133229 | D174: =IF('DF raw data'!H174="","",'DF raw data'!H174) -> -4.80101e-05 | F174: -1.14037752e-05 | G174: 2.725858532e-05 | H174: -1.857343944e-05 | J174: 0.0003382066592 | K174: 0.009999303311 | L174: 0.002116263184 | M174: 0.06065867014 | N174: 9.021477856e-05
A175: =IF('DF raw data'!E175="","",'DF raw data'!E175) -> -246 | B175: =IF('DF raw data'!F175="","",'DF raw data'!F175) -> -2.01315e-05 | C175: =IF('DF raw data'!G175="","",'DF raw data'!G175) -> 0.000136087 | D175: =IF('DF raw data'!H175="","",'DF raw data'!H175) -> -4.57191e-05 | F175: 6.0303503e-07 | G175: 3.013573392e-05 | H175: -1.626708974e-05 | J175: 0.0003385081767 | K175: 0.0101685574 | L175: 0.002131331051 | M175: 0.06172433566 | N175: 9.254335848e-05
A176: =IF('DF raw data'!E176="","",'DF raw data'!E176) -> -245.5 | B176: =IF('DF raw data'!F176="","",'DF raw data'!F176) -> -1.91023e-05 | C176: =IF('DF raw data'!G176="","",'DF raw data'!G176) -> 0.000130296 | D176: =IF('DF raw data'!H176="","",'DF raw data'!H176) -> -5.10462e-05 | F176: 1.63913067e-06 | G176: 2.430593422e-05 | H176: -2.162988131e-05 | J176: 0.000339327742 | K176: 0.01033822127 | L176: 0.002143484018 | M176: 0.06279607767 | N176: 9.4898192e-05
A177: =IF('DF raw data'!E177="","",'DF raw data'!E177) -> -245 | B177: =IF('DF raw data'!F177="","",'DF raw data'!F177) -> -2.38595e-05 | C177: =IF('DF raw data'!G177="","",'DF raw data'!G177) -> 0.000133964 | D177: =IF('DF raw data'!H177="","",'DF raw data'!H177) -> -3.24012e-05 | F177: -3.14994257e-06 | G177: 2.799850982e-05 | H177: -2.859959811e-06 | J177: 0.0003377527707 | K177: 0.01050709766 | L177: 0.002157483273 | M177: 0.06387481931 | N177: 9.728259751e-05
A178: =IF('DF raw data'!E178="","",'DF raw data'!E178) -> -244.5 | B178: =IF('DF raw data'!F178="","",'DF raw data'!F178) -> -2.90557e-05 | C178: =IF('DF raw data'!G178="","",'DF raw data'!G178) -> 0.000137264 | D178: =IF('DF raw data'!H178="","",'DF raw data'!H178) -> -3.03513e-05 | F178: -8.38095711e-06 | G178: 3.132061982e-05 | H178: -7.963254813e-07 | J178: 0.0003335622922 | K178: 0.0106738788 | L178: 0.002173143583 | M178: 0.0649613911 | N178: 9.969950593e-05
A179: =IF('DF raw data'!E179="","",'DF raw data'!E179) -> -244 | B179: =IF('DF raw data'!F179="","",'DF raw data'!F179) -> -2.14848e-05 | C179: =IF('DF raw data'!G179="","",'DF raw data'!G179) -> 0.000150085 | D179: =IF('DF raw data'!H179="","",'DF raw data'!H179) -> -3.53833e-05 | F179: -7.5933208e-07 | G179: 4.422752052e-05 | H179: -5.862039881e-06 | J179: 0.0003331826261 | K179: 0.01084047012 | L179: 0.002195257343 | M179: 0.06605901977 | N179: 0.0001021645887
A180: =IF('DF raw data'!E180="","",'DF raw data'!E180) -> -243.5 | B180: =IF('DF raw data'!F180="","",'DF raw data'!F180) -> -1.97508e-05 | C180: =IF('DF raw data'!G180="","",'DF raw data'!G180) -> 0.000147873 | D180: =IF('DF raw data'!H180="","",'DF raw data'!H180) -> -3.98536e-05 | F180: 9.8628572e-07 | G180: 4.200070012e-05 | H180: -1.036229089e-05 | J180: 0.000333675769 | K180: 0.011007308 | L180: 0.002216257694 | M180: 0.06716714862 | N180: 0.0001046761575
A181: =IF('DF raw data'!E181="","",'DF raw data'!E181) -> -243 | B181: =IF('DF raw data'!F181="","",'DF raw data'!F181) -> -3.05265e-05 | C181: =IF('DF raw data'!G181="","",'DF raw data'!G181) -> 0.000139994 | D181: =IF('DF raw data'!H181="","",'DF raw data'!H181) -> -3.64316e-05 | F181: -9.86161147e-06 | G181: 3.406891082e-05 | H181: -6.917363491e-06 | J181: 0.0003287449633 | K181: 0.01117168048 | L181: 0.002233292149 | M181: 0.06828379469 | N181: 0.000107223991
A182: =IF('DF raw data'!E182="","",'DF raw data'!E182) -> -242.5 | B182: =IF('DF raw data'!F182="","",'DF raw data'!F182) -> -2.28327e-05 | C182: =IF('DF raw data'!G182="","",'DF raw data'!G182) -> 0.00013966 | D182: =IF('DF raw data'!H182="","",'DF raw data'!H182) -> -3.39967e-05 | F182: -2.11626301e-06 | G182: 3.373267302e-05 | H182: -4.466149661e-06 | J182: 0.0003276868318 | K182: 0.0113355239 | L182: 0.002250158485 | M182: 0.06940887394 | N182: 0.000109809287
A183: =IF('DF raw data'!E183="","",'DF raw data'!E183) -> -242 | B183: =IF('DF raw data'!F183="","",'DF raw data'!F183) -> -1.81498e-05 | C183: =IF('DF raw data'!G183="","",'DF raw data'!G183) -> 0.000139629 | D183: =IF('DF raw data'!H183="","",'DF raw data'!H183) -> -3.59005e-05 | F183: 2.59801242e-06 | G183: 3.370146532e-05 | H183: -6.382705121e-06 | J183: 0.000328985838 | K183: 0.01150001682 | L183: 0.002267009218 | M183: 0.07054237855 | N183: 0.0001124330682
A184: =IF('DF raw data'!E184="","",'DF raw data'!E184) -> -241.5 | B184: =IF('DF raw data'!F184="","",'DF raw data'!F184) -> -2.18718e-05 | C184: =IF('DF raw data'!G184="","",'DF raw data'!G184) -> 0.000138792 | D184: =IF('DF raw data'!H184="","",'DF raw data'!H184) -> -3.23524e-05 | F184: -1.14892498e-06 | G184: 3.285885742e-05 | H184: -2.810832851e-06 | J184: 0.0003284113755 | K184: 0.0116642225 | L184: 0.002283438647 | M184: 0.07168409787 | N184: 0.0001150940413
A185: =IF('DF raw data'!E185="","",'DF raw data'!E185) -> -241 | B185: =IF('DF raw data'!F185="","",'DF raw data'!F185) -> -2.30215e-05 | C185: =IF('DF raw data'!G185="","",'DF raw data'!G185) -> 0.000137421 | D185: =IF('DF raw data'!H185="","",'DF raw data'!H185) -> -3.93616e-05 | F185: -2.30632797e-06 | G185: 3.147867172e-05 | H185: -9.866994491e-06 | J185: 0.0003272582115 | K185: 0.01182785161 | L185: 0.002299177983 | M185: 0.07283368686 | N185: 0.0001177906999
A186: =IF('DF raw data'!E186="","",'DF raw data'!E186) -> -240.5 | B186: =IF('DF raw data'!F186="","",'DF raw data'!F186) -> -1.65423e-05 | C186: =IF('DF raw data'!G186="","",'DF raw data'!G186) -> 0.000143036 | D186: =IF('DF raw data'!H186="","",'DF raw data'!H186) -> -4.26463e-05 | F186: 4.21628267e-06 | G186: 3.713129222e-05 | H186: -1.317370198e-05 | J186: 0.0003293663528 | K186: 0.01199253479 | L186: 0.002317743629 | M186: 0.07399255867 | N186: 0.0001205309088
A187: =IF('DF raw data'!E187="","",'DF raw data'!E187) -> -240 | B187: =IF('DF raw data'!F187="","",'DF raw data'!F187) -> -1.24395e-05 | C187: =IF('DF raw data'!G187="","",'DF raw data'!G187) -> 0.000146304 | D187: =IF('DF raw data'!H187="","",'DF raw data'!H187) -> -4.02734e-05 | F187: 8.34657143e-06 | G187: 4.042118782e-05 | H187: -1.078490355e-05 | J187: 0.0003335396385 | K187: 0.01215930461 | L187: 0.002337954223 | M187: 0.07516153579 | N187: 0.0001233195481
A188: =IF('DF raw data'!E188="","",'DF raw data'!E188) -> -239.5 | B188: =IF('DF raw data'!F188="","",'DF raw data'!F188) -> -2.14137e-05 | C188: =IF('DF raw data'!G188="","",'DF raw data'!G188) -> 0.000151973 | D188: =IF('DF raw data'!H188="","",'DF raw data'!H188) -> -4.68415e-05 | F188: -6.8775571e-07 | G188: 4.612817012e-05 | H188: -1.739700982e-05 | J188: 0.0003331957607 | K188: 0.01232590249 | L188: 0.002361018308 | M188: 0.07634204494 | N188: 0.0001261622615
A189: =IF('DF raw data'!E189="","",'DF raw data'!E189) -> -239 | B189: =IF('DF raw data'!F189="","",'DF raw data'!F189) -> -2.75131e-05 | C189: =IF('DF raw data'!G189="","",'DF raw data'!G189) -> 0.000142257 | D189: =IF('DF raw data'!H189="","",'DF raw data'!H189) -> -3.52909e-05 | F189: -6.82802169e-06 | G189: 3.634707292e-05 | H189: -5.769020801e-06 | J189: 0.0003297817498 | K189: 0.01249079336 | L189: 0.002379191844 | M189: 0.07753164086 | N189: 0.0001290469165
A190: =IF('DF raw data'!E190="","",'DF raw data'!E190) -> -238.5 | B190: =IF('DF raw data'!F190="","",'DF raw data'!F190) -> -2.16782e-05 | C190: =IF('DF raw data'!G190="","",'DF raw data'!G190) -> 0.000134983 | D190: =IF('DF raw data'!H190="","",'DF raw data'!H190) -> -3.45199e-05 | F190: -9.5402786e-07 | G190: 2.902433712e-05 | H190: -4.992855101e-06 | J190: 0.0003293047359 | K190: 0.01265544573 | L190: 0.002393704013 | M190: 0.07872849287 | N190: 0.0001319660467
A191: =IF('DF raw data'!E191="","",'DF raw data'!E191) -> -238 | B191: =IF('DF raw data'!F191="","",'DF raw data'!F191) -> -2.66123e-05 | C191: =IF('DF raw data'!G191="","",'DF raw data'!G191) -> 0.000138242 | D191: =IF('DF raw data'!H191="","",'DF raw data'!H191) -> -3.99717e-05 | F191: -5.92118633e-06 | G191: 3.230517242e-05 | H191: -1.048118216e-05 | J191: 0.0003263441428 | K191: 0.0128186178 | L191: 0.002409856599 | M191: 0.07993342117 | N191: 0.0001349230014
A192: =IF('DF raw data'!E192="","",'DF raw data'!E192) -> -237.5 | B192: =IF('DF raw data'!F192="","",'DF raw data'!F192) -> -1.97578e-05 | C192: =IF('DF raw data'!G192="","",'DF raw data'!G192) -> 0.000133884 | D192: =IF('DF raw data'!H192="","",'DF raw data'!H192) -> -2.90856e-05 | F192: 9.7923882e-07 | G192: 2.791797382e-05 | H192: 4.778547087e-07 | J192: 0.0003268337622 | K192: 0.01298203468 | L192: 0.002423815586 | M192: 0.08114532896 | N192: 0.0001379138525
A193: =IF('DF raw data'!E193="","",'DF raw data'!E193) -> -237 | B193: =IF('DF raw data'!F193="","",'DF raw data'!F193) -> -2.68699e-05 | C193: =IF('DF raw data'!G193="","",'DF raw data'!G193) -> 0.000136958 | D193: =IF('DF raw data'!H193="","",'DF raw data'!H193) -> -3.82481e-05 | F193: -6.18051225e-06 | G193: 3.101256962e-05 | H193: -8.746034041e-06 | J193: 0.000323743506 | K193: 0.01314390643 | L193: 0.002439321871 | M193: 0.0823649899 | N193: 0.000140941403
A194: =IF('DF raw data'!E194="","",'DF raw data'!E194) -> -236.5 | B194: =IF('DF raw data'!F194="","",'DF raw data'!F194) -> -1.2764e-05 | C194: =IF('DF raw data'!G194="","",'DF raw data'!G194) -> 0.000141153 | D194: =IF('DF raw data'!H194="","",'DF raw data'!H194) -> -3.42803e-05 | F194: 8.01989728e-06 | G194: 3.523567612e-05 | H194: -4.751649781e-06 | J194: 0.0003277534547 | K194: 0.01330778316 | L194: 0.002456939709 | M194: 0.08359345975 | N194: 0.0001440133906
A195: =IF('DF raw data'!E195="","",'DF raw data'!E195) -> -236 | B195: =IF('DF raw data'!F195="","",'DF raw data'!F195) -> -2.80239e-05 | C195: =IF('DF raw data'!G195="","",'DF raw data'!G195) -> 0.000141637 | D195: =IF('DF raw data'!H195="","",'DF raw data'!H195) -> -3.87602e-05 | F195: =(1-$G$1*($B$54-$G$2))*(B195-F$5) -> -7.34224405e-06 | G195: =(1-$G$1*($B$54-$G$2))*(C195-G$5) -> 3.572291892e-05 | H195: =(1-$G$1*($B$54-$G$2))*(D195-H$5) -> -9.261565111e-06 | J195: 0.0003240823327 | K195: 0.01346982433 | L195: 0.002474801168 | M195: 0.08483086033 | N195: 0.0001471282257
A196: =IF('DF raw data'!E196="","",'DF raw data'!E196) -> -235.5 | B196: =IF('DF raw data'!F196="","",'DF raw data'!F196) -> -1.82767e-05 | C196: =IF('DF raw data'!G196="","",'DF raw data'!G196) -> 0.000155686 | D196: =IF('DF raw data'!H196="","",'DF raw data'!H196) -> -3.83011e-05 | F196: 2.47026219e-06 | G196: 4.986604722e-05 | H196: -8.799389141e-06 | J196: =F196*$G$3+J195 -> 0.0003253174637 | K196: =J196*$G$3+K195 -> 0.01363248306 | L196: =G196*$G$3+L195 -> 0.002499734192 | M196: =L196*$G$3+M195 -> 0.08608072743 | N196: =(J196^2+L196^2)*$G$3+N195 -> 0.0001503054769
A197: =IF('DF raw data'!E197="","",'DF raw data'!E197) -> -235 | B197: =IF('DF raw data'!F197="","",'DF raw data'!F197) -> -2.15472e-05 | C197: =IF('DF raw data'!G197="","",'DF raw data'!G197) -> 0.000153666 | D197: =IF('DF raw data'!H197="","",'DF raw data'!H197) -> -3.84193e-05 | F197: -8.2215016e-07 | G197: 4.783251322e-05 | H197: -8.918381081e-06 | J197: 0.0003249063887 | K197: 0.01379493625 | L197: 0.002523650448 | M197: 0.08734255265 | N197: 0.0001535426648
A198: =IF('DF raw data'!E198="","",'DF raw data'!E198) -> -234.5 | B198: =IF('DF raw data'!F198="","",'DF raw data'!F198) -> -2.14896e-05 | C198: =IF('DF raw data'!G198="","",'DF raw data'!G198) -> 0.000143057 | D198: =IF('DF raw data'!H198="","",'DF raw data'!H198) -> -2.82905e-05 | F198: -7.6416424e-07 | G198: 3.715243292e-05 | H198: 1.278281879e-06 | J198: 0.0003245243065 | K198: 0.01395719841 | L198: 0.002542226665 | M198: 0.08861366599 | N198: 0.000156826781
A199: =IF('DF raw data'!E199="","",'DF raw data'!E199) -> -234 | B199: =IF('DF raw data'!F199="","",'DF raw data'!F199) -> -3.28388e-05 | C199: =IF('DF raw data'!G199="","",'DF raw data'!G199) -> 0.000141851 | D199: =IF('DF raw data'!H199="","",'DF raw data'!H199) -> -3.09582e-05 | F199: -1.218940388e-05 | G199: 3.593835272e-05 | H199: -1.407291711e-06 | J199: 0.0003184296046 | K199: 0.01411641321 | L199: 0.002560195841 | M199: 0.08989376391 | N199: 0.0001601547811
A200: =IF('DF raw data'!E200="","",'DF raw data'!E200) -> -233.5 | B200: =IF('DF raw data'!F200="","",'DF raw data'!F200) -> -1.01376e-05 | C200: =IF('DF raw data'!G200="","",'DF raw data'!G200) -> 0.00014652 | D200: =IF('DF raw data'!H200="","",'DF raw data'!H200) -> -3.00179e-05 | F200: 1.066389416e-05 | G200: 4.063863502e-05 | H200: -4.606917013e-07 | J200: 0.0003237615517 | K200: 0.01427829399 | L200: 0.002580515159 | M200: 0.09118402149 | N200: 0.0001635367211
... 1079 more rows

Sheet 20 mm
A1: =IF('DF raw data'!I1="","",'DF raw data'!I1) -> Number of header lines | B1: =IF('DF raw data'!J1="","",'DF raw data'!J1) -> 54 | C1: =IF('DF raw data'!C1="","",'DF raw data'!C1) ->  | D1: =IF('DF raw data'!D1="","",'DF raw data'!D1) ->  | F1: T_coeff | G1: -0.001 | H1: /degC | J1: IBy total | K1: =J1267*1000 -> 5.964660965 | L1: muTm | M1: =L1267*1000 -> 15.15447993 | R1: DF ref | S1: 1
A2: =IF('DF raw data'!I2="","",'DF raw data'!I2) -> Measured by | B2: =IF('DF raw data'!J2="","",'DF raw data'!J2) -> Danfysik | C2: =IF('DF raw data'!C2="","",'DF raw data'!C2) ->  | D2: =IF('DF raw data'!D2="","",'DF raw data'!D2) ->  | F2: Tcorr | G2: 20 | H2: degC | J2: JBy total | K2: =K1267 -> -10.86283205 | L2: muTm^2 | M2: =M1267 -> 2.121784004
A3: =IF('DF raw data'!I3="","",'DF raw data'!I3) -> Operator | B3: =IF('DF raw data'!J3="","",'DF raw data'!J3) -> PMHA | C3: =IF('DF raw data'!C3="","",'DF raw data'!C3) ->  | D3: =IF('DF raw data'!D3="","",'DF raw data'!D3) ->  | F3: Step | G3: =A68-A67 -> 0.5 | H3: mm | J3: PI total | K3: =N1267 -> 4925.500616 | L3: T^2mm^3
A4: =IF('DF raw data'!I4="","",'DF raw data'!I4) -> Data-time | B4: =IF('DF raw data'!J4="","",'DF raw data'!J4) -> 05-09-2024, 15:31:40 | C4: =IF('DF raw data'!C4="","",'DF raw data'!C4) ->  | D4: =IF('DF raw data'!D4="","",'DF raw data'!D4) -> 
A5: =IF('DF raw data'!I5="","",'DF raw data'!I5) -> Project | B5: =IF('DF raw data'!J5="","",'DF raw data'!J5) -> 504314 | C5: =IF('DF raw data'!C5="","",'DF raw data'!C5) ->  | D5: Bamb avr | F5: =(AVERAGE(B67:B107) + AVERAGE(B1227:B1267))/2 -> -2.028786732e-05 | G5: =(AVERAGE(C67:C107) + AVERAGE(C1227:C1267))/2 -> 0.0001041653988 | H5: =(AVERAGE(D67:D107) + AVERAGE(D1227:D1267))/2 -> -2.733960122e-05
A6: =IF('DF raw data'!I6="","",'DF raw data'!I6) -> Magnet type | B6: =IF('DF raw data'!J6="","",'DF raw data'!J6) -> Dipole | C6: =IF('DF raw data'!C6="","",'DF raw data'!C6) -> 
A7: =IF('DF raw data'!I7="","",'DF raw data'!I7) -> Magnet nr. | B7: =IF('DF raw data'!J7="","",'DF raw data'!J7) -> 2410093 | C7: =IF('DF raw data'!C7="","",'DF raw data'!C7) -> 
A8: =IF('DF raw data'!I8="","",'DF raw data'!I8) -> Meas. number | B8: =IF('DF raw data'!J8="","",'DF raw data'!J8) -> 382 | C8: =IF('DF raw data'!C8="","",'DF raw data'!C8) -> 
A9: =IF('DF raw data'!I9="","",'DF raw data'!I9) -> Add. info | B9: =IF('DF raw data'!J9="","",'DF raw data'!J9) ->  | C9: =IF('DF raw data'!C9="","",'DF raw data'!C9) ->  | D9: =IF('DF raw data'!D9="","",'DF raw data'!D9) -> 
A10: =IF('DF raw data'!I10="","",'DF raw data'!I10) -> Device | B10: =IF('DF raw data'!J10="","",'DF raw data'!J10) -> (HAL) HALL-PROBE | C10: =IF('DF raw data'!C10="","",'DF raw data'!C10) ->  | D10: =IF('DF raw data'!D10="","",'DF raw data'!D10) -> 
A11: =IF('DF raw data'!I11="","",'DF raw data'!I11) -> Goal | B11: =IF('DF raw data'!J11="","",'DF raw data'!J11) -> (AXI) AXis Integral (Line, EFB) | C11: =IF('DF raw data'!C11="","",'DF raw data'!C11) ->  | D11: =IF('DF raw data'!D11="","",'DF raw data'!D11) -> 
A12: =IF('DF raw data'!I12="","",'DF raw data'!I12) -> Power supply mode | B12: =IF('DF raw data'!J12="","",'DF raw data'!J12) -> (PM) Permanent Magnet (no MPS in use) | C12: =IF('DF raw data'!C12="","",'DF raw data'!C12) ->  | D12: =IF('DF raw data'!D12="","",'DF raw data'!D12) -> 
A13: =IF('DF raw data'!I13="","",'DF raw data'!I13) -> Data format | B13: =IF('DF raw data'!J13="","",'DF raw data'!J13) -> Raw data text file | C13: =IF('DF raw data'!C13="","",'DF raw data'!C13) ->  | D13: =IF('DF raw data'!D13="","",'DF raw data'!D13) -> 
A14: =IF('DF raw data'!I14="","",'DF raw data'!I14) -> Direction of the pos. x-axis | B14: =IF('DF raw data'!J14="","",'DF raw data'!J14) -> See test program | C14: =IF('DF raw data'!C14="","",'DF raw data'!C14) ->  | D14: =IF('DF raw data'!D14="","",'DF raw data'!D14) -> 
A15: =IF('DF raw data'!I15="","",'DF raw data'!I15) -> Direction of the pos. y-axis | B15: =IF('DF raw data'!J15="","",'DF raw data'!J15) -> Vertical up | C15: =IF('DF raw data'!C15="","",'DF raw data'!C15) ->  | D15: =IF('DF raw data'!D15="","",'DF raw data'!D15) -> 
A16: =IF('DF raw data'!I16="","",'DF raw data'!I16) -> Direction of the pos. z-axis | B16: =IF('DF raw data'!J16="","",'DF raw data'!J16) -> See test program | C16: =IF('DF raw data'!C16="","",'DF raw data'!C16) ->  | D16: =IF('DF raw data'!D16="","",'DF raw data'!D16) -> 
A17: =IF('DF raw data'!I17="","",'DF raw data'!I17) -> Mapper type | B17: =IF('DF raw data'!J17="","",'DF raw data'!J17) -> Precision Hall Mapper | C17: =IF('DF raw data'!C17="","",'DF raw data'!C17) ->  | D17: =IF('DF raw data'!D17="","",'DF raw data'!D17) -> 
A18: =IF('DF raw data'!I18="","",'DF raw data'!I18) -> Mapper Danfysik Reg. Number | B18: =IF('DF raw data'!J18="","",'DF raw data'!J18) -> 2033-D (mapper 1) | C18: =IF('DF raw data'!C18="","",'DF raw data'!C18) ->  | D18: =IF('DF raw data'!D18="","",'DF raw data'!D18) -> 
A19: =IF('DF raw data'!I19="","",'DF raw data'!I19) -> Measurement consept | B19: =IF('DF raw data'!J19="","",'DF raw data'!J19) -> Square line grid | C19: =IF('DF raw data'!C19="","",'DF raw data'!C19) ->  | D19: =IF('DF raw data'!D19="","",'DF raw data'!D19) -> 
A20: =IF('DF raw data'!I20="","",'DF raw data'!I20) -> Mode | B20: =IF('DF raw data'!J20="","",'DF raw data'!J20) -> On-the-fly measurement | C20: =IF('DF raw data'!C20="","",'DF raw data'!C20) ->  | D20: =IF('DF raw data'!D20="","",'DF raw data'!D20) -> 
A21: =IF('DF raw data'!I21="","",'DF raw data'!I21) ->  | B21: =IF('DF raw data'!J21="","",'DF raw data'!J21) ->  | C21: =IF('DF raw data'!C21="","",'DF raw data'!C21) ->  | D21: =IF('DF raw data'!D21="","",'DF raw data'!D21) -> 
A22: =IF('DF raw data'!I22="","",'DF raw data'!I22) -> Probe Name | B22: =IF('DF raw data'!J22="","",'DF raw data'!J22) -> ID12_By | C22: =IF('DF raw data'!C22="","",'DF raw data'!C22) ->  | D22: =IF('DF raw data'!D22="","",'DF raw data'!D22) -> 
A23: =IF('DF raw data'!I23="","",'DF raw data'!I23) -> Probe Type | B23: =IF('DF raw data'!J23="","",'DF raw data'!J23) -> DF_ID_3D_Bxyz | C23: =IF('DF raw data'!C23="","",'DF raw data'!C23) ->  | D23: =IF('DF raw data'!D23="","",'DF raw data'!D23) -> 
A24: =IF('DF raw data'!I24="","",'DF raw data'!I24) -> Probe Danfysik Reg. Number | B24: =IF('DF raw data'!J24="","",'DF raw data'!J24) -> 2277 | C24: =IF('DF raw data'!C24="","",'DF raw data'!C24) ->  | D24: =IF('DF raw data'!D24="","",'DF raw data'!D24) -> 
A25: =IF('DF raw data'!I25="","",'DF raw data'!I25) -> Probe Axis | B25: =IF('DF raw data'!J25="","",'DF raw data'!J25) -> By | C25: =IF('DF raw data'!C25="","",'DF raw data'!C25) ->  | D25: =IF('DF raw data'!D25="","",'DF raw data'!D25) -> 
A26: =IF('DF raw data'!I26="","",'DF raw data'!I26) -> Probe Current Supply | B26: =IF('DF raw data'!J26="","",'DF raw data'!J26) -> 1825-D | C26: =IF('DF raw data'!C26="","",'DF raw data'!C26) ->  | D26: =IF('DF raw data'!D26="","",'DF raw data'!D26) -> 
A27: =IF('DF raw data'!I27="","",'DF raw data'!I27) -> Probe Gain Correction | B27: =IF('DF raw data'!J27="","",'DF raw data'!J27) -> 0.99618 | C27: =IF('DF raw data'!C27="","",'DF raw data'!C27) ->  | D27: =IF('DF raw data'!D27="","",'DF raw data'!D27) -> 
A28: =IF('DF raw data'!I28="","",'DF raw data'!I28) -> Probe Offset Correction | B28: =IF('DF raw data'!J28="","",'DF raw data'!J28) -> 0.0027415 | C28: =IF('DF raw data'!C28="","",'DF raw data'!C28) ->  | D28: =IF('DF raw data'!D28="","",'DF raw data'!D28) -> 
A29: =IF('DF raw data'!I29="","",'DF raw data'!I29) -> DVM Number | B29: =IF('DF raw data'!J29="","",'DF raw data'!J29) -> 2 | C29: =IF('DF raw data'!C29="","",'DF raw data'!C29) ->  | D29: =IF('DF raw data'!D29="","",'DF raw data'!D29) -> 
A30: =IF('DF raw data'!I30="","",'DF raw data'!I30) -> DVM Type | B30: =IF('DF raw data'!J30="","",'DF raw data'!J30) -> K2701 | C30: =IF('DF raw data'!C30="","",'DF raw data'!C30) ->  | D30: =IF('DF raw data'!D30="","",'DF raw data'!D30) -> 
A31: =IF('DF raw data'!I31="","",'DF raw data'!I31) -> DVM Danfysik Reg. Number | B31: =IF('DF raw data'!J31="","",'DF raw data'!J31) -> 1743-D | C31: =IF('DF raw data'!C31="","",'DF raw data'!C31) ->  | D31: =IF('DF raw data'!D31="","",'DF raw data'!D31) -> 
A32: =IF('DF raw data'!I32="","",'DF raw data'!I32) -> Probe Name | B32: =IF('DF raw data'!J32="","",'DF raw data'!J32) -> ID12_Bx | C32: =IF('DF raw data'!C32="","",'DF raw data'!C32) ->  | D32: =IF('DF raw data'!D32="","",'DF raw data'!D32) -> 
A33: =IF('DF raw data'!I33="","",'DF raw data'!I33) -> Probe Type | B33: =IF('DF raw data'!J33="","",'DF raw data'!J33) -> DF_ID_3D_Bxyz | C33: =IF('DF raw data'!C33="","",'DF raw data'!C33) ->  | D33: =IF('DF raw data'!D33="","",'DF raw data'!D33) -> 
A34: =IF('DF raw data'!I34="","",'DF raw data'!I34) -> Probe Danfysik Reg. Number | B34: =IF('DF raw data'!J34="","",'DF raw data'!J34) -> 2277 | C34: =IF('DF raw data'!C34="","",'DF raw data'!C34) ->  | D34: =IF('DF raw data'!D34="","",'DF raw data'!D34) -> 
A35: =IF('DF raw data'!I35="","",'DF raw data'!I35) -> Probe Axis | B35: =IF('DF raw data'!J35="","",'DF raw data'!J35) -> Bx | C35: =IF('DF raw data'!C35="","",'DF raw data'!C35) ->  | D35: =IF('DF raw data'!D35="","",'DF raw data'!D35) -> 
A36: =IF('DF raw data'!I36="","",'DF raw data'!I36) -> Probe Current Supply | B36: =IF('DF raw data'!J36="","",'DF raw data'!J36) -> 1825-D | C36: =IF('DF raw data'!C36="","",'DF raw data'!C36) ->  | D36: =IF('DF raw data'!D36="","",'DF raw data'!D36) -> 
A37: =IF('DF raw data'!I37="","",'DF raw data'!I37) -> Probe Gain Correction | B37: =IF('DF raw data'!J37="","",'DF raw data'!J37) -> 1 | C37: =IF('DF raw data'!C37="","",'DF raw data'!C37) ->  | D37: =IF('DF raw data'!D37="","",'DF raw data'!D37) -> 
A38: =IF('DF raw data'!I38="","",'DF raw data'!I38) -> Probe Offset Correction | B38: =IF('DF raw data'!J38="","",'DF raw data'!J38) -> -0.17583 | C38: =IF('DF raw data'!C38="","",'DF raw data'!C38) ->  | D38: =IF('DF raw data'!D38="","",'DF raw data'!D38) -> 
A39: =IF('DF raw data'!I39="","",'DF raw data'!I39) -> DVM Number | B39: =IF('DF raw data'!J39="","",'DF raw data'!J39) -> 3 | C39: =IF('DF raw data'!C39="","",'DF raw data'!C39) ->  | D39: =IF('DF raw data'!D39="","",'DF raw data'!D39) -> 
A40: =IF('DF raw data'!I40="","",'DF raw data'!I40) -> DVM Type | B40: =IF('DF raw data'!J40="","",'DF raw data'!J40) -> K2701 | C40: =IF('DF raw data'!C40="","",'DF raw data'!C40) ->  | D40: =IF('DF raw data'!D40="","",'DF raw data'!D40) -> 
A41: =IF('DF raw data'!I41="","",'DF raw data'!I41) -> DVM Danfysik Reg. Number | B41: =IF('DF raw data'!J41="","",'DF raw data'!J41) -> 1744-D | C41: =IF('DF raw data'!C41="","",'DF raw data'!C41) ->  | D41: =IF('DF raw data'!D41="","",'DF raw data'!D41) -> 
A42: =IF('DF raw data'!I42="","",'DF raw data'!I42) -> Probe Name | B42: =IF('DF raw data'!J42="","",'DF raw data'!J42) -> ID12_Bz | C42: =IF('DF raw data'!C42="","",'DF raw data'!C42) ->  | D42: =IF('DF raw data'!D42="","",'DF raw data'!D42) -> 
A43: =IF('DF raw data'!I43="","",'DF raw data'!I43) -> Probe Type | B43: =IF('DF raw data'!J43="","",'DF raw data'!J43) -> DF_ID_3D_Bxyz | C43: =IF('DF raw data'!C43="","",'DF raw data'!C43) ->  | D43: =IF('DF raw data'!D43="","",'DF raw data'!D43) -> 
A44: =IF('DF raw data'!I44="","",'DF raw data'!I44) -> Probe Danfysik Reg. Number | B44: =IF('DF raw data'!J44="","",'DF raw data'!J44) -> 2277 | C44: =IF('DF raw data'!C44="","",'DF raw data'!C44) ->  | D44: =IF('DF raw data'!D44="","",'DF raw data'!D44) -> 
A45: =IF('DF raw data'!I45="","",'DF raw data'!I45) -> Probe Axis | B45: =IF('DF raw data'!J45="","",'DF raw data'!J45) -> Bz | C45: =IF('DF raw data'!C45="","",'DF raw data'!C45) ->  | D45: =IF('DF raw data'!D45="","",'DF raw data'!D45) -> 
A46: =IF('DF raw data'!I46="","",'DF raw data'!I46) -> Probe Current Supply | B46: =IF('DF raw data'!J46="","",'DF raw data'!J46) -> 1825-D | C46: =IF('DF raw data'!C46="","",'DF raw data'!C46) ->  | D46: =IF('DF raw data'!D46="","",'DF raw data'!D46) -> 
A47: =IF('DF raw data'!I47="","",'DF raw data'!I47) -> Probe Gain Correction | B47: =IF('DF raw data'!J47="","",'DF raw data'!J47) -> 1 | C47: =IF('DF raw data'!C47="","",'DF raw data'!C47) ->  | D47: =IF('DF raw data'!D47="","",'DF raw data'!D47) -> 
A48: =IF('DF raw data'!I48="","",'DF raw data'!I48) -> Probe Offset Correction | B48: =IF('DF raw data'!J48="","",'DF raw data'!J48) -> 0.0073366 | C48: =IF('DF raw data'!C48="","",'DF raw data'!C48) ->  | D48: =IF('DF raw data'!D48="","",'DF raw data'!D48) -> 
A49: =IF('DF raw data'!I49="","",'DF raw data'!I49) -> DVM Number | B49: =IF('DF raw data'!J49="","",'DF raw data'!J49) -> 8 | C49: =IF('DF raw data'!C49="","",'DF raw data'!C49) ->  | D49: =IF('DF raw data'!D49="","",'DF raw data'!D49) -> 
A50: =IF('DF raw data'!I50="","",'DF raw data'!I50) -> DVM Type | B50: =IF('DF raw data'!J50="","",'DF raw data'!J50) -> K2700 | C50: =IF('DF raw data'!C50="","",'DF raw data'!C50) ->  | D50: =IF('DF raw data'!D50="","",'DF raw data'!D50) -> 
A51: =IF('DF raw data'!I51="","",'DF raw data'!I51) -> DVM Danfysik Reg. Number | B51: =IF('DF raw data'!J51="","",'DF raw data'!J51) -> 1756-D | C51: =IF('DF raw data'!C51="","",'DF raw data'!C51) ->  | D51: =IF('DF raw data'!D51="","",'DF raw data'!D51) -> 
A52: =IF('DF raw data'!I52="","",'DF raw data'!I52) -> NTC voltage | B52: =IF('DF raw data'!J52="","",'DF raw data'!J52) -> 0.38599 | C52: =IF('DF raw data'!C52="","",'DF raw data'!C52) ->  | D52: =IF('DF raw data'!D52="","",'DF raw data'!D52) -> 
A53: =IF('DF raw data'!I53="","",'DF raw data'!I53) -> PS-Gap: | B53: =IF('DF raw data'!J53="","",'DF raw data'!J53) -> 20 | C53: =IF('DF raw data'!C53="","",'DF raw data'!C53) ->  | D53: =IF('DF raw data'!D53="","",'DF raw data'!D53) -> 
A54: =IF('DF raw data'!I54="","",'DF raw data'!I54) -> PS-Temperature: | B54: =IF('DF raw data'!J54="","",'DF raw data'!J54) -> 26.7 | C54: =IF('DF raw data'!C54="","",'DF raw data'!C54) ->  | D54: =IF('DF raw data'!D54="","",'DF raw data'!D54) -> 
A55: =IF('DF raw data'!I55="","",'DF raw data'!I55) -> PS-Encoder: | B55: =IF('DF raw data'!J55="","",'DF raw data'!J55) -> 29.9712 | C55: =IF('DF raw data'!C55="","",'DF raw data'!C55) ->  | D55: =IF('DF raw data'!D55="","",'DF raw data'!D55) -> 
A56: =IF('DF raw data'!I56="","",'DF raw data'!I56) ->  | B56: =IF('DF raw data'!J56="","",'DF raw data'!J56) -> 
A57: =IF('DF raw data'!I57="","",'DF raw data'!I57) -> Monitor-Index | B57: =IF('DF raw data'!J57="","",'DF raw data'!J57) -> [1,1,4]
A58: =IF('DF raw data'!I58="","",'DF raw data'!I58) ->  | B58: =IF('DF raw data'!J58="","",'DF raw data'!J58) -> 
A59: =IF('DF raw data'!I59="","",'DF raw data'!I59) -> Time [s] | B59: =IF('DF raw data'!J59="","",'DF raw data'!J59) -> Y [mm]
A60: =IF('DF raw data'!I60="","",'DF raw data'!I60) ->  | B60: =IF('DF raw data'!J60="","",'DF raw data'!J60) -> 
A61: =IF('DF raw data'!I61="","",'DF raw data'!I61) -> 210.2 | B61: =IF('DF raw data'!J61="","",'DF raw data'!J61) -> 31.76
A62: =IF('DF raw data'!I62="","",'DF raw data'!I62) ->  | B62: =IF('DF raw data'!J62="","",'DF raw data'!J62) -> 
A63: =IF('DF raw data'!I63="","",'DF raw data'!I63) -> Measurement-Index | B63: =IF('DF raw data'!J63="","",'DF raw data'!J63) -> [1,1,1201,2]
A64: =IF('DF raw data'!I64="","",'DF raw data'!I64) ->  | B64: =IF('DF raw data'!J64="","",'DF raw data'!J64) -> 
A65: =IF('DF raw data'!I65="","",'DF raw data'!I65) -> Z [mm] | B65: =IF('DF raw data'!J65="","",'DF raw data'!J65) -> By [T] | C65: =IF('DF raw data'!K65="","",'DF raw data'!K65) -> Bx [T] | D65: =IF('DF raw data'!L65="","",'DF raw data'!L65) -> Bz [T] | F65: By_corr | G65: Bx_corr | H65: Bz_corr | J65: Iy | K65: Jy | L65: Ix | M65: Jx | N65: PI
A66: =IF('DF raw data'!I66="","",'DF raw data'!I66) -> [1, 0, 0, 0] | B66: =IF('DF raw data'!J66="","",'DF raw data'!J66) ->  | C66: =IF('DF raw data'!K66="","",'DF raw data'!K66) ->  | D66: =IF('DF raw data'!L66="","",'DF raw data'!L66) -> 
A67: =IF('DF raw data'!I67="","",'DF raw data'!I67) -> -300 | B67: =IF('DF raw data'!J67="","",'DF raw data'!J67) -> -1.1873e-05 | C67: =IF('DF raw data'!K67="","",'DF raw data'!K67) -> 0.000117218 | D67: =IF('DF raw data'!L67="","",'DF raw data'!L67) -> -3.39742e-05 | F67: =(1-$G$1*($B$54-$G$2))*(B67-F$5) -> 8.471246928e-06 | G67: =(1-$G$1*($B$54-$G$2))*(C67-G$5) -> 1.314005365e-05 | H67: =(1-$G$1*($B$54-$G$2))*(D67-H$5) -> -6.679050592e-06 | J67: =F67*$G$3+J66 -> 4.235623464e-06 | K67: =J67*$G$3+K66 -> 2.117811732e-06 | L67: =G67*$G$3+L66 -> 6.570026824e-06 | M67: =L67*$G$3+M66 -> 3.285013412e-06 | N67: =(J67^2+L67^2)*$G$3+N66 -> 3.05528793e-11
A68: =IF('DF raw data'!I68="","",'DF raw data'!I68) -> -299.5 | B68: =IF('DF raw data'!J68="","",'DF raw data'!J68) -> -1.61043e-05 | C68: =IF('DF raw data'!K68="","",'DF raw data'!K68) -> 0.000112004 | D68: =IF('DF raw data'!L68="","",'DF raw data'!L68) -> -3.37437e-05 | F68: 4.211597218e-06 | G68: 7.891119848e-06 | H68: -6.447006242e-06 | J68: =F68*$G$3+J67 -> 6.341422073e-06 | K68: =J68*$G$3+K67 -> 5.288522769e-06 | L68: =G68*$G$3+L67 -> 1.051558675e-05 | M68: =L68*$G$3+M67 -> 8.542806786e-06 | N68: =(J68^2+L68^2)*$G$3+N67 -> 1.059484786e-10
A69: =IF('DF raw data'!I69="","",'DF raw data'!I69) -> -299 | B69: =IF('DF raw data'!J69="","",'DF raw data'!J69) -> -2.30947e-05 | C69: =IF('DF raw data'!K69="","",'DF raw data'!K69) -> 0.000107988 | D69: =IF('DF raw data'!L69="","",'DF raw data'!L69) -> -3.31885e-05 | F69: -2.825638462e-06 | G69: 3.848212648e-06 | H69: -5.888086402e-06 | J69: 4.928602842e-06 | K69: 7.75282419e-06 | L69: 1.243969307e-05 | M69: 1.476265332e-05 | N69: 1.954670234e-10
A70: =IF('DF raw data'!I70="","",'DF raw data'!I70) -> -298.5 | B70: =IF('DF raw data'!J70="","",'DF raw data'!J70) -> -1.9634e-05 | C70: =IF('DF raw data'!K70="","",'DF raw data'!K70) -> 0.00010742 | D70: =IF('DF raw data'!L70="","",'DF raw data'!L70) -> -3.25096e-05 | F70: 6.582482281e-07 | G70: 3.276407048e-06 | H70: -5.204637772e-06 | J70: 5.257726956e-06 | K70: 1.038168767e-05 | L70: 1.40778966e-05 | M70: 2.180160162e-05 | N70: 3.083824561e-10
A71: =IF('DF raw data'!I71="","",'DF raw data'!I71) -> -298 | B71: =IF('DF raw data'!J71="","",'DF raw data'!J71) -> -2.25826e-05 | C71: =IF('DF raw data'!K71="","",'DF raw data'!K71) -> 0.000115081 | D71: =IF('DF raw data'!L71="","",'DF raw data'!L71) -> -3.16249e-05 | F71: -2.310107392e-06 | G71: 1.098873575e-05 | H71: -4.314010282e-06 | J71: 4.10267326e-06 | K71: 1.24330243e-05 | L71: 1.957226447e-05 | M71: 3.158773385e-05 | N71: 5.083351882e-10
A72: =IF('DF raw data'!I72="","",'DF raw data'!I72) -> -297.5 | B72: =IF('DF raw data'!J72="","",'DF raw data'!J72) -> -2.01482e-05 | C72: =IF('DF raw data'!K72="","",'DF raw data'!K72) -> 0.000124949 | D72: =IF('DF raw data'!L72="","",'DF raw data'!L72) -> -3.10796e-05 | F72: 1.406030881e-07 | G72: 2.092285135e-05 | H72: -3.765056772e-06 | J72: 4.172974804e-06 | K72: 1.45195117e-05 | L72: 3.003369014e-05 | M72: 4.660457893e-05 | N72: 9.680533194e-10
A73: =IF('DF raw data'!I73="","",'DF raw data'!I73) -> -297 | B73: =IF('DF raw data'!J73="","",'DF raw data'!J73) -> -2.70306e-06 | C73: =IF('DF raw data'!K73="","",'DF raw data'!K73) -> 0.000126594 | D73: =IF('DF raw data'!L73="","",'DF raw data'!L73) -> -3.1754e-05 | F73: 1.770262553e-05 | G73: 2.257887285e-05 | H73: -4.443975252e-06 | J73: 1.302428757e-05 | K73: 2.103165548e-05 | L73: 4.132312657e-05 | M73: 6.726614221e-05 | N73: 1.906669747e-09
A74: =IF('DF raw data'!I74="","",'DF raw data'!I74) -> -296.5 | B74: =IF('DF raw data'!J74="","",'DF raw data'!J74) -> -1.25152e-05 | C74: =IF('DF raw data'!K74="","",'DF raw data'!K74) -> 0.00012505 | D74: =IF('DF raw data'!L74="","",'DF raw data'!L74) -> -3.29098e-05 | F74: 7.824744188e-06 | G74: 2.102452805e-05 | H74: -5.607519112e-06 | J74: 1.693665966e-05 | K74: 2.949998531e-05 | L74: 5.183539059e-05 | M74: 9.31838375e-05 | N74: 3.393548826e-09
A75: =IF('DF raw data'!I75="","",'DF raw data'!I75) -> -296 | B75: =IF('DF raw data'!J75="","",'DF raw data'!J75) -> -1.34113e-05 | C75: =IF('DF raw data'!K75="","",'DF raw data'!K75) -> 0.000123224 | D75: =IF('DF raw data'!L75="","",'DF raw data'!L75) -> -3.33806e-05 | F75: 6.922640318e-06 | G75: 1.918629385e-05 | H75: -6.081473472e-06 | J75: 2.039797982e-05 | K75: 3.969897522e-05 | L75: 6.142853751e-05 | M75: 0.0001238981063 | N75: 5.488320227e-09
A76: =IF('DF raw data'!I76="","",'DF raw data'!I76) -> -295.5 | B76: =IF('DF raw data'!J76="","",'DF raw data'!J76) -> -1.85435e-05 | C76: =IF('DF raw data'!K76="","",'DF raw data'!K76) -> 0.000117126 | D76: =IF('DF raw data'!L76="","",'DF raw data'!L76) -> -3.31233e-05 | F76: 1.756054578e-06 | G76: 1.304743725e-05 | H76: -5.822449562e-06 | J76: 2.127600711e-05 | K76: 5.033697878e-05 | L76: 6.795225614e-05 | M76: 0.0001578742343 | N76: 8.023409024e-09
A77: =IF('DF raw data'!I77="","",'DF raw data'!I77) -> -295 | B77: =IF('DF raw data'!J77="","",'DF raw data'!J77) -> -1.74517e-05 | C77: =IF('DF raw data'!K77="","",'DF raw data'!K77) -> 0.00011894 | D77: =IF('DF raw data'!L77="","",'DF raw data'!L77) -> -3.27641e-05 | F77: 2.855169638e-06 | G77: 1.487359105e-05 | H77: -5.460842922e-06 | J77: 2.270359193e-05 | K77: 6.168877474e-05 | L77: 7.538905166e-05 | M77: 0.0001955687602 | N77: 1.112289012e-08
A78: =IF('DF raw data'!I78="","",'DF raw data'!I78) -> -294.5 | B78: =IF('DF raw data'!J78="","",'DF raw data'!J78) -> -2.00832e-05 | C78: =IF('DF raw data'!K78="","",'DF raw data'!K78) -> 0.000114298 | D78: =IF('DF raw data'!L78="","",'DF raw data'!L78) -> -3.25914e-05 | F78: 2.060385881e-07 | G78: 1.020048965e-05 | H78: -5.286985832e-06 | J78: 2.280661122e-05 | K78: 7.309208035e-05 | L78: 8.048929649e-05 | M78: 0.0002358134084 | N78: 1.46222243e-08
A79: =IF('DF raw data'!I79="","",'DF raw data'!I79) -> -294 | B79: =IF('DF raw data'!J79="","",'DF raw data'!J79) -> -1.73234e-05 | C79: =IF('DF raw data'!K79="","",'DF raw data'!K79) -> 0.000106016 | D79: =IF('DF raw data'!L79="","",'DF raw data'!L79) -> -3.28916e-05 | F79: 2.984329248e-06 | G79: 1.863000248e-06 | H79: -5.589197172e-06 | J79: 2.429877585e-05 | K79: 8.524146828e-05 | L79: 8.142079661e-05 | M79: 0.0002765238067 | N79: 1.823211262e-08
A80: =IF('DF raw data'!I80="","",'DF raw data'!I80) -> -293.5 | B80: =IF('DF raw data'!J80="","",'DF raw data'!J80) -> -1.82229e-05 | C80: =IF('DF raw data'!K80="","",'DF raw data'!K80) -> 0.000102136 | D80: =IF('DF raw data'!L80="","",'DF raw data'!L80) -> -3.32617e-05 | F80: 2.078802598e-06 | G80: -2.042995752e-06 | H80: -5.961776842e-06 | J80: 2.533817715e-05 | K80: 9.791055685e-05 | L80: 8.039929873e-05 | M80: 0.0003167234561 | N80: 2.178514785e-08
A81: =IF('DF raw data'!I81="","",'DF raw data'!I81) -> -293 | B81: =IF('DF raw data'!J81="","",'DF raw data'!J81) -> -2.80324e-05 | C81: =IF('DF raw data'!K81="","",'DF raw data'!K81) -> 0.000113762 | D81: =IF('DF raw data'!L81="","",'DF raw data'!L81) -> -3.28131e-05 | F81: -7.796421052e-06 | G81: 9.660898448e-06 | H81: -5.510171222e-06 | J81: 2.143996662e-05 | K81: 0.0001086305402 | L81: 8.522974796e-05 | M81: 0.0003593383301 | N81: 2.56470389e-08
A82: =IF('DF raw data'!I82="","",'DF raw data'!I82) -> -292.5 | B82: =IF('DF raw data'!J82="","",'DF raw data'!J82) -> -2.72024e-05 | C82: =IF('DF raw data'!K82="","",'DF raw data'!K82) -> 0.000116268 | D82: =IF('DF raw data'!L82="","",'DF raw data'!L82) -> -3.21576e-05 | F82: -6.960860052e-06 | G82: 1.218368865e-05 | H82: -4.850279372e-06 | J82: 1.795953659e-05 | K82: 0.0001176103085 | L82: 9.132159228e-05 | M82: 0.0004049991262 | N82: 2.997812799e-08
A83: =IF('DF raw data'!I83="","",'DF raw data'!I83) -> -292 | B83: =IF('DF raw data'!J83="","",'DF raw data'!J83) -> -1.41814e-05 | C83: =IF('DF raw data'!K83="","",'DF raw data'!K83) -> 0.000122026 | D83: =IF('DF raw data'!L83="","",'DF raw data'!L83) -> -3.25001e-05 | F83: 6.147380648e-06 | G83: 1.798026725e-05 | H83: -5.195074122e-06 | J83: 2.103322692e-05 | K83: 0.0001281269219 | L83: 0.0001003117259 | M83: 0.0004551549891 | N83: 3.523054748e-08
A84: =IF('DF raw data'!I84="","",'DF raw data'!I84) -> -291.5 | B84: =IF('DF raw data'!J84="","",'DF raw data'!J84) -> -2.49574e-05 | C84: =IF('DF raw data'!K84="","",'DF raw data'!K84) -> 0.000115305 | D84: =IF('DF raw data'!L84="","",'DF raw data'!L84) -> -3.25466e-05 | F84: -4.700818552e-06 | G84: 1.121423655e-05 | H84: -5.241885672e-06 | J84: 1.868281764e-05 | K84: 0.0001374683307 | L84: 0.0001059188442 | M84: 0.0005081144112 | N84: 4.101447209e-08
A85: =IF('DF raw data'!I85="","",'DF raw data'!I85) -> -291 | B85: =IF('DF raw data'!J85="","",'DF raw data'!J85) -> -3.14237e-05 | C85: =IF('DF raw data'!K85="","",'DF raw data'!K85) -> 0.000108523 | D85: =IF('DF raw data'!L85="","",'DF raw data'!L85) -> -4.441e-05 | F85: -1.121044276e-05 | G85: 4.386797148e-06 | H85: -1.718477045e-05 | J85: 1.307759626e-05 | K85: 0.0001440071289 | L85: 0.0001081122428 | M85: 0.0005621705326 | N85: 4.694411237e-08
A86: =IF('DF raw data'!I86="","",'DF raw data'!I86) -> -290.5 | B86: =IF('DF raw data'!J86="","",'DF raw data'!J86) -> -1.76451e-05 | C86: =IF('DF raw data'!K86="","",'DF raw data'!K86) -> 0.000110945 | D86: =IF('DF raw data'!L86="","",'DF raw data'!L86) -> -3.4081e-05 | F86: 2.660473858e-06 | G86: 6.825024548e-06 | H86: -6.786566152e-06 | J86: 1.440783319e-05 | K86: 0.0001512110455 | L86: 0.000111524755 | M86: 0.0006179329101 | N86: 5.326679069e-08
A87: =IF('DF raw data'!I87="","",'DF raw data'!I87) -> -290 | B87: =IF('DF raw data'!J87="","",'DF raw data'!J87) -> -2.48846e-05 | C87: =IF('DF raw data'!K87="","",'DF raw data'!K87) -> 0.00011589 | D87: =IF('DF raw data'!L87="","",'DF raw data'!L87) -> -4.1478e-05 | F87: -4.627530792e-06 | G87: 1.180315605e-05 | H87: -1.423312605e-05 | J87: 1.209406779e-05 | K87: 0.0001572580794 | L87: 0.0001174263331 | M87: 0.0006766460767 | N87: 6.023439578e-08
A88: =IF('DF raw data'!I88="","",'DF raw data'!I88) -> -289.5 | B88: =IF('DF raw data'!J88="","",'DF raw data'!J88) -> -2.93164e-05 | C88: =IF('DF raw data'!K88="","",'DF raw data'!K88) -> 0.000108313 | D88: =IF('DF raw data'!L88="","",'DF raw data'!L88) -> -3.55703e-05 | F88: -9.089023852e-06 | G88: 4.175390148e-06 | H88: -8.285844462e-06 | J88: 7.549555868e-06 | K88: 0.0001610328573 | L88: 0.0001195140281 | M88: 0.0007364030907 | N88: 6.740469513e-08
A89: =IF('DF raw data'!I89="","",'DF raw data'!I89) -> -289 | B89: =IF('DF raw data'!J89="","",'DF raw data'!J89) -> -2.12397e-05 | C89: =IF('DF raw data'!K89="","",'DF raw data'!K89) -> 0.000109466 | D89: =IF('DF raw data'!L89="","",'DF raw data'!L89) -> -2.59456e-05 | F89: -9.582099619e-07 | G89: 5.336115248e-06 | H89: 1.403341028e-06 | J89: 7.070450887e-06 | K89: 0.0001645680827 | L89: 0.0001221820857 | M89: 0.0007974941336 | N89: 7.489392181e-08
A90: =IF('DF raw data'!I90="","",'DF raw data'!I90) -> -288.5 | B90: =IF('DF raw data'!J90="","",'DF raw data'!J90) -> -2.18878e-05 | C90: =IF('DF raw data'!K90="","",'DF raw data'!K90) -> 0.000121465 | D90: =IF('DF raw data'!L90="","",'DF raw data'!L90) -> -1.89372e-05 | F90: -1.610652232e-06 | G90: 1.741550855e-05 | H90: 8.458697308e-06 | J90: 6.265124771e-06 | K90: 0.0001677006451 | L90: 0.00013088984 | M90: 0.0008629390536 | N90: 8.347962282e-08
A91: =IF('DF raw data'!I91="","",'DF raw data'!I91) -> -288 | B91: =IF('DF raw data'!J91="","",'DF raw data'!J91) -> -1.12992e-05 | C91: =IF('DF raw data'!K91="","",'DF raw data'!K91) -> 0.000126722 | D91: =IF('DF raw data'!L91="","",'DF raw data'!L91) -> -2.70458e-05 | F91: 9.048891388e-06 | G91: 2.270773045e-05 | H91: 2.957696877e-07 | J91: 1.078957047e-05 | K91: 0.0001730954304 | L91: 0.0001422437052 | M91: 0.0009340609062 | N91: 9.365446607e-08
A92: =IF('DF raw data'!I92="","",'DF raw data'!I92) -> -287.5 | B92: =IF('DF raw data'!J92="","",'DF raw data'!J92) -> -1.26448e-05 | C92: =IF('DF raw data'!K92="","",'DF raw data'!K92) -> 0.000131248 | D92: =IF('DF raw data'!L92="","",'DF raw data'!L92) -> -3.08753e-05 | F92: 7.694275868e-06 | G92: 2.726405465e-05 | H92: -3.559387962e-06 | J92: 1.46367084e-05 | K92: 0.0001804137846 | L92: 0.0001558757326 | M92: 0.001011998773 | N92: 1.059102047e-07
A93: =IF('DF raw data'!I93="","",'DF raw data'!I93) -> -287 | B93: =IF('DF raw data'!J93="","",'DF raw data'!J93) -> -1.57314e-05 | C93: =IF('DF raw data'!K93="","",'DF raw data'!K93) -> 0.000130544 | D93: =IF('DF raw data'!L93="","",'DF raw data'!L93) -> -1.55343e-05 | F93: 4.586995648e-06 | G93: 2.655533785e-05 | H93: 1.188439674e-05 | J93: 1.693020622e-05 | K93: 0.0001888788877 | L93: 0.0001691534015 | M93: 0.001096575473 | N93: 1.203599573e-07
A94: =IF('DF raw data'!I94="","",'DF raw data'!I94) -> -286.5 | B94: =IF('DF raw data'!J94="","",'DF raw data'!J94) -> -3.2204e-06 | C94: =IF('DF raw data'!K94="","",'DF raw data'!K94) -> 0.000125052 | D94: =IF('DF raw data'!L94="","",'DF raw data'!L94) -> -2.55804e-05 | F94: 1.718181935e-05 | G94: 2.102654145e-05 | H94: 1.770987868e-06 | J94: 2.55211159e-05 | K94: 0.0002016394456 | L94: 0.0001796666722 | M94: 0.001186408809 | N94: 1.368256775e-07
A95: =IF('DF raw data'!I95="","",'DF raw data'!I95) -> -286 | B95: =IF('DF raw data'!J95="","",'DF raw data'!J95) -> -2.57366e-05 | C95: =IF('DF raw data'!K95="","",'DF raw data'!K95) -> 0.000127864 | D95: =IF('DF raw data'!L95="","",'DF raw data'!L95) -> -1.35948e-05 | F95: -5.485239192e-06 | G95: 2.385738185e-05 | H95: 1.383689139e-05 | J95: 2.27784963e-05 | K95: 0.0002130286938 | L95: 0.0001915953631 | M95: 0.001282206491 | N95: 1.55439499e-07
A96: =IF('DF raw data'!I96="","",'DF raw data'!I96) -> -285.5 | B96: =IF('DF raw data'!J96="","",'DF raw data'!J96) -> -6.61515e-06 | C96: =IF('DF raw data'!K96="","",'DF raw data'!K96) -> 0.000125052 | D96: =IF('DF raw data'!L96="","",'DF raw data'!L96) -> -3.23115e-05 | F96: 1.376432452e-05 | G96: 2.102654145e-05 | H96: -5.005210502e-06 | J96: 2.966065856e-05 | K96: 0.000227859023 | L96: 0.0002021086339 | M96: 0.001383260808 | N96: 1.763033263e-07
A97: =IF('DF raw data'!I97="","",'DF raw data'!I97) -> -285 | B97: =IF('DF raw data'!J97="","",'DF raw data'!J97) -> -1.46301e-05 | C97: =IF('DF raw data'!K97="","",'DF raw data'!K97) -> 0.000121426 | D97: =IF('DF raw data'!L97="","",'DF raw data'!L97) -> -3.26327e-05 | F97: 5.695674358e-06 | G97: 1.737624725e-05 | H97: -5.328562542e-06 | J97: 3.250849574e-05 | K97: 0.0002441132709 | L97: 0.0002107967575 | M97: 0.001488659187 | N97: 1.990493639e-07
A98: =IF('DF raw data'!I98="","",'DF raw data'!I98) -> -284.5 | B98: =IF('DF raw data'!J98="","",'DF raw data'!J98) -> -9.50021e-06 | C98: =IF('DF raw data'!K98="","",'DF raw data'!K98) -> 0.000130872 | D98: =IF('DF raw data'!L98="","",'DF raw data'!L98) -> -3.38566e-05 | F98: 1.085993462e-05 | G98: 2.688553545e-05 | H98: -6.560662672e-06 | J98: 3.793846305e-05 | K98: 0.0002630825024 | L98: 0.0002242395252 | M98: 0.001600778949 | N98: 2.249107097e-07
A99: =IF('DF raw data'!I99="","",'DF raw data'!I99) -> -284 | B99: =IF('DF raw data'!J99="","",'DF raw data'!J99) -> -1.89903e-05 | C99: =IF('DF raw data'!K99="","",'DF raw data'!K99) -> 0.000134501 | D99: =IF('DF raw data'!L99="","",'DF raw data'!L99) -> -3.36205e-05 | F99: 1.306261018e-06 | G99: 3.053884975e-05 | H99: -6.322980802e-06 | J99: 3.859159356e-05 | K99: 0.0002823782992 | L99: 0.0002395089501 | M99: 0.001720533424 | N99: 2.543376339e-07
A100: =IF('DF raw data'!I100="","",'DF raw data'!I100) -> -283.5 | B100: =IF('DF raw data'!J100="","",'DF raw data'!J100) -> -2.77762e-05 | C100: =IF('DF raw data'!K100="","",'DF raw data'!K100) -> 0.000118027 | D100: =IF('DF raw data'!L100="","",'DF raw data'!L100) -> -3.67875e-05 | F100: -7.538504512e-06 | G100: 1.395447395e-05 | H100: -9.511199702e-06 | J100: 3.482234131e-05 | K100: 0.0002997894699 | L100: 0.0002464861871 | M100: 0.001843776518 | N100: 2.853216518e-07
A101: =IF('DF raw data'!I101="","",'DF raw data'!I101) -> -283 | B101: =IF('DF raw data'!J101="","",'DF raw data'!J101) -> -2.57268e-05 | C101: =IF('DF raw data'!K101="","",'DF raw data'!K101) -> 0.000127242 | D101: =IF('DF raw data'!L101="","",'DF raw data'!L101) -> -2.88236e-05 | F101: -5.475373532e-06 | G101: 2.323121445e-05 | H101: -1.493941572e-06 | J101: 3.208465454e-05 | K101: 0.0003158317971 | L101: 0.0002581017943 | M101: 0.001972827415 | N101: 3.191446324e-07
A102: =IF('DF raw data'!I102="","",'DF raw data'!I102) -> -282.5 | B102: =IF('DF raw data'!J102="","",'DF raw data'!J102) -> -2.4444e-05 | C102: =IF('DF raw data'!K102="","",'DF raw data'!K102) -> 0.000125485 | D102: =IF('DF raw data'!L102="","",'DF raw data'!L102) -> -3.26481e-05 | F102: -4.183978772e-06 | G102: 2.146244255e-05 | H102: -5.344065722e-06 | J102: 2.999266515e-05 | K102: 0.0003308281297 | L102: 0.0002688330156 | M102: 0.002107243923 | N102: 3.557300076e-07
A103: =IF('DF raw data'!I103="","",'DF raw data'!I103) -> -282 | B103: =IF('DF raw data'!J103="","",'DF raw data'!J103) -> -2.4896e-05 | C103: =IF('DF raw data'!K103="","",'DF raw data'!K103) -> 0.000113039 | D103: =IF('DF raw data'!L103="","",'DF raw data'!L103) -> -2.43063e-05 | F103: -4.639007172e-06 | G103: 8.933054348e-06 | H103: 3.053624338e-06 | J103: 2.767316157e-05 | K103: 0.0003446647105 | L103: 0.0002732995427 | M103: 0.002243893694 | N103: 3.934592295e-07
A104: =IF('DF raw data'!I104="","",'DF raw data'!I104) -> -281.5 | B104: =IF('DF raw data'!J104="","",'DF raw data'!J104) -> -2.09907e-05 | C104: =IF('DF raw data'!K104="","",'DF raw data'!K104) -> 0.000109059 | D104: =IF('DF raw data'!L104="","",'DF raw data'!L104) -> -1.76427e-05 | F104: -7.075416619e-07 | G104: 4.926388348e-06 | H104: 9.761870458e-06 | J104: 2.731939074e-05 | K104: 0.0003583244059 | L104: 0.0002757627369 | M104: 0.002381775063 | N104: 4.318549476e-07
A105: =IF('DF raw data'!I105="","",'DF raw data'!I105) -> -281 | B105: =IF('DF raw data'!J105="","",'DF raw data'!J105) -> -1.60367e-05 | C105: =IF('DF raw data'!K105="","",'DF raw data'!K105) -> 0.00011399 | D105: =IF('DF raw data'!L105="","",'DF raw data'!L105) -> -3.96213e-05 | F105: 4.279650138e-06 | G105: 9.890426048e-06 | H105: -1.236398616e-05 | J105: 2.945921581e-05 | K105: 0.0003730540138 | L105: 0.0002807079499 | M105: 0.002522129037 | N105: 4.716873469e-07
A106: =IF('DF raw data'!I106="","",'DF raw data'!I106) -> -280.5 | B106: =IF('DF raw data'!J106="","",'DF raw data'!J106) -> -3.02821e-05 | C106: =IF('DF raw data'!K106="","",'DF raw data'!K106) -> 0.000123121 | D106: =IF('DF raw data'!L106="","",'DF raw data'!L106) -> -2.96285e-05 | F106: -1.006119404e-05 | G106: 1.908260375e-05 | H106: -2.304234402e-06 | J106: 2.442861878e-05 | K106: 0.0003852683232 | L106: 0.0002902492518 | M106: 0.002667253663 | N106: 5.141080397e-07
A107: =IF('DF raw data'!I107="","",'DF raw data'!I107) -> -280 | B107: =IF('DF raw data'!J107="","",'DF raw data'!J107) -> -2.0217e-05 | C107: =IF('DF raw data'!K107="","",'DF raw data'!K107) -> 0.000118796 | D107: =IF('DF raw data'!L107="","",'DF raw data'!L107) -> -2.10928e-05 | F107: 7.13421281e-08 | G107: 1.472862625e-05 | H107: 6.288654788e-06 | J107: 2.446428985e-05 | K107: 0.0003975004681 | L107: 0.0002976135649 | M107: 0.002816060446 | N107: 5.586942074e-07
A108: =IF('DF raw data'!I108="","",'DF raw data'!I108) -> -279.5 | B108: =IF('DF raw data'!J108="","",'DF raw data'!J108) -> -1.23315e-05 | C108: =IF('DF raw data'!K108="","",'DF raw data'!K108) -> 0.000116109 | D108: =IF('DF raw data'!L108="","",'DF raw data'!L108) -> -1.91337e-05 | F108: 8.009674978e-06 | G108: 1.202362335e-05 | H108: 8.260880758e-06 | J108: 2.846912734e-05 | K108: 0.0004117350318 | L108: 0.0003036253766 | M108: 0.002967873134 | N108: 6.051936377e-07
A109: =IF('DF raw data'!I109="","",'DF raw data'!I109) -> -279 | B109: =IF('DF raw data'!J109="","",'DF raw data'!J109) -> -1.39216e-05 | C109: =IF('DF raw data'!K109="","",'DF raw data'!K109) -> 0.000123204 | D109: =IF('DF raw data'!L109="","",'DF raw data'!L109) -> -3.76609e-05 | F109: 6.408921308e-06 | G109: 1.916615985e-05 | H109: -1.039045148e-05 | J109: 3.167358799e-05 | K109: 0.0004275718258 | L109: 0.0003132084565 | M109: 0.003124477362 | N109: 6.547450144e-07
A110: =IF('DF raw data'!I110="","",'DF raw data'!I110) -> -278.5 | B110: =IF('DF raw data'!J110="","",'DF raw data'!J110) -> -9.62747e-06 | C110: =IF('DF raw data'!K110="","",'DF raw data'!K110) -> 0.000123015 | D110: =IF('DF raw data'!L110="","",'DF raw data'!L110) -> -3.54016e-05 | F110: 1.073182198e-05 | G110: 1.897589355e-05 | H110: -8.116014172e-06 | J110: 3.703949898e-05 | K110: 0.0004460915753 | L110: 0.0003226964033 | M110: 0.003285825564 | N110: 7.07497461e-07
A111: =IF('DF raw data'!I111="","",'DF raw data'!I111) -> -278 | B111: =IF('DF raw data'!J111="","",'DF raw data'!J111) -> -2.14312e-05 | C111: =IF('DF raw data'!K111="","",'DF raw data'!K111) -> 0.000127971 | D111: =IF('DF raw data'!L111="","",'DF raw data'!L111) -> -2.72597e-05 | F111: -1.150993012e-06 | G111: 2.396509875e-05 | H111: 8.043655768e-08 | J111: 3.646400248e-05 | K111: 0.0004643235765 | L111: 0.0003346789527 | M111: 0.00345316504 | N111: 7.641672734e-07
A112: =IF('DF raw data'!I112="","",'DF raw data'!I112) -> -277.5 | B112: =IF('DF raw data'!J112="","",'DF raw data'!J112) -> -1.66175e-05 | C112: =IF('DF raw data'!K112="","",'DF raw data'!K112) -> 0.000119407 | D112: =IF('DF raw data'!L112="","",'DF raw data'!L112) -> -3.62475e-05 | F112: 3.694958778e-06 | G112: 1.534371995e-05 | H112: -8.967581702e-06 | J112: 3.831148186e-05 | K112: 0.0004834793174 | L112: 0.0003423508126 | M112: 0.003624340447 | N112: 8.235031977e-07
A113: =IF('DF raw data'!I113="","",'DF raw data'!I113) -> -277 | B113: =IF('DF raw data'!J113="","",'DF raw data'!J113) -> -2.62396e-05 | C113: =IF('DF raw data'!K113="","",'DF raw data'!K113) -> 0.000119875 | D113: =IF('DF raw data'!L113="","",'DF raw data'!L113) -> -2.89348e-05 | F113: -5.991609292e-06 | G113: 1.581485555e-05 | H113: -1.605886612e-06 | J113: 3.531567722e-05 | K113: 0.000501137156 | L113: 0.0003502582404 | M113: 0.003799469567 | N113: 8.854672137e-07
A114: =IF('DF raw data'!I114="","",'DF raw data'!I114) -> -276.5 | B114: =IF('DF raw data'!J114="","",'DF raw data'!J114) -> -1.46343e-05 | C114: =IF('DF raw data'!K114="","",'DF raw data'!K114) -> 0.000120201 | D114: =IF('DF raw data'!L114="","",'DF raw data'!L114) -> -2.84858e-05 | F114: 5.691446218e-06 | G114: 1.614303975e-05 | H114: -1.153878312e-06 | J114: 3.816140033e-05 | K114: 0.0005202178562 | L114: 0.0003583297603 | M114: 0.003978634447 | N114: 9.503954685e-07
A115: =IF('DF raw data'!I115="","",'DF raw data'!I115) -> -276 | B115: =IF('DF raw data'!J115="","",'DF raw data'!J115) -> -9.30271e-06 | C115: =IF('DF raw data'!K115="","",'DF raw data'!K115) -> 0.00011055 | D115: =IF('DF raw data'!L115="","",'DF raw data'!L115) -> -4.01038e-05 | F115: 1.105875787e-05 | G115: 6.427378048e-06 | H115: -1.284971891e-05 | J115: 4.369077926e-05 | K115: 0.0005420632458 | L115: 0.0003615434493 | M115: 0.004159406172 | N115: 1.016706743e-06
A116: =IF('DF raw data'!I116="","",'DF raw data'!I116) -> -275.5 | B116: =IF('DF raw data'!J116="","",'DF raw data'!J116) -> -1.31499e-05 | C116: =IF('DF raw data'!K116="","",'DF raw data'!K116) -> 0.000108439 | D116: =IF('DF raw data'!L116="","",'DF raw data'!L116) -> -4.31242e-05 | F116: 7.185791698e-06 | G116: 4.302234348e-06 | H116: -1.589035559e-05 | J116: 4.728367511e-05 | K116: 0.0005657050834 | L116: 0.0003636945665 | M116: 0.004341253455 | N116: 1.083961485e-06
A117: =IF('DF raw data'!I117="","",'DF raw data'!I117) -> -275 | B117: =IF('DF raw data'!J117="","",'DF raw data'!J117) -> -1.77709e-05 | C117: =IF('DF raw data'!K117="","",'DF raw data'!K117) -> 0.000115766 | D117: =IF('DF raw data'!L117="","",'DF raw data'!L117) -> -3.49045e-05 | F117: 2.533830998e-06 | G117: 1.167832525e-05 | H117: -7.615583602e-06 | J117: 4.855059061e-05 | K117: 0.0005899803787 | L117: 0.0003695337291 | M117: 0.00452602032 | N117: 1.153417654e-06
A118: =IF('DF raw data'!I118="","",'DF raw data'!I118) -> -274.5 | B118: =IF('DF raw data'!J118="","",'DF raw data'!J118) -> -1.94472e-05 | C118: =IF('DF raw data'!K118="","",'DF raw data'!K118) -> 0.000118948 | D118: =IF('DF raw data'!L118="","",'DF raw data'!L118) -> -2.39226e-05 | F118: 8.462997881e-07 | G118: 1.488164465e-05 | H118: 3.439895128e-06 | J118: 4.897374051e-05 | K118: 0.0006144672489 | L118: 0.0003769745514 | M118: 0.004714507595 | N118: 1.225671774e-06
A119: =IF('DF raw data'!I119="","",'DF raw data'!I119) -> -274 | B119: =IF('DF raw data'!J119="","",'DF raw data'!J119) -> -7.83245e-06 | C119: =IF('DF raw data'!K119="","",'DF raw data'!K119) -> 0.000112021 | D119: =IF('DF raw data'!L119="","",'DF raw data'!L119) -> -3.31955e-05 | F119: 1.253886861e-05 | G119: 7.908233748e-06 | H119: -5.895133302e-06 | J119: 5.524317481e-05 | K119: 0.0006420888363 | L119: 0.0003809286683 | M119: 0.004904971929 | N119: 1.299751003e-06
A120: =IF('DF raw data'!I120="","",'DF raw data'!I120) -> -273.5 | B120: =IF('DF raw data'!J120="","",'DF raw data'!J120) -> -1.46302e-05 | C120: =IF('DF raw data'!K120="","",'DF raw data'!K120) -> 0.000118816 | D120: =IF('DF raw data'!L120="","",'DF raw data'!L120) -> -3.46291e-05 | F120: 5.695573688e-06 | G120: 1.474876025e-05 | H120: -7.338338422e-06 | J120: 5.809096166e-05 | K120: 0.0006711343172 | L120: 0.0003883030484 | M120: 0.005099123454 | N120: 1.376827912e-06
A121: =IF('DF raw data'!I121="","",'DF raw data'!I121) -> -273 | B121: =IF('DF raw data'!J121="","",'DF raw data'!J121) -> -1.86691e-05 | C121: =IF('DF raw data'!K121="","",'DF raw data'!K121) -> 0.000115448 | D121: =IF('DF raw data'!L121="","",'DF raw data'!L121) -> -3.43049e-05 | F121: 1.629613058e-06 | G121: 1.135819465e-05 | H121: -7.011966282e-06 | J121: 5.890576819e-05 | K121: 0.0007005872013 | L121: 0.0003939821458 | M121: 0.005296114527 | N121: 1.456173822e-06
A122: =IF('DF raw data'!I122="","",'DF raw data'!I122) -> -272.5 | B122: =IF('DF raw data'!J122="","",'DF raw data'!J122) -> -1.97675e-05 | C122: =IF('DF raw data'!K122="","",'DF raw data'!K122) -> 0.000110013 | D122: =IF('DF raw data'!L122="","",'DF raw data'!L122) -> -2.45984e-05 | F122: 5.238537781e-07 | G122: 5.886780148e-06 | H122: 2.759567268e-06 | J122: 5.916769507e-05 | K122: 0.0007301710488 | L122: 0.0003969255358 | M122: 0.005494577294 | N122: 1.53669917e-06
A123: =IF('DF raw data'!I123="","",'DF raw data'!I123) -> -272 | B123: =IF('DF raw data'!J123="","",'DF raw data'!J123) -> -2.10446e-05 | C123: =IF('DF raw data'!K123="","",'DF raw data'!K123) -> 0.000109511 | D123: =IF('DF raw data'!L123="","",'DF raw data'!L123) -> -3.0214e-05 | F123: -7.618027919e-07 | G123: 5.381416748e-06 | H123: -2.893657252e-06 | J123: 5.878679368e-05 | K123: 0.0007595644456 | L123: 0.0003996162442 | M123: 0.005694385417 | N123: 1.618273685e-06
A124: =IF('DF raw data'!I124="","",'DF raw data'!I124) -> -271.5 | B124: =IF('DF raw data'!J124="","",'DF raw data'!J124) -> -2.08534e-05 | C124: =IF('DF raw data'!K124="","",'DF raw data'!K124) -> 0.000117707 | D124: =IF('DF raw data'!L124="","",'DF raw data'!L124) -> -3.14764e-05 | F124: -5.693217519e-07 | G124: 1.363232995e-05 | H124: -4.164515332e-06 | J124: 5.85021328e-05 | K124: 0.000788815512 | L124: 0.0004064324092 | M124: 0.005897601621 | N124: 1.702578587e-06
A125: =IF('DF raw data'!I125="","",'DF raw data'!I125) -> -271 | B125: =IF('DF raw data'!J125="","",'DF raw data'!J125) -> -1.95098e-05 | C125: =IF('DF raw data'!K125="","",'DF raw data'!K125) -> 0.000118547 | D125: =IF('DF raw data'!L125="","",'DF raw data'!L125) -> -2.37131e-05 | F125: 7.832803681e-07 | G125: 1.447795795e-05 | H125: 3.650798778e-06 | J125: 5.889377299e-05 | K125: 0.0008182623985 | L125: 0.0004136713882 | M125: 0.006104437315 | N125: 1.789874834e-06
A126: =IF('DF raw data'!I126="","",'DF raw data'!I126) -> -270.5 | B126: =IF('DF raw data'!J126="","",'DF raw data'!J126) -> -1.42509e-05 | C126: =IF('DF raw data'!K126="","",'DF raw data'!K126) -> 0.000119905 | D126: =IF('DF raw data'!L126="","",'DF raw data'!L126) -> -2.60885e-05 | F126: 6.077414998e-06 | G126: 1.584505655e-05 | H126: 1.259483598e-06 | J126: 6.193248049e-05 | K126: 0.0008492286388 | L126: 0.0004215939164 | M126: 0.006315234273 | N126: 1.880663365e-06
A127: =IF('DF raw data'!I127="","",'DF raw data'!I127) -> -270 | B127: =IF('DF raw data'!J127="","",'DF raw data'!J127) -> -8.92736e-06 | C127: =IF('DF raw data'!K127="","",'DF raw data'!K127) -> 0.000123013 | D127: =IF('DF raw data'!L127="","",'DF raw data'!L127) -> -2.57083e-05 | F127: 1.143662272e-05 | G127: 1.897388015e-05 | H127: 1.642230938e-06 | J127: 6.765079184e-05 | K127: 0.0008830540347 | L127: 0.0004310808565 | M127: 0.006530774702 | N127: 1.975867032e-06
A128: =IF('DF raw data'!I128="","",'DF raw data'!I128) -> -269.5 | B128: =IF('DF raw data'!J128="","",'DF raw data'!J128) -> -1.90572e-05 | C128: =IF('DF raw data'!K128="","",'DF raw data'!K128) -> 0.000122027 | D128: =IF('DF raw data'!L128="","",'DF raw data'!L128) -> -3.17269e-05 | F128: 1.238912788e-06 | G128: 1.798127395e-05 | H128: -4.416693682e-06 | J128: 6.827024824e-05 | K128: 0.0009171891588 | L128: 0.0004400714935 | M128: 0.006750810448 | N128: 2.075028905e-06
A129: =IF('DF raw data'!I129="","",'DF raw data'!I129) -> -269 | B129: =IF('DF raw data'!J129="","",'DF raw data'!J129) -> -2.21972e-05 | C129: =IF('DF raw data'!K129="","",'DF raw data'!K129) -> 0.000126642 | D129: =IF('DF raw data'!L129="","",'DF raw data'!L129) -> -3.29785e-05 | F129: -1.922125212e-06 | G129: 2.262719445e-05 | H129: -5.676679402e-06 | J129: 6.730918563e-05 | K129: 0.0009508437516 | L129: 0.0004513850907 | M129: 0.006976502994 | N129: 2.179168419e-06
A130: =IF('DF raw data'!I130="","",'DF raw data'!I130) -> -268.5 | B130: =IF('DF raw data'!J130="","",'DF raw data'!J130) -> -1.52112e-05 | C130: =IF('DF raw data'!K130="","",'DF raw data'!K130) -> 0.000130445 | D130: =IF('DF raw data'!L130="","",'DF raw data'!L130) -> -2.87295e-05 | F130: 5.110680988e-06 | G130: 2.645567455e-05 | H130: -1.399211102e-06 | J130: 6.986452613e-05 | K130: 0.0009857760147 | L130: 0.000464612928 | M130: 0.007208809458 | N130: 2.289541531e-06
A131: =IF('DF raw data'!I131="","",'DF raw data'!I131) -> -268 | B131: =IF('DF raw data'!J131="","",'DF raw data'!J131) -> -8.53568e-06 | C131: =IF('DF raw data'!K131="","",'DF raw data'!K131) -> 0.000131069 | D131: =IF('DF raw data'!L131="","",'DF raw data'!L131) -> -3.64269e-05 | F131: =(1-$G$1*($B$54-$G$2))*(B131-F$5) -> 1.183092697e-05 | G131: =(1-$G$1*($B$54-$G$2))*(C131-G$5) -> 2.708385535e-05 | H131: =(1-$G$1*($B$54-$G$2))*(D131-H$5) -> -9.148183682e-06 | J131: 7.577998961e-05 | K131: 0.00102366601 | L131: 0.0004781548556 | M131: 0.007447886886 | N131: 2.406728867e-06
A132: =IF('DF raw data'!I132="","",'DF raw data'!I132) -> -267.5 | B132: =IF('DF raw data'!J132="","",'DF raw data'!J132) -> -2.91305e-05 | C132: =IF('DF raw data'!K132="","",'DF raw data'!K132) -> 0.00012601 | D132: =IF('DF raw data'!L132="","",'DF raw data'!L132) -> -2.49399e-05 | F132: -8.901878322e-06 | G132: 2.199096005e-05 | H132: 2.415779218e-06 | J132: =F132*$G$3+J131 -> 7.132905045e-05 | K132: =J132*$G$3+K131 -> 0.001059330535 | L132: =G132*$G$3+L131 -> 0.0004891503357 | M132: =L132*$G$3+M131 -> 0.007692462053 | N132: =(J132^2+L132^2)*$G$3+N131 -> 2.52890681e-06
A133: =IF('DF raw data'!I133="","",'DF raw data'!I133) -> -267 | B133: =IF('DF raw data'!J133="","",'DF raw data'!J133) -> -2.59125e-05 | C133: =IF('DF raw data'!K133="","",'DF raw data'!K133) -> 0.000136227 | D133: =IF('DF raw data'!L133="","",'DF raw data'!L133) -> -3.96873e-05 | F133: -5.662317722e-06 | G133: 3.227641395e-05 | H133: -1.243042836e-05 | J133: 6.849789159e-05 | K133: 0.001093579481 | L133: 0.0005052885426 | M133: 0.007945106325 | N133: 2.658911046e-06
A134: =IF('DF raw data'!I134="","",'DF raw data'!I134) -> -266.5 | B134: =IF('DF raw data'!J134="","",'DF raw data'!J134) -> -1.90594e-05 | C134: =IF('DF raw data'!K134="","",'DF raw data'!K134) -> 0.000131148 | D134: =IF('DF raw data'!L134="","",'DF raw data'!L134) -> -2.82412e-05 | F134: 1.236698048e-06 | G134: 2.716338465e-05 | H134: -9.076394923e-07 | J134: 6.911624061e-05 | K134: 0.001128137601 | L134: 0.000518870235 | M134: 0.008204541442 | N134: 2.795912733e-06
A135: =IF('DF raw data'!I135="","",'DF raw data'!I135) -> -266 | B135: =IF('DF raw data'!J135="","",'DF raw data'!J135) -> -1.21291e-05 | C135: =IF('DF raw data'!K135="","",'DF raw data'!K135) -> 0.000120655 | D135: =IF('DF raw data'!L135="","",'DF raw data'!L135) -> -3.31515e-05 | F135: 8.213431058e-06 | G135: 1.660008155e-05 | H135: -5.850838502e-06 | J135: 7.322295614e-05 | K135: 0.001164749079 | L135: 0.0005271702757 | M135: 0.00846812658 | N135: 2.937547784e-06
A136: =IF('DF raw data'!I136="","",'DF raw data'!I136) -> -265.5 | B136: =IF('DF raw data'!J136="","",'DF raw data'!J136) -> -1.08369e-05 | C136: =IF('DF raw data'!K136="","",'DF raw data'!K136) -> 0.000123785 | D136: =IF('DF raw data'!L136="","",'DF raw data'!L136) -> -4.95323e-05 | F136: 9.514288798e-06 | G136: 1.975105255e-05 | H136: -2.234138986e-05 | J136: 7.798010054e-05 | K136: 0.001203739129 | L136: 0.000537045802 | M136: 0.008736649481 | N136: 3.084797329e-06
A137: =IF('DF raw data'!I137="","",'DF raw data'!I137) -> -265 | B137: =IF('DF raw data'!J137="","",'DF raw data'!J137) -> -5.71208e-06 | C137: =IF('DF raw data'!K137="","",'DF raw data'!K137) -> 0.000128692 | D137: =IF('DF raw data'!L137="","",'DF raw data'!L137) -> -3.95936e-05 | F137: 1.467344509e-05 | G137: 2.469092945e-05 | H137: -1.233610057e-05 | J137: 8.531682309e-05 | K137: 0.001246397541 | L137: 0.0005493912667 | M137: 0.009011345114 | N137: 3.239352191e-06
A138: =IF('DF raw data'!I138="","",'DF raw data'!I138) -> -264.5 | B138: =IF('DF raw data'!J138="","",'DF raw data'!J138) -> -1.89964e-05 | C138: =IF('DF raw data'!K138="","",'DF raw data'!K138) -> 0.000126221 | D138: =IF('DF raw data'!L138="","",'DF raw data'!L138) -> -2.67977e-05 | F138: 1.300120148e-06 | G138: 2.220337375e-05 | H138: 5.455319577e-07 | J138: 8.596688316e-05 | K138: 0.001289380982 | L138: 0.0005604929536 | M138: 0.009291591591 | N138: 3.400123519e-06
A139: =IF('DF raw data'!I139="","",'DF raw data'!I139) -> -264 | B139: =IF('DF raw data'!J139="","",'DF raw data'!J139) -> -1.70024e-05 | C139: =IF('DF raw data'!K139="","",'DF raw data'!K139) -> 0.000122283 | D139: =IF('DF raw data'!L139="","",'DF raw data'!L139) -> -3.36049e-05 | F139: 3.307479948e-06 | G139: 1.823898915e-05 | H139: -6.307276282e-06 | J139: 8.762062314e-05 | K139: 0.001333191294 | L139: 0.0005696124482 | M139: 0.009576397815 | N139: 3.566191376e-06
A140: =IF('DF raw data'!I140="","",'DF raw data'!I140) -> -263.5 | B140: =IF('DF raw data'!J140="","",'DF raw data'!J140) -> -1.70038e-05 | C140: =IF('DF raw data'!K140="","",'DF raw data'!K140) -> 0.000126997 | D140: =IF('DF raw data'!L140="","",'DF raw data'!L140) -> -3.36694e-05 | F140: 3.306070568e-06 | G140: 2.298457295e-05 | H140: -6.372208432e-06 | J140: 8.927365842e-05 | K140: 0.001377828123 | L140: 0.0005811047347 | M140: 0.009866950183 | N140: 3.739017626e-06
A141: =IF('DF raw data'!I141="","",'DF raw data'!I141) -> -263 | B141: =IF('DF raw data'!J141="","",'DF raw data'!J141) -> -2.86162e-05 | C141: =IF('DF raw data'!K141="","",'DF raw data'!K141) -> 0.000120117 | D141: =IF('DF raw data'!L141="","",'DF raw data'!L141) -> -2.34244e-05 | F141: -8.384132512e-06 | G141: 1.605847695e-05 | H141: 3.941433068e-06 | J141: 8.508159216e-05 | K141: 0.001420368919 | L141: 0.0005891339731 | M141: 0.01016151717 | N141: 3.916176483e-06
A142: =IF('DF raw data'!I142="","",'DF raw data'!I142) -> -262.5 | B142: =IF('DF raw data'!J142="","",'DF raw data'!J142) -> -1.40521e-05 | C142: =IF('DF raw data'!K142="","",'DF raw data'!K142) -> 0.000124492 | D142: =IF('DF raw data'!L142="","",'DF raw data'!L142) -> -3.61622e-05 | F142: 6.277546958e-06 | G142: 2.046278945e-05 | H142: -8.881710192e-06 | J142: 8.822036564e-05 | K142: 0.001464479102 | L142: 0.0005993653679 | M142: 0.01046119985 | N142: 4.099687322e-06
A143: =IF('DF raw data'!I143="","",'DF raw data'!I143) -> -262 | B143: =IF('DF raw data'!J143="","",'DF raw data'!J143) -> -2.30376e-05 | C143: =IF('DF raw data'!K143="","",'DF raw data'!K143) -> 0.000120456 | D143: =IF('DF raw data'!L143="","",'DF raw data'!L143) -> -2.25829e-05 | F143: -2.768155892e-06 | G143: 1.639974825e-05 | H143: 4.788571118e-06 | J143: 8.68362877e-05 | K143: 0.001507897246 | L143: 0.000607565242 | M143: 0.01076498247 | N143: 4.288025354e-06
A144: =IF('DF raw data'!I144="","",'DF raw data'!I144) -> -261.5 | B144: =IF('DF raw data'!J144="","",'DF raw data'!J144) -> -1.63669e-05 | C144: =IF('DF raw data'!K144="","",'DF raw data'!K144) -> 0.000117121 | D144: =IF('DF raw data'!L144="","",'DF raw data'!L144) -> -2.67097e-05 | F144: 3.947237798e-06 | G144: 1.304240375e-05 | H144: 6.341215577e-07 | J144: 8.88099066e-05 | K144: 0.001552302199 | L144: 0.0006140864439 | M144: 0.0110720257 | N144: 4.480520034e-06
A145: =IF('DF raw data'!I145="","",'DF raw data'!I145) -> -261 | B145: =IF('DF raw data'!J145="","",'DF raw data'!J145) -> -2.20034e-05 | C145: =IF('DF raw data'!K145="","",'DF raw data'!K145) -> 0.000121304 | D145: =IF('DF raw data'!L145="","",'DF raw data'!L145) -> -3.52518e-05 | F145: -1.727026752e-06 | G145: 1.725342985e-05 | H145: -7.965210512e-06 | J145: 8.794639322e-05 | K145: 0.001596275396 | L145: 0.0006227131588 | M145: 0.01138338228 | N145: 4.678273157e-06
A146: =IF('DF raw data'!I146="","",'DF raw data'!I146) -> -260.5 | B146: =IF('DF raw data'!J146="","",'DF raw data'!J146) -> -2.50178e-05 | C146: =IF('DF raw data'!K146="","",'DF raw data'!K146) -> 0.000115105 | D146: =IF('DF raw data'!L146="","",'DF raw data'!L146) -> -3.79509e-05 | F146: -4.761623232e-06 | G146: 1.101289655e-05 | H146: -1.068239448e-05 | J146: 8.55655816e-05 | K146: 0.001639058187 | L146: 0.0006282196071 | M146: 0.01169749208 | N146: 4.879263829e-06
A147: =IF('DF raw data'!I147="","",'DF raw data'!I147) -> -260 | B147: =IF('DF raw data'!J147="","",'DF raw data'!J147) -> -2.00847e-05 | C147: =IF('DF raw data'!K147="","",'DF raw data'!K147) -> 0.000107508 | D147: =IF('DF raw data'!L147="","",'DF raw data'!L147) -> -2.7378e-05 | F147: 2.045285381e-07 | G147: 3.364996648e-06 | H147: -3.865605232e-08 | J147: 8.566784587e-05 | K147: 0.001681892109 | L147: 0.0006299021054 | M147: 0.01201244313 | N147: 5.08132165e-06
A148: =IF('DF raw data'!I148="","",'DF raw data'!I148) -> -259.5 | B148: =IF('DF raw data'!J148="","",'DF raw data'!J148) -> -2.98261e-05 | C148: =IF('DF raw data'!K148="","",'DF raw data'!K148) -> 0.000109191 | D148: =IF('DF raw data'!L148="","",'DF raw data'!L148) -> -4.00568e-05 | F148: -9.602138842e-06 | G148: 5.059272748e-06 | H148: -1.280240401e-05 | J148: 8.086677645e-05 | K148: 0.001722325498 | L148: 0.0006324317418 | M148: 0.012328659 | N148: 5.284576322e-06
A149: =IF('DF raw data'!I149="","",'DF raw data'!I149) -> -259 | B149: =IF('DF raw data'!J149="","",'DF raw data'!J149) -> -1.36099e-05 | C149: =IF('DF raw data'!K149="","",'DF raw data'!K149) -> 0.000114906 | D149: =IF('DF raw data'!L149="","",'DF raw data'!L149) -> -2.39182e-05 | F149: 6.722709698e-06 | G149: 1.081256325e-05 | H149: 3.444324608e-06 | J149: 8.42281313e-05 | K149: 0.001764439563 | L149: 0.0006378380234 | M149: 0.01264757801 | N149: 5.491542183e-06
A150: =IF('DF raw data'!I150="","",'DF raw data'!I150) -> -258.5 | B150: =IF('DF raw data'!J150="","",'DF raw data'!J150) -> -9.76223e-06 | C150: =IF('DF raw data'!K150="","",'DF raw data'!K150) -> 0.000109319 | D150: =IF('DF raw data'!L150="","",'DF raw data'!L150) -> -2.52276e-05 | F150: 1.059615909e-05 | G150: 5.188130348e-06 | H150: 2.126151628e-06 | J150: 8.952621085e-05 | K150: 0.001809202669 | L150: 0.0006404320886 | M150: 0.01296779406 | N150: 5.700626284e-06
A151: =IF('DF raw data'!I151="","",'DF raw data'!I151) -> -258 | B151: =IF('DF raw data'!J151="","",'DF raw data'!J151) -> -1.41732e-05 | C151: =IF('DF raw data'!K151="","",'DF raw data'!K151) -> 0.00011309 | D151: =IF('DF raw data'!L151="","",'DF raw data'!L151) -> -4.5384e-05 | F151: 6.155635588e-06 | G151: 8.984396048e-06 | H151: -1.816529625e-05 | J151: 9.260402864e-05 | K151: 0.001855504683 | L151: 0.0006449242866 | M151: 0.0132902562 | N151: 5.912877705e-06
A152: =IF('DF raw data'!I152="","",'DF raw data'!I152) -> -257.5 | B152: =IF('DF raw data'!J152="","",'DF raw data'!J152) -> -2.67585e-05 | C152: =IF('DF raw data'!K152="","",'DF raw data'!K152) -> 0.000121193 | D152: =IF('DF raw data'!L152="","",'DF raw data'!L152) -> -2.3328e-05 | F152: -6.513985922e-06 | G152: 1.714168615e-05 | H152: 4.038478948e-06 | J152: 8.934703568e-05 | K152: 0.001900178201 | L152: 0.0006534951297 | M152: 0.01361700377 | N152: 6.130397093e-06
A153: =IF('DF raw data'!I153="","",'DF raw data'!I153) -> -257 | B153: =IF('DF raw data'!J153="","",'DF raw data'!J153) -> -1.76386e-05 | C153: =IF('DF raw data'!K153="","",'DF raw data'!K153) -> 0.000124403 | D153: =IF('DF raw data'!L153="","",'DF raw data'!L153) -> -4.151e-05 | F153: 2.667017408e-06 | G153: 2.037319315e-05 | H153: -1.426534045e-05 | J153: 9.068054438e-05 | K153: 0.001945518473 | L153: 0.0006636817262 | M153: 0.01394884463 | N153: 6.354745291e-06
A154: =IF('DF raw data'!I154="","",'DF raw data'!I154) -> -256.5 | B154: =IF('DF raw data'!J154="","",'DF raw data'!J154) -> -1.87366e-05 | C154: =IF('DF raw data'!K154="","",'DF raw data'!K154) -> 0.000118277 | D154: =IF('DF raw data'!L154="","",'DF raw data'!L154) -> -3.16939e-05 | F154: 1.561660808e-06 | G154: 1.420614895e-05 | H154: -4.383472582e-06 | J154: 9.146137479e-05 | K154: 0.001991249161 | L154: 0.0006707848007 | M154: 0.01428423703 | N154: 6.583904007e-06
A155: =IF('DF raw data'!I155="","",'DF raw data'!I155) -> -256 | B155: =IF('DF raw data'!J155="","",'DF raw data'!J155) -> -2.14311e-05 | C155: =IF('DF raw data'!K155="","",'DF raw data'!K155) -> 0.000117538 | D155: =IF('DF raw data'!L155="","",'DF raw data'!L155) -> -2.78755e-05 | F155: -1.150892342e-06 | G155: 1.346219765e-05 | H155: -5.394893023e-07 | J155: 9.088592862e-05 | K155: 0.002036692125 | L155: 0.0006775158995 | M155: 0.01462299498 | N155: 6.81754803e-06
A156: =IF('DF raw data'!I156="","",'DF raw data'!I156) -> -255.5 | B156: =IF('DF raw data'!J156="","",'DF raw data'!J156) -> -2.11692e-05 | C156: =IF('DF raw data'!K156="","",'DF raw data'!K156) -> 0.000118337 | D156: =IF('DF raw data'!L156="","",'DF raw data'!L156) -> -3.83343e-05 | F156: -8.872376119e-07 | G156: 1.426655095e-05 | H156: -1.106836326e-05 | J156: 9.044230981e-05 | K156: 0.00208191328 | L156: 0.000684649175 | M156: 0.01496531957 | N156: 7.056010182e-06
A157: =IF('DF raw data'!I157="","",'DF raw data'!I157) -> -255 | B157: =IF('DF raw data'!J157="","",'DF raw data'!J157) -> -2.12007e-06 | C157: =IF('DF raw data'!K157="","",'DF raw data'!K157) -> 0.000116523 | D157: =IF('DF raw data'!L157="","",'DF raw data'!L157) -> -4.10648e-05 | F157: 1.828952156e-05 | G157: 1.244039715e-05 | H157: -1.381715761e-05 | J157: 9.958707059e-05 | K157: 0.002131706815 | L157: 0.0006908693736 | M157: 0.01531075425 | N157: 7.29961922e-06
A158: =IF('DF raw data'!I158="","",'DF raw data'!I158) -> -254.5 | B158: =IF('DF raw data'!J158="","",'DF raw data'!J158) -> -2.50193e-05 | C158: =IF('DF raw data'!K158="","",'DF raw data'!K158) -> 0.0001127 | D158: =IF('DF raw data'!L158="","",'DF raw data'!L158) -> -3.52813e-05 | F158: -4.763133282e-06 | G158: 8.591783048e-06 | H158: -7.994908162e-06 | J158: 9.720550395e-05 | K158: 0.002180309567 | L158: 0.0006951652651 | M158: 0.01565833689 | N158: 7.545971048e-06
A159: =IF('DF raw data'!I159="","",'DF raw data'!I159) -> -254 | B159: =IF('DF raw data'!J159="","",'DF raw data'!J159) -> -8.46558e-06 | C159: =IF('DF raw data'!K159="","",'DF raw data'!K159) -> 0.000119975 | D159: =IF('DF raw data'!L159="","",'DF raw data'!L159) -> -4.59375e-05 | F159: 1.190149664e-05 | G159: 1.591552555e-05 | H159: -1.87225047e-05 | J159: 0.0001031562523 | K159: 0.002231887693 | L159: 0.0007031230279 | M159: 0.0160098984 | N159: 7.79848265e-06
A160: =IF('DF raw data'!I160="","",'DF raw data'!I160) -> -253.5 | B160: =IF('DF raw data'!J160="","",'DF raw data'!J160) -> -2.86054e-05 | C160: =IF('DF raw data'!K160="","",'DF raw data'!K160) -> 0.000113898 | D160: =IF('DF raw data'!L160="","",'DF raw data'!L160) -> -4.32734e-05 | F160: -8.373260152e-06 | G160: 9.797809648e-06 | H160: -1.604055523e-05 | J160: 9.896962219e-05 | K160: 0.002281372504 | L160: 0.0007080219327 | M160: 0.01636390937 | N160: 8.054027672e-06
A161: =IF('DF raw data'!I161="","",'DF raw data'!I161) -> -253 | B161: =IF('DF raw data'!J161="","",'DF raw data'!J161) -> -1.66157e-05 | C161: =IF('DF raw data'!K161="","",'DF raw data'!K161) -> 0.000118013 | D161: =IF('DF raw data'!L161="","",'DF raw data'!L161) -> -3.68018e-05 | F161: 3.696770838e-06 | G161: 1.394038015e-05 | H161: -9.525595512e-06 | J161: 0.0001008180076 | K161: 0.002331781508 | L161: 0.0007149921228 | M161: 0.01672140543 | N161: 8.314716675e-06
A162: =IF('DF raw data'!I162="","",'DF raw data'!I162) -> -252.5 | B162: =IF('DF raw data'!J162="","",'DF raw data'!J162) -> -3.21341e-05 | C162: =IF('DF raw data'!K162="","",'DF raw data'!K162) -> 0.000117129 | D162: =IF('DF raw data'!L162="","",'DF raw data'!L162) -> -4.11428e-05 | F162: -1.192560244e-05 | G162: 1.305045735e-05 | H162: -1.389568021e-05 | J162: 9.485520639e-05 | K162: 0.002379209111 | L162: 0.0007215173514 | M162: 0.0170821641 | N162: 8.579509074e-06
A163: =IF('DF raw data'!I163="","",'DF raw data'!I163) -> -252 | B163: =IF('DF raw data'!J163="","",'DF raw data'!J163) -> -2.48288e-05 | C163: =IF('DF raw data'!K163="","",'DF raw data'!K163) -> 0.000119495 | D163: =IF('DF raw data'!L163="","",'DF raw data'!L163) -> -2.97089e-05 | F163: -4.571356932e-06 | G163: 1.543230955e-05 | H163: -2.385173082e-06 | J163: 9.256952793e-05 | K163: 0.002425493875 | L163: 0.0007292335062 | M163: 0.01744678086 | N163: 8.849684386e-06
A164: =IF('DF raw data'!I164="","",'DF raw data'!I164) -> -251.5 | B164: =IF('DF raw data'!J164="","",'DF raw data'!J164) -> -2.60531e-05 | C164: =IF('DF raw data'!K164="","",'DF raw data'!K164) -> 0.000114367 | D164: =IF('DF raw data'!L164="","",'DF raw data'!L164) -> -2.3349e-05 | F164: -5.803859742e-06 | G164: 1.026995195e-05 | H164: 4.017338248e-06 | J164: 8.966759805e-05 | K164: 0.002470327674 | L164: 0.0007343684822 | M164: 0.0178139651 | N164: 9.123353059e-06
A165: =IF('DF raw data'!I165="","",'DF raw data'!I165) -> -251 | B165: =IF('DF raw data'!J165="","",'DF raw data'!J165) -> -1.70048e-05 | C165: =IF('DF raw data'!K165="","",'DF raw data'!K165) -> 0.00011851 | D165: =IF('DF raw data'!L165="","",'DF raw data'!L165) -> -3.01827e-05 | F165: 3.305063868e-06 | G165: 1.444071005e-05 | H165: -2.862147542e-06 | J165: 9.132012999e-05 | K165: 0.002515987739 | L165: 0.0007415888372 | M165: 0.01818475952 | N165: 9.402499744e-06
A166: =IF('DF raw data'!I166="","",'DF raw data'!I166) -> -250.5 | B166: =IF('DF raw data'!J166="","",'DF raw data'!J166) -> -2.64966e-05 | C166: =IF('DF raw data'!K166="","",'DF raw data'!K166) -> 0.000120645 | D166: =IF('DF raw data'!L166="","",'DF raw data'!L166) -> -3.14814e-05 | F166: -6.250331192e-06 | G166: 1.659001455e-05 | H166: -4.169548832e-06 | J166: 8.819496439e-05 | K166: 0.002560085221 | L166: 0.0007498838445 | M166: 0.01855970144 | N166: 9.68755181e-06
A167: =IF('DF raw data'!I167="","",'DF raw data'!I167) -> -250 | B167: =IF('DF raw data'!J167="","",'DF raw data'!J167) -> -1.95032e-05 | C167: =IF('DF raw data'!K167="","",'DF raw data'!K167) -> 0.000123495 | D167: =IF('DF raw data'!L167="","",'DF raw data'!L167) -> -3.408e-05 | F167: 7.899245881e-07 | G167: 1.945910955e-05 | H167: -6.785559452e-06 | J167: 8.858992669e-05 | K167: 0.002604380185 | L167: 0.0007596133993 | M167: 0.01893950814 | N167: 9.979982156e-06
A168: =IF('DF raw data'!I168="","",'DF raw data'!I168) -> -249.5 | B168: =IF('DF raw data'!J168="","",'DF raw data'!J168) -> -1.95711e-05 | C168: =IF('DF raw data'!K168="","",'DF raw data'!K168) -> 0.000126306 | D168: =IF('DF raw data'!L168="","",'DF raw data'!L168) -> -3.01469e-05 | F168: 7.215696581e-07 | G168: 2.228894325e-05 | H168: -2.826107682e-06 | J168: 8.895071152e-05 | K168: 0.002648855541 | L168: 0.0007707578709 | M168: 0.01932488707 | N168: 1.028097212e-05
A169: =IF('DF raw data'!I169="","",'DF raw data'!I169) -> -249 | B169: =IF('DF raw data'!J169="","",'DF raw data'!J169) -> -1.60395e-05 | C169: =IF('DF raw data'!K169="","",'DF raw data'!K169) -> 0.00012823 | D169: =IF('DF raw data'!L169="","",'DF raw data'!L169) -> -3.55846e-05 | F169: 4.276831378e-06 | G169: 2.422583405e-05 | H169: -8.300240272e-06 | J169: 9.10891272e-05 | K169: 0.002694400104 | L169: 0.0007828707879 | M169: 0.01971632247 | N169: 1.059156407e-05
A170: =IF('DF raw data'!I170="","",'DF raw data'!I170) -> -248.5 | B170: =IF('DF raw data'!J170="","",'DF raw data'!J170) -> -1.46268e-05 | C170: =IF('DF raw data'!K170="","",'DF raw data'!K170) -> 0.00012271 | D170: =IF('DF raw data'!L170="","",'DF raw data'!L170) -> -3.95217e-05 | F170: 5.698996468e-06 | G170: 1.866885005e-05 | H170: -1.226371884e-05 | J170: 9.393862544e-05 | K170: 0.002741369417 | L170: 0.0007922052129 | M170: 0.02011242507 | N170: 1.090977085e-05
A171: =IF('DF raw data'!I171="","",'DF raw data'!I171) -> -248 | B171: =IF('DF raw data'!J171="","",'DF raw data'!J171) -> -1.6737e-05 | C171: =IF('DF raw data'!K171="","",'DF raw data'!K171) -> 0.000122432 | D171: =IF('DF raw data'!L171="","",'DF raw data'!L171) -> -4.74769e-05 | F171: 3.574658128e-06 | G171: 1.838898745e-05 | H171: -2.027221868e-05 | J171: 9.57259545e-05 | K171: 0.002789232394 | L171: 0.0008013997067 | M171: 0.02051312493 | N171: 1.123547332e-05
A172: =IF('DF raw data'!I172="","",'DF raw data'!I172) -> -247.5 | B172: =IF('DF raw data'!J172="","",'DF raw data'!J172) -> -2.34772e-05 | C172: =IF('DF raw data'!K172="","",'DF raw data'!K172) -> 0.000122576 | D172: =IF('DF raw data'!L172="","",'DF raw data'!L172) -> -3.95078e-05 | F172: -3.210701212e-06 | G172: 1.853395225e-05 | H172: -1.224972571e-05 | J172: 9.41206039e-05 | K172: 0.002836292696 | L172: 0.0008106666828 | M172: 0.02091845827 | N172: 1.15684929e-05
A173: =IF('DF raw data'!I173="","",'DF raw data'!I173) -> -247 | B173: =IF('DF raw data'!J173="","",'DF raw data'!J173) -> -2.4829e-05 | C173: =IF('DF raw data'!K173="","",'DF raw data'!K173) -> 0.000126953 | D173: =IF('DF raw data'!L173="","",'DF raw data'!L173) -> -2.9261e-05 | F173: -4.571558272e-06 | G173: 2.294027815e-05 | H173: -1.934272152e-06 | J173: 9.183482476e-05 | K173: 0.002882210108 | L173: 0.0008221368219 | M173: 0.02132952668 | N173: 1.19106642e-05
A174: =IF('DF raw data'!I174="","",'DF raw data'!I174) -> -246.5 | B174: =IF('DF raw data'!J174="","",'DF raw data'!J174) -> -2.18146e-05 | C174: =IF('DF raw data'!K174="","",'DF raw data'!K174) -> 0.000128503 | D174: =IF('DF raw data'!L174="","",'DF raw data'!L174) -> -3.19418e-05 | F174: -1.536961792e-06 | G174: 2.450066315e-05 | H174: -4.633033512e-06 | J174: 9.106634386e-05 | K174: 0.00292774328 | L174: 0.0008343871534 | M174: 0.02174672026 | N174: 1.22629117e-05
A175: =IF('DF raw data'!I175="","",'DF raw data'!I175) -> -246 | B175: =IF('DF raw data'!J175="","",'DF raw data'!J175) -> -2.60546e-05 | C175: =IF('DF raw data'!K175="","",'DF raw data'!K175) -> 0.000129599 | D175: =IF('DF raw data'!L175="","",'DF raw data'!L175) -> -1.84191e-05 | F175: -5.805369792e-06 | G175: 2.560400635e-05 | H175: 8.980268578e-06 | J175: 8.816365897e-05 | K175: 0.00297182511 | L175: 0.0008471891566 | M175: 0.02217031484 | N175: 1.262566285e-05
A176: =IF('DF raw data'!I176="","",'DF raw data'!I176) -> -245.5 | B176: =IF('DF raw data'!J176="","",'DF raw data'!J176) -> -2.22099e-05 | C176: =IF('DF raw data'!K176="","",'DF raw data'!K176) -> 0.000119302 | D176: =IF('DF raw data'!L176="","",'DF raw data'!L176) -> -1.58182e-05 | F176: -1.934910302e-06 | G176: 1.523801645e-05 | H176: 1.159859461e-05 | J176: 8.719620382e-05 | K176: 0.003015423212 | L176: 0.0008548081648 | M176: 0.02259771892 | N176: 1.299481294e-05
A177: =IF('DF raw data'!I177="","",'DF raw data'!I177) -> -245 | B177: =IF('DF raw data'!J177="","",'DF raw data'!J177) -> -2.015e-05 | C177: =IF('DF raw data'!K177="","",'DF raw data'!K177) -> 0.000113481 | D177: =IF('DF raw data'!L177="","",'DF raw data'!L177) -> -2.56534e-05 | F177: 1.387910281e-07 | G177: 9.378015748e-06 | H177: 1.697498768e-06 | J177: 8.726559933e-05 | K177: 0.003059056011 | L177: 0.0008594971727 | M177: 0.0230274675 | N177: 1.336798827e-05
A178: =IF('DF raw data'!I178="","",'DF raw data'!I178) -> -244.5 | B178: =IF('DF raw data'!J178="","",'DF raw data'!J178) -> -1.94475e-05 | C178: =IF('DF raw data'!K178="","",'DF raw data'!K178) -> 0.000111333 | D178: =IF('DF raw data'!L178="","",'DF raw data'!L178) -> -2.28975e-05 | F178: 8.459977781e-07 | G178: 7.215624148e-06 | H178: 4.471863298e-06 | J178: 8.768859822e-05 | K178: 0.003102900311 | L178: 0.0008631049848 | M178: 0.02345902 | N178: 1.374430803e-05
A179: =IF('DF raw data'!I179="","",'DF raw data'!I179) -> -244 | B179: =IF('DF raw data'!J179="","",'DF raw data'!J179) -> -2.02081e-05 | C179: =IF('DF raw data'!K179="","",'DF raw data'!K179) -> 0.0001148 | D179: =IF('DF raw data'!L179="","",'DF raw data'!L179) -> -3.52816e-05 | F179: 8.03017581e-08 | G179: 1.070585305e-05 | H179: -7.995210172e-06 | J179: 8.77287491e-05 | K179: 0.003146764685 | L179: 0.0008684579113 | M179: 0.02389324895 | N179: 1.412526576e-05
A180: =IF('DF raw data'!I180="","",'DF raw data'!I180) -> -243.5 | B180: =IF('DF raw data'!J180="","",'DF raw data'!J180) -> -1.46296e-05 | C180: =IF('DF raw data'!K180="","",'DF raw data'!K180) -> 0.000121377 | D180: =IF('DF raw data'!L180="","",'DF raw data'!L180) -> -3.51179e-05 | F180: 5.696177708e-06 | G180: 1.732691895e-05 | H180: -7.830413382e-06 | J180: 9.057683795e-05 | K180: 0.003192053104 | L180: 0.0008771213708 | M180: 0.02433180964 | N180: 1.45140388e-05
A181: =IF('DF raw data'!I181="","",'DF raw data'!I181) -> -243 | B181: =IF('DF raw data'!J181="","",'DF raw data'!J181) -> -1.26379e-05 | C181: =IF('DF raw data'!K181="","",'DF raw data'!K181) -> 0.00011729 | D181: =IF('DF raw data'!L181="","",'DF raw data'!L181) -> -3.98168e-05 | F181: 7.701222098e-06 | G181: 1.321253605e-05 | H181: -1.256079601e-05 | J181: 9.4427449e-05 | K181: 0.003239266829 | L181: 0.0008837276388 | M181: 0.02477367346 | N181: 1.490898434e-05
A182: =IF('DF raw data'!I182="","",'DF raw data'!I182) -> -242.5 | B182: =IF('DF raw data'!J182="","",'DF raw data'!J182) -> -2.11112e-05 | C182: =IF('DF raw data'!K182="","",'DF raw data'!K182) -> 0.000108585 | D182: =IF('DF raw data'!L182="","",'DF raw data'!L182) -> -2.89183e-05 | F182: -8.288490119e-07 | G182: 4.449212548e-06 | H182: -1.589276062e-06 | J182: 9.40130245e-05 | K182: 0.003286273341 | L182: 0.0008859522451 | M182: 0.02521664958 | N182: 1.530585925e-05
A183: =IF('DF raw data'!I183="","",'DF raw data'!I183) -> -242 | B183: =IF('DF raw data'!J183="","",'DF raw data'!J183) -> -2.50154e-05 | C183: =IF('DF raw data'!K183="","",'DF raw data'!K183) -> 0.000113122 | D183: =IF('DF raw data'!L183="","",'DF raw data'!L183) -> -3.89078e-05 | F183: -4.759207152e-06 | G183: 9.016610448e-06 | H183: -1.164570571e-05 | J183: 9.163342092e-05 | K183: 0.003332090051 | L183: 0.0008904605503 | M183: 0.02566187985 | N183: 1.570651759e-05
A184: =IF('DF raw data'!I184="","",'DF raw data'!I184) -> -241.5 | B184: =IF('DF raw data'!J184="","",'DF raw data'!J184) -> -2.2196e-05 | C184: =IF('DF raw data'!K184="","",'DF raw data'!K184) -> 0.000112147 | D184: =IF('DF raw data'!L184="","",'DF raw data'!L184) -> -3.69791e-05 | F184: -1.920917172e-06 | G184: 8.035077948e-06 | H184: -9.704083422e-06 | J184: 9.067296234e-05 | K184: 0.003377426532 | L184: 0.0008944780893 | M184: 0.0261091189 | N184: 1.611067391e-05
A185: =IF('DF raw data'!I185="","",'DF raw data'!I185) -> -241 | B185: =IF('DF raw data'!J185="","",'DF raw data'!J185) -> -1.91769e-05 | C185: =IF('DF raw data'!K185="","",'DF raw data'!K185) -> 0.000107868 | D185: =IF('DF raw data'!L185="","",'DF raw data'!L185) -> -4.29333e-05 | F185: 1.118410798e-06 | G185: 3.727408648e-06 | H185: -1.569817656e-05 | J185: 9.123216773e-05 | K185: 0.003423042616 | L185: 0.0008963417936 | M185: 0.0265572898 | N185: 1.651654987e-05
A186: =IF('DF raw data'!I186="","",'DF raw data'!I186) -> -240.5 | B186: =IF('DF raw data'!J186="","",'DF raw data'!J186) -> -1.95648e-05 | C186: =IF('DF raw data'!K186="","",'DF raw data'!K186) -> 0.000115972 | D186: =IF('DF raw data'!L186="","",'DF raw data'!L186) -> -3.94345e-05 | F186: 7.279118681e-07 | G186: 1.188570545e-05 | H186: -1.21759346e-05 | J186: 9.159612367e-05 | K186: 0.003468840678 | L186: 0.0009022846463 | M186: 0.02700843212 | N186: 1.692780358e-05
A187: =IF('DF raw data'!I187="","",'DF raw data'!I187) -> -240 | B187: =IF('DF raw data'!J187="","",'DF raw data'!J187) -> -1.8029e-05 | C187: =IF('DF raw data'!K187="","",'DF raw data'!K187) -> 0.000116136 | D187: =IF('DF raw data'!L187="","",'DF raw data'!L187) -> -3.32029e-05 | F187: 2.274001728e-06 | G187: 1.205080425e-05 | H187: -5.902582882e-06 | J187: 9.273312453e-05 | K187: 0.00351520724 | L187: 0.0009083100484 | M187: 0.02746258714 | N187: 1.734461687e-05
A188: =IF('DF raw data'!I188="","",'DF raw data'!I188) -> -239.5 | B188: =IF('DF raw data'!J188="","",'DF raw data'!J188) -> -2.72035e-05 | C188: =IF('DF raw data'!K188="","",'DF raw data'!K188) -> 0.000110623 | D188: =IF('DF raw data'!L188="","",'DF raw data'!L188) -> -2.87987e-05 | F188: -6.961967422e-06 | G188: 6.500867148e-06 | H188: -1.468874742e-06 | J188: 8.925214082e-05 | K188: 0.003559833311 | L188: 0.000911560482 | M188: 0.02791836738 | N188: 1.77640711e-05
A189: =IF('DF raw data'!I189="","",'DF raw data'!I189) -> -239 | B189: =IF('DF raw data'!J189="","",'DF raw data'!J189) -> -2.19374e-05 | C189: =IF('DF raw data'!K189="","",'DF raw data'!K189) -> 0.000111008 | D189: =IF('DF raw data'!L189="","",'DF raw data'!L189) -> -3.86349e-05 | F189: -1.660584552e-06 | G189: 6.888446648e-06 | H189: -1.137097728e-05 | J189: 8.842184855e-05 | K189: 0.003604044235 | L189: 0.0009150047053 | M189: 0.02837586974 | N189: 1.818659712e-05
A190: =IF('DF raw data'!I190="","",'DF raw data'!I190) -> -238.5 | B190: =IF('DF raw data'!J190="","",'DF raw data'!J190) -> -1.59752e-05 | C190: =IF('DF raw data'!K190="","",'DF raw data'!K190) -> 0.000108593 | D190: =IF('DF raw data'!L190="","",'DF raw data'!L190) -> -3.68084e-05 | F190: 4.341562188e-06 | G190: 4.457266148e-06 | H190: -9.532239732e-06 | J190: 9.059262964e-05 | K190: 0.00364934055 | L190: 0.0009172333384 | M190: 0.02883448641 | N190: 1.861135913e-05
A191: =IF('DF raw data'!I191="","",'DF raw data'!I191) -> -238 | B191: =IF('DF raw data'!J191="","",'DF raw data'!J191) -> -2.45723e-05 | C191: =IF('DF raw data'!K191="","",'DF raw data'!K191) -> 0.000108987 | D191: =IF('DF raw data'!L191="","",'DF raw data'!L191) -> -2.99275e-05 | F191: -4.313138382e-06 | G191: 4.853905948e-06 | H191: -2.605237702e-06 | J191: 8.843606045e-05 | K191: 0.00369355858 | L191: 0.0009196602914 | M191: 0.02929431655 | N191: 1.903815712e-05
A192: =IF('DF raw data'!I192="","",'DF raw data'!I192) -> -237.5 | B192: =IF('DF raw data'!J192="","",'DF raw data'!J192) -> -3.84323e-05 | C192: =IF('DF raw data'!K192="","",'DF raw data'!K192) -> 0.000108396 | D192: =IF('DF raw data'!L192="","",'DF raw data'!L192) -> -1.95324e-05 | F192: -1.826600038e-05 | G192: 4.258946248e-06 | H192: 7.859509468e-06 | J192: 7.930306026e-05 | K192: 0.00373321011 | L192: 0.0009217897645 | M192: 0.02975521143 | N192: 1.94661498e-05
A193: =IF('DF raw data'!I193="","",'DF raw data'!I193) -> -237 | B193: =IF('DF raw data'!J193="","",'DF raw data'!J193) -> -2.07255e-05 | C193: =IF('DF raw data'!K193="","",'DF raw data'!K193) -> 0.000109727 | D193: =IF('DF raw data'!L193="","",'DF raw data'!L193) -> -2.88662e-05 | F193: -4.405648219e-07 | G193: 5.598863948e-06 | H193: -1.536826992e-06 | J193: 7.908277785e-05 | K193: 0.003772751499 | L193: 0.0009245891965 | M193: 0.03021750603 | N193: 1.989670943e-05
A194: =IF('DF raw data'!I194="","",'DF raw data'!I194) -> -236.5 | B194: =IF('DF raw data'!J194="","",'DF raw data'!J194) -> -1.89358e-05 | C194: =IF('DF raw data'!K194="","",'DF raw data'!K194) -> 0.000106297 | D194: =IF('DF raw data'!L194="","",'DF raw data'!L194) -> -2.02892e-05 | F194: 1.361126168e-06 | G194: 2.145882948e-06 | H194: 7.097638908e-06 | J194: 7.976334093e-05 | K194: 0.00381263317 | L194: 0.000925662138 | M194: 0.0306803371 | N194: 2.032831572e-05
A195: =IF('DF raw data'!I195="","",'DF raw data'!I195) -> -236 | B195: =IF('DF raw data'!J195="","",'DF raw data'!J195) -> -1.27655e-05 | C195: =IF('DF raw data'!K195="","",'DF raw data'!K195) -> 0.000107857 | D195: =IF('DF raw data'!L195="","",'DF raw data'!L195) -> -4.11306e-05 | F195: =(1-$G$1*($B$54-$G$2))*(B195-F$5) -> 7.572767178e-06 | G195: =(1-$G$1*($B$54-$G$2))*(C195-G$5) -> 3.716334948e-06 | H195: =(1-$G$1*($B$54-$G$2))*(D195-H$5) -> -1.388339847e-05 | J195: 8.354972452e-05 | K195: 0.003854408032 | L195: 0.0009275203054 | M195: 0.03114409725 | N195: 2.076195296e-05
A196: =IF('DF raw data'!I196="","",'DF raw data'!I196) -> -235.5 | B196: =IF('DF raw data'!J196="","",'DF raw data'!J196) -> -2.7521e-05 | C196: =IF('DF raw data'!K196="","",'DF raw data'!K196) -> 0.000108438 | D196: =IF('DF raw data'!L196="","",'DF raw data'!L196) -> -3.3546e-05 | F196: -7.281594672e-06 | G196: 4.301227648e-06 | H196: -6.247981652e-06 | J196: =F196*$G$3+J195 -> 7.990892718e-05 | K196: =J196*$G$3+K195 -> 0.003894362495 | L196: =G196*$G$3+L195 -> 0.0009296709192 | M196: =L196*$G$3+M195 -> 0.03160893271 | N196: =(J196^2+L196^2)*$G$3+N195 -> 2.119728969e-05
A197: =IF('DF raw data'!I197="","",'DF raw data'!I197) -> -235 | B197: =IF('DF raw data'!J197="","",'DF raw data'!J197) -> -2.25808e-05 | C197: =IF('DF raw data'!K197="","",'DF raw data'!K197) -> 0.000112332 | D197: =IF('DF raw data'!L197="","",'DF raw data'!L197) -> -3.5302e-05 | F197: -2.308295332e-06 | G197: 8.221317448e-06 | H197: -8.015746852e-06 | J197: 7.875477952e-05 | K197: 0.003933739885 | L197: 0.000933781578 | M197: 0.0320758235 | N197: 2.163636486e-05
A198: =IF('DF raw data'!I198="","",'DF raw data'!I198) -> -234.5 | B198: =IF('DF raw data'!J198="","",'DF raw data'!J198) -> -2.31566e-05 | C198: =IF('DF raw data'!K198="","",'DF raw data'!K198) -> 0.000112129 | D198: =IF('DF raw data'!L198="","",'DF raw data'!L198) -> -3.89742e-05 | F198: -2.887953192e-06 | G198: 8.016957348e-06 | H198: -1.171255059e-05 | J198: 7.731080292e-05 | K198: 0.003972395287 | L198: 0.0009377900566 | M198: 0.03254471853 | N198: 2.207907844e-05
A199: =IF('DF raw data'!I199="","",'DF raw data'!I199) -> -234 | B199: =IF('DF raw data'!J199="","",'DF raw data'!J199) -> -2.05232e-05 | C199: =IF('DF raw data'!K199="","",'DF raw data'!K199) -> 0.000107965 | D199: =IF('DF raw data'!L199="","",'DF raw data'!L199) -> -4.38351e-05 | F199: -2.369094119e-07 | G199: 3.825058548e-06 | H199: -1.660601862e-05 | J199: 7.719234822e-05 | K199: 0.004010991461 | L199: 0.0009397025859 | M199: 0.03301456982 | N199: 2.252357824e-05
A200: =IF('DF raw data'!I200="","",'DF raw data'!I200) -> -233.5 | B200: =IF('DF raw data'!J200="","",'DF raw data'!J200) -> -1.50746e-05 | C200: =IF('DF raw data'!K200="","",'DF raw data'!K200) -> 0.000113717 | D200: =IF('DF raw data'!L200="","",'DF raw data'!L200) -> -4.11545e-05 | F200: 5.248196208e-06 | G200: 9.615596948e-06 | H200: -1.39074586e-05 | J200: 7.981644632e-05 | K200: 0.004050899684 | L200: 0.0009445103844 | M200: 0.03348682502 | N200: 2.297281351e-05
... 1079 more rows

Sheet 30 mm
A1: =IF('DF raw data'!M1="","",'DF raw data'!M1) -> Number of header lines | B1: =IF('DF raw data'!N1="","",'DF raw data'!N1) -> 54 | C1: =IF('DF raw data'!C1="","",'DF raw data'!C1) ->  | D1: =IF('DF raw data'!D1="","",'DF raw data'!D1) ->  | F1: T_coeff | G1: -0.001 | H1: /degC | J1: IBy total | K1: =J1267*1000 -> 3.895271612 | L1: muTm | M1: =L1267*1000 -> 13.31056512 | R1: DF ref | S1: 1
A2: =IF('DF raw data'!M2="","",'DF raw data'!M2) -> Measured by | B2: =IF('DF raw data'!N2="","",'DF raw data'!N2) -> Danfysik | C2: =IF('DF raw data'!C2="","",'DF raw data'!C2) ->  | D2: =IF('DF raw data'!D2="","",'DF raw data'!D2) ->  | F2: Tcorr | G2: 20 | H2: degC | J2: JBy total | K2: =K1267 -> -9.610567329 | L2: muTm^2 | M2: =M1267 -> 1.535059573
A3: =IF('DF raw data'!M3="","",'DF raw data'!M3) -> Operator | B3: =IF('DF raw data'!N3="","",'DF raw data'!N3) -> PMHA | C3: =IF('DF raw data'!C3="","",'DF raw data'!C3) ->  | D3: =IF('DF raw data'!D3="","",'DF raw data'!D3) ->  | F3: Step | G3: =A68-A67 -> 0.5 | H3: mm | J3: PI total | K3: =N1267 -> 2419.324018 | L3: T^2mm^3
A4: =IF('DF raw data'!M4="","",'DF raw data'!M4) -> Data-time | B4: =IF('DF raw data'!N4="","",'DF raw data'!N4) -> 05-09-2024, 15:13:22 | C4: =IF('DF raw data'!C4="","",'DF raw data'!C4) ->  | D4: =IF('DF raw data'!D4="","",'DF raw data'!D4) -> 
A5: =IF('DF raw data'!M5="","",'DF raw data'!M5) -> Project | B5: =IF('DF raw data'!N5="","",'DF raw data'!N5) -> 504314 | C5: =IF('DF raw data'!C5="","",'DF raw data'!C5) ->  | D5: Bamb avr | F5: =(AVERAGE(B67:B107) + AVERAGE(B1227:B1267))/2 -> -1.764962524e-05 | G5: =(AVERAGE(C67:C107) + AVERAGE(C1227:C1267))/2 -> 0.0001249734805 | H5: =(AVERAGE(D67:D107) + AVERAGE(D1227:D1267))/2 -> -3.10177561e-05
A6: =IF('DF raw data'!M6="","",'DF raw data'!M6) -> Magnet type | B6: =IF('DF raw data'!N6="","",'DF raw data'!N6) -> Dipole | C6: =IF('DF raw data'!C6="","",'DF raw data'!C6) -> 
A7: =IF('DF raw data'!M7="","",'DF raw data'!M7) -> Magnet nr. | B7: =IF('DF raw data'!N7="","",'DF raw data'!N7) -> 2410093 | C7: =IF('DF raw data'!C7="","",'DF raw data'!C7) -> 
A8: =IF('DF raw data'!M8="","",'DF raw data'!M8) -> Meas. number | B8: =IF('DF raw data'!N8="","",'DF raw data'!N8) -> 378 | C8: =IF('DF raw data'!C8="","",'DF raw data'!C8) -> 
A9: =IF('DF raw data'!M9="","",'DF raw data'!M9) -> Add. info | B9: =IF('DF raw data'!N9="","",'DF raw data'!N9) -> X-alignment scan 3) | C9: =IF('DF raw data'!C9="","",'DF raw data'!C9) ->  | D9: =IF('DF raw data'!D9="","",'DF raw data'!D9) -> 
A10: =IF('DF raw data'!M10="","",'DF raw data'!M10) -> Device | B10: =IF('DF raw data'!N10="","",'DF raw data'!N10) -> (HAL) HALL-PROBE | C10: =IF('DF raw data'!C10="","",'DF raw data'!C10) ->  | D10: =IF('DF raw data'!D10="","",'DF raw data'!D10) -> 
A11: =IF('DF raw data'!M11="","",'DF raw data'!M11) -> Goal | B11: =IF('DF raw data'!N11="","",'DF raw data'!N11) -> (AXI) AXis Integral (Line, EFB) | C11: =IF('DF raw data'!C11="","",'DF raw data'!C11) ->  | D11: =IF('DF raw data'!D11="","",'DF raw data'!D11) -> 
A12: =IF('DF raw data'!M12="","",'DF raw data'!M12) -> Power supply mode | B12: =IF('DF raw data'!N12="","",'DF raw data'!N12) -> (PM) Permanent Magnet (no MPS in use) | C12: =IF('DF raw data'!C12="","",'DF raw data'!C12) ->  | D12: =IF('DF raw data'!D12="","",'DF raw data'!D12) -> 
A13: =IF('DF raw data'!M13="","",'DF raw data'!M13) -> Data format | B13: =IF('DF raw data'!N13="","",'DF raw data'!N13) -> Raw data text file | C13: =IF('DF raw data'!C13="","",'DF raw data'!C13) ->  | D13: =IF('DF raw data'!D13="","",'DF raw data'!D13) -> 
A14: =IF('DF raw data'!M14="","",'DF raw data'!M14) -> Direction of the pos. x-axis | B14: =IF('DF raw data'!N14="","",'DF raw data'!N14) -> See test program | C14: =IF('DF raw data'!C14="","",'DF raw data'!C14) ->  | D14: =IF('DF raw data'!D14="","",'DF raw data'!D14) -> 
A15: =IF('DF raw data'!M15="","",'DF raw data'!M15) -> Direction of the pos. y-axis | B15: =IF('DF raw data'!N15="","",'DF raw data'!N15) -> Vertical up | C15: =IF('DF raw data'!C15="","",'DF raw data'!C15) ->  | D15: =IF('DF raw data'!D15="","",'DF raw data'!D15) -> 
A16: =IF('DF raw data'!M16="","",'DF raw data'!M16) -> Direction of the pos. z-axis | B16: =IF('DF raw data'!N16="","",'DF raw data'!N16) -> See test program | C16: =IF('DF raw data'!C16="","",'DF raw data'!C16) ->  | D16: =IF('DF raw data'!D16="","",'DF raw data'!D16) -> 
A17: =IF('DF raw data'!M17="","",'DF raw data'!M17) -> Mapper type | B17: =IF('DF raw data'!N17="","",'DF raw data'!N17) -> Precision Hall Mapper | C17: =IF('DF raw data'!C17="","",'DF raw data'!C17) ->  | D17: =IF('DF raw data'!D17="","",'DF raw data'!D17) -> 
A18: =IF('DF raw data'!M18="","",'DF raw data'!M18) -> Mapper Danfysik Reg. Number | B18: =IF('DF raw data'!N18="","",'DF raw data'!N18) -> 2033-D (mapper 1) | C18: =IF('DF raw data'!C18="","",'DF raw data'!C18) ->  | D18: =IF('DF raw data'!D18="","",'DF raw data'!D18) -> 
A19: =IF('DF raw data'!M19="","",'DF raw data'!M19) -> Measurement consept | B19: =IF('DF raw data'!N19="","",'DF raw data'!N19) -> Square line grid | C19: =IF('DF raw data'!C19="","",'DF raw data'!C19) ->  | D19: =IF('DF raw data'!D19="","",'DF raw data'!D19) -> 
A20: =IF('DF raw data'!M20="","",'DF raw data'!M20) -> Mode | B20: =IF('DF raw data'!N20="","",'DF raw data'!N20) -> On-the-fly measurement | C20: =IF('DF raw data'!C20="","",'DF raw data'!C20) ->  | D20: =IF('DF raw data'!D20="","",'DF raw data'!D20) -> 
A21: =IF('DF raw data'!M21="","",'DF raw data'!M21) ->  | B21: =IF('DF raw data'!N21="","",'DF raw data'!N21) ->  | C21: =IF('DF raw data'!C21="","",'DF raw data'!C21) ->  | D21: =IF('DF raw data'!D21="","",'DF raw data'!D21) -> 
A22: =IF('DF raw data'!M22="","",'DF raw data'!M22) -> Probe Name | B22: =IF('DF raw data'!N22="","",'DF raw data'!N22) -> ID12_By | C22: =IF('DF raw data'!C22="","",'DF raw data'!C22) ->  | D22: =IF('DF raw data'!D22="","",'DF raw data'!D22) -> 
A23: =IF('DF raw data'!M23="","",'DF raw data'!M23) -> Probe Type | B23: =IF('DF raw data'!N23="","",'DF raw data'!N23) -> DF_ID_3D_Bxyz | C23: =IF('DF raw data'!C23="","",'DF raw data'!C23) ->  | D23: =IF('DF raw data'!D23="","",'DF raw data'!D23) -> 
A24: =IF('DF raw data'!M24="","",'DF raw data'!M24) -> Probe Danfysik Reg. Number | B24: =IF('DF raw data'!N24="","",'DF raw data'!N24) -> 2277 | C24: =IF('DF raw data'!C24="","",'DF raw data'!C24) ->  | D24: =IF('DF raw data'!D24="","",'DF raw data'!D24) -> 
A25: =IF('DF raw data'!M25="","",'DF raw data'!M25) -> Probe Axis | B25: =IF('DF raw data'!N25="","",'DF raw data'!N25) -> By | C25: =IF('DF raw data'!C25="","",'DF raw data'!C25) ->  | D25: =IF('DF raw data'!D25="","",'DF raw data'!D25) -> 
A26: =IF('DF raw data'!M26="","",'DF raw data'!M26) -> Probe Current Supply | B26: =IF('DF raw data'!N26="","",'DF raw data'!N26) -> 1825-D | C26: =IF('DF raw data'!C26="","",'DF raw data'!C26) ->  | D26: =IF('DF raw data'!D26="","",'DF raw data'!D26) -> 
A27: =IF('DF raw data'!M27="","",'DF raw data'!M27) -> Probe Gain Correction | B27: =IF('DF raw data'!N27="","",'DF raw data'!N27) -> 0.99618 | C27: =IF('DF raw data'!C27="","",'DF raw data'!C27) ->  | D27: =IF('DF raw data'!D27="","",'DF raw data'!D27) -> 
A28: =IF('DF raw data'!M28="","",'DF raw data'!M28) -> Probe Offset Correction | B28: =IF('DF raw data'!N28="","",'DF raw data'!N28) -> 0.0027415 | C28: =IF('DF raw data'!C28="","",'DF raw data'!C28) ->  | D28: =IF('DF raw data'!D28="","",'DF raw data'!D28) -> 
A29: =IF('DF raw data'!M29="","",'DF raw data'!M29) -> DVM Number | B29: =IF('DF raw data'!N29="","",'DF raw data'!N29) -> 2 | C29: =IF('DF raw data'!C29="","",'DF raw data'!C29) ->  | D29: =IF('DF raw data'!D29="","",'DF raw data'!D29) -> 
A30: =IF('DF raw data'!M30="","",'DF raw data'!M30) -> DVM Type | B30: =IF('DF raw data'!N30="","",'DF raw data'!N30) -> K2701 | C30: =IF('DF raw data'!C30="","",'DF raw data'!C30) ->  | D30: =IF('DF raw data'!D30="","",'DF raw data'!D30) -> 
A31: =IF('DF raw data'!M31="","",'DF raw data'!M31) -> DVM Danfysik Reg. Number | B31: =IF('DF raw data'!N31="","",'DF raw data'!N31) -> 1743-D | C31: =IF('DF raw data'!C31="","",'DF raw data'!C31) ->  | D31: =IF('DF raw data'!D31="","",'DF raw data'!D31) -> 
A32: =IF('DF raw data'!M32="","",'DF raw data'!M32) -> Probe Name | B32: =IF('DF raw data'!N32="","",'DF raw data'!N32) -> ID12_Bx | C32: =IF('DF raw data'!C32="","",'DF raw data'!C32) ->  | D32: =IF('DF raw data'!D32="","",'DF raw data'!D32) -> 
A33: =IF('DF raw data'!M33="","",'DF raw data'!M33) -> Probe Type | B33: =IF('DF raw data'!N33="","",'DF raw data'!N33) -> DF_ID_3D_Bxyz | C33: =IF('DF raw data'!C33="","",'DF raw data'!C33) ->  | D33: =IF('DF raw data'!D33="","",'DF raw data'!D33) -> 
A34: =IF('DF raw data'!M34="","",'DF raw data'!M34) -> Probe Danfysik Reg. Number | B34: =IF('DF raw data'!N34="","",'DF raw data'!N34) -> 2277 | C34: =IF('DF raw data'!C34="","",'DF raw data'!C34) ->  | D34: =IF('DF raw data'!D34="","",'DF raw data'!D34) -> 
A35: =IF('DF raw data'!M35="","",'DF raw data'!M35) -> Probe Axis | B35: =IF('DF raw data'!N35="","",'DF raw data'!N35) -> Bx | C35: =IF('DF raw data'!C35="","",'DF raw data'!C35) ->  | D35: =IF('DF raw data'!D35="","",'DF raw data'!D35) -> 
A36: =IF('DF raw data'!M36="","",'DF raw data'!M36) -> Probe Current Supply | B36: =IF('DF raw data'!N36="","",'DF raw data'!N36) -> 1825-D | C36: =IF('DF raw data'!C36="","",'DF raw data'!C36) ->  | D36: =IF('DF raw data'!D36="","",'DF raw data'!D36) -> 
A37: =IF('DF raw data'!M37="","",'DF raw data'!M37) -> Probe Gain Correction | B37: =IF('DF raw data'!N37="","",'DF raw data'!N37) -> 1 | C37: =IF('DF raw data'!C37="","",'DF raw data'!C37) ->  | D37: =IF('DF raw data'!D37="","",'DF raw data'!D37) -> 
A38: =IF('DF raw data'!M38="","",'DF raw data'!M38) -> Probe Offset Correction | B38: =IF('DF raw data'!N38="","",'DF raw data'!N38) -> -0.17583 | C38: =IF('DF raw data'!C38="","",'DF raw data'!C38) ->  | D38: =IF('DF raw data'!D38="","",'DF raw data'!D38) -> 
A39: =IF('DF raw data'!M39="","",'DF raw data'!M39) -> DVM Number | B39: =IF('DF raw data'!N39="","",'DF raw data'!N39) -> 3 | C39: =IF('DF raw data'!C39="","",'DF raw data'!C39) ->  | D39: =IF('DF raw data'!D39="","",'DF raw data'!D39) -> 
A40: =IF('DF raw data'!M40="","",'DF raw data'!M40) -> DVM Type | B40: =IF('DF raw data'!N40="","",'DF raw data'!N40) -> K2701 | C40: =IF('DF raw data'!C40="","",'DF raw data'!C40) ->  | D40: =IF('DF raw data'!D40="","",'DF raw data'!D40) -> 
A41: =IF('DF raw data'!M41="","",'DF raw data'!M41) -> DVM Danfysik Reg. Number | B41: =IF('DF raw data'!N41="","",'DF raw data'!N41) -> 1744-D | C41: =IF('DF raw data'!C41="","",'DF raw data'!C41) ->  | D41: =IF('DF raw data'!D41="","",'DF raw data'!D41) -> 
A42: =IF('DF raw data'!M42="","",'DF raw data'!M42) -> Probe Name | B42: =IF('DF raw data'!N42="","",'DF raw data'!N42) -> ID12_Bz | C42: =IF('DF raw data'!C42="","",'DF raw data'!C42) ->  | D42: =IF('DF raw data'!D42="","",'DF raw data'!D42) -> 
A43: =IF('DF raw data'!M43="","",'DF raw data'!M43) -> Probe Type | B43: =IF('DF raw data'!N43="","",'DF raw data'!N43) -> DF_ID_3D_Bxyz | C43: =IF('DF raw data'!C43="","",'DF raw data'!C43) ->  | D43: =IF('DF raw data'!D43="","",'DF raw data'!D43) -> 
A44: =IF('DF raw data'!M44="","",'DF raw data'!M44) -> Probe Danfysik Reg. Number | B44: =IF('DF raw data'!N44="","",'DF raw data'!N44) -> 2277 | C44: =IF('DF raw data'!C44="","",'DF raw data'!C44) ->  | D44: =IF('DF raw data'!D44="","",'DF raw data'!D44) -> 
A45: =IF('DF raw data'!M45="","",'DF raw data'!M45) -> Probe Axis | B45: =IF('DF raw data'!N45="","",'DF raw data'!N45) -> Bz | C45: =IF('DF raw data'!C45="","",'DF raw data'!C45) ->  | D45: =IF('DF raw data'!D45="","",'DF raw data'!D45) -> 
A46: =IF('DF raw data'!M46="","",'DF raw data'!M46) -> Probe Current Supply | B46: =IF('DF raw data'!N46="","",'DF raw data'!N46) -> 1825-D | C46: =IF('DF raw data'!C46="","",'DF raw data'!C46) ->  | D46: =IF('DF raw data'!D46="","",'DF raw data'!D46) -> 
A47: =IF('DF raw data'!M47="","",'DF raw data'!M47) -> Probe Gain Correction | B47: =IF('DF raw data'!N47="","",'DF raw data'!N47) -> 1 | C47: =IF('DF raw data'!C47="","",'DF raw data'!C47) ->  | D47: =IF('DF raw data'!D47="","",'DF raw data'!D47) -> 
A48: =IF('DF raw data'!M48="","",'DF raw data'!M48) -> Probe Offset Correction | B48: =IF('DF raw data'!N48="","",'DF raw data'!N48) -> 0.0073366 | C48: =IF('DF raw data'!C48="","",'DF raw data'!C48) ->  | D48: =IF('DF raw data'!D48="","",'DF raw data'!D48) -> 
A49: =IF('DF raw data'!M49="","",'DF raw data'!M49) -> DVM Number | B49: =IF('DF raw data'!N49="","",'DF raw data'!N49) -> 8 | C49: =IF('DF raw data'!C49="","",'DF raw data'!C49) ->  | D49: =IF('DF raw data'!D49="","",'DF raw data'!D49) -> 
A50: =IF('DF raw data'!M50="","",'DF raw data'!M50) -> DVM Type | B50: =IF('DF raw data'!N50="","",'DF raw data'!N50) -> K2700 | C50: =IF('DF raw data'!C50="","",'DF raw data'!C50) ->  | D50: =IF('DF raw data'!D50="","",'DF raw data'!D50) -> 
A51: =IF('DF raw data'!M51="","",'DF raw data'!M51) -> DVM Danfysik Reg. Number | B51: =IF('DF raw data'!N51="","",'DF raw data'!N51) -> 1756-D | C51: =IF('DF raw data'!C51="","",'DF raw data'!C51) ->  | D51: =IF('DF raw data'!D51="","",'DF raw data'!D51) -> 
A52: =IF('DF raw data'!M52="","",'DF raw data'!M52) -> NTC voltage | B52: =IF('DF raw data'!N52="","",'DF raw data'!N52) -> 0.38599 | C52: =IF('DF raw data'!C52="","",'DF raw data'!C52) ->  | D52: =IF('DF raw data'!D52="","",'DF raw data'!D52) -> 
A53: =IF('DF raw data'!M53="","",'DF raw data'!M53) -> PS-Gap: | B53: =IF('DF raw data'!N53="","",'DF raw data'!N53) -> 30 | C53: =IF('DF raw data'!C53="","",'DF raw data'!C53) ->  | D53: =IF('DF raw data'!D53="","",'DF raw data'!D53) -> 
A54: =IF('DF raw data'!M54="","",'DF raw data'!M54) -> PS-Temperature: | B54: =IF('DF raw data'!N54="","",'DF raw data'!N54) -> 26.9 | C54: =IF('DF raw data'!C54="","",'DF raw data'!C54) ->  | D54: =IF('DF raw data'!D54="","",'DF raw data'!D54) -> 
A55: =IF('DF raw data'!M55="","",'DF raw data'!M55) -> PS-Encoder: | B55: =IF('DF raw data'!N55="","",'DF raw data'!N55) -> 39.9777 | C55: =IF('DF raw data'!C55="","",'DF raw data'!C55) ->  | D55: =IF('DF raw data'!D55="","",'DF raw data'!D55) -> 
A56: =IF('DF raw data'!M56="","",'DF raw data'!M56) ->  | B56: =IF('DF raw data'!N56="","",'DF raw data'!N56) -> 
A57: =IF('DF raw data'!M57="","",'DF raw data'!M57) -> Monitor-Index | B57: =IF('DF raw data'!N57="","",'DF raw data'!N57) -> [1,1,4]
A58: =IF('DF raw data'!M58="","",'DF raw data'!M58) ->  | B58: =IF('DF raw data'!N58="","",'DF raw data'!N58) -> 
A59: =IF('DF raw data'!M59="","",'DF raw data'!M59) -> Time [s] | B59: =IF('DF raw data'!N59="","",'DF raw data'!N59) -> Y [mm]
A60: =IF('DF raw data'!M60="","",'DF raw data'!M60) ->  | B60: =IF('DF raw data'!N60="","",'DF raw data'!N60) -> 
A61: =IF('DF raw data'!M61="","",'DF raw data'!M61) -> 220.9 | B61: =IF('DF raw data'!N61="","",'DF raw data'!N61) -> 31.76
A62: =IF('DF raw data'!M62="","",'DF raw data'!M62) ->  | B62: =IF('DF raw data'!N62="","",'DF raw data'!N62) -> 
A63: =IF('DF raw data'!M63="","",'DF raw data'!M63) -> Measurement-Index | B63: =IF('DF raw data'!N63="","",'DF raw data'!N63) -> [1,1,1201,2]
A64: =IF('DF raw data'!M64="","",'DF raw data'!M64) ->  | B64: =IF('DF raw data'!N64="","",'DF raw data'!N64) -> 
A65: =IF('DF raw data'!M65="","",'DF raw data'!M65) -> Z [mm] | B65: =IF('DF raw data'!N65="","",'DF raw data'!N65) -> By [T] | C65: =IF('DF raw data'!O65="","",'DF raw data'!O65) -> Bx [T] | D65: =IF('DF raw data'!P65="","",'DF raw data'!P65) -> Bz [T] | F65: By_corr | G65: Bx_corr | H65: Bz_corr | J65: Iy | K65: Jy | L65: Ix | M65: Jx | N65: PI
B66: =IF('DF raw data'!N66="","",'DF raw data'!N66) ->  | C66: =IF('DF raw data'!O66="","",'DF raw data'!O66) ->  | D66: =IF('DF raw data'!P66="","",'DF raw data'!P66) -> 
A67: =IF('DF raw data'!M67="","",'DF raw data'!M67) -> -300 | B67: =IF('DF raw data'!N67="","",'DF raw data'!N67) -> -2.3167e-05 | C67: =IF('DF raw data'!O67="","",'DF raw data'!O67) -> 0.000133862 | D67: =IF('DF raw data'!P67="","",'DF raw data'!P67) -> -3.29431e-05 | F67: =(1-$G$1*($B$54-$G$2))*(B67-F$5) -> -5.555444642e-06 | G67: =(1-$G$1*($B$54-$G$2))*(C67-G$5) -> 8.949850297e-06 | H67: =(1-$G$1*($B$54-$G$2))*(D67-H$5) -> -1.938628775e-06 | J67: =F67*$G$3+J66 -> -2.777722321e-06 | K67: =J67*$G$3+K66 -> -1.38886116e-06 | L67: =G67*$G$3+L66 -> 4.474925148e-06 | M67: =L67*$G$3+M66 -> 2.237462574e-06 | N67: =(J67^2+L67^2)*$G$3+N66 -> 1.387034819e-11
A68: =IF('DF raw data'!M68="","",'DF raw data'!M68) -> -299.5 | B68: =IF('DF raw data'!N68="","",'DF raw data'!N68) -> -9.25044e-06 | C68: =IF('DF raw data'!O68="","",'DF raw data'!O68) -> 0.000136191 | D68: =IF('DF raw data'!P68="","",'DF raw data'!P68) -> -3.3953e-05 | F68: 8.457139622e-06 | G68: 1.12949204e-05 | H68: -2.955497085e-06 | J68: =F68*$G$3+J67 -> 1.45084749e-06 | K68: =J68*$G$3+K67 -> -6.634374154e-07 | L68: =G68*$G$3+L67 -> 1.012238535e-05 | M68: =L68*$G$3+M67 -> 7.298655248e-06 | N68: =(J68^2+L68^2)*$G$3+N67 -> 6.615416996e-11
A69: =IF('DF raw data'!M69="","",'DF raw data'!M69) -> -299 | B69: =IF('DF raw data'!N69="","",'DF raw data'!N69) -> -1.64318e-05 | C69: =IF('DF raw data'!O69="","",'DF raw data'!O69) -> 0.000141698 | D69: =IF('DF raw data'!P69="","",'DF raw data'!P69) -> -3.54726e-05 | F69: 1.226228238e-06 | G69: 1.68399187e-05 | H69: -4.485582325e-06 | J69: 2.063961609e-06 | K69: 3.685433891e-07 | L69: 1.85423447e-05 | M69: 1.65698276e-05 | N69: 2.401934121e-10
A70: =IF('DF raw data'!M70="","",'DF raw data'!M70) -> -298.5 | B70: =IF('DF raw data'!N70="","",'DF raw data'!N70) -> -2.14991e-05 | C70: =IF('DF raw data'!O70="","",'DF raw data'!O70) -> 0.000144534 | D70: =IF('DF raw data'!P70="","",'DF raw data'!P70) -> -3.56877e-05 | F70: -3.876036132e-06 | G70: 1.96954871e-05 | H70: -4.702166515e-06 | J70: 1.259435432e-07 | K70: 4.315151607e-07 | L70: 2.839008824e-05 | M70: 3.076487172e-05 | N70: 6.431998983e-10
A71: =IF('DF raw data'!M71="","",'DF raw data'!M71) -> -298 | B71: =IF('DF raw data'!N71="","",'DF raw data'!N71) -> -2.56025e-05 | C71: =IF('DF raw data'!O71="","",'DF raw data'!O71) -> 0.000141878 | D71: =IF('DF raw data'!P71="","",'DF raw data'!P71) -> -3.48587e-05 | F71: -8.007749592e-06 | G71: 1.70211607e-05 | H71: -3.867446415e-06 | J71: -3.877931253e-06 | K71: -1.507450466e-06 | L71: 3.690066859e-05 | M71: 4.921520601e-05 | N71: 1.331548745e-09
A72: =IF('DF raw data'!M72="","",'DF raw data'!M72) -> -297.5 | B72: =IF('DF raw data'!N72="","",'DF raw data'!N72) -> -1.90627e-05 | C72: =IF('DF raw data'!O72="","",'DF raw data'!O72) -> 0.000138769 | D72: =IF('DF raw data'!P72="","",'DF raw data'!P72) -> -3.44185e-05 | F72: -1.422824972e-06 | G72: 1.38907086e-05 | H72: -3.424209035e-06 | J72: -4.589343739e-06 | K72: -3.802122335e-06 | L72: 4.384602289e-05 | M72: 7.113821746e-05 | N72: 2.303316645e-09
A73: =IF('DF raw data'!M73="","",'DF raw data'!M73) -> -297 | B73: =IF('DF raw data'!N73="","",'DF raw data'!N73) -> -1.39955e-05 | C73: =IF('DF raw data'!O73="","",'DF raw data'!O73) -> 0.000139793 | D73: =IF('DF raw data'!P73="","",'DF raw data'!P73) -> -3.44769e-05 | F73: 3.679338708e-06 | G73: 1.49217742e-05 | H73: -3.483011995e-06 | J73: -2.749674385e-06 | K73: -5.176959527e-06 | L73: 5.130690999e-05 | M73: 9.679167245e-05 | N73: 3.623296505e-09
A74: =IF('DF raw data'!M74="","",'DF raw data'!M74) -> -296.5 | B74: =IF('DF raw data'!N74="","",'DF raw data'!N74) -> -2.59889e-05 | C74: =IF('DF raw data'!O74="","",'DF raw data'!O74) -> 0.000140688 | D74: =IF('DF raw data'!P74="","",'DF raw data'!P74) -> -3.43724e-05 | F74: -8.396815752e-06 | G74: 1.58229497e-05 | H74: -3.377790945e-06 | J74: -6.948082261e-06 | K74: -8.651000658e-06 | L74: 5.921838484e-05 | M74: 0.0001264008649 | N74: 5.40084298e-09
A75: =IF('DF raw data'!M75="","",'DF raw data'!M75) -> -296 | B75: =IF('DF raw data'!N75="","",'DF raw data'!N75) -> -5.53088e-06 | C75: =IF('DF raw data'!O75="","",'DF raw data'!O75) -> 0.000142113 | D75: =IF('DF raw data'!P75="","",'DF raw data'!P75) -> -3.44349e-05 | F75: 1.220236459e-05 | G75: 1.72577822e-05 | H75: -3.440722195e-06 | J75: -8.468999676e-07 | K75: -9.074450642e-06 | L75: 6.784727594e-05 | M75: 0.0001603245028 | N75: 7.702828026e-09
A76: =IF('DF raw data'!M76="","",'DF raw data'!M76) -> -295.5 | B76: =IF('DF raw data'!N76="","",'DF raw data'!N76) -> -2.04095e-05 | C76: =IF('DF raw data'!O76="","",'DF raw data'!O76) -> 0.000147594 | D76: =IF('DF raw data'!P76="","",'DF raw data'!P76) -> -3.4402e-05 | F76: -2.778917892e-06 | G76: 2.27766011e-05 | H76: -3.407595185e-06 | J76: -2.236358914e-06 | K76: -1.01926301e-05 | L76: 7.923557648e-05 | M76: 0.0001999422911 | N76: 1.084446697e-08
A77: =IF('DF raw data'!M77="","",'DF raw data'!M77) -> -295 | B77: =IF('DF raw data'!N77="","",'DF raw data'!N77) -> -9.12227e-06 | C77: =IF('DF raw data'!O77="","",'DF raw data'!O77) -> 0.00013864 | D77: =IF('DF raw data'!P77="","",'DF raw data'!P77) -> -3.40269e-05 | F77: 8.586193995e-06 | G77: 1.37608185e-05 | H77: -3.029906995e-06 | J77: 2.056738084e-06 | K77: -9.164261056e-06 | L77: 8.611598573e-05 | M77: 0.0002430002839 | N77: 1.455456355e-08
A78: =IF('DF raw data'!M78="","",'DF raw data'!M78) -> -294.5 | B78: =IF('DF raw data'!N78="","",'DF raw data'!N78) -> -1.29064e-05 | C78: =IF('DF raw data'!O78="","",'DF raw data'!O78) -> 0.000135477 | D78: =IF('DF raw data'!P78="","",'DF raw data'!P78) -> -3.39783e-05 | F78: 4.775953498e-06 | G78: 1.05759938e-05 | H78: -2.980971655e-06 | J78: 4.444714833e-06 | K78: -6.94190364e-06 | L78: 9.140398263e-05 | M78: 0.0002887022753 | N78: 1.874178532e-08
A79: =IF('DF raw data'!M79="","",'DF raw data'!M79) -> -294 | B79: =IF('DF raw data'!N79="","",'DF raw data'!N79) -> 3.83248e-06 | C79: =IF('DF raw data'!O79="","",'DF raw data'!O79) -> 0.000146272 | D79: =IF('DF raw data'!P79="","",'DF raw data'!P79) -> -3.53215e-05 | F79: 2.163033177e-05 | G79: 2.14454793e-05 | H79: -4.333439735e-06 | J79: 1.525988072e-05 | K79: 6.880367192e-07 | L79: 0.0001021267223 | M79: 0.0003397656364 | N79: 2.4073151e-08
A80: =IF('DF raw data'!M80="","",'DF raw data'!M80) -> -293.5 | B80: =IF('DF raw data'!N80="","",'DF raw data'!N80) -> -7.96645e-06 | C80: =IF('DF raw data'!O80="","",'DF raw data'!O80) -> 0.000138346 | D80: =IF('DF raw data'!P80="","",'DF raw data'!P80) -> -3.67389e-05 | F80: 9.749989153e-06 | G80: 1.34647899e-05 | H80: -5.760619795e-06 | J80: 2.013487529e-05 | K80: 1.075547437e-05 | L80: 0.0001088591172 | M80: 0.000394195195 | N80: 3.02010113e-08
A81: =IF('DF raw data'!M81="","",'DF raw data'!M81) -> -293 | B81: =IF('DF raw data'!N81="","",'DF raw data'!N81) -> -2.34218e-05 | C81: =IF('DF raw data'!O81="","",'DF raw data'!O81) -> 0.000141314 | D81: =IF('DF raw data'!P81="","",'DF raw data'!P81) -> -3.65488e-05 | F81: -5.812002762e-06 | G81: 1.64532691e-05 | H81: -5.569208105e-06 | J81: 1.722887391e-05 | K81: 1.936991132e-05 | L81: 0.0001170857518 | M81: 0.0004527380709 | N81: 3.720396499e-08
A82: =IF('DF raw data'!M82="","",'DF raw data'!M82) -> -292.5 | B82: =IF('DF raw data'!N82="","",'DF raw data'!N82) -> -1.95748e-05 | C82: =IF('DF raw data'!O82="","",'DF raw data'!O82) -> 0.000144388 | D82: =IF('DF raw data'!P82="","",'DF raw data'!P82) -> -3.51582e-05 | F82: -1.938458462e-06 | G82: 1.95484797e-05 | H82: -4.169012965e-06 | J82: 1.625964468e-05 | K82: 2.749973366e-05 | L82: 0.0001268599916 | M82: 0.0005161680667 | N82: 4.538288175e-08
A83: =IF('DF raw data'!M83="","",'DF raw data'!M83) -> -292 | B83: =IF('DF raw data'!N83="","",'DF raw data'!N83) -> -2.23974e-05 | C83: =IF('DF raw data'!O83="","",'DF raw data'!O83) -> 0.000139635 | D83: =IF('DF raw data'!P83="","",'DF raw data'!P83) -> -3.39236e-05 | F83: -4.780534402e-06 | G83: 1.4762684e-05 | H83: -2.925894225e-06 | J83: 1.386937748e-05 | K83: 3.443442241e-05 | L83: 0.0001342413336 | M83: 0.0005832887335 | N83: 5.448942939e-08
A84: =IF('DF raw data'!M84="","",'DF raw data'!M84) -> -291.5 | B84: =IF('DF raw data'!N84="","",'DF raw data'!N84) -> -1.20696e-05 | C84: =IF('DF raw data'!O84="","",'DF raw data'!O84) -> 0.000134963 | D84: =IF('DF raw data'!P84="","",'DF raw data'!P84) -> -3.82279e-05 | F84: 5.618527418e-06 | G84: 1.00584472e-05 | H84: -7.259893895e-06 | J84: 1.667864119e-05 | K84: 4.2773743e-05 | L84: 0.0001392705572 | M84: 0.0006529240121 | N84: 6.432666198e-08
A85: =IF('DF raw data'!M85="","",'DF raw data'!M85) -> -291 | B85: =IF('DF raw data'!N85="","",'DF raw data'!N85) -> -7.58119e-06 | C85: =IF('DF raw data'!O85="","",'DF raw data'!O85) -> 0.000138888 | D85: =IF('DF raw data'!P85="","",'DF raw data'!P85) -> -3.74054e-05 | F85: 1.013790745e-05 | G85: 1.40105297e-05 | H85: -6.431718645e-06 | J85: 2.174759491e-05 | K85: 5.364754046e-05 | L85: 0.0001462758221 | M85: 0.0007260619232 | N85: 7.526144898e-08
A86: =IF('DF raw data'!M86="","",'DF raw data'!M86) -> -290.5 | B86: =IF('DF raw data'!N86="","",'DF raw data'!N86) -> -9.6971e-06 | C86: =IF('DF raw data'!O86="","",'DF raw data'!O86) -> 0.000134314 | D86: =IF('DF raw data'!P86="","",'DF raw data'!P86) -> -3.81216e-05 | F86: 8.007397668e-06 | G86: 9.404969097e-06 | H86: -7.152860425e-06 | J86: 2.575129375e-05 | K86: 6.652318733e-05 | L86: 0.0001509783066 | M86: 0.0008015510765 | N86: 8.699023808e-08
A87: =IF('DF raw data'!M87="","",'DF raw data'!M87) -> -290 | B87: =IF('DF raw data'!N87="","",'DF raw data'!N87) -> -1.51514e-05 | C87: =IF('DF raw data'!O87="","",'DF raw data'!O87) -> 0.000133281 | D87: =IF('DF raw data'!P87="","",'DF raw data'!P87) -> -3.30546e-05 | F87: 2.515462998e-06 | G87: 8.364841397e-06 | H87: -2.050898125e-06 | J87: 2.700902525e-05 | K87: 8.002769996e-05 | L87: 0.0001551607273 | M87: 0.0008791314401 | N87: 9.939240745e-08
A88: =IF('DF raw data'!M88="","",'DF raw data'!M88) -> -289.5 | B88: =IF('DF raw data'!N88="","",'DF raw data'!N88) -> -2.24028e-05 | C88: =IF('DF raw data'!O88="","",'DF raw data'!O88) -> 0.000142098 | D88: =IF('DF raw data'!P88="","",'DF raw data'!P88) -> -2.57449e-05 | F88: -4.785971662e-06 | G88: 1.72426787e-05 | H88: 5.309238805e-06 | J88: 2.461603942e-05 | K88: 9.233571966e-05 | L88: 0.0001637820667 | M88: 0.0009610224735 | N88: 1.131076648e-07
A89: =IF('DF raw data'!M89="","",'DF raw data'!M89) -> -289 | B89: =IF('DF raw data'!N89="","",'DF raw data'!N89) -> -2.52202e-05 | C89: =IF('DF raw data'!O89="","",'DF raw data'!O89) -> 0.000145586 | D89: =IF('DF raw data'!P89="","",'DF raw data'!P89) -> -3.21803e-05 | F89: -7.622811722e-06 | G89: 2.07547459e-05 | H89: -1.170565455e-06 | J89: 2.080463356e-05 | K89: 0.0001027380364 | L89: 0.0001741594396 | M89: 0.001048102193 | N89: 1.284898364e-07
A90: =IF('DF raw data'!M90="","",'DF raw data'!M90) -> -288.5 | B90: =IF('DF raw data'!N90="","",'DF raw data'!N90) -> -2.41952e-05 | C90: =IF('DF raw data'!O90="","",'DF raw data'!O90) -> 0.000142263 | D90: =IF('DF raw data'!P90="","",'DF raw data'!P90) -> -3.06238e-05 | F90: -6.590739222e-06 | G90: 1.74088172e-05 | H90: 3.966743946e-07 | J90: 1.750926394e-05 | K90: 0.0001114926684 | L90: 0.0001828638482 | M90: 0.001139534117 | N90: 1.453627171e-07
A91: =IF('DF raw data'!M91="","",'DF raw data'!M91) -> -288 | B91: =IF('DF raw data'!N91="","",'DF raw data'!N91) -> -2.18139e-05 | C91: =IF('DF raw data'!O91="","",'DF raw data'!O91) -> 0.000146183 | D91: =IF('DF raw data'!P91="","",'DF raw data'!P91) -> -4.34965e-05 | F91: -4.193008252e-06 | G91: 2.13558652e-05 | H91: -1.256484724e-05 | J91: 1.541275982e-05 | K91: 0.0001191990483 | L91: 0.0001935417808 | M91: 0.001236305008 | N91: 1.642107041e-07
A92: =IF('DF raw data'!M92="","",'DF raw data'!M92) -> -287.5 | B92: =IF('DF raw data'!N92="","",'DF raw data'!N92) -> -2.14373e-05 | C92: =IF('DF raw data'!O92="","",'DF raw data'!O92) -> 0.000144504 | D92: =IF('DF raw data'!P92="","",'DF raw data'!P92) -> -3.10184e-05 | F92: -3.813809712e-06 | G92: 1.96652801e-05 | H92: -6.483453659e-10 | J92: 1.350585496e-05 | K92: 0.0001259519758 | L92: 0.0002033744209 | M92: 0.001337992218 | N92: 1.849824857e-07
A93: =IF('DF raw data'!M93="","",'DF raw data'!M93) -> -287 | B93: =IF('DF raw data'!N93="","",'DF raw data'!N93) -> -9.82419e-06 | C93: =IF('DF raw data'!O93="","",'DF raw data'!O93) -> 0.000136234 | D93: =IF('DF raw data'!P93="","",'DF raw data'!P93) -> -3.98886e-05 | F93: 7.879430747e-06 | G93: 1.13382171e-05 | H93: -8.932052725e-06 | J93: 1.744557034e-05 | K93: 0.000134674761 | L93: 0.0002090435294 | M93: 0.001442513983 | N93: 2.069842583e-07
A94: =IF('DF raw data'!M94="","",'DF raw data'!M94) -> -286.5 | B94: =IF('DF raw data'!N94="","",'DF raw data'!N94) -> -1.75214e-05 | C94: =IF('DF raw data'!O94="","",'DF raw data'!O94) -> 0.000137376 | D94: =IF('DF raw data'!P94="","",'DF raw data'!P94) -> -3.70606e-05 | F94: 1.291099981e-07 | G94: 1.24880969e-05 | H94: -6.084539525e-06 | J94: 1.751012534e-05 | K94: 0.0001434298236 | L94: 0.0002152875779 | M94: 0.001550157772 | N94: 2.303119311e-07
A95: =IF('DF raw data'!M95="","",'DF raw data'!M95) -> -286 | B95: =IF('DF raw data'!N95="","",'DF raw data'!N95) -> -1.23955e-05 | C95: =IF('DF raw data'!O95="","",'DF raw data'!O95) -> 0.000145025 | D95: =IF('DF raw data'!P95="","",'DF raw data'!P95) -> -3.03602e-05 | F95: 5.290378708e-06 | G95: 2.0189875e-05 | H95: 6.620932346e-07 | J95: 2.015531469e-05 | K95: 0.000153507481 | L95: 0.0002253825154 | M95: 0.00166284903 | N95: 2.559136886e-07
A96: =IF('DF raw data'!M96="","",'DF raw data'!M96) -> -285.5 | B96: =IF('DF raw data'!N96="","",'DF raw data'!N96) -> -2.61873e-05 | C96: =IF('DF raw data'!O96="","",'DF raw data'!O96) -> 0.000134497 | D96: =IF('DF raw data'!P96="","",'DF raw data'!P96) -> -2.4438e-05 | F96: -8.596584712e-06 | G96: 9.589231797e-06 | H96: 6.625156415e-06 | J96: 1.585702233e-05 | K96: 0.0001614359922 | L96: 0.0002301771313 | M96: 0.001777937595 | N96: 2.82530167e-07
A97: =IF('DF raw data'!M97="","",'DF raw data'!M97) -> -285 | B97: =IF('DF raw data'!N97="","",'DF raw data'!N97) -> -2.84877e-05 | C97: =IF('DF raw data'!O97="","",'DF raw data'!O97) -> 0.000142831 | D97: =IF('DF raw data'!P97="","",'DF raw data'!P97) -> -3.70132e-05 | F97: -1.091285747e-05 | G97: 1.79807364e-05 | H97: -6.036812465e-06 | J97: 1.04005936e-05 | K97: 0.000166636289 | L97: 0.0002391674995 | M97: 0.001897521345 | N97: 3.111847996e-07
A98: =IF('DF raw data'!M98="","",'DF raw data'!M98) -> -284.5 | B98: =IF('DF raw data'!N98="","",'DF raw data'!N98) -> -2.47134e-05 | C98: =IF('DF raw data'!O98="","",'DF raw data'!O98) -> 0.000138784 | D98: =IF('DF raw data'!P98="","",'DF raw data'!P98) -> -2.26066e-05 | F98: -7.112514802e-06 | G98: 1.39058121e-05 | H98: 8.469193075e-06 | J98: 6.844336196e-06 | K98: 0.000170058457 | L98: 0.0002461204055 | M98: 0.002020581548 | N98: 3.414958491e-07
A99: =IF('DF raw data'!M99="","",'DF raw data'!M99) -> -284 | B99: =IF('DF raw data'!N99="","",'DF raw data'!N99) -> -2.11778e-05 | C99: =IF('DF raw data'!O99="","",'DF raw data'!O99) -> 0.000138613 | D99: =IF('DF raw data'!P99="","",'DF raw data'!P99) -> -3.55747e-05 | F99: -3.552519162e-06 | G99: 1.37336322e-05 | H99: -4.588386815e-06 | J99: 5.068076615e-06 | K99: 0.0001725924954 | L99: 0.0002529872216 | M99: 0.002147075158 | N99: 3.735099589e-07
A100: =IF('DF raw data'!M100="","",'DF raw data'!M100) -> -283.5 | B100: =IF('DF raw data'!N100="","",'DF raw data'!N100) -> -8.93604e-06 | C100: =IF('DF raw data'!O100="","",'DF raw data'!O100) -> 0.000136269 | D100: =IF('DF raw data'!P100="","",'DF raw data'!P100) -> -2.50539e-05 | F100: 8.773708982e-06 | G100: 1.13734586e-05 | H100: 6.005006705e-06 | J100: 9.454931106e-06 | K100: 0.0001773199609 | L100: 0.0002586739509 | M100: 0.002276412134 | N100: 4.070107632e-07
A101: =IF('DF raw data'!M101="","",'DF raw data'!M101) -> -283 | B101: =IF('DF raw data'!N101="","",'DF raw data'!N101) -> -2.08663e-05 | C101: =IF('DF raw data'!O101="","",'DF raw data'!O101) -> 0.000137748 | D101: =IF('DF raw data'!P101="","",'DF raw data'!P101) -> -2.16576e-05 | F101: -3.238869812e-06 | G101: 1.28626637e-05 | H101: 9.424741175e-06 | J101: 7.8354962e-06 | K101: 0.000181237709 | L101: 0.0002651052827 | M101: 0.002408964775 | N101: 4.421818662e-07
A102: =IF('DF raw data'!M102="","",'DF raw data'!M102) -> -282.5 | B102: =IF('DF raw data'!N102="","",'DF raw data'!N102) -> -2.27255e-05 | C102: =IF('DF raw data'!O102="","",'DF raw data'!O102) -> 0.000137455 | D102: =IF('DF raw data'!P102="","",'DF raw data'!P102) -> -2.23257e-05 | F102: -5.110898292e-06 | G102: 1.2567642e-05 | H102: 8.752031285e-06 | J102: 5.280047055e-06 | K102: 0.0001838777325 | L102: 0.0002713891037 | M102: 0.002544659327 | N102: 4.790218284e-07
A103: =IF('DF raw data'!M103="","",'DF raw data'!M103) -> -282 | B103: =IF('DF raw data'!N103="","",'DF raw data'!N103) -> -2.32347e-05 | C103: =IF('DF raw data'!O103="","",'DF raw data'!O103) -> 0.000133367 | D103: =IF('DF raw data'!P103="","",'DF raw data'!P103) -> -2.82535e-05 | F103: -5.623611772e-06 | G103: 8.451434797e-06 | H103: 2.783329465e-06 | J103: 2.468241169e-06 | K103: 0.0001851118531 | L103: 0.0002756148211 | M103: 0.002682466738 | N103: 5.170066394e-07
A104: =IF('DF raw data'!M104="","",'DF raw data'!M104) -> -281.5 | B104: =IF('DF raw data'!N104="","",'DF raw data'!N104) -> -2.66954e-05 | C104: =IF('DF raw data'!O104="","",'DF raw data'!O104) -> 0.000140277 | D104: =IF('DF raw data'!P104="","",'DF raw data'!P104) -> -3.20271e-05 | F104: -9.108190602e-06 | G104: 1.54091138e-05 | H104: -1.016308375e-06 | J104: -2.085854132e-06 | K104: 0.0001840689261 | L104: 0.000283319378 | M104: 0.002824126427 | N104: 5.571437497e-07
A105: =IF('DF raw data'!M105="","",'DF raw data'!M105) -> -281 | B105: =IF('DF raw data'!N105="","",'DF raw data'!N105) -> -1.48343e-05 | C105: =IF('DF raw data'!O105="","",'DF raw data'!O105) -> 0.000149981 | D105: =IF('DF raw data'!P105="","",'DF raw data'!P105) -> -2.73358e-05 | F105: 2.834750988e-06 | G105: 2.51800714e-05 | H105: 3.707361595e-06 | J105: -6.684786383e-07 | K105: 0.0001837346867 | L105: 0.0002959094137 | M105: 0.002972081134 | N105: 6.009251637e-07
A106: =IF('DF raw data'!M106="","",'DF raw data'!M106) -> -280.5 | B106: =IF('DF raw data'!N106="","",'DF raw data'!N106) -> -1.62492e-05 | C106: =IF('DF raw data'!O106="","",'DF raw data'!O106) -> 0.000145814 | D106: =IF('DF raw data'!P106="","",'DF raw data'!P106) -> -2.11973e-05 | F106: 1.410088178e-06 | G106: 2.09843191e-05 | H106: 9.888217245e-06 | J106: 3.656545071e-08 | K106: 0.0001837529695 | L106: 0.0003064015733 | M106: 0.00312528192 | N106: 6.478661265e-07
A107: =IF('DF raw data'!M107="","",'DF raw data'!M107) -> -280 | B107: =IF('DF raw data'!N107="","",'DF raw data'!N107) -> -1.05953e-05 | C107: =IF('DF raw data'!O107="","",'DF raw data'!O107) -> 0.000145034 | D107: =IF('DF raw data'!P107="","",'DF raw data'!P107) -> -3.74102e-05 | F107: 7.103000088e-06 | G107: 2.01989371e-05 | H107: -6.436551765e-06 | J107: 3.588065495e-06 | K107: 0.0001855470022 | L107: 0.0003165010418 | M107: 0.003283532441 | N107: 6.979590183e-07
A108: =IF('DF raw data'!M108="","",'DF raw data'!M108) -> -279.5 | B108: =IF('DF raw data'!N108="","",'DF raw data'!N108) -> -1.97749e-05 | C108: =IF('DF raw data'!O108="","",'DF raw data'!O108) -> 0.00013877 | D108: =IF('DF raw data'!P108="","",'DF raw data'!P108) -> -2.33774e-05 | F108: -2.139939152e-06 | G108: 1.38917155e-05 | H108: 7.693074555e-06 | J108: 2.518095919e-06 | K108: 0.0001868060502 | L108: 0.0003234468996 | M108: 0.003445255891 | N108: 7.502711371e-07
A109: =IF('DF raw data'!M109="","",'DF raw data'!M109) -> -279 | B109: =IF('DF raw data'!N109="","",'DF raw data'!N109) -> -2.2083e-05 | C109: =IF('DF raw data'!O109="","",'DF raw data'!O109) -> 0.000140919 | D109: =IF('DF raw data'!P109="","",'DF raw data'!P109) -> -2.42103e-05 | F109: -4.463965042e-06 | G109: 1.60555436e-05 | H109: 6.854427545e-06 | J109: 2.861133978e-07 | K109: 0.0001869491069 | L109: 0.0003314746714 | M109: 0.003610993227 | N109: 8.05208907e-07
A110: =IF('DF raw data'!M110="","",'DF raw data'!M110) -> -278.5 | B110: =IF('DF raw data'!N110="","",'DF raw data'!N110) -> -1.4453e-05 | C110: =IF('DF raw data'!O110="","",'DF raw data'!O110) -> 0.000133882 | D110: =IF('DF raw data'!P110="","",'DF raw data'!P110) -> -2.21308e-05 | F110: 3.218681958e-06 | G110: 8.969988297e-06 | H110: 8.948276095e-06 | J110: 1.895454377e-06 | K110: 0.0001878968341 | L110: 0.0003359596655 | M110: 0.003778973059 | N110: 8.616451518e-07
A111: =IF('DF raw data'!M111="","",'DF raw data'!M111) -> -278 | B111: =IF('DF raw data'!N111="","",'DF raw data'!N111) -> -1.03393e-05 | C111: =IF('DF raw data'!O111="","",'DF raw data'!O111) -> 0.000132709 | D111: =IF('DF raw data'!P111="","",'DF raw data'!P111) -> -3.66801e-05 | F111: 7.360766488e-06 | G111: 7.788894597e-06 | H111: -5.701414075e-06 | J111: 5.575837621e-06 | K111: 0.0001906847529 | L111: 0.0003398541128 | M111: 0.003948900116 | N111: 9.194111058e-07
A112: =IF('DF raw data'!M112="","",'DF raw data'!M112) -> -277.5 | B112: =IF('DF raw data'!N112="","",'DF raw data'!N112) -> -2.65696e-05 | C112: =IF('DF raw data'!O112="","",'DF raw data'!O112) -> 0.000139941 | D112: =IF('DF raw data'!P112="","",'DF raw data'!P112) -> -2.82909e-05 | F112: -8.981522582e-06 | G112: 1.50707954e-05 | H112: 2.745671405e-06 | J112: 1.08507633e-06 | K112: 0.000191227291 | L112: 0.0003473895105 | M112: 0.004122594871 | N112: 9.797514305e-07
A113: =IF('DF raw data'!M113="","",'DF raw data'!M113) -> -277 | B113: =IF('DF raw data'!N113="","",'DF raw data'!N113) -> -2.52208e-05 | C113: =IF('DF raw data'!O113="","",'DF raw data'!O113) -> 0.00014462 | D113: =IF('DF raw data'!P113="","",'DF raw data'!P113) -> -3.12878e-05 | F113: -7.623415862e-06 | G113: 1.97820805e-05 | H113: -2.719072054e-07 | J113: -2.726631601e-06 | K113: 0.0001898639752 | L113: 0.0003572805508 | M113: 0.004301235146 | N113: 1.043579844e-06
A114: =IF('DF raw data'!M114="","",'DF raw data'!M114) -> -276.5 | B114: =IF('DF raw data'!N114="","",'DF raw data'!N114) -> -1.89417e-05 | C114: =IF('DF raw data'!O114="","",'DF raw data'!O114) -> 0.00014144 | D114: =IF('DF raw data'!P114="","",'DF raw data'!P114) -> -2.25165e-05 | F114: -1.300990072e-06 | G114: 1.65801385e-05 | H114: 8.559914765e-06 | J114: -3.377126637e-06 | K114: 0.0001881754119 | L114: 0.00036557062 | M114: 0.004484020456 | N114: 1.110406485e-06
A115: =IF('DF raw data'!M115="","",'DF raw data'!M115) -> -276 | B115: =IF('DF raw data'!N115="","",'DF raw data'!N115) -> -1.48966e-05 | C115: =IF('DF raw data'!O115="","",'DF raw data'!O115) -> 0.000137183 | D115: =IF('DF raw data'!P115="","",'DF raw data'!P115) -> -3.03957e-05 | F115: 2.772021118e-06 | G115: 1.22937652e-05 | H115: 6.263482846e-07 | J115: -1.991116078e-06 | K115: 0.0001871798539 | L115: 0.0003717175026 | M115: 0.004669879208 | N115: 1.179495418e-06
A116: =IF('DF raw data'!M116="","",'DF raw data'!M116) -> -275.5 | B116: =IF('DF raw data'!N116="","",'DF raw data'!N116) -> -1.61759e-05 | C116: =IF('DF raw data'!O116="","",'DF raw data'!O116) -> 0.000141112 | D116: =IF('DF raw data'!P116="","",'DF raw data'!P116) -> -3.55447e-05 | F116: 1.483893948e-06 | G116: 1.62498753e-05 | H116: -4.558179815e-06 | J116: -1.249169104e-06 | K116: 0.0001865552693 | L116: 0.0003798424403 | M116: 0.004859800428 | N116: 1.251636338e-06
A117: =IF('DF raw data'!M117="","",'DF raw data'!M117) -> -275 | B117: =IF('DF raw data'!N117="","",'DF raw data'!N117) -> -2.22049e-05 | C117: =IF('DF raw data'!O117="","",'DF raw data'!O117) -> 0.000132718 | D117: =IF('DF raw data'!P117="","",'DF raw data'!P117) -> -3.40299e-05 | F117: -4.586706152e-06 | G117: 7.797956697e-06 | H117: -3.032927695e-06 | J117: -3.54252218e-06 | K117: 0.0001847840082 | L117: 0.0003837414186 | M117: 0.005051671137 | N117: 1.325271351e-06
A118: =IF('DF raw data'!M118="","",'DF raw data'!M118) -> -274.5 | B118: =IF('DF raw data'!N118="","",'DF raw data'!N118) -> -2.04731e-05 | C118: =IF('DF raw data'!O118="","",'DF raw data'!O118) -> 0.00012997 | D118: =IF('DF raw data'!P118="","",'DF raw data'!P118) -> -3.47119e-05 | F118: -2.842956732e-06 | G118: 5.030995497e-06 | H118: -3.719633495e-06 | J118: -4.964000546e-06 | K118: 0.000182302008 | L118: 0.0003862569164 | M118: 0.005244799595 | N118: 1.399880875e-06
A119: =IF('DF raw data'!M119="","",'DF raw data'!M119) -> -274 | B119: =IF('DF raw data'!N119="","",'DF raw data'!N119) -> -1.94475e-05 | C119: =IF('DF raw data'!O119="","",'DF raw data'!O119) -> 0.00013534 | D119: =IF('DF raw data'!P119="","",'DF raw data'!P119) -> -3.36245e-05 | F119: -1.810280092e-06 | G119: 1.04380485e-05 | H119: -2.624730435e-06 | J119: -5.869140592e-06 | K119: 0.0001793674377 | L119: 0.0003914759406 | M119: 0.005440537566 | N119: 1.476524804e-06
A120: =IF('DF raw data'!M120="","",'DF raw data'!M120) -> -273.5 | B120: =IF('DF raw data'!N120="","",'DF raw data'!N120) -> -2.09875e-05 | C120: =IF('DF raw data'!O120="","",'DF raw data'!O120) -> 0.000141669 | D120: =IF('DF raw data'!P120="","",'DF raw data'!P120) -> -3.25759e-05 | F120: -3.360906092e-06 | G120: 1.68107186e-05 | H120: -1.568895095e-06 | J120: -7.549593638e-06 | K120: 0.0001755926408 | L120: 0.0003998812999 | M120: 0.005640478216 | N120: 1.556505829e-06
A121: =IF('DF raw data'!M121="","",'DF raw data'!M121) -> -273 | B121: =IF('DF raw data'!N121="","",'DF raw data'!N121) -> -2.03503e-05 | C121: =IF('DF raw data'!O121="","",'DF raw data'!O121) -> 0.000132629 | D121: =IF('DF raw data'!P121="","",'DF raw data'!P121) -> -2.62928e-05 | F121: -2.719309412e-06 | G121: 7.708342597e-06 | H121: 4.757558295e-06 | J121: -8.909248344e-06 | K121: 0.0001711380167 | L121: 0.0004037354712 | M121: 0.005842345951 | N121: 1.638046682e-06
A122: =IF('DF raw data'!M122="","",'DF raw data'!M122) -> -272.5 | B122: =IF('DF raw data'!N122="","",'DF raw data'!N122) -> -2.0611e-05 | C122: =IF('DF raw data'!O122="","",'DF raw data'!O122) -> 0.000130566 | D122: =IF('DF raw data'!P122="","",'DF raw data'!P122) -> -1.98895e-05 | F122: -2.981808242e-06 | G122: 5.631107897e-06 | H122: 1.120504106e-05 | J122: -1.040015246e-05 | K122: 0.0001659379404 | L122: 0.0004065510252 | M122: 0.006045621464 | N122: 1.720742632e-06
A123: =IF('DF raw data'!M123="","",'DF raw data'!M123) -> -272 | B123: =IF('DF raw data'!N123="","",'DF raw data'!N123) -> -1.31028e-05 | C123: =IF('DF raw data'!O123="","",'DF raw data'!O123) -> 0.000137673 | D123: =IF('DF raw data'!P123="","",'DF raw data'!P123) -> -2.72281e-05 | F123: 4.578198338e-06 | G123: 1.27871462e-05 | H123: 3.815804725e-06 | J123: -8.111053296e-06 | K123: 0.0001618824138 | L123: 0.0004129445983 | M123: 0.006252093763 | N123: 1.806037147e-06
A124: =IF('DF raw data'!M124="","",'DF raw data'!M124) -> -271.5 | B124: =IF('DF raw data'!N124="","",'DF raw data'!N124) -> -6.30765e-06 | C124: =IF('DF raw data'!O124="","",'DF raw data'!O124) -> 0.000128551 | D124: =IF('DF raw data'!P124="","",'DF raw data'!P124) -> -2.34966e-05 | F124: 1.142023487e-05 | G124: 3.602204397e-06 | H124: 7.573052075e-06 | J124: -2.400935859e-06 | K124: 0.0001606819459 | L124: 0.0004147457005 | M124: 0.006459466613 | N124: 1.892047027e-06
A125: =IF('DF raw data'!M125="","",'DF raw data'!M125) -> -271 | B125: =IF('DF raw data'!N125="","",'DF raw data'!N125) -> -5.01263e-06 | C125: =IF('DF raw data'!O125="","",'DF raw data'!O125) -> 0.000123334 | D125: =IF('DF raw data'!P125="","",'DF raw data'!P125) -> -4.27341e-05 | F125: 1.272419051e-05 | G125: -1.650792903e-06 | H125: -1.179718668e-05 | J125: 3.961159397e-06 | K125: 0.0001626625256 | L125: 0.000413920304 | M125: 0.006666426765 | N125: 1.977719882e-06
A126: =IF('DF raw data'!M126="","",'DF raw data'!M126) -> -270.5 | B126: =IF('DF raw data'!N126="","",'DF raw data'!N126) -> -1.74561e-05 | C126: =IF('DF raw data'!O126="","",'DF raw data'!O126) -> 0.000122151 | D126: =IF('DF raw data'!P126="","",'DF raw data'!P126) -> -3.90658e-05 | F126: 1.948605681e-07 | G126: -2.841955603e-06 | H126: -8.103575405e-06 | J126: 4.058589681e-06 | K126: 0.0001646918204 | L126: 0.0004124993262 | M126: 0.006872676428 | N126: 2.062805965e-06
A127: =IF('DF raw data'!M127="","",'DF raw data'!M127) -> -270 | B127: =IF('DF raw data'!N127="","",'DF raw data'!N127) -> -1.54107e-05 | C127: =IF('DF raw data'!O127="","",'DF raw data'!O127) -> 0.000123347 | D127: =IF('DF raw data'!P127="","",'DF raw data'!P127) -> -2.88761e-05 | F127: 2.254373828e-06 | G127: -1.637703203e-06 | H127: 2.156433525e-06 | J127: 5.185776595e-06 | K127: 0.0001672847087 | L127: 0.0004116804746 | M127: 0.007078516666 | N127: 2.147559817e-06
A128: =IF('DF raw data'!M128="","",'DF raw data'!M128) -> -269.5 | B128: =IF('DF raw data'!N128="","",'DF raw data'!N128) -> -2.54818e-05 | C128: =IF('DF raw data'!O128="","",'DF raw data'!O128) -> 0.000134003 | D128: =IF('DF raw data'!P128="","",'DF raw data'!P128) -> -2.43364e-05 | F128: -7.886216762e-06 | G128: 9.091823197e-06 | H128: 6.727457455e-06 | J128: 1.242668214e-06 | K128: 0.0001679060428 | L128: 0.0004162263862 | M128: 0.007286629859 | N128: 2.234182792e-06
A129: =IF('DF raw data'!M129="","",'DF raw data'!M129) -> -269 | B129: =IF('DF raw data'!N129="","",'DF raw data'!N129) -> -9.56949e-06 | C129: =IF('DF raw data'!O129="","",'DF raw data'!O129) -> 0.000141587 | D129: =IF('DF raw data'!P129="","",'DF raw data'!P129) -> -3.71852e-05 | F129: 8.135888177e-06 | G129: 1.67281528e-05 | H129: -6.209999265e-06 | J129: 5.310612302e-06 | K129: 0.000170561349 | L129: 0.0004245904626 | M129: 0.00749892509 | N129: 2.324335424e-06
A130: =IF('DF raw data'!M130="","",'DF raw data'!M130) -> -268.5 | B130: =IF('DF raw data'!N130="","",'DF raw data'!N130) -> -2.04113e-05 | C130: =IF('DF raw data'!O130="","",'DF raw data'!O130) -> 0.000141089 | D130: =IF('DF raw data'!P130="","",'DF raw data'!P130) -> -3.08526e-05 | F130: -2.780730312e-06 | G130: 1.62267166e-05 | H130: 1.662956746e-07 | J130: 3.920247146e-06 | K130: 0.0001725214725 | L130: 0.0004327038209 | M130: 0.007715277 | N130: 2.417959406e-06
A131: =IF('DF raw data'!M131="","",'DF raw data'!M131) -> -268 | B131: =IF('DF raw data'!N131="","",'DF raw data'!N131) -> -2.93892e-05 | C131: =IF('DF raw data'!O131="","",'DF raw data'!O131) -> 0.000131234 | D131: =IF('DF raw data'!P131="","",'DF raw data'!P131) -> -3.16191e-05 | F131: =(1-$G$1*($B$54-$G$2))*(B131-F$5) -> -1.182057782e-05 | G131: =(1-$G$1*($B$54-$G$2))*(C131-G$5) -> 6.303717097e-06 | H131: =(1-$G$1*($B$54-$G$2))*(D131-H$5) -> -6.054931754e-07 | J131: -1.990041765e-06 | K131: 0.0001715264516 | L131: 0.0004358556794 | M131: 0.00793320484 | N131: 2.512946473e-06
A132: =IF('DF raw data'!M132="","",'DF raw data'!M132) -> -267.5 | B132: =IF('DF raw data'!N132="","",'DF raw data'!N132) -> -1.55351e-05 | C132: =IF('DF raw data'!O132="","",'DF raw data'!O132) -> 0.000123819 | D132: =IF('DF raw data'!P132="","",'DF raw data'!P132) -> -3.46115e-05 | F132: 2.129115468e-06 | G132: -1.162446403e-06 | H132: -3.618540735e-06 | J132: =F132*$G$3+J131 -> -9.254840307e-07 | K132: =J132*$G$3+K131 -> 0.0001710637096 | L132: =G132*$G$3+L131 -> 0.0004352744562 | M132: =L132*$G$3+M131 -> 0.008150842068 | N132: =(J132^2+L132^2)*$G$3+N131 -> 2.607678827e-06
A133: =IF('DF raw data'!M133="","",'DF raw data'!M133) -> -267 | B133: =IF('DF raw data'!N133="","",'DF raw data'!N133) -> -1.53453e-05 | C133: =IF('DF raw data'!O133="","",'DF raw data'!O133) -> 0.00012952 | D133: =IF('DF raw data'!P133="","",'DF raw data'!P133) -> -3.0713e-05 | F133: 2.320225088e-06 | G133: 4.577890497e-06 | H133: 3.068589146e-07 | J133: 2.346285134e-07 | K133: 0.0001711810239 | L133: 0.0004375634015 | M133: 0.008369623769 | N133: 2.70340972e-06
A134: =IF('DF raw data'!M134="","",'DF raw data'!M134) -> -266.5 | B134: =IF('DF raw data'!N134="","",'DF raw data'!N134) -> -2.99073e-05 | C134: =IF('DF raw data'!O134="","",'DF raw data'!O134) -> 0.000129964 | D134: =IF('DF raw data'!P134="","",'DF raw data'!P134) -> -2.34833e-05 | F134: -1.234225271e-05 | G134: 5.024954097e-06 | H134: 7.586443845e-06 | J134: -5.936497843e-06 | K134: 0.000168212775 | L134: 0.0004400758785 | M134: 0.008589661708 | N134: 2.80026073e-06
A135: =IF('DF raw data'!M135="","",'DF raw data'!M135) -> -266 | B135: =IF('DF raw data'!N135="","",'DF raw data'!N135) -> -2.32954e-05 | C135: =IF('DF raw data'!O135="","",'DF raw data'!O135) -> 0.000126839 | D135: =IF('DF raw data'!P135="","",'DF raw data'!P135) -> -3.39501e-05 | F135: -5.684730602e-06 | G135: 1.878391597e-06 | H135: -2.952577075e-06 | J135: -8.778863144e-06 | K135: 0.0001638233434 | L135: 0.0004410150743 | M135: 0.008810169246 | N135: 2.897546412e-06
A136: =IF('DF raw data'!M136="","",'DF raw data'!M136) -> -265.5 | B136: =IF('DF raw data'!N136="","",'DF raw data'!N136) -> -1.68181e-05 | C136: =IF('DF raw data'!O136="","",'DF raw data'!O136) -> 0.000126603 | D136: =IF('DF raw data'!P136="","",'DF raw data'!P136) -> -3.39486e-05 | F136: 8.372627681e-07 | G136: 1.640763197e-06 | H136: -2.951066725e-06 | J136: -8.36023176e-06 | K136: 0.0001596432275 | L136: 0.0004418354559 | M136: 0.009031086973 | N136: 2.995190644e-06
A137: =IF('DF raw data'!M137="","",'DF raw data'!M137) -> -265 | B137: =IF('DF raw data'!N137="","",'DF raw data'!N137) -> -2.04119e-05 | C137: =IF('DF raw data'!O137="","",'DF raw data'!O137) -> 0.000133258 | D137: =IF('DF raw data'!P137="","",'DF raw data'!P137) -> -3.01568e-05 | F137: -2.781334452e-06 | G137: 8.341682697e-06 | H137: 8.668966946e-07 | J137: -9.750898985e-06 | K137: 0.000154767778 | L137: 0.0004460062973 | M137: 0.009254090122 | N137: 3.094698993e-06
A138: =IF('DF raw data'!M138="","",'DF raw data'!M138) -> -264.5 | B138: =IF('DF raw data'!N138="","",'DF raw data'!N138) -> -3.0607e-05 | C138: =IF('DF raw data'!O138="","",'DF raw data'!O138) -> 0.000129127 | D138: =IF('DF raw data'!P138="","",'DF raw data'!P138) -> -3.1961e-05 | F138: -1.304678064e-05 | G138: 4.182178797e-06 | H138: -9.497522854e-07 | J138: -1.627428931e-05 | K138: 0.0001466306334 | L138: 0.0004480973867 | M138: 0.009478138815 | N138: 3.195227053e-06
A139: =IF('DF raw data'!M139="","",'DF raw data'!M139) -> -264 | B139: =IF('DF raw data'!N139="","",'DF raw data'!N139) -> -2.06597e-05 | C139: =IF('DF raw data'!O139="","",'DF raw data'!O139) -> 0.000134235 | D139: =IF('DF raw data'!P139="","",'DF raw data'!P139) -> -4.36782e-05 | F139: -3.030844272e-06 | G139: 9.325423997e-06 | H139: -1.274780097e-05 | J139: -1.778971144e-05 | K139: 0.0001377357776 | L139: 0.0004527600987 | M139: 0.009704518865 | N139: 3.297881144e-06
A140: =IF('DF raw data'!M140="","",'DF raw data'!M140) -> -263.5 | B140: =IF('DF raw data'!N140="","",'DF raw data'!N140) -> -2.06665e-05 | C140: =IF('DF raw data'!O140="","",'DF raw data'!O140) -> 0.000138232 | D140: =IF('DF raw data'!P140="","",'DF raw data'!P140) -> -3.28637e-05 | F140: -3.037691192e-06 | G140: 1.33500033e-05 | H140: -1.858680915e-06 | J140: -1.930855704e-05 | K140: 0.0001280814991 | L140: 0.0004594351003 | M140: 0.009934236415 | N140: 3.403607859e-06
A141: =IF('DF raw data'!M141="","",'DF raw data'!M141) -> -263 | B141: =IF('DF raw data'!N141="","",'DF raw data'!N141) -> -1.74516e-05 | C141: =IF('DF raw data'!O141="","",'DF raw data'!O141) -> 0.000133005 | D141: =IF('DF raw data'!P141="","",'DF raw data'!P141) -> -4.61486e-05 | F141: 1.993916181e-07 | G141: 8.086936997e-06 | H141: -1.523524673e-05 | J141: -1.920886123e-05 | K141: 0.0001184770685 | L141: 0.0004634785688 | M141: 0.0101659757 | N141: 3.511198541e-06
A142: =IF('DF raw data'!M142="","",'DF raw data'!M142) -> -262.5 | B142: =IF('DF raw data'!N142="","",'DF raw data'!N142) -> -1.35439e-05 | C142: =IF('DF raw data'!O142="","",'DF raw data'!O142) -> 0.000134193 | D142: =IF('DF raw data'!P142="","",'DF raw data'!P142) -> -3.93974e-05 | F142: 4.134054748e-06 | G142: 9.283134197e-06 | H142: -8.437463445e-06 | J142: -1.714183386e-05 | K142: 0.0001099061516 | L142: 0.0004681201359 | M142: 0.01040003577 | N142: 3.620913694e-06
A143: =IF('DF raw data'!M143="","",'DF raw data'!M143) -> -262 | B143: =IF('DF raw data'!N143="","",'DF raw data'!N143) -> -3.19483e-05 | C143: =IF('DF raw data'!O143="","",'DF raw data'!O143) -> 0.000134374 | D143: =IF('DF raw data'!P143="","",'DF raw data'!P143) -> -4.10223e-05 | F143: -1.439733561e-05 | G143: 9.465383097e-06 | H143: -1.007357526e-05 | J143: -2.434050166e-05 | K143: 9.773590076e-05 | L143: 0.0004728528275 | M143: 0.01063646218 | N143: 3.733004822e-06
A144: =IF('DF raw data'!M144="","",'DF raw data'!M144) -> -261.5 | B144: =IF('DF raw data'!N144="","",'DF raw data'!N144) -> -2.17611e-05 | C144: =IF('DF raw data'!O144="","",'DF raw data'!O144) -> 0.000129416 | D144: =IF('DF raw data'!P144="","",'DF raw data'!P144) -> -2.62906e-05 | F144: -4.139843932e-06 | G144: 4.473172897e-06 | H144: 4.759773475e-06 | J144: -2.641042363e-05 | K144: 8.453068894e-05 | L144: 0.0004750894139 | M144: 0.01087400689 | N144: 3.846208553e-06
A145: =IF('DF raw data'!M145="","",'DF raw data'!M145) -> -261 | B145: =IF('DF raw data'!N145="","",'DF raw data'!N145) -> -2.41972e-05 | C145: =IF('DF raw data'!O145="","",'DF raw data'!O145) -> 0.000140292 | D145: =IF('DF raw data'!P145="","",'DF raw data'!P145) -> -2.78546e-05 | F145: -6.592753022e-06 | G145: 1.54242173e-05 | H145: 3.184981875e-06 | J145: -2.970680014e-05 | K145: 6.967728887e-05 | L145: 0.0004828015226 | M145: 0.01111540765 | N145: 3.963198455e-06
A146: =IF('DF raw data'!M146="","",'DF raw data'!M146) -> -260.5 | B146: =IF('DF raw data'!N146="","",'DF raw data'!N146) -> -1.96392e-05 | C146: =IF('DF raw data'!O146="","",'DF raw data'!O146) -> 0.000147301 | D146: =IF('DF raw data'!P146="","",'DF raw data'!P146) -> -3.47794e-05 | F146: -2.003302822e-06 | G146: 2.24815794e-05 | H146: -3.787599245e-06 | J146: -3.070845155e-05 | K146: 5.43230631e-05 | L146: 0.0004940423123 | M146: 0.01136242881 | N146: 4.085708862e-06
A147: =IF('DF raw data'!M147="","",'DF raw data'!M147) -> -260 | B147: =IF('DF raw data'!N147="","",'DF raw data'!N147) -> -2.69477e-05 | C147: =IF('DF raw data'!O147="","",'DF raw data'!O147) -> 0.000140313 | D147: =IF('DF raw data'!P147="","",'DF raw data'!P147) -> -3.89674e-05 | F147: -9.362231472e-06 | G147: 1.54453622e-05 | H147: -8.004496445e-06 | J147: -3.538956729e-05 | K147: 3.662827946e-05 | L147: 0.0005017649934 | M147: 0.0116133113 | N147: 4.212219127e-06
A148: =IF('DF raw data'!M148="","",'DF raw data'!M148) -> -259.5 | B148: =IF('DF raw data'!N148="","",'DF raw data'!N148) -> -1.88707e-05 | C148: =IF('DF raw data'!O148="","",'DF raw data'!O148) -> 0.000137269 | D148: =IF('DF raw data'!P148="","",'DF raw data'!P148) -> -3.31813e-05 | F148: -1.229500172e-06 | G148: 1.23803586e-05 | H148: -2.178472355e-06 | J148: -3.600431737e-05 | K148: 1.862612077e-05 | L148: 0.0005079551727 | M148: 0.01186728889 | N148: 4.341876512e-06
A149: =IF('DF raw data'!M149="","",'DF raw data'!M149) -> -259 | B149: =IF('DF raw data'!N149="","",'DF raw data'!N149) -> -2.19508e-05 | C149: =IF('DF raw data'!O149="","",'DF raw data'!O149) -> 0.000136521 | D149: =IF('DF raw data'!P149="","",'DF raw data'!P149) -> -3.06399e-05 | F149: -4.330852862e-06 | G149: 1.16271974e-05 | H149: 3.804633046e-07 | J149: -3.81697438e-05 | K149: -4.587511304e-07 | L149: 0.0005137687714 | M149: 0.01212417327 | N149: 4.474584151e-06
A150: =IF('DF raw data'!M150="","",'DF raw data'!M150) -> -258.5 | B150: =IF('DF raw data'!N150="","",'DF raw data'!N150) -> -2.31626e-05 | C150: =IF('DF raw data'!O150="","",'DF raw data'!O150) -> 0.000130133 | D150: =IF('DF raw data'!P150="","",'DF raw data'!P150) -> -4.05536e-05 | F150: -5.551014282e-06 | G150: 5.195120197e-06 | H150: -9.601641225e-06 | J150: -4.094525094e-05 | K150: -2.09313766e-05 | L150: 0.0005163663315 | M150: 0.01238235644 | N150: 4.608739502e-06
A151: =IF('DF raw data'!M151="","",'DF raw data'!M151) -> -258 | B151: =IF('DF raw data'!N151="","",'DF raw data'!N151) -> -1.29107e-05 | C151: =IF('DF raw data'!O151="","",'DF raw data'!O151) -> 0.000138048 | D151: =IF('DF raw data'!P151="","",'DF raw data'!P151) -> -2.72574e-05 | F151: 4.771623828e-06 | G151: 1.31647337e-05 | H151: 3.786302555e-06 | J151: -3.855943903e-05 | K151: -4.021109612e-05 | L151: 0.0005229486983 | M151: 0.01264383079 | N151: 4.746220588e-06
A152: =IF('DF raw data'!M152="","",'DF raw data'!M152) -> -257.5 | B152: =IF('DF raw data'!N152="","",'DF raw data'!N152) -> -3.01556e-05 | C152: =IF('DF raw data'!O152="","",'DF raw data'!O152) -> 0.000138595 | D152: =IF('DF raw data'!P152="","",'DF raw data'!P152) -> -3.57881e-05 | F152: -1.259226598e-05 | G152: 1.3715508e-05 | H152: -4.803259275e-06 | J152: -4.485557202e-05 | K152: -6.263888213e-05 | L152: 0.0005298064523 | M152: 0.01290873402 | N152: 4.887574038e-06
A153: =IF('DF raw data'!M153="","",'DF raw data'!M153) -> -257 | B153: =IF('DF raw data'!N153="","",'DF raw data'!N153) -> -2.10461e-05 | C153: =IF('DF raw data'!O153="","",'DF raw data'!O153) -> 0.000132106 | D153: =IF('DF raw data'!P153="","",'DF raw data'!P153) -> -4.13658e-05 | F153: -3.419910432e-06 | G153: 7.181733897e-06 | H153: -1.041944541e-05 | J153: -4.656552724e-05 | K153: -8.592164574e-05 | L153: 0.0005333973193 | M153: 0.01317543267 | N153: 5.030914562e-06
A154: =IF('DF raw data'!M154="","",'DF raw data'!M154) -> -256.5 | B154: =IF('DF raw data'!N154="","",'DF raw data'!N154) -> -1.88782e-05 | C154: =IF('DF raw data'!O154="","",'DF raw data'!O154) -> 0.000132345 | D154: =IF('DF raw data'!P154="","",'DF raw data'!P154) -> -2.14836e-05 | F154: -1.237051922e-06 | G154: 7.422382997e-06 | H154: 9.599941775e-06 | J154: -4.71840532e-05 | K154: -0.0001095136723 | L154: 0.0005371085108 | M154: 0.01344398693 | N154: 5.176270506e-06
A155: =IF('DF raw data'!M155="","",'DF raw data'!M155) -> -256 | B155: =IF('DF raw data'!N155="","",'DF raw data'!N155) -> -2.21407e-05 | C155: =IF('DF raw data'!O155="","",'DF raw data'!O155) -> 0.000131922 | D155: =IF('DF raw data'!P155="","",'DF raw data'!P155) -> -3.48098e-05 | F155: -4.522063172e-06 | G155: 6.996464297e-06 | H155: -3.818209005e-06 | J155: -4.944508478e-05 | K155: -0.0001342362147 | L155: 0.0005406067429 | M155: 0.0137142903 | N155: 5.323620739e-06
A156: =IF('DF raw data'!M156="","",'DF raw data'!M156) -> -255.5 | B156: =IF('DF raw data'!N156="","",'DF raw data'!N156) -> -2.94539e-05 | C156: =IF('DF raw data'!O156="","",'DF raw data'!O156) -> 0.000137174 | D156: =IF('DF raw data'!P156="","",'DF raw data'!P156) -> -2.97535e-05 | F156: -1.188572425e-05 | G156: 1.22847031e-05 | H156: 1.272979465e-06 | J156: -5.538794691e-05 | K156: -0.0001619301882 | L156: 0.0005467490945 | M156: 0.01398766485 | N156: 5.474621937e-06
A157: =IF('DF raw data'!M157="","",'DF raw data'!M157) -> -255 | B157: =IF('DF raw data'!N157="","",'DF raw data'!N157) -> -2.9582e-05 | C157: =IF('DF raw data'!O157="","",'DF raw data'!O157) -> 0.000138473 | D157: =IF('DF raw data'!P157="","",'DF raw data'!P157) -> -3.14782e-05 | F157: -1.201470814e-05 | G157: 1.35926662e-05 | H157: -4.636209654e-07 | J157: -6.139530098e-05 | K157: -0.0001926278387 | L157: 0.0005535454276 | M157: 0.01426443756 | N157: 5.629712899e-06
A158: =IF('DF raw data'!M158="","",'DF raw data'!M158) -> -254.5 | B158: =IF('DF raw data'!N158="","",'DF raw data'!N158) -> -2.18279e-05 | C158: =IF('DF raw data'!O158="","",'DF raw data'!O158) -> 0.000135337 | D158: =IF('DF raw data'!P158="","",'DF raw data'!P158) -> -2.15369e-05 | F158: -4.207104852e-06 | G158: 1.04350278e-05 | H158: 9.546274005e-06 | J158: -6.349885341e-05 | K158: -0.0002243772654 | L158: 0.0005587629415 | M158: 0.01454381903 | N158: 5.787836964e-06
A159: =IF('DF raw data'!M159="","",'DF raw data'!M159) -> -254 | B159: =IF('DF raw data'!N159="","",'DF raw data'!N159) -> -2.36812e-05 | C159: =IF('DF raw data'!O159="","",'DF raw data'!O159) -> 0.000134571 | D159: =IF('DF raw data'!P159="","",'DF raw data'!P159) -> -3.28478e-05 | F159: -6.073192622e-06 | G159: 9.663742397e-06 | H159: -1.842671205e-06 | J159: -6.653544972e-05 | K159: -0.0002576449902 | L159: 0.0005635948127 | M159: 0.01482561644 | N159: 5.948870003e-06
A160: =IF('DF raw data'!M160="","",'DF raw data'!M160) -> -253.5 | B160: =IF('DF raw data'!N160="","",'DF raw data'!N160) -> -1.65532e-05 | C160: =IF('DF raw data'!O160="","",'DF raw data'!O160) -> 0.000130004 | D160: =IF('DF raw data'!P160="","",'DF raw data'!P160) -> -4.65171e-05 | F160: 1.103990578e-06 | G160: 5.065230097e-06 | H160: -1.560628938e-05 | J160: -6.598345443e-05 | K160: -0.0002906367175 | L160: 0.0005661274277 | M160: 0.01510868015 | N160: 6.111297043e-06
A161: =IF('DF raw data'!M161="","",'DF raw data'!M161) -> -253 | B161: =IF('DF raw data'!N161="","",'DF raw data'!N161) -> -3.41933e-05 | C161: =IF('DF raw data'!O161="","",'DF raw data'!O161) -> 0.000133877 | D161: =IF('DF raw data'!P161="","",'DF raw data'!P161) -> -4.1261e-05 | F161: -1.665782611e-05 | G161: 8.964953797e-06 | H161: -1.031392229e-05 | J161: -7.431236748e-05 | K161: -0.0003277929012 | L161: 0.0005706099046 | M161: 0.01539398511 | N161: 6.276856039e-06
A162: =IF('DF raw data'!M162="","",'DF raw data'!M162) -> -252.5 | B162: =IF('DF raw data'!N162="","",'DF raw data'!N162) -> -3.2715e-05 | C162: =IF('DF raw data'!O162="","",'DF raw data'!O162) -> 0.000132528 | D162: =IF('DF raw data'!P162="","",'DF raw data'!P162) -> -4.43261e-05 | F162: -1.516932584e-05 | G162: 7.606645697e-06 | H162: -1.340017148e-05 | J162: -8.18970304e-05 | K162: -0.0003687414164 | L162: 0.0005744132274 | M162: 0.01568119172 | N162: 6.445184879e-06
